Workbook

Sheet LOGO
A1: DUKE ENEERGY KENTUCKY, INC.
A2: AUTOMATED RATE CASE FILING SYSTEM
A5: Company: | B5: DUKE ENERGY KENTUCKY, INC. | F5: Witnesses: | I5: Periods:
A6: Case: | B6: CASE NO. 2025-00125 | F6: WIT1: | G6: J. P. BROWN | I6: Base | J6: Forecast
A7: Period: | B7: ="FOR THE TWELVE MONTHS ENDED "&UPPER(TEXT(EDATE(I18,0),"mmmm dd, yyyy")) -> FOR THE TWELVE MONTHS ENDED AUGUST 31, 2025 | F7: WIT2: | G7: D. J. HEITKAMP | I7: 2024-09-30 | J7: 2026-01-31
A8: PeriodF: | B8: ="FOR THE TWELVE MONTHS ENDED "&UPPER(TEXT(EDATE(J18,0),"mmmm dd, yyyy")) -> FOR THE TWELVE MONTHS ENDED DECEMBER 31, 2026 | F8: WIT3: | G8: J. R. PANIZZA | I8: 2024-10-31 | J8: 2026-02-28
A9: Department: | B9: GAS DEPARTMENT | F9: WIT4: | G9: S. S. MITCHELL | I9: 2024-11-30 | J9: 2026-03-31
A10: Base Period: | B10: ="12 MONTHS ENDED "&UPPER(TEXT(EDATE(I18,0),"mmmm dd, yyyy")) -> 12 MONTHS ENDED AUGUST 31, 2025 | F10: WIT5: | G10: B. R. WEISKER | I10: 2024-12-31 | J10: 2026-04-30
A11: Forecast Period: | B11: ="12 MONTHS ENDED "&UPPER(TEXT(EDATE(J18,0),"mmmm dd, yyyy")) -> 12 MONTHS ENDED DECEMBER 31, 2026 | F11: WIT6: | G11: C. C. HUDSON / L. L. MILLER | I11: 2025-01-31 | J11: 2026-05-31
A12: Data: | B12: DATA: "X" BASE PERIOD FORECASTED PERIOD | F12: WIT7: | G12: C. C. HUDSON / S. S. MITCHELL | I12: 2025-02-28 | J12: 2026-06-30
A13: DataF: | B13: DATA: BASE PERIOD "X" FORECASTED PERIOD | F13: WIT8: | G13: S. A. CALDWELL | I13: 2025-03-31 | J13: 2026-07-31
A14: DataBoth: | B14: DATA: "X" BASE PERIOD "X" FORECASTED PERIOD | F14: WIT9: | G14: C. C. HUDSON | I14: 2025-04-30 | J14: 2026-08-31
A15: Type: | B15: TYPE OF FILING: "X" ORIGINAL UPDATED REVISED | F15: WIT10 | G15: T. J. HEATH JR. | I15: 2025-05-31 | J15: 2026-09-30
F16: WIT11 | G16: J. R. PANIZZA / J. P. BROWN | I16: 2025-06-30 | J16: 2026-10-31
F17: WIT12 | G17: L. B. PHILEMON | I17: 2025-07-31 | J17: 2026-11-30
F18: DECEMBER 31, 2026 | I18: 2025-08-31 | J18: 2026-12-31
B20: UNCOLLECTIBLE ACCOUNTS | C20: =SCH_H!Y100 -> 0.00507
B21: KPSC MAINTENANCE | C21: =ROUND(829365.27/533697084,8) -> 0.001554
B22: STATE OF KENTUCKY INC TAX | C22: 0.05
B23: FEDERAL INCOME | C23: 0.21
B24: COMPOSITE TAX RATE | C24: =(1-KPSC*APPORT)*FIT+(KPSC*APPORT) -> 0.2112199257

Sheet ALLOCTABLE
A1: C319 | B1: 100 | C1: Customer Accounts Expenses
A2: D149 | B2: 100 | C2: Distribution gross plant factor
A3: D249 | B3: 100 | C3: Distribution net plant factor
A4: DALL | B4: 100 | C4: Direct Assign
A5: DE49 | B5: 100 | C5: Depreciation expense factor
A6: DNON | B6: 0 | C6: Direct Assign
A7: K201 | B7: 100 | C7: Average of 12 months demand factor
A8: K209 | B8: 100 | C8: Average of 12 months demand factor less lighting
A9: K301 | B9: 100 | C9: Total kWh energy factor
A10: K305 | B10: 100 | C10: Total kWh energy factor less lighting
A11: K411 | B11: 100 | C11: Administrative & General
A12: NP29 | B12: 100 | C12: Total net plant factor
A13: UNBL | B13: 100 | C13: Unbilled revenue factor - directly assigned

Sheet GOTO
T24: SFR MODEL - NAVIGATION TOOL
T25: To get to the "GO TO" menu while in the model,
T26: click "Model Navigation" on the
T27: worksheet menubar.

Sheet PRINT
R24: SFR MODEL - NAVIGATION TOOL
R25: To get to the "GO TO" menu while in the
R26: model, click "Model Navigation" on the
R27: worksheet menubar.

Sheet BASE PERIOD
A2: =COMPANY -> DUKE ENERGY KENTUCKY, INC.
A3: =CASE -> CASE NO. 2025-00125
A4: MONTHLY REVENUES AND EXPENSES BY ACCOUNT
A5: BASE PERIOD
A7: =Data -> DATA: "X" BASE PERIOD FORECASTED PERIOD
A8: =Type -> TYPE OF FILING: "X" ORIGINAL UPDATED REVISED
F11: ACTUAL | G11: ACTUAL | H11: ACTUAL | I11: ACTUAL | J11: ACTUAL | K11: ACTUAL | L11: BUDGET | M11: BUDGET | N11: BUDGET | O11: BUDGET | P11: BUDGET | Q11: BUDGET
A12: Account | B12: Description | C12: Code | D12: FERC | E12: Total | F12: =LOGO!I7 -> 2024-09-30 | G12: =LOGO!I8 -> 2024-10-31 | H12: =LOGO!I9 -> 2024-11-30 | I12: =LOGO!I10 -> 2024-12-31 | J12: =LOGO!I11 -> 2025-01-31 | K12: =LOGO!I12 -> 2025-02-28 | L12: =LOGO!I13 -> 2025-03-31 | M12: =LOGO!I14 -> 2025-04-30 | N12: =LOGO!I15 -> 2025-05-31 | O12: =LOGO!I16 -> 2025-06-30 | P12: =LOGO!I17 -> 2025-07-31 | Q12: =LOGO!I18 -> 2025-08-31
A13: 403002 | B13: Depreciation Expense | C13: DEPR | D13: =VALUE(LEFT(A13,3)) -> 403 | E13: =SUM(F13:Q13) -> 20402714 | F13: 1641673 | G13: 1652319 | H13: 1668736 | I13: 1716559 | J13: 1698137 | K13: 1705799 | L13: 1709090 | M13: 1712401 | N13: 1715607 | O13: 1719552 | P13: 1724840 | Q13: 1738001
A14: 404200 | B14: Amort Exp - Limited Term | C14: DEPR | D14: =VALUE(LEFT(A14,3)) -> 404 | E14: =SUM(F14:Q14) -> 3371804 | F14: 333245 | G14: 326339 | H14: 324163 | I14: 327866 | J14: 306083 | K14: 317359 | L14: 251007 | M14: 239820 | N14: 238581 | O14: 238580 | P14: 234418 | Q14: 234343
A15: 407305 | B15: Reg Asset Amortization | C15: AMORT | D15: =VALUE(LEFT(A15,3)) -> 407 | E15: =SUM(F15:Q15) -> 178362 | F15: 29727 | G15: 29727 | H15: 29727 | I15: 29727 | J15: 29727 | K15: 29727 | L15: 0 | M15: 0 | N15: 0 | O15: 0 | P15: 0 | Q15: 0
A16: 407355 | B16: DSM Amortization | C16: OTH | D16: 407 | E16: -399635 | F16: -10017 | G16: -13642 | H16: -26047 | I16: -88365 | J16: -132149 | K16: -129415 | L16: 0 | M16: 0 | N16: 0 | O16: 0 | P16: 0 | Q16: 0
A17: 407394 | B17: Amortization Customer Connect | C17: AMORT | D17: 407 | E17: =SUM(F17:Q17) -> 62022 | F17: 10337 | G17: 10337 | H17: 10337 | I17: 10337 | J17: 10337 | K17: 10337 | L17: 0 | M17: 0 | N17: 0 | O17: 0 | P17: 0 | Q17: 0
A18: 407409 | B18: Smart Grid Deferral Gas | C18: OTH | D18: 407 | E18: =SUM(F18:Q18) -> -1498597 | F18: 0 | G18: 0 | H18: 0 | I18: -1498597 | J18: 0 | K18: 0 | L18: 0 | M18: 0 | N18: 0 | O18: 0 | P18: 0 | Q18: 0
A19: 408121 | B19: Taxes Property-Operating | C19: OTHTX | D19: 408 | E19: 3335968 | F19: -252033 | G19: 635634 | H19: 635634 | I19: -1261833 | J19: 635634 | K19: 259006 | L19: 447321 | M19: 447321 | N19: 447321 | O19: 447321 | P19: 447321 | Q19: 447321
A20: 408150 | B20: State Unemployment Tax | C20: OTHTX | D20: 408 | E20: 5125 | F20: 10 | G20: 0 | H20: 19 | I20: 16 | J20: 4458 | K20: 622 | L20: 0 | M20: 0 | N20: 0 | O20: 0 | P20: 0 | Q20: 0
A21: 408151 | B21: Federal Unemployment Tax | C21: OTHTX | D21: 408 | E21: 2069 | F21: -236 | G21: 427 | H21: 470 | I21: 241 | J21: 1480 | K21: -313 | L21: 0 | M21: 0 | N21: 0 | O21: 0 | P21: 0 | Q21: 0
A22: 408152 | B22: Employer FICA Tax | C22: OTHTX | D22: 408 | E22: 165629 | F22: 27698 | G22: 25607 | H22: 43375 | I22: 533 | J22: 36447 | K22: 31969 | L22: 0 | M22: 0 | N22: 0 | O22: 0 | P22: 0 | Q22: 0
A23: 408470 | B23: Franchise Tax | C23: OTHTX | D23: =VALUE(LEFT(A23,3)) -> 408 | E23: =SUM(F23:Q23) -> -3484 | F23: 170 | G23: 170 | H23: 170 | I23: -4253 | J23: 200 | K23: 59 | L23: 0 | M23: 0 | N23: 0 | O23: 0 | P23: 0 | Q23: 0
A24: 408700 | B24: Fed Social Security Tax-Elec | C24: OTHTX | D24: 408 | E24: 1000 | F24: 4000 | G24: 0 | H24: 0 | I24: -3000 | J24: 0 | K24: 0 | L24: 0 | M24: 0 | N24: 0 | O24: 0 | P24: 0 | Q24: 0
A25: 408851 | B25: Sales and Use Expense | C25: OTHTX | D25: 408 | E25: -7859 | F25: -7859 | G25: 0 | H25: 0 | I25: 0 | J25: 0 | K25: 0 | L25: 0 | M25: 0 | N25: 0 | O25: 0 | P25: 0 | Q25: 0
A26: 408960 | B26: Allocated Payroll Taxes | C26: OTHTX | D26: 408 | E26: 341711 | F26: 6367 | G26: -852 | H26: -11746 | I26: 28718 | J26: 14642 | K26: 35141 | L26: 42955 | M26: 42749 | N26: 53399 | O26: 43155 | P26: 43617 | Q26: 43566
A27: 409060 | B27: Federal Income Taxes Utility Op Income | C27: FIT | D27: 409 | E27: 2443651 | F27: =ROUND(SCH_E1!$G$116/12,0) -> 203638 | G27: =ROUND(SCH_E1!$G$116/12,0) -> 203638 | H27: =ROUND(SCH_E1!$G$116/12,0) -> 203638 | I27: =ROUND(SCH_E1!$G$116/12,0) -> 203638 | J27: =ROUND(SCH_E1!$G$116/12,0) -> 203638 | K27: =ROUND(SCH_E1!$G$116/12,0) -> 203638 | L27: =ROUND(SCH_E1!$G$116/12,0) -> 203638 | M27: =ROUND(SCH_E1!$G$116/12,0) -> 203638 | N27: =ROUND(SCH_E1!$G$116/12,0) -> 203638 | O27: =ROUND(SCH_E1!$G$116/12,0) -> 203638 | P27: =ROUND(SCH_E1!$G$116/12,0) -> 203638 | Q27: =SCH_E1!$G$116-SUM(F27:P27) -> 203633
A28: 409104 | B28: Current State Income Tax - PY | C28: FIT | D28: =VALUE(LEFT(A28,3)) -> 409 | E28: =SUM(F28:Q28) -> 1356599 | F28: =ROUND(SCH_E1!$G$76/12,0) -> 113050 | G28: =ROUND(SCH_E1!$G$76/12,0) -> 113050 | H28: =ROUND(SCH_E1!$G$76/12,0) -> 113050 | I28: =ROUND(SCH_E1!$G$76/12,0) -> 113050 | J28: =ROUND(SCH_E1!$G$76/12,0) -> 113050 | K28: =ROUND(SCH_E1!$G$76/12,0) -> 113050 | L28: =ROUND(SCH_E1!$G$76/12,0) -> 113050 | M28: =ROUND(SCH_E1!$G$76/12,0) -> 113050 | N28: =ROUND(SCH_E1!$G$76/12,0) -> 113050 | O28: =ROUND(SCH_E1!$G$76/12,0) -> 113050 | P28: =ROUND(SCH_E1!$G$76/12,0) -> 113050 | Q28: =SCH_E1!G76-SUM(F28:P28) -> 113049
A29: 409160 | B29: State/Local Inc Tax Exp Utility Op Inc | C29: FIT | D29: 409 | E29: 608384 | F29: =ROUND(SCH_E1!$G$75/12,0) -> 50699 | G29: =ROUND(SCH_E1!$G$75/12,0) -> 50699 | H29: =ROUND(SCH_E1!$G$75/12,0) -> 50699 | I29: =ROUND(SCH_E1!$G$75/12,0) -> 50699 | J29: =ROUND(SCH_E1!$G$75/12,0) -> 50699 | K29: =ROUND(SCH_E1!$G$75/12,0) -> 50699 | L29: =ROUND(SCH_E1!$G$75/12,0) -> 50699 | M29: =ROUND(SCH_E1!$G$75/12,0) -> 50699 | N29: =ROUND(SCH_E1!$G$75/12,0) -> 50699 | O29: =ROUND(SCH_E1!$G$75/12,0) -> 50699 | P29: =ROUND(SCH_E1!$G$75/12,0) -> 50699 | Q29: =SCH_E1!$G$75-SUM(F29:P29) -> 50695
A30: 409191 | B30: Federal Income Tax - PY | C30: FIT | D30: =VALUE(LEFT(A30,3)) -> 409 | E30: =SUM(F30:Q30) -> 6298496 | F30: =ROUND(SCH_E1!$G$118/12,0) -> 524875 | G30: =ROUND(SCH_E1!$G$118/12,0) -> 524875 | H30: =ROUND(SCH_E1!$G$118/12,0) -> 524875 | I30: =ROUND(SCH_E1!$G$118/12,0) -> 524875 | J30: =ROUND(SCH_E1!$G$118/12,0) -> 524875 | K30: =ROUND(SCH_E1!$G$118/12,0) -> 524875 | L30: =ROUND(SCH_E1!$G$118/12,0) -> 524875 | M30: =ROUND(SCH_E1!$G$118/12,0) -> 524875 | N30: =ROUND(SCH_E1!$G$118/12,0) -> 524875 | O30: =ROUND(SCH_E1!$G$118/12,0) -> 524875 | P30: =ROUND(SCH_E1!$G$118/12,0) -> 524875 | Q30: =SCH_E1!$G$118-SUM(F30:P30) -> 524871
A31: 410060 | B31: Deferred FIT | C31: FIT | D31: 410 | E31: 4001774 | F31: =ROUND((SCH_E1!$G$121)/12,0) -> 333481 | G31: =ROUND((SCH_E1!$G$121)/12,0) -> 333481 | H31: =ROUND((SCH_E1!$G$121)/12,0) -> 333481 | I31: =ROUND((SCH_E1!$G$121)/12,0) -> 333481 | J31: =ROUND((SCH_E1!$G$121)/12,0) -> 333481 | K31: =ROUND((SCH_E1!$G$121)/12,0) -> 333481 | L31: =ROUND((SCH_E1!$G$121)/12,0) -> 333481 | M31: =ROUND((SCH_E1!$G$121)/12,0) -> 333481 | N31: =ROUND((SCH_E1!$G$121)/12,0) -> 333481 | O31: =ROUND((SCH_E1!$G$121)/12,0) -> 333481 | P31: =ROUND((SCH_E1!$G$121)/12,0) -> 333481 | Q31: =(SCH_E1!$G$121)-SUM(F31:P31) -> 333483
A32: 410101 | B32: Deferred SIT | C32: FIT | D32: =VALUE(LEFT(A32,3)) -> 410 | E32: 996302 | F32: =ROUND((SCH_E1!$G$101)/12,0) -> 83025 | G32: =ROUND((SCH_E1!$G$101)/12,0) -> 83025 | H32: =ROUND((SCH_E1!$G$101)/12,0) -> 83025 | I32: =ROUND((SCH_E1!$G$101)/12,0) -> 83025 | J32: =ROUND((SCH_E1!$G$101)/12,0) -> 83025 | K32: =ROUND((SCH_E1!$G$101)/12,0) -> 83025 | L32: =ROUND((SCH_E1!$G$101)/12,0) -> 83025 | M32: =ROUND((SCH_E1!$G$101)/12,0) -> 83025 | N32: =ROUND((SCH_E1!$G$101)/12,0) -> 83025 | O32: =ROUND((SCH_E1!$G$101)/12,0) -> 83025 | P32: =ROUND((SCH_E1!$G$101)/12,0) -> 83025 | Q32: =ROUND((SCH_E1!$G$101)-SUM(F32:P32),0) -> 83027
A33: 411060 | B33: Deferred FIT - ARAM | C33: FIT | D33: 411 | E33: 48505 | F33: =ROUND((SCH_E1!$G$122)/12,0) -> 4042 | G33: =ROUND((SCH_E1!$G$122)/12,0) -> 4042 | H33: =ROUND((SCH_E1!$G$122)/12,0) -> 4042 | I33: =ROUND((SCH_E1!$G$122)/12,0) -> 4042 | J33: =ROUND((SCH_E1!$G$122)/12,0) -> 4042 | K33: =ROUND((SCH_E1!$G$122)/12,0) -> 4042 | L33: =ROUND((SCH_E1!$G$122)/12,0) -> 4042 | M33: =ROUND((SCH_E1!$G$122)/12,0) -> 4042 | N33: =ROUND((SCH_E1!$G$122)/12,0) -> 4042 | O33: =ROUND((SCH_E1!$G$122)/12,0) -> 4042 | P33: =ROUND((SCH_E1!$G$122)/12,0) -> 4042 | Q33: =SCH_E1!$G$122-SUM(F33:P33) -> 4043
A34: 411065 | B34: Amortization of Investment Tax Credit | C34: FIT | D34: 411 | E34: 0 | F34: =ROUND((SCH_E1!$G$128)/12,0) -> 0 | G34: =ROUND((SCH_E1!$G$128)/12,0) -> 0 | H34: =ROUND((SCH_E1!$G$128)/12,0) -> 0 | I34: =ROUND((SCH_E1!$G$128)/12,0) -> 0 | J34: =ROUND((SCH_E1!$G$128)/12,0) -> 0 | K34: =ROUND((SCH_E1!$G$128)/12,0) -> 0 | L34: =ROUND((SCH_E1!$G$128)/12,0) -> 0 | M34: =ROUND((SCH_E1!$G$128)/12,0) -> 0 | N34: =ROUND((SCH_E1!$G$128)/12,0) -> 0 | O34: =ROUND((SCH_E1!$G$128)/12,0) -> 0 | P34: =ROUND((SCH_E1!$G$128)/12,0) -> 0 | Q34: =SCH_E1!$G$128-SUM(F34:P34) -> 0
A35: 411101 | B35: Deferred SIT - ARAM | C35: FIT | D35: =VALUE(LEFT(A35,3)) -> 411 | E35: =SUM(F35:Q35) -> -92648 | F35: =ROUND((SCH_E1!$G$102)/12,0) -> -7721 | G35: =ROUND((SCH_E1!$G$102)/12,0) -> -7721 | H35: =ROUND((SCH_E1!$G$102)/12,0) -> -7721 | I35: =ROUND((SCH_E1!$G$102)/12,0) -> -7721 | J35: =ROUND((SCH_E1!$G$102)/12,0) -> -7721 | K35: =ROUND((SCH_E1!$G$102)/12,0) -> -7721 | L35: =ROUND((SCH_E1!$G$102)/12,0) -> -7721 | M35: =ROUND((SCH_E1!$G$102)/12,0) -> -7721 | N35: =ROUND((SCH_E1!$G$102)/12,0) -> -7721 | O35: =ROUND((SCH_E1!$G$102)/12,0) -> -7721 | P35: =ROUND((SCH_E1!$G$102)/12,0) -> -7721 | Q35: =ROUND((SCH_E1!$G$102)-SUM(F35:P35),0) -> -7717
A36: 411102 | B36: DFIT - Other | C36: FIT | D36: =VALUE(LEFT(A36,3)) -> 411 | E36: =SUM(F36:Q36) -> -6308354 | F36: =ROUND((SCH_E1!$G$125)/12,0) -> -525696 | G36: =ROUND((SCH_E1!$G$125)/12,0) -> -525696 | H36: =ROUND((SCH_E1!$G$125)/12,0) -> -525696 | I36: =ROUND((SCH_E1!$G$125)/12,0) -> -525696 | J36: =ROUND((SCH_E1!$G$125)/12,0) -> -525696 | K36: =ROUND((SCH_E1!$G$125)/12,0) -> -525696 | L36: =ROUND((SCH_E1!$G$125)/12,0) -> -525696 | M36: =ROUND((SCH_E1!$G$125)/12,0) -> -525696 | N36: =ROUND((SCH_E1!$G$125)/12,0) -> -525696 | O36: =ROUND((SCH_E1!$G$125)/12,0) -> -525696 | P36: =ROUND((SCH_E1!$G$125)/12,0) -> -525696 | Q36: =ROUND((SCH_E1!$G$125)-SUM(F36:P36),0) -> -525698
A37: 411103 | B37: DSIT: PY | C37: FIT | D37: =VALUE(LEFT(A37,3)) -> 411 | E37: =SUM(F37:Q37) -> -1311692 | F37: =ROUND((SCH_E1!$G$104)/12,0) -> -109308 | G37: =ROUND((SCH_E1!$G$104)/12,0) -> -109308 | H37: =ROUND((SCH_E1!$G$104)/12,0) -> -109308 | I37: =ROUND((SCH_E1!$G$104)/12,0) -> -109308 | J37: =ROUND((SCH_E1!$G$104)/12,0) -> -109308 | K37: =ROUND((SCH_E1!$G$104)/12,0) -> -109308 | L37: =ROUND((SCH_E1!$G$104)/12,0) -> -109308 | M37: =ROUND((SCH_E1!$G$104)/12,0) -> -109308 | N37: =ROUND((SCH_E1!$G$104)/12,0) -> -109308 | O37: =ROUND((SCH_E1!$G$104)/12,0) -> -109308 | P37: =ROUND((SCH_E1!$G$104)/12,0) -> -109308 | Q37: =ROUND((SCH_E1!$G$104)-SUM(F37:P37),0) -> -109304
A38: 411113 | B38: DSIT: State Excess DIT Amort | C38: FIT | D38: 411 | E38: -76805 | F38: =ROUND((SCH_E1!$G$103)/12,0) -> -6400 | G38: =ROUND((SCH_E1!$G$103)/12,0) -> -6400 | H38: =ROUND((SCH_E1!$G$103)/12,0) -> -6400 | I38: =ROUND((SCH_E1!$G$103)/12,0) -> -6400 | J38: =ROUND((SCH_E1!$G$103)/12,0) -> -6400 | K38: =ROUND((SCH_E1!$G$103)/12,0) -> -6400 | L38: =ROUND((SCH_E1!$G$103)/12,0) -> -6400 | M38: =ROUND((SCH_E1!$G$103)/12,0) -> -6400 | N38: =ROUND((SCH_E1!$G$103)/12,0) -> -6400 | O38: =ROUND((SCH_E1!$G$103)/12,0) -> -6400 | P38: =ROUND((SCH_E1!$G$103)/12,0) -> -6400 | Q38: =ROUND((SCH_E1!$G$103)-SUM(F38:P38),0) -> -6405
A39: 411115 | B39: DFIT: Federal Excess DIT Amort | C39: FIT | D39: =VALUE(LEFT(A39,3)) -> 411 | E39: =SUM(F39:Q39) -> -732854 | F39: =ROUND((SCH_E1!$G$123)/12,0) -> -61071 | G39: =ROUND((SCH_E1!$G$123)/12,0) -> -61071 | H39: =ROUND((SCH_E1!$G$123)/12,0) -> -61071 | I39: =ROUND((SCH_E1!$G$123)/12,0) -> -61071 | J39: =ROUND((SCH_E1!$G$123)/12,0) -> -61071 | K39: =ROUND((SCH_E1!$G$123)/12,0) -> -61071 | L39: =ROUND((SCH_E1!$G$123)/12,0) -> -61071 | M39: =ROUND((SCH_E1!$G$123)/12,0) -> -61071 | N39: =ROUND((SCH_E1!$G$123)/12,0) -> -61071 | O39: =ROUND((SCH_E1!$G$123)/12,0) -> -61071 | P39: =ROUND((SCH_E1!$G$123)/12,0) -> -61071 | Q39: =ROUND((SCH_E1!$G$123)-SUM(F39:P39),0) -> -61073
A40: 426509 | B40: Loss on Sale of A/R | C40: CO | D40: 426 | E40: =SUM(F40:Q40) -> 0 | F40: 0 | G40: 0 | H40: 0 | I40: 0 | J40: 0 | K40: 0 | L40: 0 | M40: 0 | N40: 0 | O40: 0 | P40: 0 | Q40: 0
A41: 426591 | B41: I/C - Loss on Sale of A/R | C41: CO | D41: =VALUE(LEFT(A41,3)) -> 426 | E41: =SUM(F41:Q41) -> 0 | F41: 0 | G41: 0 | H41: 0 | I41: 0 | J41: 0 | K41: 0 | L41: 0 | M41: 0 | N41: 0 | O41: 0 | P41: 0 | Q41: 0
A42: 426891 | B42: IC Sale of AR Fees VIE | C42: CO | D42: 426 | E42: =SUM(F42:Q42) -> 0 | F42: 0 | G42: 0 | H42: 0 | I42: 0 | J42: 0 | K42: 0 | L42: 0 | M42: 0 | N42: 0 | O42: 0 | P42: 0 | Q42: 0
A43: 450100 | B43: Late Payment | C43: REV | D43: 450 | E43: =SUM(F43:Q43) -> 188560 | F43: 0 | G43: 0 | H43: 0 | I43: 0 | J43: 0 | K43: 0 | L43: 54860 | M43: 40120 | N43: 29990 | O43: 17760 | P43: 25620 | Q43: 20210
A44: 480000 | B44: Residential Sales-Gas | C44: REV | D44: 480 | E44: 95252839 | F44: 2893633 | G44: 3314392 | H44: 5749944 | I44: 12783406 | J44: 18073378 | K44: 18139309 | L44: 11018707 | M44: 7284941 | N44: 4552402 | O44: 4020487 | P44: 3737748 | Q44: 3684492
A45: 480990 | B45: Gas Residential Sales-Unbilled | C45: REV | D45: 480 | E45: -665107 | F45: -351322 | G45: 260259 | H45: 961974 | I45: 1401522 | J45: 835523 | K45: 518722 | L45: -1684910 | M45: -1115509 | N45: -968007 | O45: -367631 | P45: -191281 | Q45: 35553
A46: 481000 | B46: Industrial Sales-Gas | C46: REV | D46: 481 | E46: 1866323 | F46: 30601 | G46: 39664 | H46: 65524 | I46: 234919 | J46: 358370 | K46: 451459 | L46: 281894 | M46: 158436 | N46: 80605 | O46: 47731 | P46: 55364 | Q46: 61756
A47: 481090 | B47: Gas Industrial Sales Unbilled | C47: REV | D47: 481 | E47: 9984 | F47: -3564 | G47: 10345 | H47: 26485 | I47: 3918 | J47: 10357 | K47: -7485 | L47: -9354 | M47: -20283 | N47: -2489 | O47: -543 | P47: 87 | Q47: 2510
A48: 481200 | B48: Gas Commercial Sales | C48: REV | D48: 481 | E48: 34646279 | F48: 1057525 | G48: 1618682 | H48: 1925013 | I48: 4399860 | J48: 6614331 | K48: 6971591 | L48: 4189121 | M48: 2340267 | N48: 1795251 | O48: 1317502 | P48: 1203485 | Q48: 1213651
A49: 481290 | B49: Gas Commercial Sales Unbilled | C49: REV | D49: 481 | E49: 163598 | F49: 72302 | G49: -82749 | H49: 629826 | I49: 494814 | J49: 299717 | K49: 285147 | L49: -621649 | M49: -397804 | N49: -351972 | O49: -254895 | P49: -64398 | Q49: 155259
A50: 482000 | B50: Other Sales to Public Auth-Gas | C50: REV | D50: 482 | E50: 2249421 | F50: 51375 | G50: 59464 | H50: 115543 | I50: 223139 | J50: 361313 | K50: 394988 | L50: 318272 | M50: 194780 | N50: 167007 | O50: 145229 | P50: 124055 | Q50: 94256
A51: 482090 | B51: Gas OPA Unbilled | C51: REV | D51: 482 | E51: 28826 | F51: -25037 | G51: 19288 | H51: 49551 | I51: 22164 | J51: 13941 | K51: 12969 | L51: -6060 | M51: -65194 | N51: -6525 | O51: -22378 | P51: 2541 | Q51: 33566
A52: 482200 | B52: Gas Public St Hwy Ltng | C52: REV | D52: 482 | E52: 0 | F52: 0 | G52: 0 | H52: 0 | I52: 0 | J52: 0 | K52: 0 | L52: 0 | M52: 0 | N52: 0 | O52: 0 | P52: 0 | Q52: 0
A53: 484000 | B53: Interdepartmental Sales | C53: REV | D53: 484 | E53: 30845 | F53: 35 | G53: 36 | H53: 402 | I53: 1413 | J53: 5179 | K53: 8822 | L53: 3656 | M53: 2246 | N53: 1721 | O53: 2048 | P53: 2555 | Q53: 2732
A54: 487001 | B54: Discounts Earn/Lost-Gas | C54: REV | D54: 487 | E54: 213643 | F54: 13960 | G54: 12764 | H54: 16164 | I54: 27558 | J54: 63998 | K54: 79199 | L54: 0 | M54: 0 | N54: 0 | O54: 0 | P54: 0 | Q54: 0
A55: 488000 | B55: Misc Service Revenue-Gas | C55: REV | D55: 488 | E55: 35744 | F55: 1042 | G55: 2323 | H55: 1715 | I55: 1686 | J55: 1183 | K55: 1797 | L55: 4333 | M55: 4333 | N55: 4333 | O55: 4333 | P55: 4333 | Q55: 4333
A56: 488100 | B56: IC Misc Svc Reg Gas Reg | C56: REV | D56: 488 | E56: 0 | F56: 0 | G56: 0 | H56: 0 | I56: 0 | J56: 0 | K56: 0 | L56: 0 | M56: 0 | N56: 0 | O56: 0 | P56: 0 | Q56: 0
A57: 489000 | B57: Transp Gas of Others | C57: REV | D57: 489 | E57: 3418230 | F57: 102686 | G57: 124928 | H57: 112915 | I57: 111067 | J57: 123169 | K57: 86495 | L57: 348658 | M57: 375216 | N57: 437911 | O57: 501104 | P57: 545175 | Q57: 548906
A58: 489010 | B58: IC Gas Transp Rev Reg | C58: REV | D58: 489 | E58: 1795608 | F58: 149634 | G58: 149634 | H58: 149634 | I58: 149634 | J58: 149634 | K58: 149634 | L58: 149634 | M58: 149634 | N58: 149634 | O58: 149634 | P58: 149634 | Q58: 149634
A59: 489020 | B59: Comm Gas Transp Only | C59: REV | D59: 489 | E59: 3676608 | F59: 411974 | G59: 114799 | H59: 196998 | I59: 612457 | J59: 375948 | K59: 316449 | L59: 370599 | M59: 257053 | N59: 252806 | O59: 246447 | P59: 259093 | Q59: 261985
A60: 489025 | B60: Comm Gas Transp Unbilled | C60: REV | D60: 489 | E60: 64271 | F60: 22356 | G60: -8763 | H60: 49624 | I60: 48559 | J60: 32779 | K60: -24865 | L60: -24544 | M60: -16172 | N60: -14811 | O60: -6965 | P60: 893 | Q60: 6180
A61: 489030 | B61: Indust Gas Transp Only | C61: REV | D61: 489 | E61: 5717662 | F61: 313668 | G61: 373625 | H61: 378361 | I61: 437765 | J61: 522086 | K61: 451290 | L61: 562983 | M61: 492870 | N61: 499686 | O61: 541217 | P61: 554897 | Q61: 589214
A62: 489035 | B62: Indust Gas Transp Unbilled | C62: REV | D62: 489 | E62: 8837 | F62: -9527 | G62: 30427 | H62: 61943 | I62: 16579 | J62: 32517 | K62: -73222 | L62: -10009 | M62: -41948 | N62: -10529 | O62: -1409 | P62: 2073 | Q62: 11942
A63: 489040 | B63: OPA Gas Transp Only | C63: REV | D63: 489 | E63: 832124 | F63: 31881 | G63: 49897 | H63: 76554 | I63: 119510 | J63: 154533 | K63: 117297 | L63: 94193 | M63: 61487 | N63: 43774 | O63: 27721 | P63: 27733 | Q63: 27544
A64: 489045 | B64: OPA Gas Transp Unbilled | C64: REV | D64: 489 | E64: 28930 | F64: -7533 | G64: 12353 | H64: 26626 | I64: 12439 | J64: 9893 | K64: -13787 | L64: -338 | M64: -12398 | N64: -762 | O64: -1048 | P64: 641 | Q64: 2844
A65: 489200 | B65: Transportation Fees | C65: REV | D65: 489 | E65: -149 | F65: -170 | G65: 0 | H65: 0 | I65: 0 | J65: 0 | K65: 21 | L65: 0 | M65: 0 | N65: 0 | O65: 0 | P65: 0 | Q65: 0
A66: 495031 | B66: Gas Losses Damaged Lines | C66: REV | D66: =VALUE(LEFT(A66,3)) -> 495 | E66: 2581 | F66: 1561 | G66: 215 | H66: 161 | I66: 16 | J66: 333 | K66: 295 | L66: 0 | M66: 0 | N66: 0 | O66: 0 | P66: 0 | Q66: 0
A67: 496020 | B67: Provision for Rate Refund | C67: REV | D67: =VALUE(LEFT(A67,3)) -> 496 | E67: =SUM(F67:Q67) -> 0 | F67: 0 | G67: 0 | H67: 0 | I67: 0 | J67: 0 | K67: 0 | L67: 0 | M67: 0 | N67: 0 | O67: 0 | P67: 0 | Q67: 0
A68: 711000 | B68: Gas Boiler Labor | C68: PO | D68: 711 | E68: =SUM(F68:Q68) -> 0 | F68: 0 | G68: 0 | H68: 0 | I68: 0 | J68: 0 | K68: 0 | L68: 0 | M68: 0 | N68: 0 | O68: 0 | P68: 0 | Q68: 0
A69: 712000 | B69: Gas Production-Other Power Ex | C69: PO | D69: 712 | E69: 0 | F69: 0 | G69: 0 | H69: 0 | I69: 0 | J69: 0 | K69: 0 | L69: 0 | M69: 0 | N69: 0 | O69: 0 | P69: 0 | Q69: 0
A70: 717000 | B70: Liq Petro Gas Exp-Vapor Proc | C70: PO | D70: 717 | E70: 0 | F70: 0 | G70: 0 | H70: 0 | I70: 0 | J70: 0 | K70: 0 | L70: 0 | M70: 0 | N70: 0 | O70: 0 | P70: 0 | Q70: 0
A71: 728000 | B71: Liquid Petroleum Gas | C71: PO | D71: 728 | E71: 0 | F71: 0 | G71: 0 | H71: 0 | I71: 0 | J71: 0 | K71: 0 | L71: 0 | M71: 0 | N71: 0 | O71: 0 | P71: 0 | Q71: 0
A72: 735000 | B72: Gas Misc Production Exp | C72: PO | D72: 735 | E72: 1627 | F72: 260 | G72: 281 | H72: 309 | I72: 272 | J72: 257 | K72: 248 | L72: 0 | M72: 0 | N72: 0 | O72: 0 | P72: 0 | Q72: 0
A73: 742000 | B73: Maint Gas Production Equipment | C73: PM | D73: 742 | E73: 0 | F73: 0 | G73: 0 | H73: 0 | I73: 0 | J73: 0 | K73: 0 | L73: 0 | M73: 0 | N73: 0 | O73: 0 | P73: 0 | Q73: 0
A74: 801000 | B74: Purchases Gas & NGL | C74: Fuel | D74: 801 | E74: 60902259 | F74: 2250859 | G74: 2773349 | H74: 4275901 | I74: 8191927 | J74: 14288793 | K74: 10207874 | L74: 6329122 | M74: 3683966 | N74: 2407160 | O74: 2214036 | P74: 2133187 | Q74: 2146085
A75: 801001 | B75: Purchases Gas & NGL-Aff | C75: Fuel | D75: 801 | E75: 194201 | F75: 1747 | G75: 0 | H75: 17765 | I75: 54240 | J75: 64866 | K75: 55583 | L75: 0 | M75: 0 | N75: 0 | O75: 0 | P75: 0 | Q75: 0
A76: 804000 | B76: Natural Gas City Gate Purchase | C76: Fuel | D76: 804 | E76: 295 | F76: 47 | G76: 49 | H76: 0 | I76: 100 | J76: 52 | K76: 47 | L76: 0 | M76: 0 | N76: 0 | O76: 0 | P76: 0 | Q76: 0
A77: 805002 | B77: Unrecovered Purchase Gas Adj | C77: Fuel | D77: 805 | E77: -6249365 | F77: -1332830 | G77: -1338223 | H77: -2182153 | I77: -484446 | J77: -2538639 | K77: 1626926 | L77: 0 | M77: 0 | N77: 0 | O77: 0 | P77: 0 | Q77: 0
A78: 805003 | B78: Purchase Gas Cost Unbilled Rev | C78: Fuel | D78: 805 | E78: =SUM(F78:Q78) -> 2131936 | F78: 170211 | G78: 153285 | H78: 2508736 | I78: 777008 | J78: 1198772 | K78: 827349 | L78: -1288658 | M78: -802367 | N78: -753002 | O78: -555260 | P78: -269243 | Q78: 165105
A79: 807000 | B79: Gas Purchased Expenses | C79: PO | D79: 807 | E79: 633245 | F79: 42982 | G79: 76210 | H79: 55838 | I79: 51634 | J79: 48072 | K79: 59495 | L79: 50191 | M79: 49105 | N79: 53040 | O79: 48753 | P79: 48894 | Q79: 49031
A80: 807100 | B80: I/C Gas Purchased Expenses | C80: PO | D80: 807 | E80: 7360 | F80: 51 | G80: 312 | H80: 674 | I80: 1177 | J80: 2973 | K80: 2173 | L80: 0 | M80: 0 | N80: 0 | O80: 0 | P80: 0 | Q80: 0
A81: 850001 | B81: Operation Supv & Eng-Tran | C81: TO | D81: 850 | E81: 6934 | F81: 407 | G81: 355 | H81: 274 | I81: 635 | J81: 603 | K81: 328 | L81: 670 | M81: 670 | N81: 748 | O81: 748 | P81: 748 | Q81: 748
A82: 856001 | B82: Mains Expenses | C82: TO | D82: 856 | E82: =SUM(F82:Q82) -> -710192 | F82: 0 | G82: 0 | H82: 0 | I82: -710192 | J82: 0 | K82: 0 | L82: 0 | M82: 0 | N82: 0 | O82: 0 | P82: 0 | Q82: 0
A83: 859000 | B83: Other Expenses-Trans | C83: TO | D83: 859 | E83: =SUM(F83:Q83) -> 5554 | F83: 0 | G83: 0 | H83: 0 | I83: 5554 | J83: 0 | K83: 0 | L83: 0 | M83: 0 | N83: 0 | O83: 0 | P83: 0 | Q83: 0
A84: 863000 | B84: Transm-Maint of Mains | C84: TM | D84: =VALUE(LEFT(A84,3)) -> 863 | E84: =SUM(F84:Q84) -> 335313 | F84: 2639 | G84: 12059 | H84: 10763 | I84: 73534 | J84: 2346 | K84: 58179 | L84: 14878 | M84: 50143 | N84: 54971 | O84: 18282 | P84: 14538 | Q84: 22981
A85: 871000 | B85: Distribution Load Dispatching | C85: DO | D85: 871 | E85: 211693 | F85: 14960 | G85: 15637 | H85: 15435 | I85: 14919 | J85: 15405 | K85: 21278 | L85: 23357 | M85: 16181 | N85: 25722 | O85: 16227 | P85: 16265 | Q85: 16307
A86: 874000 | B86: Mains And Services | C86: DO | D86: 874 | E86: 2237797 | F86: 38170 | G86: 140304 | H86: 169421 | I86: 91124 | J86: 128332 | K86: 111860 | L86: 191791 | M86: 240640 | N86: 283052 | O86: 289955 | P86: 277076 | Q86: 276072
A87: 875000 | B87: Measuring And Reg Stations-Ge | C87: DO | D87: 875 | E87: 196455 | F87: 10273 | G87: 4414 | H87: 7792 | I87: 3883 | J87: 12338 | K87: 673 | L87: 24452 | M87: 23581 | N87: 35933 | O87: 24279 | P87: 24368 | Q87: 24469
A88: 876000 | B88: Measuring & Reg Station-Indus | C88: DO | D88: 876 | E88: 48456 | F88: 431 | G88: 234 | H88: 9235 | I88: 3209 | J88: 3215 | K88: 2957 | L88: 4472 | M88: 4471 | N88: 6728 | O88: 4487 | P88: 4501 | Q88: 4516
A89: 878000 | B89: Meter And House Regulator Exp | C89: DO | D89: 878 | E89: 537450 | F89: 71066 | G89: 44024 | H89: 37584 | I89: 21496 | J89: 39483 | K89: 42413 | L89: 20166 | M89: 51889 | N89: 54154 | O89: 52227 | P89: 51366 | Q89: 51582
A90: 879000 | B90: Customer Installation Expense | C90: DO | D90: 879 | E90: 1286470 | F90: 94575 | G90: 86623 | H90: 135533 | I90: 118514 | J90: 166607 | K90: 106293 | L90: 92376 | M90: 89713 | N90: 120811 | O90: 91526 | P90: 91796 | Q90: 92103
A91: 880000 | B91: Gas Distribution-Other Expense | C91: DO | D91: 880 | E91: 2107337 | F91: 101720 | G91: 91825 | H91: 170790 | I91: 67664 | J91: 307572 | K91: 108663 | L91: 228206 | M91: 187176 | N91: 223929 | O91: 233215 | P91: 185030 | Q91: 201547
A92: 887000 | B92: Maintenance of Mains | C92: DM | D92: 887 | E92: 854678 | F92: 55000 | G92: 40441 | H92: 69897 | I92: 72010 | J92: 61124 | K92: 72736 | L92: 69063 | M92: 68821 | N92: 99335 | O92: 68179 | P92: 108754 | Q92: 69318
A93: 889000 | B93: Maint-Meas/Reg Stn Equip-Gas | C93: DM | D93: 889 | E93: 59806 | F93: 8391 | G93: 521 | H93: 4226 | I93: 7955 | J93: 3805 | K93: 5555 | L93: 4674 | M93: 4671 | N93: 5939 | O93: 4682 | P93: 4689 | Q93: 4698
A94: 892000 | B94: Maintenance of Services | C94: DM | D94: 892 | E94: 895203 | F94: 39905 | G94: 149501 | H94: 195389 | I94: 78139 | J94: -76731 | K94: 39296 | L94: 79122 | M94: 76257 | N94: 76629 | O94: 78738 | P94: 79031 | Q94: 79927
A95: 893000 | B95: Maint - Meters And House Reg | C95: DM | D95: 893 | E95: 35630 | F95: 4120 | G95: 106 | H95: 213 | I95: 133 | J95: 632 | K95: 8127 | L95: 3454 | M95: 3353 | N95: 5110 | O95: 3450 | P95: 3460 | Q95: 3472
A96: 894000 | B96: Maint-Other Distribution Equip | C96: DM | D96: 894 | E96: 20919 | F96: 21241 | G96: -23174 | H96: 1779 | I96: 10076 | J96: -2111 | K96: -2339 | L96: 1830 | M96: 1489 | N96: 6680 | O96: 1780 | P96: 1814 | Q96: 1854
A97: 901000 | B97: Supervision-Cust Accts | C97: CO | D97: 901 | E97: 66945 | F97: 12371 | G97: 10759 | H97: 11481 | I97: 6657 | J97: 10389 | K97: 15288 | L97: 0 | M97: 0 | N97: 0 | O97: 0 | P97: 0 | Q97: 0
A98: 902000 | B98: Meter Reading Expense | C98: CO | D98: 902 | E98: 76892 | F98: 974 | G98: 1188 | H98: 4791 | I98: 12075 | J98: 10385 | K98: 9340 | L98: 5722 | M98: 5894 | N98: 8841 | O98: 5894 | P98: 5894 | Q98: 5894
A99: 903000 | B99: Cust Records & Collection Exp | C99: CO | D99: 903 | E99: 836833 | F99: 88993 | G99: 46091 | H99: 75518 | I99: 69597 | J99: 66398 | K99: 94727 | L99: 69583 | M99: 68459 | N99: 69762 | O99: 60683 | P99: 64405 | Q99: 62617
A100: 903100 | B100: Cust Contracts & Orders-Local | C100: CO | D100: 903 | E100: 603751 | F100: 40649 | G100: 34117 | H100: 42433 | I100: 72176 | J100: 38212 | K100: 56639 | L100: 51069 | M100: 51007 | N100: 57951 | O100: 53694 | P100: 50275 | Q100: 55529
A101: 903200 | B101: Cust Billing & Acct | C101: CO | D101: 903 | E101: 799077 | F101: 62484 | G101: 66397 | H101: 78744 | I101: 96111 | J101: 59734 | K101: 73009 | L101: 57909 | M101: 57878 | N101: 66941 | O101: 60457 | P101: 57221 | Q101: 62192
A102: 903300 | B102: Cust Collecting-Local | C102: CO | D102: 903 | E102: 487453 | F102: 28834 | G102: 30940 | H102: 36397 | I102: 54909 | J102: 26207 | K102: 38557 | L102: 43553 | M102: 43367 | N102: 49536 | O102: 45452 | P102: 42862 | Q102: 46839
A103: 903400 | B103: Cust Receiv & Collect Exp-Edp | C103: CO | D103: 903 | E103: 26671 | F103: 2573 | G103: 1910 | H103: 1988 | I103: 1698 | J103: 1696 | K103: 1631 | L103: 3735 | M103: 2224 | N103: 2331 | O103: 2295 | P103: 2295 | Q103: 2295
A104: 903891 | B104: IC Collection Agent Revenue | C104: CO | D104: 903 | E104: 0 | F104: 0 | G104: 0 | H104: 0 | I104: 0 | J104: 0 | K104: 0 | L104: 0 | M104: 0 | N104: 0 | O104: 0 | P104: 0 | Q104: 0
A105: 904000 | B105: Uncollectible Accounts | C105: CO | D105: 904 | E105: =SUM(F105:Q105) -> 1603998 | F105: 117060 | G105: 336970 | H105: 64791 | I105: 61156 | J105: 45900 | K105: 54943 | L105: 122649 | M105: 139212 | N105: 167702 | O105: 168190 | P105: 163702 | Q105: 161723
A106: 904001 | B106: BAD DEBT EXPENSE | C106: CO | D106: 904 | E106: -72198 | F106: -119695 | G106: 10856 | H106: 10200 | I106: 6515 | J106: 9728 | K106: 10198 | L106: 0 | M106: 0 | N106: 0 | O106: 0 | P106: 0 | Q106: 0
A107: 905000 | B107: Misc Customer Accts Expenses | C107: CO | D107: 905 | E107: 74 | F107: 22 | G107: 0 | H107: 0 | I107: 51 | J107: 1 | K107: 0 | L107: 0 | M107: 0 | N107: 0 | O107: 0 | P107: 0 | Q107: 0
A108: 908000 | B108: Cust Asst Exp-Conservation Programs - Rec | C108: CSI | D108: 908 | E108: =SUM(F108:Q108) -> 58 | F108: 0 | G108: 0 | H108: 6 | I108: 11 | J108: 8 | K108: 33 | L108: 0 | M108: 0 | N108: 0 | O108: 0 | P108: 0 | Q108: 0
A109: 908160 | B109: Cust Assist Exp-General | C109: CSI | D109: 908 | E109: 200016 | F109: 12373 | G109: 15259 | H109: 14063 | I109: 12687 | J109: 12722 | K109: 13348 | L109: 21239 | M109: 20289 | N109: 19325 | O109: 20731 | P109: 20336 | Q109: 17644
A110: 909650 | B110: Misc Advertising Expenses | C110: CSI | D110: 909 | E110: 2750 | F110: 1586 | G110: 0 | H110: 300 | I110: 183 | J110: 681 | K110: 0 | L110: 0 | M110: 0 | N110: 0 | O110: 0 | P110: 0 | Q110: 0
A111: 910000 | B111: Misc Cust Serv/Inform Exp | C111: CSI | D111: 910 | E111: 419441 | F111: 36735 | G111: 32499 | H111: 36332 | I111: 34111 | J111: 29625 | K111: 32518 | L111: 35090 | M111: 39120 | N111: 36947 | O111: 35353 | P111: 36048 | Q111: 35063
A112: 910100 | B112: Exp-Rs Reg Prod/Svces-CstAccts | C112: CSI | D112: =VALUE(LEFT(A112,3)) -> 910 | E112: 90602 | F112: 6 | G112: 243 | H112: 67 | I112: 16964 | J112: 13394 | K112: -2 | L112: 9970 | M112: 9859 | N112: 9859 | O112: 10136 | P112: 9970 | Q112: 10136
A113: 912000 | B113: Demonstrating & Selling Exp | C113: SE | D113: 912 | E113: 65498 | F113: 11952 | G113: 19713 | H113: 8300 | I113: 4321 | J113: 1998 | K113: 3774 | L113: 1115 | M113: 1115 | N113: 1115 | O113: 1115 | P113: 5490 | Q113: 5490
A114: 913001 | B114: Advertising Expense | C114: SE | D114: 913 | E114: 338 | F114: 0 | G114: 0 | H114: 0 | I114: 0 | J114: 0 | K114: 0 | L114: 135 | M114: 17 | N114: 17 | O114: 135 | P114: 17 | Q114: 17
A115: 920000 | B115: A & G Salaries | C115: AGO | D115: 920 | E115: 2392242 | F115: 176979 | G115: 199815 | H115: 228026 | I115: 21597 | J115: 270847 | K115: 198317 | L115: 261130 | M115: 213475 | N115: 218996 | O115: 176887 | P115: 213091 | Q115: 213082
A116: 920100 | B116: Salaries & Wages - Proj Supt - NCRC Rec | C116: AGO | D116: 920 | E116: =SUM(F116:Q116) -> 34 | F116: 9 | G116: 8 | H116: 7 | I116: 7 | J116: 3 | K116: 0 | L116: 0 | M116: 0 | N116: 0 | O116: 0 | P116: 0 | Q116: 0
A117: 921100 | B117: Employee Expenses | C117: AGO | D117: 921 | E117: -1464 | F117: 6115 | G117: 55274 | H117: -56235 | I117: -14138 | J117: 22038 | K117: 19060 | L117: -2261 | M117: -5741 | N117: -6657 | O117: -5450 | P117: -6954 | Q117: -6515
A118: 921110 | B118: Relocation Expenses | C118: AGO | D118: 921 | E118: =SUM(F118:Q118) -> -93 | F118: 0 | G118: 0 | H118: 20 | I118: 0 | J118: 0 | K118: -113 | L118: 0 | M118: 0 | N118: 0 | O118: 0 | P118: 0 | Q118: 0
A119: 921200 | B119: Office Expenses | C119: AGO | D119: 921 | E119: 274604 | F119: 15335 | G119: 18595 | H119: 13436 | I119: 19774 | J119: 17293 | K119: 22037 | L119: 26663 | M119: 28622 | N119: 29915 | O119: 28744 | P119: 26476 | Q119: 27714
A120: 921300 | B120: Telephone And Telegraph Exp | C120: AGO | D120: =VALUE(LEFT(A120,3)) -> 921 | E120: =SUM(F120:Q120) -> 54 | F120: 3 | G120: 46 | H120: 5 | I120: 0 | J120: 0 | K120: 0 | L120: 0 | M120: 0 | N120: 0 | O120: 0 | P120: 0 | Q120: 0
A121: 921400 | B121: Computer Services Expenses | C121: AGO | D121: 921 | E121: 84589 | F121: 3973 | G121: 4112 | H121: 2157 | I121: 8101 | J121: 14060 | K121: 3746 | L121: 9212 | M121: 7886 | N121: 7438 | O121: 7592 | P121: 8703 | Q121: 7609
A122: 921540 | B122: Computer Rent (Go Only) | C122: AGO | D122: 921 | E122: 154086 | F122: 16964 | G122: 17132 | H122: 17412 | I122: 16957 | J122: 144 | K122: 161 | L122: 14986 | M122: 14967 | N122: 13781 | O122: 14602 | P122: 12558 | Q122: 14422
A123: 921600 | B123: Other | C123: AGO | D123: 921 | E123: 54 | F123: 15 | G123: 0 | H123: 31 | I123: 8 | J123: 0 | K123: 0 | L123: 0 | M123: 0 | N123: 0 | O123: 0 | P123: 0 | Q123: 0
A124: 921980 | B124: Office Supplies & Expenses | C124: AGO | D124: 921 | E124: 1215298 | F124: 100465 | G124: 100033 | H124: 112532 | I124: 110910 | J124: 95176 | K124: 106435 | L124: 98466 | M124: 98421 | N124: 97545 | O124: 98388 | P124: 98409 | Q124: 98518
A125: 923000 | B125: Outside Services Employed | C125: AGO | D125: 923 | E125: 633269 | F125: 65903 | G125: 76135 | H125: 43633 | I125: 53133 | J125: 63341 | K125: 44248 | L125: 49966 | M125: 55733 | N125: 41558 | O125: 46899 | P125: 53434 | Q125: 39286
A126: 923980 | B126: Outside Services Employee & | C126: AGO | D126: 923 | E126: 24048 | F126: -1518 | G126: 1571 | H126: -5825 | I126: -1562 | J126: -147 | K126: -1982 | L126: 5198 | M126: 5286 | N126: 5286 | O126: 5286 | P126: 6384 | Q126: 6071
A127: 924000 | B127: Property Insurance | C127: AGO | D127: 924 | E127: -3354 | F127: -894 | G127: 281 | H127: 281 | I127: -894 | J127: 458 | K127: 442 | L127: -1343 | M127: -462 | N127: -462 | O127: -1343 | P127: 1044 | Q127: -462
A128: 924050 | B128: Inter-Co Prop Ins Exp | C128: AGO | D128: 924 | E128: 1397 | F128: 125 | G128: 125 | H128: 125 | I128: 125 | J128: 119 | K128: 64 | L128: 119 | M128: 119 | N128: 119 | O128: 119 | P128: 119 | Q128: 119
A129: 924980 | B129: Property Insurance For Corp. | C129: AGO | D129: 924 | E129: 0 | F129: 0 | G129: 0 | H129: 0 | I129: 0 | J129: 0 | K129: 0 | L129: 0 | M129: 0 | N129: 0 | O129: 0 | P129: 0 | Q129: 0
A130: 925000 | B130: Injuries & Damages | C130: AGO | D130: 925 | E130: 2557 | F130: 731 | G130: 33 | H130: 54 | I130: -3 | J130: 825 | K130: 221 | L130: 116 | M130: 116 | N130: 116 | O130: 116 | P130: 116 | Q130: 116
A131: 925051 | B131: INTER-CO GEN LIAB EXP | C131: AGO | D131: 925 | E131: 226385 | F131: 17150 | G131: 17150 | H131: 17150 | I131: 17150 | J131: 19662 | K131: 20151 | L131: 19662 | M131: 19662 | N131: 19662 | O131: 19662 | P131: 19662 | Q131: 19662
A132: 925052 | B132: Inter-Co Worker Comp Insur Exp | C132: AGO | D132: 925 | E132: 1749 | F132: 182 | G132: 182 | H132: 182 | I132: 182 | J132: 125 | K132: 146 | L132: 125 | M132: 125 | N132: 125 | O132: 125 | P132: 125 | Q132: 125
A133: 925100 | B133: Accrued Inj and Damages | C133: AGO | D133: 925 | E133: =SUM(F133:Q133) -> 4 | F133: 0 | G133: 0 | H133: 1 | I133: 0 | J133: 3 | K133: 0 | L133: 0 | M133: 0 | N133: 0 | O133: 0 | P133: 0 | Q133: 0
A134: 925200 | B134: Injuries And Damages-Other | C134: AGO | D134: 925 | E134: 507 | F134: 8 | G134: 5 | H134: 5 | I134: 4 | J134: 7 | K134: 10 | L134: 78 | M134: 78 | N134: 78 | O134: 78 | P134: 78 | Q134: 78
A135: 925300 | B135: Environmental Inj & Damages | C135: AGO | D135: 925 | E135: 0 | F135: 0 | G135: 0 | H135: 0 | I135: 0 | J135: 0 | K135: 0 | L135: 0 | M135: 0 | N135: 0 | O135: 0 | P135: 0 | Q135: 0
A136: 925980 | B136: Injuries And Damages For Corp. | C136: AGO | D136: 925 | E136: 5431 | F136: 581 | G136: 419 | H136: 419 | I136: 419 | J136: 0 | K136: 863 | L136: 455 | M136: 455 | N136: 455 | O136: 455 | P136: 455 | Q136: 455
A137: 926000 | B137: EMPL PENSIONS AND BENEFITS | C137: AGO | D137: 926 | E137: 1218299 | F137: 94397 | G137: 79224 | H137: 85239 | I137: 30300 | J137: 184355 | K137: 94468 | L137: 142288 | M137: 98742 | N137: 99665 | O137: 115092 | P137: 110229 | Q137: 84300
A138: 926430 | B138: Employees'Recreation Expense | C138: AGO | D138: 926 | E138: =SUM(F138:Q138) -> 4421 | F138: 0 | G138: 0 | H138: 5 | I138: 1642 | J138: -1155 | K138: 0 | L138: 0 | M138: 0 | N138: 0 | O138: 3929 | P138: 0 | Q138: 0
A139: 926600 | B139: Employee Benefits-Transferred | C139: AGO | D139: 926 | E139: 458411 | F139: 83599 | G139: 26136 | H139: -18429 | I139: 65966 | J139: 101043 | K139: -57265 | L139: 43633 | M139: 42368 | N139: 38257 | O139: 43619 | P139: 44925 | Q139: 44559
A140: 926999 | B140: Non Serv Pension (ASU 2017-07) | C140: AGO | D140: 926 | E140: -169383 | F140: 88787 | G140: -37713 | H140: -37713 | I140: -33526 | J140: -16547 | K140: -16547 | L140: -19354 | M140: -19354 | N140: -19354 | O140: -19354 | P140: -19354 | Q140: -19354
A141: 928000 | B141: Regulatory Expenses (Go) | C141: AGO | D141: 928 | E141: =SUM(F141:Q141) -> 94448 | F141: 0 | G141: 0 | H141: 2288 | I141: 1322 | J141: 0 | K141: 532 | L141: 15051 | M141: 15051 | N141: 15051 | O141: 15051 | P141: 15051 | Q141: 15051
A142: 928006 | B142: State Reg Comm Proceeding | C142: AGO | D142: 928 | E142: 138654 | F142: 19364 | G142: 19364 | H142: 19364 | I142: 19364 | J142: 19364 | K142: 19364 | L142: 3745 | M142: 3745 | N142: 3745 | O142: 3745 | P142: 3745 | Q142: 3745
A143: 929000 | B143: Duplicate Chrgs-Enrgy To Exp | C143: AGO | D143: 929 | E143: -13088 | F143: -33 | G143: -47 | H143: -281 | I143: -1054 | J143: -4399 | K143: -7274 | L143: 0 | M143: 0 | N143: 0 | O143: 0 | P143: 0 | Q143: 0
A144: 929500 | B144: Admin Exp Transf | C144: AGO | D144: 929 | E144: -476118 | F144: -37373 | G144: -39616 | H144: -51551 | I144: -25581 | J144: -22273 | K144: -25821 | L144: -42041 | M144: -42122 | N144: -60839 | O144: -42967 | P144: -42967 | Q144: -42967
A145: 930150 | B145: Miscellaneous Advertising Exp | C145: AGO | D145: 930 | E145: 104777 | F145: 269 | G145: 9415 | H145: 321 | I145: 499 | J145: 28134 | K145: -353 | L145: 11601 | M145: 10862 | N145: 10861 | O145: 11448 | P145: 10860 | Q145: 10860
A146: 930200 | B146: Misc General Expenses | C146: AGO | D146: 930 | E146: 563870 | F146: 25258 | G146: 19513 | H146: 32448 | I146: 221468 | J146: 72869 | K146: 91858 | L146: 24477 | M146: 14864 | N146: 17099 | O146: 15543 | P146: 13824 | Q146: 14649
A147: 930220 | B147: Exp Of Servicing Securities | C147: AGO | D147: 930 | E147: 188 | F147: 0 | G147: 0 | H147: 0 | I147: 0 | J147: 188 | K147: 0 | L147: 0 | M147: 0 | N147: 0 | O147: 0 | P147: 0 | Q147: 0
A148: 930230 | B148: Dues To Various Organizations | C148: AGO | D148: 930 | E148: 14559 | F148: 144 | G148: 2584 | H148: 2934 | I148: 53 | J148: 1573 | K148: 0 | L148: 1278 | M148: 2065 | N148: 1043 | O148: 949 | P148: 949 | Q148: 987
A149: 930240 | B149: Director'S Expenses | C149: AGO | D149: 930 | E149: 20576 | F149: 0 | G149: 2229 | H149: 0 | I149: 2279 | J149: 0 | K149: 65 | L149: 0 | M149: 2244 | N149: 11515 | O149: 0 | P149: 2244 | Q149: 0
A150: 930250 | B150: Buy\Sell Transf Employee Homes | C150: AGO | D150: 930 | E150: 471 | F150: 50 | G150: 79 | H150: 164 | I150: 0 | J150: 23 | K150: 137 | L150: 4 | M150: 1 | N150: 1 | O150: 6 | P150: 3 | Q150: 3
A151: 930700 | B151: Research & Development | C151: AGO | D151: 930 | E151: 0 | F151: 0 | G151: 0 | H151: 0 | I151: 0 | J151: 0 | K151: 0 | L151: 0 | M151: 0 | N151: 0 | O151: 0 | P151: 0 | Q151: 0
A152: 930940 | B152: General Expenses | C152: AGO | D152: 930 | E152: 60149 | F152: 4343 | G152: 5805 | H152: 5986 | I152: -2267 | J152: 5786 | K152: 5766 | L152: 5789 | M152: 5788 | N152: 5788 | O152: 5789 | P152: 5788 | Q152: 5788
A153: 931001 | B153: Rents-A&G | C153: AGO | D153: 931 | E153: 85581 | F153: 8722 | G153: 5990 | H153: 9140 | I153: 8246 | J153: 5679 | K153: 4000 | L153: 7258 | M153: 7116 | N153: 7236 | O153: 7310 | P153: 7776 | Q153: 7108
A154: 931008 | B154: A&G Rents-IC | C154: AGO | D154: 931 | E154: 681787 | F154: 73395 | G154: 72276 | H154: 72770 | I154: 72736 | J154: 73311 | K154: 73399 | L154: 40650 | M154: 40650 | N154: 40650 | O154: 40650 | P154: 40650 | Q154: 40650
A155: 932000 | B155: Maintenance Of Gen Plant-Gas | C155: AGO | D155: 932 | E155: -1945 | F155: -6908 | G155: 812 | H155: 1745 | I155: -5655 | J155: 2383 | K155: 4278 | L155: 216 | M155: 211 | N155: 321 | O155: 217 | P155: 217 | Q155: 218
A156: 935200 | B156: Cust Infor & Computer Control | C156: AGM | D156: =VALUE(LEFT(A156,3)) -> 935 | E156: =SUM(F156:Q156) -> -41 | F156: 260 | G156: -441 | H156: 13 | I156: 71 | J156: 34 | K156: -134 | L156: 26 | M156: 26 | N156: 26 | O156: 26 | P156: 26 | Q156: 26
A157: 935250 | B157: Maint-CompSoftware-GenPlnt | C157: AGM | D157: =VALUE(LEFT(A157,3)) -> 935 | E157: 151 | F157: 0 | G157: 0 | H157: 0 | I157: 0 | J157: 151 | K157: 0 | L157: 0 | M157: 0 | N157: 0 | O157: 0 | P157: 0 | Q157: 0
E158: =SUM(E13:E157) -> 261510268 | F158: 9792318 | G158: 12861864 | H158: 20261080 | I158: 30450408 | J158: 46255109 | K158: 45089026 | L158: 25081161 | M158: 17546179 | N158: 13513833 | O158: 13070218 | P158: 13355513 | Q158: 14233559
B160: Revenues | C160: REV | E160: =SUM(F160:Q160) -> 149565657 | F160: =SUMIF(CODE,C160,Base1) -> 4757080 | G160: =SUMIF(CODE,C160,Base2) -> 6101583 | H160: =SUMIF(CODE,C160,Base3) -> 10594957 | I160: =SUMIF(CODE,C160,Base4) -> 21102425 | J160: =SUMIF(CODE,C160,Base5) -> 28038182 | K160: =SUMIF(CODE,C160,Base6) -> 27866125 | L160: =SUMIF(CODE,C160,Base7) -> 15040046 | M160: =SUMIF(CODE,C160,Base8) -> 9692075 | N160: =SUMIF(CODE,C160,Base9) -> 6660025 | O160: =SUMIF(CODE,C160,Base10) -> 6366344 | P160: =SUMIF(CODE,C160,Base11) -> 6440248 | Q160: =SUMIF(CODE,C160,Base12) -> 6906567
B161: OperatingExpenses
B162: Gas Purchased Expense | C162: Fuel | E162: =SUM(F162:Q162) -> 56979326 | F162: =SUMIF(CODE,C162,Base1) -> 1090034 | G162: =SUMIF(CODE,C162,Base2) -> 1588460 | H162: =SUMIF(CODE,C162,Base3) -> 4620249 | I162: =SUMIF(CODE,C162,Base4) -> 8538829 | J162: =SUMIF(CODE,C162,Base5) -> 13013844 | K162: =SUMIF(CODE,C162,Base6) -> 12717779 | L162: =SUMIF(CODE,C162,Base7) -> 5040464 | M162: =SUMIF(CODE,C162,Base8) -> 2881599 | N162: =SUMIF(CODE,C162,Base9) -> 1654158 | O162: =SUMIF(CODE,C162,Base10) -> 1658776 | P162: =SUMIF(CODE,C162,Base11) -> 1863944 | Q162: =SUMIF(CODE,C162,Base12) -> 2311190
B164: Operation
B165: Production | C165: PO | E165: =SUM(F165:Q165) -> 642232 | F165: =SUMIF(CODE,C165,Base1) -> 43293 | G165: =SUMIF(CODE,C165,Base2) -> 76803 | H165: =SUMIF(CODE,C165,Base3) -> 56821 | I165: =SUMIF(CODE,C165,Base4) -> 53083 | J165: =SUMIF(CODE,C165,Base5) -> 51302 | K165: =SUMIF(CODE,C165,Base6) -> 61916 | L165: =SUMIF(CODE,C165,Base7) -> 50191 | M165: =SUMIF(CODE,C165,Base8) -> 49105 | N165: =SUMIF(CODE,C165,Base9) -> 53040 | O165: =SUMIF(CODE,C165,Base10) -> 48753 | P165: =SUMIF(CODE,C165,Base11) -> 48894 | Q165: =SUMIF(CODE,C165,Base12) -> 49031
B166: Customer Accounts | C166: CO | E166: 4429496 | F166: 234265 | G166: 539228 | H166: 326343 | I166: 380945 | J166: 268650 | K166: 354332 | L166: 354220 | M166: 368041 | N166: 423064 | O166: 396665 | P166: 386654 | Q166: 397089
B167: Customer Service & Information | C167: CSI | E167: 712867 | F167: 50700 | G167: 48001 | H167: 50768 | I167: 63956 | J167: 56430 | K167: 45897 | L167: 66299 | M167: 69268 | N167: 66131 | O167: 66220 | P167: 66354 | Q167: 62843
B168: Sales Expense | C168: SE | E168: 65836 | F168: 11952 | G168: 19713 | H168: 8300 | I168: 4321 | J168: 1998 | K168: 3774 | L168: 1250 | M168: 1132 | N168: 1132 | O168: 1250 | P168: 5507 | Q168: 5507
B169: Transmission | C169: TO | E169: -697704 | F169: 407 | G169: 355 | H169: 274 | I169: -704003 | J169: 603 | K169: 328 | L169: 670 | M169: 670 | N169: 748 | O169: 748 | P169: 748 | Q169: 748
B170: Distribution | C170: DO | E170: 6625658 | F170: 331195 | G170: 383061 | H170: 545790 | I170: 320809 | J170: 672952 | K170: 394137 | L170: 584820 | M170: 613651 | N170: 750329 | O170: 711916 | P170: 650402 | Q170: 666596
B171: A&G | C171: AGO | E171: 7797054 | F171: 756140 | G171: 656967 | H171: 497846 | I171: 587562 | J171: 954288 | K171: 600413 | L171: 717167 | M171: 620973 | N171: 598994 | O171: 593187 | P171: 627640 | Q171: 585877
B172: Other | C172: OTH | E172: -1898232 | F172: -10017 | G172: -13642 | H172: -26047 | I172: -1586962 | J172: -132149 | K172: -129415 | L172: 0 | M172: 0 | N172: 0 | O172: 0 | P172: 0 | Q172: 0
B173: Maintenance
B174: Production | C174: PM | E174: =SUM(F174:Q174) -> 0 | F174: =SUMIF(CODE,C174,Base1) -> 0 | G174: =SUMIF(CODE,C174,Base2) -> 0 | H174: =SUMIF(CODE,C174,Base3) -> 0 | I174: =SUMIF(CODE,C174,Base4) -> 0 | J174: =SUMIF(CODE,C174,Base5) -> 0 | K174: =SUMIF(CODE,C174,Base6) -> 0 | L174: =SUMIF(CODE,C174,Base7) -> 0 | M174: =SUMIF(CODE,C174,Base8) -> 0 | N174: =SUMIF(CODE,C174,Base9) -> 0 | O174: =SUMIF(CODE,C174,Base10) -> 0 | P174: =SUMIF(CODE,C174,Base11) -> 0 | Q174: =SUMIF(CODE,C174,Base12) -> 0
B175: Transmission | C175: TM | E175: =SUM(F175:Q175) -> 335313 | F175: =SUMIF(CODE,C175,Base1) -> 2639 | G175: =SUMIF(CODE,C175,Base2) -> 12059 | H175: =SUMIF(CODE,C175,Base3) -> 10763 | I175: =SUMIF(CODE,C175,Base4) -> 73534 | J175: =SUMIF(CODE,C175,Base5) -> 2346 | K175: =SUMIF(CODE,C175,Base6) -> 58179 | L175: =SUMIF(CODE,C175,Base7) -> 14878 | M175: =SUMIF(CODE,C175,Base8) -> 50143 | N175: =SUMIF(CODE,C175,Base9) -> 54971 | O175: =SUMIF(CODE,C175,Base10) -> 18282 | P175: =SUMIF(CODE,C175,Base11) -> 14538 | Q175: =SUMIF(CODE,C175,Base12) -> 22981
B176: Distribution | C176: DM | E176: =SUM(F176:Q176) -> 1866236 | F176: =SUMIF(CODE,C176,Base1) -> 128657 | G176: =SUMIF(CODE,C176,Base2) -> 167395 | H176: =SUMIF(CODE,C176,Base3) -> 271504 | I176: =SUMIF(CODE,C176,Base4) -> 168313 | J176: =SUMIF(CODE,C176,Base5) -> -13281 | K176: =SUMIF(CODE,C176,Base6) -> 123375 | L176: =SUMIF(CODE,C176,Base7) -> 158143 | M176: =SUMIF(CODE,C176,Base8) -> 154591 | N176: =SUMIF(CODE,C176,Base9) -> 193693 | O176: =SUMIF(CODE,C176,Base10) -> 156829 | P176: =SUMIF(CODE,C176,Base11) -> 197748 | Q176: =SUMIF(CODE,C176,Base12) -> 159269
B177: A&G | C177: AGM | E177: =SUM(F177:Q177) -> 110 | F177: =SUMIF(CODE,C177,Base1) -> 260 | G177: =SUMIF(CODE,C177,Base2) -> -441 | H177: =SUMIF(CODE,C177,Base3) -> 13 | I177: =SUMIF(CODE,C177,Base4) -> 71 | J177: =SUMIF(CODE,C177,Base5) -> 185 | K177: =SUMIF(CODE,C177,Base6) -> -134 | L177: =SUMIF(CODE,C177,Base7) -> 26 | M177: =SUMIF(CODE,C177,Base8) -> 26 | N177: =SUMIF(CODE,C177,Base9) -> 26 | O177: =SUMIF(CODE,C177,Base10) -> 26 | P177: =SUMIF(CODE,C177,Base11) -> 26 | Q177: =SUMIF(CODE,C177,Base12) -> 26
B178: Operation & Maintenance Expense | E178: =SUM(E165:E172)+SUM(E174:E177) -> 19878866 | F178: =SUM(F165:F172)+SUM(F174:F177) -> 1549491 | G178: =SUM(G165:G172)+SUM(G174:G177) -> 1889499 | H178: =SUM(H165:H172)+SUM(H174:H177) -> 1742375 | I178: -638371 | J178: 1863324 | K178: =SUM(K165:K172)+SUM(K174:K177) -> 1512802 | L178: =SUM(L165:L172)+SUM(L174:L177) -> 1947664 | M178: 1927600 | N178: 2142128 | O178: 1993876 | P178: 1998511 | Q178: 1949967
B179: Depreciation Expense | C179: DEPR | E179: =SUM(F179:Q179) -> 23774518 | F179: =SUMIF(CODE,C179,Base1) -> 1974918 | G179: =SUMIF(CODE,C179,Base2) -> 1978658 | H179: =SUMIF(CODE,C179,Base3) -> 1992899 | I179: =SUMIF(CODE,C179,Base4) -> 2044425 | J179: =SUMIF(CODE,C179,Base5) -> 2004220 | K179: =SUMIF(CODE,C179,Base6) -> 2023158 | L179: =SUMIF(CODE,C179,Base7) -> 1960097 | M179: =SUMIF(CODE,C179,Base8) -> 1952221 | N179: =SUMIF(CODE,C179,Base9) -> 1954188 | O179: =SUMIF(CODE,C179,Base10) -> 1958132 | P179: =SUMIF(CODE,C179,Base11) -> 1959258 | Q179: =SUMIF(CODE,C179,Base12) -> 1972344
B180: Amortization of Deferred Expenses | C180: AMORT | E180: =SUM(F180:Q180) -> 240384 | F180: =SUMIF(CODE,C180,Base1) -> 40064 | G180: =SUMIF(CODE,C180,Base2) -> 40064 | H180: =SUMIF(CODE,C180,Base3) -> 40064 | I180: =SUMIF(CODE,C180,Base4) -> 40064 | J180: =SUMIF(CODE,C180,Base5) -> 40064 | K180: =SUMIF(CODE,C180,Base6) -> 40064 | L180: =SUMIF(CODE,C180,Base7) -> 0 | M180: =SUMIF(CODE,C180,Base8) -> 0 | N180: =SUMIF(CODE,C180,Base9) -> 0 | O180: =SUMIF(CODE,C180,Base10) -> 0 | P180: =SUMIF(CODE,C180,Base11) -> 0 | Q180: =SUMIF(CODE,C180,Base12) -> 0
B181: Taxes Other Than Income Taxes | C181: OTHTX | E181: =SUM(F181:Q181) -> 3840159 | F181: =SUMIF(CODE,C181,Base1) -> -221883 | G181: =SUMIF(CODE,C181,Base2) -> 660986 | H181: =SUMIF(CODE,C181,Base3) -> 667922 | I181: =SUMIF(CODE,C181,Base4) -> -1239578 | J181: =SUMIF(CODE,C181,Base5) -> 692861 | K181: =SUMIF(CODE,C181,Base6) -> 326484 | L181: =SUMIF(CODE,C181,Base7) -> 490276 | M181: =SUMIF(CODE,C181,Base8) -> 490070 | N181: =SUMIF(CODE,C181,Base9) -> 500720 | O181: =SUMIF(CODE,C181,Base10) -> 490476 | P181: =SUMIF(CODE,C181,Base11) -> 490938 | Q181: =SUMIF(CODE,C181,Base12) -> 490887
B182: Income Taxes | C182: FIT | E182: =SUM(F182:Q182) -> 7231358 | F182: =SUMIF(CODE,C182,Base1) -> 602614 | G182: =SUMIF(CODE,C182,Base2) -> 602614 | H182: =SUMIF(CODE,C182,Base3) -> 602614 | I182: =SUMIF(CODE,C182,Base4) -> 602614 | J182: =SUMIF(CODE,C182,Base5) -> 602614 | K182: =SUMIF(CODE,C182,Base6) -> 602614 | L182: =SUMIF(CODE,C182,Base7) -> 602614 | M182: =SUMIF(CODE,C182,Base8) -> 602614 | N182: =SUMIF(CODE,C182,Base9) -> 602614 | O182: =SUMIF(CODE,C182,Base10) -> 602614 | P182: =SUMIF(CODE,C182,Base11) -> 602614 | Q182: =SUMIF(CODE,C182,Base12) -> 602604
B184: Operating Income | E184: =E160-E162-E163-E178-E179-E180-E181-E182 -> 37621046 | F184: -278158 | G184: -658698 | H184: 928834 | I184: 11754442 | J184: 9821255 | K184: 10643224 | L184: 4998931 | M184: 1837971 | N184: -193783 | O184: -337530 | P184: -475017 | Q184: -420425
B186: Operating Income - Before Income Taxes | E186: =E160-E162-E163-E178-E179-E180-E181 -> 44852404 | F186: =F160-F162-F163-F178-F179-F180-F181 -> 324456 | G186: -56084 | H186: 1531448 | I186: 12357056 | J186: 10423869 | K186: 11245838 | L186: 5601545 | M186: 2440585 | N186: 408831 | O186: 265084 | P186: 127597 | Q186: 182179

Sheet BP Rev by Product
A1: =COMPANY -> DUKE ENERGY KENTUCKY, INC.
A2: =CASE -> CASE NO. 2025-00125
A3: BASE PERIOD REVENUES BY PRODUCT
A4: BASE PERIOD
A6: =Data -> DATA: "X" BASE PERIOD FORECASTED PERIOD
A7: =Type -> TYPE OF FILING: "X" ORIGINAL UPDATED REVISED
A11: Account | B11: Description | C11: Code | D11: Product | E11: Product Desc. | F11: Total | G11: =LOGO!I7 -> 2024-09-30 | H11: =LOGO!I8 -> 2024-10-31 | I11: =LOGO!I9 -> 2024-11-30 | J11: =LOGO!I10 -> 2024-12-31 | K11: =LOGO!I11 -> 2025-01-31 | L11: =LOGO!I12 -> 2025-02-28 | M11: =LOGO!I13 -> 2025-03-31 | N11: =LOGO!I14 -> 2025-04-30 | O11: =LOGO!I15 -> 2025-05-31 | P11: =LOGO!I16 -> 2025-06-30 | Q11: =LOGO!I17 -> 2025-07-31 | R11: =LOGO!I18 -> 2025-08-31
A12: 450100 | B12: Late Payment | E12: NO VALUE | F12: =SUM(G12:R12) -> 188560 | G12: 0 | H12: 0 | I12: 0 | J12: 0 | K12: 0 | L12: 0 | M12: 54860 | N12: 40120 | O12: 29990 | P12: 17760 | Q12: 25620 | R12: 20210
A13: 480000 | B13: Residential Sales-Gas | D13: BOTHRV | E13: Other Base Gas | F13: =SUM(G13:R13) -> 31829935 | G13: 527517 | H13: 716473 | I13: 1366464 | J13: 4638586 | K13: 6920971 | L13: 6769690 | M13: 5026966 | N13: 2839138 | O13: 1231793 | P13: 744482 | Q13: 546115 | R13: 501740
A14: 480000 | B14: Residential Sales-Gas | D14: RCCHRG | E14: Fixed Customer Charge | F14: =SUM(G14:R14) -> 20047283 | G14: 1714105 | H14: 1711897 | I14: 1717680 | J14: 1719568 | K14: 1735484 | L14: 1678220 | M14: 1628444 | N14: 1631319 | O14: 1629051 | P14: 1627372 | Q14: 1626922 | R14: 1627221
A15: 480000 | B15: Residential Sales-Gas | D15: RGDSM | E15: Demand Side Mgmt Gas | F15: =SUM(G15:R15) -> -399635 | G15: -10017 | H15: -13642 | I15: -26047 | J15: -88365 | K15: -132149 | L15: -129415 | M15: 0 | N15: 0 | O15: 0 | P15: 0 | Q15: 0 | R15: 0
A16: 480000 | B16: Residential Sales-Gas | D16: RGGCA | E16: Gas Cost Adjustment Clause | F16: 35221281 | G16: 521363 | H16: 708328 | I16: 1349588 | J16: 5217851 | K16: 7785240 | L16: 7623715 | M16: 3964548 | N16: 2432997 | O16: 1422913 | P16: 1427538 | Q16: 1381537 | R16: 1385663
A17: 480000 | B17: Residential Sales-Gas | D17: RKGWNA | E17: Rider KY Gas Weather Normaliza | F17: 1344904 | G17: 294 | H17: 186 | I17: 977920 | J17: 59436 | K17: -81994 | L17: 389062 | M17: 0 | N17: 0 | O17: 0 | P17: 0 | Q17: 0 | R17: 0
A18: 480000 | B18: Residential Sales-Gas | D18: ROGPMM | E18: Pipeline Modernization Mech | F18: 7209071 | G18: 140371 | H18: 191150 | I18: 364339 | J18: 1236330 | K18: 1845826 | L18: 1808037 | M18: 398749 | N18: 381487 | O18: 268645 | P18: 221095 | Q18: 183174 | R18: 169868
A19: 480000 | B19: Residential Sales-Gas | D19: ROEASR | E19: Accelerated Service Replacemen | F19: 0 | G19: 0 | H19: 0 | I19: 0 | J19: 0 | K19: 0 | L19: 0 | M19: 0 | N19: 0 | O19: 0 | P19: 0 | Q19: 0 | R19: 0
A20: 480000 | B20: Residential Sales-Gas | D20: ROGTAX | E20: Tax Reform Customer Credit | F20: 0 | G20: 0 | H20: 0 | I20: 0 | J20: 0 | K20: 0 | L20: 0 | M20: 0 | N20: 0 | O20: 0 | P20: 0 | Q20: 0 | R20: 0
A21: 480990 | B21: Gas Residential Sales-Unbilled | D21: UNBILL | E21: Unbill Total (inc base& rider) | F21: -665107 | G21: -351322 | H21: 260259 | I21: 961974 | J21: 1401522 | K21: 835523 | L21: 518722 | M21: -1684910 | N21: -1115509 | O21: -968007 | P21: -367631 | Q21: -191281 | R21: 35553
A22: 481000 | B22: Industrial Sales-Gas | D22: BOTHRV | E22: Other Base Gas | F22: 632633 | G22: 8673 | H22: 12202 | I22: 19176 | J22: 82530 | K22: 131303 | L22: 160988 | M22: 112654 | N22: 57111 | O22: 22212 | P22: 8540 | Q22: 8344 | R22: 8900
A23: 481000 | B23: Industrial Sales-Gas | D23: RCCHRG | E23: Fixed Customer Charge | F23: 103814 | G23: 9141 | H23: 9270 | I23: 7260 | J23: 9164 | K23: 9371 | L23: 8874 | M23: 8394 | N23: 8484 | O23: 8425 | P23: 8419 | Q23: 8535 | R23: 8477
A24: 481000 | B24: Industrial Sales-Gas | D24: RGGCA | E24: Gas Cost Adjustment Clause | F24: 1013823 | G24: 11939 | H24: 16889 | I24: 26545 | J24: 129050 | K24: 207003 | L24: 253803 | M24: 146147 | N24: 80257 | O24: 42032 | P24: 26645 | Q24: 33980 | R24: 39533
A25: 481000 | B25: Industrial Sales-Gas | D25: RKGWNA | E25: Rider KY Gas Weather Normaliza | F25: 23024 | G25: -108 | H25: 0 | I25: 10512 | J25: 5358 | K25: -3334 | L25: 10596 | M25: 0 | N25: 0 | O25: 0 | P25: 0 | Q25: 0 | R25: 0
A26: 481000 | B26: Industrial Sales-Gas | D26: ROGPMM | E26: Pipeline Modernization Mech | F26: 93029 | G26: 956 | H26: 1303 | I26: 2031 | J26: 8817 | K26: 14027 | L26: 17198 | M26: 14699 | N26: 12584 | O26: 7936 | P26: 4127 | Q26: 4505 | R26: 4846
A27: 481090 | B27: Gas Industrial Sales Unbilled | D27: UNBILL | E27: Unbill Total (inc base& rider) | F27: 9984 | G27: -3564 | H27: 10345 | I27: 26485 | J27: 3918 | K27: 10357 | L27: -7485 | M27: -9354 | N27: -20283 | O27: -2489 | P27: -543 | Q27: 87 | R27: 2510
A28: 481200 | B28: Gas Commercial Sales | D28: BOTHRV | E28: Other Base Gas | F28: 10779135 | G28: 267334 | H28: 490998 | I28: 502448 | J28: 1471701 | K28: 2320734 | L28: 2408908 | M28: 1583453 | N28: 763586 | O28: 450492 | P28: 214716 | Q28: 156262 | R28: 148503
A29: 481200 | B29: Gas Commercial Sales | D29: RCCHRG | E29: Fixed Customer Charge | F29: 4359100 | G29: 387900 | H29: 392631 | I29: 390707 | J29: 402590 | K29: 404879 | L29: 388451 | M29: 344815 | N29: 335345 | O29: 331361 | P29: 329189 | Q29: 326541 | R29: 324691
A30: 481200 | B30: Gas Commercial Sales | D30: RGDSM | E30: Demand Side Mgmt Gas | F30: 0 | G30: 0 | H30: 0 | I30: 0 | J30: 0 | K30: 0 | L30: 0 | M30: 0 | N30: 0 | O30: 0 | P30: 0 | Q30: 0 | R30: 0
A31: 481200 | B31: Gas Commercial Sales | D31: RGGCA | E31: Gas Cost Adjustment Clause | F31: 17470570 | G31: 370754 | H31: 680957 | I31: 695536 | J31: 2312267 | K31: 3662263 | L31: 3803255 | M31: 2054240 | N31: 1073080 | O31: 852455 | P31: 669851 | Q31: 636315 | R31: 659597
A32: 481200 | B32: Gas Commercial Sales | D32: RKGWNA | E32: Rider KY Gas Weather Normaliza | F32: 436494 | G32: 4846 | H32: 1725 | I32: 282650 | J32: 57657 | K32: -23611 | L32: 113227 | M32: 0 | N32: 0 | O32: 0 | P32: 0 | Q32: 0 | R32: 0
A33: 481200 | B33: Gas Commercial Sales | D33: ROGPMM | E33: Pipeline Modernization Mech | F33: 1600980 | G33: 26691 | H33: 52371 | I33: 53672 | J33: 155645 | K33: 250066 | L33: 257750 | M33: 206613 | N33: 168256 | O33: 160943 | P33: 103746 | Q33: 84367 | R33: 80860
A34: 481290 | B34: Gas Commercial Sales Unbilled | D34: UNBILL | E34: Unbill Total (inc base& rider) | F34: 163598 | G34: 72302 | H34: -82749 | I34: 629826 | J34: 494814 | K34: 299717 | L34: 285147 | M34: -621649 | N34: -397804 | O34: -351972 | P34: -254895 | Q34: -64398 | R34: 155259
A35: 482000 | B35: Other Sales to Public Auth-Gas | D35: BOTHRV | E35: Other Base Gas | F35: 710007 | G35: 14102 | H35: 17016 | I35: 32918 | J35: 74932 | K35: 127855 | L35: 141339 | M35: 125053 | N35: 68617 | O35: 46905 | P35: 28404 | Q35: 19523 | R35: 13343
A36: 482000 | B36: Other Sales to Public Auth-Gas | D36: RCCHRG | E36: Fixed Customer Charge | F36: 186415 | G36: 16298 | H36: 17091 | I36: 16714 | J36: 16625 | K36: 16625 | L36: 15834 | M36: 14669 | N36: 14613 | O36: 14589 | P36: 14485 | Q36: 14488 | R36: 14384
A37: 482000 | B37: Other Sales to Public Auth-Gas | D37: RGDSM | E37: Demand Side Mgmt Gas | F37: 0 | G37: 0 | H37: 0 | I37: 0 | J37: 0 | K37: 0 | L37: 0 | M37: 0 | N37: 0 | O37: 0 | P37: 0 | Q37: 0 | R37: 0
A38: 482000 | B38: Other Sales to Public Auth-Gas | D38: RGGCA | E38: Gas Cost Adjustment Clause | F38: 1205026 | G38: 19468 | H38: 23529 | I38: 45566 | J38: 117403 | K38: 201433 | L38: 222826 | M38: 162233 | N38: 96430 | O38: 88756 | P38: 88615 | Q38: 79503 | R38: 59264
A39: 482000 | B39: Other Sales to Public Auth-Gas | D39: RKGWNA | E39: Rider KY Gas Weather Normaliza | F39: 24640 | G39: 0 | H39: 7 | I39: 16828 | J39: 6174 | K39: 1741 | L39: -110 | M39: 0 | N39: 0 | O39: 0 | P39: 0 | Q39: 0 | R39: 0
A40: 482000 | B40: Other Sales to Public Auth-Gas | D40: ROGPMM | E40: Pipeline Modernization Mech | F40: 123333 | G40: 1507 | H40: 1821 | I40: 3517 | J40: 8005 | K40: 13659 | L40: 15099 | M40: 16317 | N40: 15120 | O40: 16757 | P40: 13725 | Q40: 10541 | R40: 7265
A41: 482090 | B41: Gas OPA Unbilled | D41: UNBILL | E41: Unbill Total (inc base& rider) | F41: 28826 | G41: -25037 | H41: 19288 | I41: 49551 | J41: 22164 | K41: 13941 | L41: 12969 | M41: -6060 | N41: -65194 | O41: -6525 | P41: -22378 | Q41: 2541 | R41: 33566
A42: 482200 | B42: Gas Public St Hwy Ltng | D42: BOTHRV | E42: Other Base Gas | F42: 0 | G42: 0 | H42: 0 | I42: 0 | J42: 0 | K42: 0 | L42: 0 | M42: 0 | N42: 0 | O42: 0 | P42: 0 | Q42: 0 | R42: 0
A43: 482200 | B43: Gas Public St Hwy Ltng | D43: RCCHRG | E43: Fixed Customer Charge | F43: 0 | G43: 0 | H43: 0 | I43: 0 | J43: 0 | K43: 0 | L43: 0 | M43: 0 | N43: 0 | O43: 0 | P43: 0 | Q43: 0 | R43: 0
A44: 482200 | B44: Gas Public St Hwy Ltng | D44: RGGCA | E44: Gas Cost Adjustment Clause | F44: 0 | G44: 0 | H44: 0 | I44: 0 | J44: 0 | K44: 0 | L44: 0 | M44: 0 | N44: 0 | O44: 0 | P44: 0 | Q44: 0 | R44: 0
A45: 484000 | B45: Interdepartmental Sales | E45: NO VALUE | F45: 30845 | G45: 35 | H45: 36 | I45: 402 | J45: 1413 | K45: 5179 | L45: 8822 | M45: 3656 | N45: 2246 | O45: 1721 | P45: 2048 | Q45: 2555 | R45: 2732
A46: 487001 | B46: Discounts Earn/Lost-Gas | E46: NO VALUE | F46: 213643 | G46: 13960 | H46: 12764 | I46: 16164 | J46: 27558 | K46: 63998 | L46: 79199 | M46: 0 | N46: 0 | O46: 0 | P46: 0 | Q46: 0 | R46: 0
A47: 488000 | B47: Misc Service Revenue-Gas | E47: NO VALUE | F47: 35744 | G47: 1042 | H47: 2323 | I47: 1715 | J47: 1686 | K47: 1183 | L47: 1797 | M47: 4333 | N47: 4333 | O47: 4333 | P47: 4333 | Q47: 4333 | R47: 4333
A48: 488100 | B48: IC Misc Svc Reg Gas Reg | E48: NO VALUE | F48: 0 | G48: 0 | H48: 0 | I48: 0 | J48: 0 | K48: 0 | L48: 0 | M48: 0 | N48: 0 | O48: 0 | P48: 0 | Q48: 0 | R48: 0
A49: 489000 | B49: Transp Gas of Others | D49: BFTARV | E49: Firm Transportation agree Gas | F49: 170 | G49: 170 | H49: 0 | I49: 0 | J49: 0 | K49: 0 | L49: 0 | M49: 0 | N49: 0 | O49: 0 | P49: 0 | Q49: 0 | R49: 0
A50: 489000 | B50: Transp Gas of Others | D50: BOTHRV | E50: Other Base Gas | F50: 1905567 | G50: 91429 | H50: 116758 | I50: 104745 | J50: 102897 | K50: 114999 | L50: 78325 | M50: 214370 | N50: 205517 | O50: 207919 | P50: 214248 | Q50: 226647 | R50: 227713
A51: 489000 | B51: Transp Gas of Others | D51: RCCHRG | E51: Fixed Customer Charge | F51: 97170 | G51: 8170 | H51: 8170 | I51: 8170 | J51: 8170 | K51: 8170 | L51: 8170 | M51: 8223 | N51: 7920 | O51: 8023 | P51: 7920 | Q51: 8032 | R51: 8032
A52: 489000 | B52: Transp Gas of Others | D52: ROGPMM | E52: Pipeline Modernization Mech | F52: 1013125 | G52: 2917 | H52: 0 | I52: 0 | J52: 0 | K52: 0 | L52: 0 | M52: 59032 | N52: 94746 | O52: 154936 | P52: 211903 | Q52: 243463 | R52: 246128
A53: 489000 | B53: Transp Gas of Others | E53: NO VALUE | F53: 402198 | G53: 0 | H53: 0 | I53: 0 | J53: 0 | K53: 0 | L53: 0 | M53: 67033 | N53: 67033 | O53: 67033 | P53: 67033 | Q53: 67033 | R53: 67033
A54: 489010 | B54: IC Gas Transp Rev Reg | E54: NO VALUE | F54: 1795608 | G54: 149634 | H54: 149634 | I54: 149634 | J54: 149634 | K54: 149634 | L54: 149634 | M54: 149634 | N54: 149634 | O54: 149634 | P54: 149634 | Q54: 149634 | R54: 149634
A55: 489020 | B55: Comm Gas Transp Only | D55: BOTHRV | E55: Other Base Gas | F55: 0 | G55: 0 | H55: 0 | I55: 0 | J55: 0 | K55: 0 | L55: 0 | M55: 0 | N55: 0 | O55: 0 | P55: 0 | Q55: 0 | R55: 0
A56: 489020 | B56: Comm Gas Transp Only | D56: BFTARV | E56: Firm Transportation agree Gas | F56: 2256709 | G56: 75665 | H56: 88974 | I56: 169267 | J56: 265536 | K56: 347890 | L56: 288076 | M56: 290196 | N56: 176330 | O56: 151590 | P56: 132527 | Q56: 134648 | R56: 136010
A57: 489020 | B57: Comm Gas Transp Only | D57: MUAGAS | E57: Minimum Use Agreement - Gas | F57: 629817 | G57: 310156 | H57: 0 | I57: 0 | J57: 319661 | K57: 0 | L57: 0 | M57: 0 | N57: 0 | O57: 0 | P57: 0 | Q57: 0 | R57: 0
A58: 489020 | B58: Comm Gas Transp Only | D58: RCCHRG | E58: Fixed Customer Charge | F58: 321689 | G58: 26230 | H58: 25370 | I58: 27090 | J58: 26660 | K58: 27090 | L58: 27090 | M58: 28311 | N58: 27428 | O58: 27007 | P58: 26742 | Q58: 26447 | R58: 26224
A59: 489020 | B59: Comm Gas Transp Only | D59: ROGPMM | E59: Pipeline Modernization Mech | F59: =SUM(G59:R59) -> 468393 | G59: -77 | H59: 455 | I59: 641 | J59: 600 | K59: 968 | L59: 1283 | M59: 52092 | N59: 53295 | O59: 74209 | P59: 87178 | Q59: 97998 | R59: 99751
A60: 489020 | B60: Comm Gas Transp Only | D60: RGGCA | E60: Gas Cost Adjustment Clause | F60: =SUM(G60:R60) -> 0 | G60: 0 | H60: 0 | I60: 0 | J60: 0 | K60: 0 | L60: 0 | M60: 0 | N60: 0 | O60: 0 | P60: 0 | Q60: 0 | R60: 0
A61: 489025 | B61: Comm Gas Transp Unbilled | D61: UNBILL | E61: Unbill Total (inc base& rider) | F61: 64271 | G61: 22356 | H61: -8763 | I61: 49624 | J61: 48559 | K61: 32779 | L61: -24865 | M61: -24544 | N61: -16172 | O61: -14811 | P61: -6965 | Q61: 893 | R61: 6180
A62: 489030 | B62: Indust Gas Transp Only | D62: BOTHRV | E62: Other Base Gas | F62: =SUM(G62:R62) -> 0 | G62: 0 | H62: 0 | I62: 0 | J62: 0 | K62: 0 | L62: 0 | M62: 0 | N62: 0 | O62: 0 | P62: 0 | Q62: 0 | R62: 0
A63: 489030 | B63: Indust Gas Transp Only | D63: BFTARV | E63: Firm Transportation agree Gas | F63: 4557300 | G63: 298576 | H63: 356415 | I63: 360901 | J63: 421026 | K63: 505108 | L63: 434037 | M63: 465942 | N63: 372408 | O63: 336119 | P63: 331791 | Q63: 327993 | R63: 346984
A64: 489030 | B64: Indust Gas Transp Only | D64: RCCHRG | E64: Fixed Customer Charge | F64: 223704 | G64: 15480 | H64: 15480 | I64: 15480 | J64: 15480 | K64: 15480 | L64: 15480 | M64: 21730 | N64: 21927 | O64: 21739 | P64: 21691 | Q64: 21958 | R64: 21779
A65: 489030 | B65: Indust Gas Transp Only | D65: ROGPMM | E65: Pipeline Modernization Mech | F65: =SUM(G65:R65) -> 936658 | G65: -388 | H65: 1730 | I65: 1980 | J65: 1259 | K65: 1498 | L65: 1773 | M65: 75311 | N65: 98535 | O65: 141828 | P65: 187735 | Q65: 204946 | R65: 220451
A66: 489030 | B66: Indust Gas Transp Only | D66: RGGCA | E66: Gas Cost Adjustment Clause | F66: 0 | G66: 0 | H66: 0 | I66: 0 | J66: 0 | K66: 0 | L66: 0 | M66: 0 | N66: 0 | O66: 0 | P66: 0 | Q66: 0 | R66: 0
A67: 489035 | B67: Indust Gas Transp Unbilled | D67: UNBILL | E67: Unbill Total (inc base& rider) | F67: 8837 | G67: -9527 | H67: 30427 | I67: 61943 | J67: 16579 | K67: 32517 | L67: -73222 | M67: -10009 | N67: -41948 | O67: -10529 | P67: -1409 | Q67: 2073 | R67: 11942
A68: 489040 | B68: OPA Gas Transp Only | D68: BOTHRV | E68: Other Base Gas | F68: =SUM(G68:R68) -> 0 | G68: 0 | H68: 0 | I68: 0 | J68: 0 | K68: 0 | L68: 0 | M68: 0 | N68: 0 | O68: 0 | P68: 0 | Q68: 0 | R68: 0
A69: 489040 | B69: OPA Gas Transp Only | D69: BFTARV | E69: Firm Transportation agree Gas | F69: 612803 | G69: 18178 | H69: 36017 | I69: 62590 | J69: 105533 | K69: 139983 | L69: 102616 | M69: 67652 | N69: 36200 | O69: 19832 | P69: 8256 | Q69: 8125 | R69: 7821
A70: 489040 | B70: OPA Gas Transp Only | D70: RCCHRG | E70: Fixed Customer Charge | F70: 168113 | G70: 13760 | H70: 13760 | I70: 13760 | J70: 13760 | K70: 14190 | L70: 14190 | M70: 14397 | N70: 14346 | O70: 14233 | P70: 14035 | Q70: 13695 | R70: 13987
A71: 489040 | B71: OPA Gas Transp Only | D71: ROGPMM | E71: Pipeline Modernization Mech | F71: =SUM(G71:R71) -> 51208 | G71: -57 | H71: 120 | I71: 204 | J71: 217 | K71: 360 | L71: 491 | M71: 12144 | N71: 10941 | O71: 9709 | P71: 5430 | Q71: 5913 | R71: 5736
A72: 489040 | B72: OPA Gas Transp Only | D72: RGGCA | E72: Gas Cost Adjustment Clause | F72: 0 | G72: 0 | H72: 0 | I72: 0 | J72: 0 | K72: 0 | L72: 0 | M72: 0 | N72: 0 | O72: 0 | P72: 0 | Q72: 0 | R72: 0
A73: 489045 | B73: OPA Gas Transp Unbilled | D73: UNBILL | E73: Unbill Total (inc base& rider) | F73: 28930 | G73: -7533 | H73: 12353 | I73: 26626 | J73: 12439 | K73: 9893 | L73: -13787 | M73: -338 | N73: -12398 | O73: -762 | P73: -1048 | Q73: 641 | R73: 2844
A74: 489200 | B74: Transportation Fees | E74: NO VALUE | F74: =SUM(G74:R74) -> -149 | G74: -170 | H74: 0 | I74: 0 | J74: 0 | K74: 0 | L74: 21 | M74: 0 | N74: 0 | O74: 0 | P74: 0 | Q74: 0 | R74: 0
A75: 495031 | B75: Gas Losses Damaged Lines | E75: NO VALUE | F75: 2581 | G75: 1561 | H75: 215 | I75: 161 | J75: 16 | K75: 333 | L75: 295 | M75: 0 | N75: 0 | O75: 0 | P75: 0 | Q75: 0 | R75: 0
A76: 496020 | B76: Provision for rate refund - Ta | D76: BOTHRV | E76: Other Base Gas | F76: =SUM(G76:R76) -> 0 | G76: 0 | H76: 0 | I76: 0 | J76: 0 | K76: 0 | L76: 0 | M76: 0 | N76: 0 | O76: 0 | P76: 0 | Q76: 0 | R76: 0
F78: =SUM(BPrevTotal) -> 149565657 | G78: =SUM(BPRev1) -> 4757080 | H78: =SUM(BPRev2) -> 6101583 | I78: =SUM(BPRev3) -> 10594957 | J78: =SUM(BPRev4) -> 21102425 | K78: =SUM(BPRev5) -> 28038182 | L78: =SUM(BPRev6) -> 27866125 | M78: =SUM(BPRev7) -> 15040046 | N78: =SUM(BPRev8) -> 9692075 | O78: =SUM(BPRev9) -> 6660025 | P78: =SUM(BPRev10) -> 6366344 | Q78: =SUM(BPrev11) -> 6440248 | R78: =SUM(BPRev12) -> 6906567
G80: ='BASE PERIOD'!F160 -> 4757080 | H80: ='BASE PERIOD'!G160 -> 6101583 | I80: ='BASE PERIOD'!H160 -> 10594957 | J80: ='BASE PERIOD'!I160 -> 21102425 | K80: ='BASE PERIOD'!J160 -> 28038182 | L80: ='BASE PERIOD'!K160 -> 27866125 | M80: ='BASE PERIOD'!L160 -> 15040046 | N80: ='BASE PERIOD'!M160 -> 9692075 | O80: ='BASE PERIOD'!N160 -> 6660025 | P80: ='BASE PERIOD'!O160 -> 6366344 | Q80: ='BASE PERIOD'!P160 -> 6440248 | R80: ='BASE PERIOD'!Q160 -> 6906567
G82: =G80-G78 -> 0 | H82: 0 | I82: 0 | J82: 0 | K82: =K80-K78 -> 0 | L82: 0 | M82: 0 | N82: 0 | O82: 0 | P82: 0 | Q82: 0 | R82: =R80-R78 -> 0

Sheet FORECASTED PERIOD
A2: =COMPANY -> DUKE ENERGY KENTUCKY, INC.
A3: =CASE -> CASE NO. 2025-00125
A4: MONTHLY REVENUES AND EXPENSES BY ACCOUNT
A5: FORECASTED PERIOD
A7: =DataF -> DATA: BASE PERIOD "X" FORECASTED PERIOD
A8: =Type -> TYPE OF FILING: "X" ORIGINAL UPDATED REVISED
F11: BUDGET | G11: BUDGET | H11: BUDGET | I11: BUDGET | J11: BUDGET | K11: BUDGET | L11: BUDGET | M11: BUDGET | N11: BUDGET | O11: BUDGET | P11: BUDGET | Q11: BUDGET
B12: Description | C12: Code | D12: FERC | E12: Total | F12: =LOGO!J7 -> 2026-01-31 | G12: =LOGO!J8 -> 2026-02-28 | H12: =LOGO!J9 -> 2026-03-31 | I12: =LOGO!J10 -> 2026-04-30 | J12: =LOGO!J11 -> 2026-05-31 | K12: =LOGO!J12 -> 2026-06-30 | L12: =LOGO!J13 -> 2026-07-31 | M12: =LOGO!J14 -> 2026-08-31 | N12: =LOGO!J15 -> 2026-09-30 | O12: =LOGO!J16 -> 2026-10-31 | P12: =LOGO!J17 -> 2026-11-30 | Q12: =LOGO!J18 -> 2026-12-31
A13: ='BASE PERIOD'!A13 -> 403002 | B13: ='BASE PERIOD'!B13 -> Depreciation Expense | C13: ='BASE PERIOD'!C13 -> DEPR | D13: =VALUE(LEFT(A13,3)) -> 403 | E13: =SUM(F13:Q13) -> 22660096 | F13: 1845437 | G13: 1850112 | H13: 1861295 | I13: 1865493 | J13: 1869776 | K13: 1874444 | L13: 1878645 | M13: 1883306 | N13: 1887975 | O13: 1948009 | P13: 1956601 | Q13: 1939003
A14: ='BASE PERIOD'!A14 -> 404200 | B14: ='BASE PERIOD'!B14 -> Amort Exp - Limited Term | C14: ='BASE PERIOD'!C14 -> DEPR | D14: =VALUE(LEFT(A14,3)) -> 404 | E14: =SUM(F14:Q14) -> 2438410 | F14: 208852 | G14: 207165 | H14: 206780 | I14: 204372 | J14: 202534 | K14: 202369 | L14: 201573 | M14: 201408 | N14: 202889 | O14: 203001 | P14: 199127 | Q14: 198340
A15: ='BASE PERIOD'!A15 -> 407305 | B15: ='BASE PERIOD'!B15 -> Reg Asset Amortization | C15: ='BASE PERIOD'!C15 -> AMORT | D15: =VALUE(LEFT(A15,3)) -> 407 | E15: =SUM(F15:Q15) -> 0 | F15: 0 | G15: 0 | H15: 0 | I15: 0 | J15: 0 | K15: 0 | L15: 0 | M15: 0 | N15: 0 | O15: 0 | P15: 0 | Q15: 0
A16: ='BASE PERIOD'!A16 -> 407355 | B16: ='BASE PERIOD'!B16 -> DSM Amortization | C16: ='BASE PERIOD'!C16 -> OTH | D16: 407 | E16: 0 | F16: 0 | G16: 0 | H16: 0 | I16: 0 | J16: 0 | K16: 0 | L16: 0 | M16: 0 | N16: 0 | O16: 0 | P16: 0 | Q16: 0
A17: ='BASE PERIOD'!A17 -> 407394 | B17: ='BASE PERIOD'!B17 -> Amortization Customer Connect | C17: ='BASE PERIOD'!C17 -> AMORT | D17: =VALUE(LEFT(A17,3)) -> 407 | E17: =SUM(F17:Q17) -> 0 | F17: 0 | G17: 0 | H17: 0 | I17: 0 | J17: 0 | K17: 0 | L17: 0 | M17: 0 | N17: 0 | O17: 0 | P17: 0 | Q17: 0
A18: ='BASE PERIOD'!A18 -> 407409 | B18: ='BASE PERIOD'!B18 -> Smart Grid Deferral Gas | C18: ='BASE PERIOD'!C18 -> OTH | D18: =VALUE(LEFT(A18,3)) -> 407 | E18: =SUM(F18:Q18) -> 0 | F18: 0 | G18: 0 | H18: 0 | I18: 0 | J18: 0 | K18: 0 | L18: 0 | M18: 0 | N18: 0 | O18: 0 | P18: 0 | Q18: 0
A19: ='BASE PERIOD'!A19 -> 408121 | B19: ='BASE PERIOD'!B19 -> Taxes Property-Operating | C19: ='BASE PERIOD'!C19 -> OTHTX | D19: 408 | E19: 8160168 | F19: 680014 | G19: 680014 | H19: 680014 | I19: 680014 | J19: 680014 | K19: 680014 | L19: 680014 | M19: 680014 | N19: 680014 | O19: 680014 | P19: 680014 | Q19: 680014
A20: ='BASE PERIOD'!A20 -> 408150 | B20: ='BASE PERIOD'!B20 -> State Unemployment Tax | C20: ='BASE PERIOD'!C20 -> OTHTX | D20: 408 | E20: 0 | F20: 0 | G20: 0 | H20: 0 | I20: 0 | J20: 0 | K20: 0 | L20: 0 | M20: 0 | N20: 0 | O20: 0 | P20: 0 | Q20: 0
A21: ='BASE PERIOD'!A21 -> 408151 | B21: ='BASE PERIOD'!B21 -> Federal Unemployment Tax | C21: ='BASE PERIOD'!C21 -> OTHTX | D21: 408 | E21: 0 | F21: 0 | G21: 0 | H21: 0 | I21: 0 | J21: 0 | K21: 0 | L21: 0 | M21: 0 | N21: 0 | O21: 0 | P21: 0 | Q21: 0
A22: ='BASE PERIOD'!A22 -> 408152 | B22: ='BASE PERIOD'!B22 -> Employer FICA Tax | C22: ='BASE PERIOD'!C22 -> OTHTX | D22: 408 | E22: 0 | F22: 0 | G22: 0 | H22: 0 | I22: 0 | J22: 0 | K22: 0 | L22: 0 | M22: 0 | N22: 0 | O22: 0 | P22: 0 | Q22: 0
A23: ='BASE PERIOD'!A23 -> 408470 | B23: ='BASE PERIOD'!B23 -> Franchise Tax | C23: ='BASE PERIOD'!C23 -> OTHTX | D23: 408 | E23: 0 | F23: 0 | G23: 0 | H23: 0 | I23: 0 | J23: 0 | K23: 0 | L23: 0 | M23: 0 | N23: 0 | O23: 0 | P23: 0 | Q23: 0
A24: ='BASE PERIOD'!A24 -> 408700 | B24: ='BASE PERIOD'!B24 -> Fed Social Security Tax-Elec | C24: ='BASE PERIOD'!C24 -> OTHTX | D24: 408 | E24: 0 | F24: 0 | G24: 0 | H24: 0 | I24: 0 | J24: 0 | K24: 0 | L24: 0 | M24: 0 | N24: 0 | O24: 0 | P24: 0 | Q24: 0
A25: ='BASE PERIOD'!A25 -> 408851 | B25: ='BASE PERIOD'!B25 -> Sales and Use Expense | C25: ='BASE PERIOD'!C25 -> OTHTX | D25: 408 | E25: 0 | F25: 0 | G25: 0 | H25: 0 | I25: 0 | J25: 0 | K25: 0 | L25: 0 | M25: 0 | N25: 0 | O25: 0 | P25: 0 | Q25: 0
A26: ='BASE PERIOD'!A26 -> 408960 | B26: ='BASE PERIOD'!B26 -> Allocated Payroll Taxes | C26: ='BASE PERIOD'!C26 -> OTHTX | D26: 408 | E26: 540348 | F26: 45029 | G26: 45029 | H26: 45029 | I26: 45029 | J26: 45029 | K26: 45029 | L26: 45029 | M26: 45029 | N26: 45029 | O26: 45029 | P26: 45029 | Q26: 45029
A27: ='BASE PERIOD'!A27 -> 409060 | B27: ='BASE PERIOD'!B27 -> Federal Income Taxes Utility Op Income | C27: ='BASE PERIOD'!C27 -> FIT | D27: 409 | E27: 2527989 | F27: =ROUND(SCH_E1!$K$116/12,0) -> 210666 | G27: =ROUND(SCH_E1!$K$116/12,0) -> 210666 | H27: =ROUND(SCH_E1!$K$116/12,0) -> 210666 | I27: =ROUND(SCH_E1!$K$116/12,0) -> 210666 | J27: =ROUND(SCH_E1!$K$116/12,0) -> 210666 | K27: =ROUND(SCH_E1!$K$116/12,0) -> 210666 | L27: =ROUND(SCH_E1!$K$116/12,0) -> 210666 | M27: =ROUND(SCH_E1!$K$116/12,0) -> 210666 | N27: =ROUND(SCH_E1!$K$116/12,0) -> 210666 | O27: =ROUND(SCH_E1!$K$116/12,0) -> 210666 | P27: =ROUND(SCH_E1!$K$116/12,0) -> 210666 | Q27: =SCH_E1!$K$116-SUM(F27:P27) -> 210663
A28: ='BASE PERIOD'!A29 -> 409160 | B28: ='BASE PERIOD'!B29 -> State/Local Inc Tax Exp Utility Op Inc | C28: ='BASE PERIOD'!C29 -> FIT | D28: =VALUE(LEFT(A28,3)) -> 409 | E28: =SUM(F28:Q28) -> 629381 | F28: =ROUND(SCH_E1!$K$77/12,0) -> 52448 | G28: =ROUND(SCH_E1!$K$77/12,0) -> 52448 | H28: =ROUND(SCH_E1!$K$77/12,0) -> 52448 | I28: =ROUND(SCH_E1!$K$77/12,0) -> 52448 | J28: =ROUND(SCH_E1!$K$77/12,0) -> 52448 | K28: =ROUND(SCH_E1!$K$77/12,0) -> 52448 | L28: =ROUND(SCH_E1!$K$77/12,0) -> 52448 | M28: =ROUND(SCH_E1!$K$77/12,0) -> 52448 | N28: =ROUND(SCH_E1!$K$77/12,0) -> 52448 | O28: =ROUND(SCH_E1!$K$77/12,0) -> 52448 | P28: =ROUND(SCH_E1!$K$77/12,0) -> 52448 | Q28: =(SCH_E1!$K$77)-SUM(F28:P28) -> 52453
A29: ='BASE PERIOD'!A31 -> 410060 | B29: ='BASE PERIOD'!B31 -> Deferred FIT | C29: ='BASE PERIOD'!C31 -> FIT | D29: 410 | E29: 2541735 | F29: =ROUND((SCH_E1!$K$121)/12,0) -> 211811 | G29: =ROUND((SCH_E1!$K$121)/12,0) -> 211811 | H29: =ROUND((SCH_E1!$K$121)/12,0) -> 211811 | I29: =ROUND((SCH_E1!$K$121)/12,0) -> 211811 | J29: =ROUND((SCH_E1!$K$121)/12,0) -> 211811 | K29: =ROUND((SCH_E1!$K$121)/12,0) -> 211811 | L29: =ROUND((SCH_E1!$K$121)/12,0) -> 211811 | M29: =ROUND((SCH_E1!$K$121)/12,0) -> 211811 | N29: =ROUND((SCH_E1!$K$121)/12,0) -> 211811 | O29: =ROUND((SCH_E1!$K$121)/12,0) -> 211811 | P29: =ROUND((SCH_E1!$K$121)/12,0) -> 211811 | Q29: =(SCH_E1!$K$121)-SUM(F29:P29) -> 211814
A30: ='BASE PERIOD'!A32 -> 410101 | B30: ='BASE PERIOD'!B32 -> Deferred SIT | C30: ='BASE PERIOD'!C32 -> FIT | D30: 410 | E30: 632803 | F30: =ROUND((SCH_E1!$K$101)/12,0) -> 52734 | G30: =ROUND((SCH_E1!$K$101)/12,0) -> 52734 | H30: =ROUND((SCH_E1!$K$101)/12,0) -> 52734 | I30: =ROUND((SCH_E1!$K$101)/12,0) -> 52734 | J30: =ROUND((SCH_E1!$K$101)/12,0) -> 52734 | K30: =ROUND((SCH_E1!$K$101)/12,0) -> 52734 | L30: =ROUND((SCH_E1!$K$101)/12,0) -> 52734 | M30: =ROUND((SCH_E1!$K$101)/12,0) -> 52734 | N30: =ROUND((SCH_E1!$K$101)/12,0) -> 52734 | O30: =ROUND((SCH_E1!$K$101)/12,0) -> 52734 | P30: =ROUND((SCH_E1!$K$101)/12,0) -> 52734 | Q30: =ROUND((SCH_E1!$K$101)-SUM(F30:P30),0) -> 52729
A31: ='BASE PERIOD'!A33 -> 411060 | B31: ='BASE PERIOD'!B33 -> Deferred FIT - ARAM | C31: ='BASE PERIOD'!C33 -> FIT | D31: 411 | E31: 48505 | F31: =ROUND((SCH_E1!$K$122)/12,0) -> 4042 | G31: =ROUND((SCH_E1!$K$122)/12,0) -> 4042 | H31: =ROUND((SCH_E1!$K$122)/12,0) -> 4042 | I31: =ROUND((SCH_E1!$K$122)/12,0) -> 4042 | J31: =ROUND((SCH_E1!$K$122)/12,0) -> 4042 | K31: =ROUND((SCH_E1!$K$122)/12,0) -> 4042 | L31: =ROUND((SCH_E1!$K$122)/12,0) -> 4042 | M31: =ROUND((SCH_E1!$K$122)/12,0) -> 4042 | N31: =ROUND((SCH_E1!$K$122)/12,0) -> 4042 | O31: =ROUND((SCH_E1!$K$122)/12,0) -> 4042 | P31: =ROUND((SCH_E1!$K$122)/12,0) -> 4042 | Q31: =SCH_E1!$K$122-SUM(F31:P31) -> 4043
A32: ='BASE PERIOD'!A34 -> 411065 | B32: ='BASE PERIOD'!B34 -> Amortization of Investment Tax Credit | C32: ='BASE PERIOD'!C34 -> FIT | D32: 411 | E32: 0 | F32: =ROUND((SCH_E1!$K$128)/12,0) -> 0 | G32: =ROUND((SCH_E1!$K$128)/12,0) -> 0 | H32: =ROUND((SCH_E1!$K$128)/12,0) -> 0 | I32: =ROUND((SCH_E1!$K$128)/12,0) -> 0 | J32: =ROUND((SCH_E1!$K$128)/12,0) -> 0 | K32: =ROUND((SCH_E1!$K$128)/12,0) -> 0 | L32: =ROUND((SCH_E1!$K$128)/12,0) -> 0 | M32: =ROUND((SCH_E1!$K$128)/12,0) -> 0 | N32: =ROUND((SCH_E1!$K$128)/12,0) -> 0 | O32: =ROUND((SCH_E1!$K$128)/12,0) -> 0 | P32: =ROUND((SCH_E1!$K$128)/12,0) -> 0 | Q32: =SCH_E1!$K$128-SUM(F32:P32) -> 0
A33: ='BASE PERIOD'!A35 -> 411101 | B33: ='BASE PERIOD'!B35 -> Deferred SIT - ARAM | C33: ='BASE PERIOD'!C35 -> FIT | D33: 411 | E33: -92648 | F33: =ROUND((SCH_E1!$K$102)/12,0) -> -7721 | G33: =ROUND((SCH_E1!$K$102)/12,0) -> -7721 | H33: =ROUND((SCH_E1!$K$102)/12,0) -> -7721 | I33: =ROUND((SCH_E1!$K$102)/12,0) -> -7721 | J33: =ROUND((SCH_E1!$K$102)/12,0) -> -7721 | K33: =ROUND((SCH_E1!$K$102)/12,0) -> -7721 | L33: =ROUND((SCH_E1!$K$102)/12,0) -> -7721 | M33: =ROUND((SCH_E1!$K$102)/12,0) -> -7721 | N33: =ROUND((SCH_E1!$K$102)/12,0) -> -7721 | O33: =ROUND((SCH_E1!$K$102)/12,0) -> -7721 | P33: =ROUND((SCH_E1!$K$102)/12,0) -> -7721 | Q33: =ROUND((SCH_E1!$K$102)-SUM(F33:P33),0) -> -7717
A34: ='BASE PERIOD'!A36 -> 411102 | B34: ='BASE PERIOD'!B36 -> DFIT - Other | C34: ='BASE PERIOD'!C36 -> FIT | D34: 411 | E34: 0 | F34: =ROUND((SCH_E1!$K$124)/12,0) -> 0 | G34: =ROUND((SCH_E1!$K$124)/12,0) -> 0 | H34: =ROUND((SCH_E1!$K$124)/12,0) -> 0 | I34: =ROUND((SCH_E1!$K$124)/12,0) -> 0 | J34: =ROUND((SCH_E1!$K$124)/12,0) -> 0 | K34: =ROUND((SCH_E1!$K$124)/12,0) -> 0 | L34: =ROUND((SCH_E1!$K$124)/12,0) -> 0 | M34: =ROUND((SCH_E1!$K$124)/12,0) -> 0 | N34: =ROUND((SCH_E1!$K$124)/12,0) -> 0 | O34: =ROUND((SCH_E1!$K$124)/12,0) -> 0 | P34: =ROUND((SCH_E1!$K$124)/12,0) -> 0 | Q34: =ROUND((SCH_E1!$K$124)-SUM(F34:P34),0) -> 0
A35: ='BASE PERIOD'!A38 -> 411113 | B35: ='BASE PERIOD'!B38 -> DSIT: State Excess DIT Amort | C35: ='BASE PERIOD'!C38 -> FIT | D35: 411 | E35: -76805 | F35: =ROUND((SCH_E1!$K$103)/12,0) -> -6400 | G35: =ROUND((SCH_E1!$K$103)/12,0) -> -6400 | H35: =ROUND((SCH_E1!$K$103)/12,0) -> -6400 | I35: =ROUND((SCH_E1!$K$103)/12,0) -> -6400 | J35: =ROUND((SCH_E1!$K$103)/12,0) -> -6400 | K35: =ROUND((SCH_E1!$K$103)/12,0) -> -6400 | L35: =ROUND((SCH_E1!$K$103)/12,0) -> -6400 | M35: =ROUND((SCH_E1!$K$103)/12,0) -> -6400 | N35: =ROUND((SCH_E1!$K$103)/12,0) -> -6400 | O35: =ROUND((SCH_E1!$K$103)/12,0) -> -6400 | P35: =ROUND((SCH_E1!$K$103)/12,0) -> -6400 | Q35: =ROUND((SCH_E1!$K$103)-SUM(F35:P35),0) -> -6405
A36: ='BASE PERIOD'!A39 -> 411115 | B36: ='BASE PERIOD'!B39 -> DFIT: Federal Excess DIT Amort | C36: ='BASE PERIOD'!C39 -> FIT | D36: 411 | E36: -698455 | F36: =ROUND((SCH_E1!$K$123)/12,0) -> -58205 | G36: =ROUND((SCH_E1!$K$123)/12,0) -> -58205 | H36: =ROUND((SCH_E1!$K$123)/12,0) -> -58205 | I36: =ROUND((SCH_E1!$K$123)/12,0) -> -58205 | J36: =ROUND((SCH_E1!$K$123)/12,0) -> -58205 | K36: =ROUND((SCH_E1!$K$123)/12,0) -> -58205 | L36: =ROUND((SCH_E1!$K$123)/12,0) -> -58205 | M36: =ROUND((SCH_E1!$K$123)/12,0) -> -58205 | N36: =ROUND((SCH_E1!$K$123)/12,0) -> -58205 | O36: =ROUND((SCH_E1!$K$123)/12,0) -> -58205 | P36: =ROUND((SCH_E1!$K$123)/12,0) -> -58205 | Q36: =ROUND((SCH_E1!$K$123)-SUM(F36:P36),0) -> -58200
A37: ='BASE PERIOD'!A40 -> 426509 | B37: ='BASE PERIOD'!B40 -> Loss on Sale of A/R | C37: ='BASE PERIOD'!C40 -> CO | D37: 426 | E37: 0 | F37: 0 | G37: 0 | H37: 0 | I37: 0 | J37: 0 | K37: 0 | L37: 0 | M37: 0 | N37: 0 | O37: 0 | P37: 0 | Q37: 0
A38: ='BASE PERIOD'!A41 -> 426591 | B38: ='BASE PERIOD'!B41 -> I/C - Loss on Sale of A/R | C38: ='BASE PERIOD'!C41 -> CO | D38: 426 | E38: 0 | F38: 0 | G38: 0 | H38: 0 | I38: 0 | J38: 0 | K38: 0 | L38: 0 | M38: 0 | N38: 0 | O38: 0 | P38: 0 | Q38: 0
A39: ='BASE PERIOD'!A42 -> 426891 | B39: ='BASE PERIOD'!B42 -> IC Sale of AR Fees VIE | C39: ='BASE PERIOD'!C42 -> CO | D39: 426 | E39: 0 | F39: 0 | G39: 0 | H39: 0 | I39: 0 | J39: 0 | K39: 0 | L39: 0 | M39: 0 | N39: 0 | O39: 0 | P39: 0 | Q39: 0
A40: 450100 | B40: Late Payment | C40: REV | D40: =VALUE(LEFT(A40,3)) -> 450 | E40: =SUM(F40:Q40) -> 358320 | F40: 41750 | G40: 55060 | H40: 54860 | I40: 40120 | J40: 29990 | K40: 17760 | L40: 25620 | M40: 20210 | N40: 24370 | O40: 15110 | P40: 11100 | Q40: 22370
A41: ='BASE PERIOD'!A44 -> 480000 | B41: ='BASE PERIOD'!B44 -> Residential Sales-Gas | C41: ='BASE PERIOD'!C44 -> REV | D41: 480 | E41: 99463711 | F41: 16423640 | G41: 16027087 | H41: 11745667 | I41: 7580228 | J41: 4712130 | K41: 4146292 | L41: 3838824 | M41: 3779329 | N41: 3703580 | O41: 4837575 | P41: 8378624 | Q41: 14290735
A42: ='BASE PERIOD'!A45 -> 480990 | B42: ='BASE PERIOD'!B45 -> Gas Residential Sales-Unbilled | C42: ='BASE PERIOD'!C45 -> REV | D42: 480 | E42: 342036 | F42: -1223292 | G42: -978040 | H42: -1877321 | I42: -1194595 | J42: -954131 | K42: -298728 | L42: -130908 | M42: 56346 | N42: 66947 | O42: 1946061 | P42: 1942505 | Q42: 2987192
A43: ='BASE PERIOD'!A46 -> 481000 | B43: ='BASE PERIOD'!B46 -> Industrial Sales-Gas | C43: ='BASE PERIOD'!C46 -> REV | D43: 481 | E43: 2278282 | F43: 446309 | G43: 425553 | H43: 307481 | I43: 167433 | J43: 84818 | K43: 49692 | L43: 57232 | M43: 63687 | N43: 56507 | O43: 70424 | P43: 179746 | Q43: 369400
A44: ='BASE PERIOD'!A47 -> 481090 | B44: ='BASE PERIOD'!B47 -> Gas Industrial Sales Unbilled | C44: ='BASE PERIOD'!C47 -> REV | D44: 481 | E44: -47429 | F44: -23616 | G44: -23118 | H44: -7696 | I44: -22053 | J44: -9637 | K44: -20081 | L44: -16296 | M44: -3563 | N44: 9697 | O44: -3355 | P44: 64205 | Q44: 8084
A45: ='BASE PERIOD'!A48 -> 481200 | B45: ='BASE PERIOD'!B48 -> Gas Commercial Sales | C45: ='BASE PERIOD'!C48 -> REV | D45: 481 | E45: 35995985 | F45: 6139936 | G45: 5834731 | H45: 4543040 | I45: 2461211 | J45: 1885233 | K45: 1374541 | L45: 1248894 | M45: 1256936 | N45: 1379088 | O45: 1487990 | P45: 2950527 | Q45: 5433858
A46: ='BASE PERIOD'!A49 -> 481290 | B46: ='BASE PERIOD'!B49 -> Gas Commercial Sales Unbilled | C46: ='BASE PERIOD'!C49 -> REV | D46: 481 | E46: -314892 | F46: -669023 | G46: -178105 | H46: -684681 | I46: -443500 | J46: -413463 | K46: -404796 | L46: -188463 | M46: 107914 | N46: -54419 | O46: 562548 | P46: 1353542 | Q46: 697554
A47: ='BASE PERIOD'!A50 -> 482000 | B47: ='BASE PERIOD'!B50 -> Other Sales to Public Auth-Gas | C47: ='BASE PERIOD'!C50 -> REV | D47: 482 | E47: 3130782 | F47: 536360 | G47: 489520 | H47: 346415 | I47: 205582 | J47: 175984 | K47: 151936 | L47: 128775 | M47: 97512 | N47: 123332 | O47: 187621 | P47: 250200 | Q47: 437545
A48: ='BASE PERIOD'!A51 -> 482090 | B48: ='BASE PERIOD'!B51 -> Gas OPA Unbilled | C48: ='BASE PERIOD'!C51 -> REV | D48: 482 | E48: -18097 | F48: -38208 | G48: -39019 | H48: -7263 | I48: -70204 | J48: -9817 | K48: -31275 | L48: -4821 | M48: 30603 | N48: -21763 | O48: 54456 | P48: 98251 | Q48: 20963
A49: ='BASE PERIOD'!A52 -> 482200 | B49: ='BASE PERIOD'!B52 -> Gas Public St Hwy Ltng | C49: ='BASE PERIOD'!C52 -> REV | D49: 482 | E49: 0 | F49: 0 | G49: 0 | H49: 0 | I49: 0 | J49: 0 | K49: 0 | L49: 0 | M49: 0 | N49: 0 | O49: 0 | P49: 0 | Q49: 0
A50: ='BASE PERIOD'!A53 -> 484000 | B50: ='BASE PERIOD'!B53 -> Interdepartmental Sales | C50: ='BASE PERIOD'!C53 -> REV | D50: 484 | E50: 49830 | F50: 6903 | G50: 5651 | H50: 3996 | I50: 2380 | J50: 1823 | K50: 2152 | L50: 2661 | M50: 2837 | N50: 2642 | O50: 5250 | P50: 6210 | Q50: 7325
A51: ='BASE PERIOD'!A54 -> 487001 | B51: ='BASE PERIOD'!B54 -> Discounts Earn/Lost-Gas | C51: ='BASE PERIOD'!C54 -> REV | D51: 487 | E51: 0 | F51: 0 | G51: 0 | H51: 0 | I51: 0 | J51: 0 | K51: 0 | L51: 0 | M51: 0 | N51: 0 | O51: 0 | P51: 0 | Q51: 0
A52: ='BASE PERIOD'!A55 -> 488000 | B52: ='BASE PERIOD'!B55 -> Misc Service Revenue-Gas | C52: ='BASE PERIOD'!C55 -> REV | D52: 488 | E52: 51996 | F52: 4333 | G52: 4333 | H52: 4333 | I52: 4333 | J52: 4333 | K52: 4333 | L52: 4333 | M52: 4333 | N52: 4333 | O52: 4333 | P52: 4333 | Q52: 4333
A53: ='BASE PERIOD'!A56 -> 488100 | B53: ='BASE PERIOD'!B56 -> IC Misc Svc Reg Gas Reg | C53: ='BASE PERIOD'!C56 -> REV | D53: 488 | E53: 0 | F53: 0 | G53: 0 | H53: 0 | I53: 0 | J53: 0 | K53: 0 | L53: 0 | M53: 0 | N53: 0 | O53: 0 | P53: 0 | Q53: 0
A54: ='BASE PERIOD'!A57 -> 489000 | B54: ='BASE PERIOD'!B57 -> Transp Gas of Others | C54: ='BASE PERIOD'!C57 -> REV | D54: 489 | E54: 6241197 | F54: 380787 | G54: 361806 | H54: 376169 | I54: 419199 | J54: 509773 | K54: 599080 | L54: 657643 | M54: 662633 | N54: 640179 | O54: 686232 | P54: 518115 | Q54: 429581
A55: ='BASE PERIOD'!A58 -> 489010 | B55: ='BASE PERIOD'!B58 -> IC Gas Transp Rev Reg | C55: ='BASE PERIOD'!C58 -> REV | D55: 489 | E55: 1795608 | F55: 149634 | G55: 149634 | H55: 149634 | I55: 149634 | J55: 149634 | K55: 149634 | L55: 149634 | M55: 149634 | N55: 149634 | O55: 149634 | P55: 149634 | Q55: 149634
A56: ='BASE PERIOD'!A59 -> 489020 | B56: ='BASE PERIOD'!B59 -> Comm Gas Transp Only | C56: ='BASE PERIOD'!C59 -> REV | D56: 489 | E56: 4211879 | F56: 463160 | G56: 404598 | H56: 393852 | I56: 281194 | J56: 286922 | K56: 286756 | L56: 304630 | M56: 308430 | N56: 317609 | O56: 335608 | P56: 393137 | Q56: 435983
A57: ='BASE PERIOD'!A60 -> 489025 | B57: ='BASE PERIOD'!B60 -> Comm Gas Transp Unbilled | C57: ='BASE PERIOD'!C60 -> REV | D57: =VALUE(LEFT(A57,3)) -> 489 | E57: =SUM(F57:Q57) -> 38255 | F57: -13523 | G57: -4901 | H57: -24538 | I57: -16170 | J57: -14810 | K57: -6965 | L57: 893 | M57: 6180 | N57: -6400 | O57: 32735 | P57: 55340 | Q57: 30414
A58: ='BASE PERIOD'!A61 -> 489030 | B58: ='BASE PERIOD'!B61 -> Indust Gas Transp Only | C58: ='BASE PERIOD'!C61 -> REV | D58: 489 | E58: 7688835 | F58: 688701 | G58: 601192 | H58: 608377 | I58: 548818 | J58: 575431 | K58: 637558 | L58: 658690 | M58: 699978 | N58: 670865 | O58: 715880 | P58: 663400 | Q58: 619945
A59: ='BASE PERIOD'!A62 -> 489035 | B59: ='BASE PERIOD'!B62 -> Indust Gas Transp Unbilled | C59: ='BASE PERIOD'!C62 -> REV | D59: 489 | E59: 34738 | F59: -16289 | G59: -20170 | H59: -10033 | I59: -41937 | J59: -10534 | K59: -1407 | L59: 2072 | M59: 11942 | N59: -5307 | O59: 49588 | P59: 70829 | Q59: 5984
A60: ='BASE PERIOD'!A63 -> 489040 | B60: ='BASE PERIOD'!B63 -> OPA Gas Transp Only | C60: ='BASE PERIOD'!C63 -> REV | D60: 489 | E60: 938056 | F60: 157349 | G60: 120191 | H60: 99547 | I60: 66321 | J60: 48059 | K60: 30031 | L60: 30282 | M60: 30031 | N60: 35619 | O60: 81707 | P60: 110710 | Q60: 128209
A61: ='BASE PERIOD'!A64 -> 489045 | B61: ='BASE PERIOD'!B64 -> OPA Gas Transp Unbilled | C61: ='BASE PERIOD'!C64 -> REV | D61: 489 | E61: 17549 | F61: -3025 | G61: -5776 | H61: -338 | I61: -12398 | J61: -762 | K61: -1048 | L61: 641 | M61: 2844 | N61: -2233 | O61: 11019 | P61: 22308 | Q61: 6317
A62: 489200 | B62: Transportation Fees | C62: ='BASE PERIOD'!C65 -> REV | D62: 489 | E62: 0 | F62: 0 | G62: 0 | H62: 0 | I62: 0 | J62: 0 | K62: 0 | L62: 0 | M62: 0 | N62: 0 | O62: 0 | P62: 0 | Q62: 0
A63: ='BASE PERIOD'!A66 -> 495031 | B63: ='BASE PERIOD'!B66 -> Gas Losses Damaged Lines | C63: ='BASE PERIOD'!C66 -> REV | D63: 495 | E63: 0 | F63: 0 | G63: 0 | H63: 0 | I63: 0 | J63: 0 | K63: 0 | L63: 0 | M63: 0 | N63: 0 | O63: 0 | P63: 0 | Q63: 0
A64: ='BASE PERIOD'!A67 -> 496020 | B64: ='BASE PERIOD'!B67 -> Provision for Rate Refund | C64: ='BASE PERIOD'!C67 -> REV | D64: 496 | E64: 0 | F64: 0 | G64: 0 | H64: 0 | I64: 0 | J64: 0 | K64: 0 | L64: 0 | M64: 0 | N64: 0 | O64: 0 | P64: 0 | Q64: 0
A65: ='BASE PERIOD'!A68 -> 711000 | B65: ='BASE PERIOD'!B68 -> Gas Boiler Labor | C65: ='BASE PERIOD'!C68 -> PO | D65: 711 | E65: 0 | F65: 0 | G65: 0 | H65: 0 | I65: 0 | J65: 0 | K65: 0 | L65: 0 | M65: 0 | N65: 0 | O65: 0 | P65: 0 | Q65: 0
A66: ='BASE PERIOD'!A69 -> 712000 | B66: ='BASE PERIOD'!B69 -> Gas Production-Other Power Ex | C66: ='BASE PERIOD'!C69 -> PO | D66: 712 | E66: 0 | F66: 0 | G66: 0 | H66: 0 | I66: 0 | J66: 0 | K66: 0 | L66: 0 | M66: 0 | N66: 0 | O66: 0 | P66: 0 | Q66: 0
A67: ='BASE PERIOD'!A70 -> 717000 | B67: ='BASE PERIOD'!B70 -> Liq Petro Gas Exp-Vapor Proc | C67: ='BASE PERIOD'!C70 -> PO | D67: 717 | E67: 0 | F67: 0 | G67: 0 | H67: 0 | I67: 0 | J67: 0 | K67: 0 | L67: 0 | M67: 0 | N67: 0 | O67: 0 | P67: 0 | Q67: 0
A68: ='BASE PERIOD'!A71 -> 728000 | B68: ='BASE PERIOD'!B71 -> Liquid Petroleum Gas | C68: ='BASE PERIOD'!C71 -> PO | D68: 728 | E68: 0 | F68: 0 | G68: 0 | H68: 0 | I68: 0 | J68: 0 | K68: 0 | L68: 0 | M68: 0 | N68: 0 | O68: 0 | P68: 0 | Q68: 0
A69: ='BASE PERIOD'!A72 -> 735000 | B69: ='BASE PERIOD'!B72 -> Gas Misc Production Exp | C69: ='BASE PERIOD'!C72 -> PO | D69: 735 | E69: 0 | F69: 0 | G69: 0 | H69: 0 | I69: 0 | J69: 0 | K69: 0 | L69: 0 | M69: 0 | N69: 0 | O69: 0 | P69: 0 | Q69: 0
A70: ='BASE PERIOD'!A73 -> 742000 | B70: ='BASE PERIOD'!B73 -> Maint Gas Production Equipment | C70: ='BASE PERIOD'!C73 -> PM | D70: 742 | E70: 0 | F70: 0 | G70: 0 | H70: 0 | I70: 0 | J70: 0 | K70: 0 | L70: 0 | M70: 0 | N70: 0 | O70: 0 | P70: 0 | Q70: 0
A71: ='BASE PERIOD'!A74 -> 801000 | B71: ='BASE PERIOD'!B74 -> Purchases Gas & NGL | C71: ='BASE PERIOD'!C74 -> Fuel | D71: 801 | E71: 63935036 | F71: 11313525 | G71: 10712063 | H71: 7136626 | I71: 3827461 | J71: 2438793 | K71: 2225462 | L71: 2133970 | M71: 2146285 | N71: 2093283 | O71: 3157944 | P71: 5931334 | Q71: 10818290
A72: ='BASE PERIOD'!A75 -> 801001 | B72: ='BASE PERIOD'!B75 -> Purchases Gas & NGL-Aff | C72: ='BASE PERIOD'!C75 -> Fuel | D72: 801 | E72: 0 | F72: 0 | G72: 0 | H72: 0 | I72: 0 | J72: 0 | K72: 0 | L72: 0 | M72: 0 | N72: 0 | O72: 0 | P72: 0 | Q72: 0
A73: ='BASE PERIOD'!A76 -> 804000 | B73: ='BASE PERIOD'!B76 -> Natural Gas City Gate Purchase | C73: ='BASE PERIOD'!C76 -> Fuel | D73: =VALUE(LEFT(A73,3)) -> 804 | E73: =SUM(F73:Q73) -> 0 | F73: 0 | G73: 0 | H73: 0 | I73: 0 | J73: 0 | K73: 0 | L73: 0 | M73: 0 | N73: 0 | O73: 0 | P73: 0 | Q73: 0
A74: ='BASE PERIOD'!A77 -> 805002 | B74: ='BASE PERIOD'!B77 -> Unrecovered Purchase Gas Adj | C74: ='BASE PERIOD'!C77 -> Fuel | D74: 805 | E74: 0 | F74: 0 | G74: 0 | H74: 0 | I74: 0 | J74: 0 | K74: 0 | L74: 0 | M74: 0 | N74: 0 | O74: 0 | P74: 0 | Q74: 0
A75: ='BASE PERIOD'!A78 -> 805003 | B75: ='BASE PERIOD'!B78 -> Purchase Gas Cost Unbilled Rev | C75: ='BASE PERIOD'!C78 -> Fuel | D75: 805 | E75: 2882 | F75: -1630555 | G75: -739558 | H75: -1543631 | I75: -933928 | J75: -811054 | K75: -664693 | L75: -356680 | M75: 129518 | N75: 42073 | O75: 1959720 | P75: 2381740 | Q75: 2169930
A76: ='BASE PERIOD'!A79 -> 807000 | B76: ='BASE PERIOD'!B79 -> Gas Purchased Expenses | C76: ='BASE PERIOD'!C79 -> PO | D76: 807 | E76: 609620 | F76: 49315 | G76: 48876 | H76: 51337 | I76: 50637 | J76: 54582 | K76: 50280 | L76: 50231 | M76: 50364 | N76: 50514 | O76: 52490 | P76: 50407 | Q76: 50587
A77: ='BASE PERIOD'!A80 -> 807100 | B77: ='BASE PERIOD'!B80 -> I/C Gas Purchased Expenses | C77: ='BASE PERIOD'!C80 -> PO | D77: 807 | E77: 0 | F77: 0 | G77: 0 | H77: 0 | I77: 0 | J77: 0 | K77: 0 | L77: 0 | M77: 0 | N77: 0 | O77: 0 | P77: 0 | Q77: 0
A78: ='BASE PERIOD'!A81 -> 850001 | B78: ='BASE PERIOD'!B81 -> Operation Supv & Eng-Tran | C78: ='BASE PERIOD'!C81 -> TO | D78: 850 | E78: 9236 | F78: 748 | G78: 748 | H78: 774 | I78: 774 | J78: 774 | K78: 774 | L78: 774 | M78: 774 | N78: 774 | O78: 774 | P78: 774 | Q78: 774
A79: ='BASE PERIOD'!A82 -> 856001 | B79: ='BASE PERIOD'!B82 -> Mains Expenses | C79: ='BASE PERIOD'!C82 -> TO | D79: =VALUE(LEFT(A79,3)) -> 856 | E79: =SUM(F79:Q79) -> 0 | F79: 0 | G79: 0 | H79: 0 | I79: 0 | J79: 0 | K79: 0 | L79: 0 | M79: 0 | N79: 0 | O79: 0 | P79: 0 | Q79: 0
A80: ='BASE PERIOD'!A83 -> 859000 | B80: ='BASE PERIOD'!B83 -> Other Expenses-Trans | C80: ='BASE PERIOD'!C83 -> TO | D80: =VALUE(LEFT(A80,3)) -> 859 | E80: =SUM(F80:Q80) -> 0 | F80: 0 | G80: 0 | H80: 0 | I80: 0 | J80: 0 | K80: 0 | L80: 0 | M80: 0 | N80: 0 | O80: 0 | P80: 0 | Q80: 0
A81: ='BASE PERIOD'!A84 -> 863000 | B81: ='BASE PERIOD'!B84 -> Transm-Maint of Mains | C81: ='BASE PERIOD'!C84 -> TM | D81: =VALUE(LEFT(A81,3)) -> 863 | E81: =SUM(F81:Q81) -> 248807 | F81: 12330 | G81: 11877 | H81: 14676 | I81: 49121 | J81: 53701 | K81: 18196 | L81: 14477 | M81: 22622 | N81: 15314 | O81: 11939 | P81: 11352 | Q81: 13202
A82: ='BASE PERIOD'!A85 -> 871000 | B82: ='BASE PERIOD'!B85 -> Distribution Load Dispatching | C82: ='BASE PERIOD'!C85 -> DO | D82: 871 | E82: 227854 | F82: 17631 | G82: 18010 | H82: 23654 | I82: 16640 | J82: 26158 | K82: 16684 | L82: 16662 | M82: 16703 | N82: 22256 | O82: 18166 | P82: 16720 | Q82: 18570
A83: ='BASE PERIOD'!A86 -> 874000 | B83: ='BASE PERIOD'!B86 -> Mains And Services | C83: ='BASE PERIOD'!C86 -> DO | D83: 874 | E83: 2769541 | F83: 161003 | G83: 174342 | H83: 193203 | I83: 243239 | J83: 286598 | K83: 290219 | L83: 276131 | M83: 275167 | N83: 229758 | O83: 255036 | P83: 194330 | Q83: 190515
A84: ='BASE PERIOD'!A87 -> 875000 | B84: ='BASE PERIOD'!B87 -> Measuring And Reg Stations-Ge | C84: ='BASE PERIOD'!C87 -> DO | D84: 875 | E84: 328776 | F84: 25155 | G84: 24721 | H84: 25681 | I84: 25185 | J84: 37827 | K84: 25306 | L84: 25252 | M84: 25350 | N84: 25475 | O84: 37866 | P84: 25390 | Q84: 25568
A85: ='BASE PERIOD'!A88 -> 876000 | B85: ='BASE PERIOD'!B88 -> Measuring & Reg Station-Indus | C85: ='BASE PERIOD'!C88 -> DO | D85: 876 | E85: 60597 | F85: 4577 | G85: 4553 | H85: 4727 | I85: 4655 | J85: 6993 | K85: 4671 | L85: 4663 | M85: 4678 | N85: 4697 | O85: 6997 | P85: 4684 | Q85: 4702
A86: ='BASE PERIOD'!A89 -> 878000 | B86: ='BASE PERIOD'!B89 -> Meter And House Regulator Exp | C86: ='BASE PERIOD'!C89 -> DO | D86: 878 | E86: 406443 | F86: 19901 | G86: 19727 | H86: 20031 | I86: 51108 | J86: 53300 | K86: 51342 | L86: 50206 | M86: 50415 | N86: 50684 | O86: 14934 | P86: 12888 | Q86: 11907
A87: ='BASE PERIOD'!A90 -> 879000 | B87: ='BASE PERIOD'!B90 -> Customer Installation Expense | C87: ='BASE PERIOD'!C90 -> DO | D87: 879 | E87: 1196991 | F87: 94007 | G87: 92773 | H87: 95663 | I87: 94146 | J87: 125925 | K87: 94514 | L87: 94350 | M87: 94647 | N87: 95029 | O87: 126040 | P87: 94769 | Q87: 95128
A88: ='BASE PERIOD'!A91 -> 880000 | B88: ='BASE PERIOD'!B91 -> Gas Distribution-Other Expense | C88: ='BASE PERIOD'!C91 -> DO | D88: 880 | E88: 2491980 | F88: 178082 | G88: 197095 | H88: 229801 | I88: 191584 | J88: 228289 | K88: 235448 | L88: 187929 | M88: 203931 | N88: 223911 | O88: 228137 | P88: 191908 | Q88: 195865
A89: ='BASE PERIOD'!A92 -> 887000 | B89: ='BASE PERIOD'!B92 -> Maintenance of Mains | C89: ='BASE PERIOD'!C92 -> DM | D89: 887 | E89: 944145 | F89: 69999 | G89: 70838 | H89: 70827 | I89: 71245 | J89: 102171 | K89: 70027 | L89: 108832 | M89: 70777 | N89: 75778 | O89: 95344 | P89: 68912 | Q89: 69395
A90: ='BASE PERIOD'!A93 -> 889000 | B90: ='BASE PERIOD'!B93 -> Maint-Meas/Reg Stn Equip-Gas | C90: ='BASE PERIOD'!C93 -> DM | D90: 889 | E90: 57793 | F90: 3642 | G90: 3628 | H90: 4817 | I90: 4776 | J90: 6089 | K90: 4785 | L90: 4781 | M90: 4789 | N90: 4800 | O90: 6091 | P90: 4792 | Q90: 4803
A91: ='BASE PERIOD'!A94 -> 892000 | B91: ='BASE PERIOD'!B94 -> Maintenance of Services | C91: ='BASE PERIOD'!C94 -> DM | D91: 892 | E91: 915428 | F91: 70072 | G91: 74824 | H91: 78574 | I91: 76942 | J91: 77263 | K91: 79347 | L91: 79168 | M91: 80034 | N91: 77827 | O91: 77323 | P91: 74447 | Q91: 69607
A92: ='BASE PERIOD'!A95 -> 893000 | B92: ='BASE PERIOD'!B95 -> Maint - Meters And House Reg | C92: ='BASE PERIOD'!C95 -> DM | D92: 893 | E92: 46618 | F92: 3552 | G92: 3501 | H92: 3635 | I92: 3577 | J92: 5375 | K92: 3591 | L92: 3585 | M92: 3596 | N92: 3611 | O92: 5379 | P92: 3601 | Q92: 3615
A93: ='BASE PERIOD'!A96 -> 894000 | B93: ='BASE PERIOD'!B96 -> Maint-Other Distribution Equip | C93: ='BASE PERIOD'!C96 -> DM | D93: 894 | E93: 36813 | F93: 2242 | G93: 1939 | H93: 2320 | I93: 2126 | J93: 7432 | K93: 2187 | L93: 2166 | M93: 2204 | N93: 2253 | O93: 7458 | P93: 2220 | Q93: 2266
A94: ='BASE PERIOD'!A97 -> 901000 | B94: ='BASE PERIOD'!B97 -> Supervision-Cust Accts | C94: ='BASE PERIOD'!C97 -> CO | D94: 901 | E94: 0 | F94: 0 | G94: 0 | H94: 0 | I94: 0 | J94: 0 | K94: 0 | L94: 0 | M94: 0 | N94: 0 | O94: 0 | P94: 0 | Q94: 0
A95: ='BASE PERIOD'!A98 -> 902000 | B95: ='BASE PERIOD'!B98 -> Meter Reading Expense | C95: ='BASE PERIOD'!C98 -> CO | D95: 902 | E95: 78374 | F95: 5862 | G95: 5862 | H95: 6030 | I95: 6062 | J95: 9093 | K95: 6062 | L95: 6062 | M95: 6062 | N95: 6062 | O95: 9093 | P95: 6062 | Q95: 6062
A96: ='BASE PERIOD'!A99 -> 903000 | B96: ='BASE PERIOD'!B99 -> Cust Records & Collection Exp | C96: ='BASE PERIOD'!C99 -> CO | D96: 903 | E96: =SUM(F96:Q96) -> 826684 | F96: 71746 | G96: 74611 | H96: 73526 | I96: 69328 | J96: 70706 | K96: 64724 | L96: 65514 | M96: 63724 | N96: 63914 | O96: 74379 | P96: 65557 | Q96: 68955
A97: ='BASE PERIOD'!A100 -> 903100 | B97: ='BASE PERIOD'!B100 -> Cust Contracts & Orders-Local | C97: ='BASE PERIOD'!C100 -> CO | D97: 903 | E97: 644146 | F97: 52115 | G97: 56837 | H97: 51858 | I97: 51254 | J97: 59112 | K97: 53628 | L97: 50346 | M97: 55584 | N97: 50167 | O97: 59571 | P97: 51839 | Q97: 51835
A98: ='BASE PERIOD'!A101 -> 903200 | B98: ='BASE PERIOD'!B101 -> Cust Billing & Acct | C98: ='BASE PERIOD'!C101 -> CO | D98: 903 | E98: 732483 | F98: 58935 | G98: 63367 | H98: 58934 | I98: 58351 | J98: 68343 | K98: 60620 | L98: 57514 | M98: 62469 | N98: 57345 | O98: 68777 | P98: 58926 | Q98: 58902
A99: ='BASE PERIOD'!A102 -> 903300 | B99: ='BASE PERIOD'!B102 -> Cust Collecting-Local | C99: ='BASE PERIOD'!C102 -> CO | D99: 903 | E99: 548299 | F99: 44231 | G99: 48341 | H99: 44251 | I99: 43626 | J99: 50511 | K99: 45466 | L99: 42980 | M99: 46944 | N99: 42847 | O99: 50859 | P99: 44110 | Q99: 44133
A100: ='BASE PERIOD'!A103 -> 903400 | B100: ='BASE PERIOD'!B103 -> Cust Receiv & Collect Exp-Edp | C100: ='BASE PERIOD'!C103 -> CO | D100: 903 | E100: 31388 | F100: 3209 | G100: 3646 | H100: 3744 | I100: 2233 | J100: 2341 | K100: 2304 | L100: 2304 | M100: 2304 | N100: 2304 | O100: 2341 | P100: 2329 | Q100: 2329
A101: ='BASE PERIOD'!A104 -> 903891 | B101: ='BASE PERIOD'!B104 -> IC Collection Agent Revenue | C101: ='BASE PERIOD'!C104 -> CO | D101: 903 | E101: 0 | F101: 0 | G101: 0 | H101: 0 | I101: 0 | J101: 0 | K101: 0 | L101: 0 | M101: 0 | N101: 0 | O101: 0 | P101: 0 | Q101: 0
A102: ='BASE PERIOD'!A105 -> 904000 | B102: ='BASE PERIOD'!B105 -> Uncollectible Accounts | C102: ='BASE PERIOD'!C105 -> CO | D102: =VALUE(LEFT(A102,3)) -> 904 | E102: =SUM(F102:Q102) -> 1578478 | F102: 105238 | G102: 118102 | H102: 122649 | I102: 139212 | J102: 167702 | K102: 168190 | L102: 163702 | M102: 161723 | N102: 98070 | O102: 148063 | P102: 117639 | Q102: 68188
A103: ='BASE PERIOD'!A106 -> 904001 | B103: ='BASE PERIOD'!B106 -> BAD DEBT EXPENSE | C103: ='BASE PERIOD'!C106 -> CO | D103: 904 | E103: 0 | F103: 0 | G103: 0 | H103: 0 | I103: 0 | J103: 0 | K103: 0 | L103: 0 | M103: 0 | N103: 0 | O103: 0 | P103: 0 | Q103: 0
A104: ='BASE PERIOD'!A107 -> 905000 | B104: ='BASE PERIOD'!B107 -> Misc Customer Accts Expenses | C104: ='BASE PERIOD'!C107 -> CO | D104: 905 | E104: 0 | F104: 0 | G104: 0 | H104: 0 | I104: 0 | J104: 0 | K104: 0 | L104: 0 | M104: 0 | N104: 0 | O104: 0 | P104: 0 | Q104: 0
A105: ='BASE PERIOD'!A108 -> 908000 | B105: ='BASE PERIOD'!B108 -> Cust Asst Exp-Conservation Programs - Rec | C105: ='BASE PERIOD'!C108 -> CSI | D105: =VALUE(LEFT(A105,3)) -> 908 | E105: =SUM(F105:Q105) -> 0 | F105: 0 | G105: 0 | H105: 0 | I105: 0 | J105: 0 | K105: 0 | L105: 0 | M105: 0 | N105: 0 | O105: 0 | P105: 0 | Q105: 0
A106: ='BASE PERIOD'!A109 -> 908160 | B106: ='BASE PERIOD'!B109 -> Cust Assist Exp-General | C106: ='BASE PERIOD'!C109 -> CSI | D106: 908 | E106: 246539 | F106: 19232 | G106: 20462 | H106: 21670 | I106: 20787 | J106: 19868 | K106: 21228 | L106: 20770 | M106: 18076 | N106: 22481 | O106: 25704 | P106: 18115 | Q106: 18146
A107: ='BASE PERIOD'!A110 -> 909650 | B107: ='BASE PERIOD'!B110 -> Misc Advertising Expenses | C107: ='BASE PERIOD'!C110 -> CSI | D107: 909 | E107: 0 | F107: 0 | G107: 0 | H107: 0 | I107: 0 | J107: 0 | K107: 0 | L107: 0 | M107: 0 | N107: 0 | O107: 0 | P107: 0 | Q107: 0
A108: ='BASE PERIOD'!A111 -> 910000 | B108: ='BASE PERIOD'!B111 -> Misc Cust Serv/Inform Exp | C108: ='BASE PERIOD'!C111 -> CSI | D108: 910 | E108: 439418 | F108: 38649 | G108: 33896 | H108: 35921 | I108: 39950 | J108: 37732 | K108: 35779 | L108: 36590 | M108: 35647 | N108: 35906 | O108: 37649 | P108: 35129 | Q108: 36570
A109: ='BASE PERIOD'!A112 -> 910100 | B109: ='BASE PERIOD'!B112 -> Exp-Rs Reg Prod/Svces-CstAccts | C109: ='BASE PERIOD'!C112 -> CSI | D109: 910 | E109: 130524 | F109: 9749 | G109: 9749 | H109: 9970 | I109: 9859 | J109: 9859 | K109: 10136 | L109: 9970 | M109: 10136 | N109: 10136 | O109: 13136 | P109: 14188 | Q109: 13636
A110: ='BASE PERIOD'!A113 -> 912000 | B110: ='BASE PERIOD'!B113 -> Demonstrating & Selling Exp | C110: ='BASE PERIOD'!C113 -> SE | D110: 912 | E110: 39630 | F110: 1115 | G110: 1115 | H110: 1115 | I110: 1115 | J110: 1115 | K110: 1115 | L110: 5490 | M110: 5490 | N110: 5490 | O110: 5490 | P110: 5490 | Q110: 5490
A111: ='BASE PERIOD'!A114 -> 913001 | B111: ='BASE PERIOD'!B114 -> Advertising Expense | C111: ='BASE PERIOD'!C114 -> SE | D111: 913 | E111: 676 | F111: 17 | G111: 17 | H111: 135 | I111: 17 | J111: 17 | K111: 135 | L111: 17 | M111: 17 | N111: 135 | O111: 17 | P111: 17 | Q111: 135
A112: ='BASE PERIOD'!A115 -> 920000 | B112: ='BASE PERIOD'!B115 -> A & G Salaries | C112: ='BASE PERIOD'!C115 -> AGO | D112: 920 | E112: 2619663 | F112: 199718 | G112: 197013 | H112: 266622 | I112: 219016 | J112: 224306 | K112: 181958 | L112: 218071 | M112: 218225 | N112: 264626 | O112: 224328 | P112: 218380 | Q112: 187400
A113: ='BASE PERIOD'!A116 -> 920100 | B113: ='BASE PERIOD'!B116 -> Salaries & Wages - Proj Supt - NCRC Rec | C113: ='BASE PERIOD'!C116 -> AGO | D113: =VALUE(LEFT(A113,3)) -> 920 | E113: =SUM(F113:Q113) -> 0 | F113: 0 | G113: 0 | H113: 0 | I113: 0 | J113: 0 | K113: 0 | L113: 0 | M113: 0 | N113: 0 | O113: 0 | P113: 0 | Q113: 0
A114: ='BASE PERIOD'!A117 -> 921100 | B114: ='BASE PERIOD'!B117 -> Employee Expenses | C114: ='BASE PERIOD'!C117 -> AGO | D114: 921 | E114: -69221 | F114: -5945 | G114: -6470 | H114: -2261 | I114: -5740 | J114: -6657 | K114: -5450 | L114: -6953 | M114: -6515 | N114: -5723 | O114: -5821 | P114: -5801 | Q114: -5885
A115: ='BASE PERIOD'!A118 -> 921110 | B115: ='BASE PERIOD'!B118 -> Relocation Expenses | C115: ='BASE PERIOD'!C118 -> AGO | D115: =VALUE(LEFT(A115,3)) -> 921 | E115: =SUM(F115:Q115) -> 0 | F115: 0 | G115: 0 | H115: 0 | I115: 0 | J115: 0 | K115: 0 | L115: 0 | M115: 0 | N115: 0 | O115: 0 | P115: 0 | Q115: 0
A116: ='BASE PERIOD'!A119 -> 921200 | B116: ='BASE PERIOD'!B119 -> Office Expenses | C116: ='BASE PERIOD'!C119 -> AGO | D116: 921 | E116: 329186 | F116: 24850 | G116: 28870 | H116: 26615 | I116: 28576 | J116: 29869 | K116: 28698 | L116: 26429 | M116: 27667 | N116: 28494 | O116: 29664 | P116: 24887 | Q116: 24567
A117: ='BASE PERIOD'!A120 -> 921300 | B117: ='BASE PERIOD'!B120 -> Telephone And Telegraph Exp | C117: ='BASE PERIOD'!C120 -> AGO | D117: 921 | E117: 0 | F117: 0 | G117: 0 | H117: 0 | I117: 0 | J117: 0 | K117: 0 | L117: 0 | M117: 0 | N117: 0 | O117: 0 | P117: 0 | Q117: 0
A118: ='BASE PERIOD'!A121 -> 921400 | B118: ='BASE PERIOD'!B121 -> Computer Services Expenses | C118: ='BASE PERIOD'!C121 -> AGO | D118: 921 | E118: 107444 | F118: 12928 | G118: 9977 | H118: 9212 | I118: 7886 | J118: 7438 | K118: 7592 | L118: 8703 | M118: 7609 | N118: 8566 | O118: 9209 | P118: 8770 | Q118: 9554
A119: ='BASE PERIOD'!A122 -> 921540 | B119: ='BASE PERIOD'!B122 -> Computer Rent (Go Only) | C119: ='BASE PERIOD'!C122 -> AGO | D119: 921 | E119: 175699 | F119: 13405 | G119: 15613 | H119: 14986 | I119: 14967 | J119: 13781 | K119: 14602 | L119: 12558 | M119: 14422 | N119: 16771 | O119: 15136 | P119: 13771 | Q119: 15687
A120: ='BASE PERIOD'!A123 -> 921600 | B120: ='BASE PERIOD'!B123 -> Other | C120: ='BASE PERIOD'!C123 -> AGO | D120: 921 | E120: 0 | F120: 0 | G120: 0 | H120: 0 | I120: 0 | J120: 0 | K120: 0 | L120: 0 | M120: 0 | N120: 0 | O120: 0 | P120: 0 | Q120: 0
A121: ='BASE PERIOD'!A124 -> 921980 | B121: ='BASE PERIOD'!B124 -> Office Supplies & Expenses | C121: ='BASE PERIOD'!C124 -> AGO | D121: 921 | E121: 1174662 | F121: 98460 | G121: 98460 | H121: 97991 | I121: 97991 | J121: 96907 | K121: 97991 | L121: 97991 | M121: 97991 | N121: 97991 | O121: 96907 | P121: 97991 | Q121: 97991
A122: ='BASE PERIOD'!A125 -> 923000 | B122: ='BASE PERIOD'!B125 -> Outside Services Employed | C122: ='BASE PERIOD'!C125 -> AGO | D122: 923 | E122: 742734 | F122: 200440 | G122: 43470 | H122: 49965 | I122: 55733 | J122: 41563 | K122: 46901 | L122: 53433 | M122: 39287 | N122: 52744 | O122: 56044 | P122: 51498 | Q122: 51656
A123: ='BASE PERIOD'!A126 -> 923980 | B123: ='BASE PERIOD'!B126 -> Outside Services Employee & | C123: ='BASE PERIOD'!C126 -> AGO | D123: 923 | E123: 66915 | F123: 7062 | G123: 5198 | H123: 5198 | I123: 5286 | J123: 5286 | K123: 5286 | L123: 6384 | M123: 6071 | N123: 5286 | O123: 5286 | P123: 5286 | Q123: 5286
A124: ='BASE PERIOD'!A127 -> 924000 | B124: ='BASE PERIOD'!B127 -> Property Insurance | C124: ='BASE PERIOD'!C127 -> AGO | D124: 924 | E124: -7496 | F124: -396 | G124: -462 | H124: -1343 | I124: -462 | J124: -462 | K124: -1343 | L124: 1044 | M124: -462 | N124: -1343 | O124: -462 | P124: -462 | Q124: -1343
A125: ='BASE PERIOD'!A128 -> 924050 | B125: ='BASE PERIOD'!B128 -> Inter-Co Prop Ins Exp | C125: ='BASE PERIOD'!C128 -> AGO | D125: 924 | E125: 1428 | F125: 119 | G125: 119 | H125: 119 | I125: 119 | J125: 119 | K125: 119 | L125: 119 | M125: 119 | N125: 119 | O125: 119 | P125: 119 | Q125: 119
A126: ='BASE PERIOD'!A129 -> 924980 | B126: ='BASE PERIOD'!B129 -> Property Insurance For Corp. | C126: ='BASE PERIOD'!C129 -> AGO | D126: =VALUE(LEFT(A126,3)) -> 924 | E126: 0 | F126: 0 | G126: 0 | H126: 0 | I126: 0 | J126: 0 | K126: 0 | L126: 0 | M126: 0 | N126: 0 | O126: 0 | P126: 0 | Q126: 0
A127: ='BASE PERIOD'!A130 -> 925000 | B127: ='BASE PERIOD'!B130 -> Injuries & Damages | C127: ='BASE PERIOD'!C130 -> AGO | D127: 925 | E127: 1392 | F127: 116 | G127: 116 | H127: 116 | I127: 116 | J127: 116 | K127: 116 | L127: 116 | M127: 116 | N127: 116 | O127: 116 | P127: 116 | Q127: 116
A128: ='BASE PERIOD'!A131 -> 925051 | B128: ='BASE PERIOD'!B131 -> INTER-CO GEN LIAB EXP | C128: ='BASE PERIOD'!C131 -> AGO | D128: 925 | E128: 235944 | F128: 19662 | G128: 19662 | H128: 19662 | I128: 19662 | J128: 19662 | K128: 19662 | L128: 19662 | M128: 19662 | N128: 19662 | O128: 19662 | P128: 19662 | Q128: 19662
A129: ='BASE PERIOD'!A132 -> 925052 | B129: ='BASE PERIOD'!B132 -> Inter-Co Worker Comp Insur Exp | C129: ='BASE PERIOD'!C132 -> AGO | D129: =VALUE(LEFT(A129,3)) -> 925 | E129: =SUM(F129:Q129) -> 1500 | F129: 125 | G129: 125 | H129: 125 | I129: 125 | J129: 125 | K129: 125 | L129: 125 | M129: 125 | N129: 125 | O129: 125 | P129: 125 | Q129: 125
A130: ='BASE PERIOD'!A133 -> 925100 | B130: ='BASE PERIOD'!B133 -> Accrued Inj and Damages | C130: ='BASE PERIOD'!C133 -> AGO | D130: 925 | E130: 0 | F130: 0 | G130: 0 | H130: 0 | I130: 0 | J130: 0 | K130: 0 | L130: 0 | M130: 0 | N130: 0 | O130: 0 | P130: 0 | Q130: 0
A131: ='BASE PERIOD'!A134 -> 925200 | B131: ='BASE PERIOD'!B134 -> Injuries And Damages-Other | C131: ='BASE PERIOD'!C134 -> AGO | D131: 925 | E131: 956 | F131: 78 | G131: 78 | H131: 80 | I131: 80 | J131: 80 | K131: 80 | L131: 80 | M131: 80 | N131: 80 | O131: 80 | P131: 80 | Q131: 80
A132: ='BASE PERIOD'!A135 -> 925300 | B132: ='BASE PERIOD'!B135 -> Environmental Inj & Damages | C132: ='BASE PERIOD'!C135 -> AGO | D132: 925 | E132: 0 | F132: 0 | G132: 0 | H132: 0 | I132: 0 | J132: 0 | K132: 0 | L132: 0 | M132: 0 | N132: 0 | O132: 0 | P132: 0 | Q132: 0
A133: ='BASE PERIOD'!A136 -> 925980 | B133: ='BASE PERIOD'!B136 -> Injuries And Damages For Corp. | C133: ='BASE PERIOD'!C136 -> AGO | D133: 925 | E133: 5460 | F133: 455 | G133: 455 | H133: 455 | I133: 455 | J133: 455 | K133: 455 | L133: 455 | M133: 455 | N133: 455 | O133: 455 | P133: 455 | Q133: 455
A134: ='BASE PERIOD'!A137 -> 926000 | B134: ='BASE PERIOD'!B137 -> EMPL PENSIONS AND BENEFITS | C134: ='BASE PERIOD'!C137 -> AGO | D134: 926 | E134: 1599009 | F134: 170009 | G134: 83461 | H134: 154024 | I134: 110478 | J134: 111401 | K134: 126828 | L134: 121965 | M134: 96036 | N134: 176968 | O134: 143619 | P134: 108834 | Q134: 195386
A135: ='BASE PERIOD'!A138 -> 926430 | B135: ='BASE PERIOD'!B138 -> Employees'Recreation Expense | C135: ='BASE PERIOD'!C138 -> AGO | D135: =VALUE(LEFT(A135,3)) -> 926 | E135: =SUM(F135:Q135) -> 4819 | F135: 0 | G135: 890 | H135: 0 | I135: 0 | J135: 0 | K135: 3929 | L135: 0 | M135: 0 | N135: 0 | O135: 0 | P135: 0 | Q135: 0
A136: ='BASE PERIOD'!A139 -> 926600 | B136: ='BASE PERIOD'!B139 -> Employee Benefits-Transferred | C136: ='BASE PERIOD'!C139 -> AGO | D136: 926 | E136: 520809 | F136: 48850 | G136: 40218 | H136: 43633 | I136: 42368 | J136: 38257 | K136: 43619 | L136: 44925 | M136: 44559 | N136: 46221 | O136: 44090 | P136: 42022 | Q136: 42047
A137: ='BASE PERIOD'!A140 -> 926999 | B137: ='BASE PERIOD'!B140 -> Non Serv Pension (ASU 2017-07) | C137: ='BASE PERIOD'!C140 -> AGO | D137: 926 | E137: 24732 | F137: 2061 | G137: 2061 | H137: 2061 | I137: 2061 | J137: 2061 | K137: 2061 | L137: 2061 | M137: 2061 | N137: 2061 | O137: 2061 | P137: 2061 | Q137: 2061
A138: ='BASE PERIOD'!A141 -> 928000 | B138: ='BASE PERIOD'!B141 -> Regulatory Expenses (Go) | C138: ='BASE PERIOD'!C141 -> AGO | D138: =VALUE(LEFT(A138,3)) -> 928 | E138: =SUM(F138:Q138) -> 180612 | F138: 15051 | G138: 15051 | H138: 15051 | I138: 15051 | J138: 15051 | K138: 15051 | L138: 15051 | M138: 15051 | N138: 15051 | O138: 15051 | P138: 15051 | Q138: 15051
A139: ='BASE PERIOD'!A142 -> 928006 | B139: ='BASE PERIOD'!B142 -> State Reg Comm Proceeding | C139: ='BASE PERIOD'!C142 -> AGO | D139: 928 | E139: 44940 | F139: 3745 | G139: 3745 | H139: 3745 | I139: 3745 | J139: 3745 | K139: 3745 | L139: 3745 | M139: 3745 | N139: 3745 | O139: 3745 | P139: 3745 | Q139: 3745
A140: ='BASE PERIOD'!A143 -> 929000 | B140: ='BASE PERIOD'!B143 -> Duplicate Chrgs-Enrgy To Exp | C140: ='BASE PERIOD'!C143 -> AGO | D140: =VALUE(LEFT(A140,3)) -> 929 | E140: =SUM(F140:Q140) -> 0 | F140: 0 | G140: 0 | H140: 0 | I140: 0 | J140: 0 | K140: 0 | L140: 0 | M140: 0 | N140: 0 | O140: 0 | P140: 0 | Q140: 0
A141: ='BASE PERIOD'!A144 -> 929500 | B141: ='BASE PERIOD'!B144 -> Admin Exp Transf | C141: ='BASE PERIOD'!C144 -> AGO | D141: 929 | E141: -556424 | F141: -50298 | G141: -41850 | H141: -42041 | I141: -42122 | J141: -60839 | K141: -42967 | L141: -42967 | M141: -42967 | N141: -42967 | O141: -61472 | P141: -42967 | Q141: -42967
A142: ='BASE PERIOD'!A145 -> 930150 | B142: ='BASE PERIOD'!B145 -> Miscellaneous Advertising Exp | C142: ='BASE PERIOD'!C145 -> AGO | D142: 930 | E142: 132902 | F142: 10860 | G142: 10859 | H142: 11608 | I142: 10870 | J142: 10868 | K142: 11455 | L142: 10868 | M142: 10868 | N142: 11455 | O142: 10868 | P142: 10868 | Q142: 11455
A143: ='BASE PERIOD'!A146 -> 930200 | B143: ='BASE PERIOD'!B146 -> Misc General Expenses | C143: ='BASE PERIOD'!C146 -> AGO | D143: 930 | E143: 265054 | F143: 63560 | G143: 38632 | H143: 24874 | I143: 15236 | J143: 17593 | K143: 15889 | L143: 14183 | M143: 15095 | N143: 15416 | O143: 15823 | P143: 14112 | Q143: 14641
A144: ='BASE PERIOD'!A147 -> 930220 | B144: ='BASE PERIOD'!B147 -> Exp Of Servicing Securities | C144: ='BASE PERIOD'!C147 -> AGO | D144: 930 | E144: 235 | F144: 235 | G144: 0 | H144: 0 | I144: 0 | J144: 0 | K144: 0 | L144: 0 | M144: 0 | N144: 0 | O144: 0 | P144: 0 | Q144: 0
A145: ='BASE PERIOD'!A148 -> 930230 | B145: ='BASE PERIOD'!B148 -> Dues To Various Organizations | C145: ='BASE PERIOD'!C148 -> AGO | D145: 930 | E145: 15252 | F145: 1184 | G145: 1061 | H145: 1278 | I145: 2065 | J145: 1043 | K145: 949 | L145: 949 | M145: 987 | N145: 1067 | O145: 1531 | P145: 1393 | Q145: 1745
A146: ='BASE PERIOD'!A149 -> 930240 | B146: ='BASE PERIOD'!B149 -> Director'S Expenses | C146: ='BASE PERIOD'!C149 -> AGO | D146: 930 | E146: 20868 | F146: 0 | G146: 0 | H146: 0 | I146: 2244 | J146: 11515 | K146: 0 | L146: 2244 | M146: 0 | N146: 0 | O146: 2550 | P146: 0 | Q146: 2315
A147: ='BASE PERIOD'!A150 -> 930250 | B147: ='BASE PERIOD'!B150 -> Buy\Sell Transf Employee Homes | C147: ='BASE PERIOD'!C150 -> AGO | D147: 930 | E147: 36 | F147: 1 | G147: 1 | H147: 4 | I147: 1 | J147: 1 | K147: 6 | L147: 3 | M147: 3 | N147: 5 | O147: 3 | P147: 3 | Q147: 5
A148: ='BASE PERIOD'!A151 -> 930700 | B148: ='BASE PERIOD'!B151 -> Research & Development | C148: ='BASE PERIOD'!C151 -> AGO | D148: 930 | E148: 0 | F148: 0 | G148: 0 | H148: 0 | I148: 0 | J148: 0 | K148: 0 | L148: 0 | M148: 0 | N148: 0 | O148: 0 | P148: 0 | Q148: 0
A149: ='BASE PERIOD'!A152 -> 930940 | B149: ='BASE PERIOD'!B152 -> General Expenses | C149: ='BASE PERIOD'!C152 -> AGO | D149: 930 | E149: 69460 | F149: 5788 | G149: 5788 | H149: 5789 | I149: 5788 | J149: 5788 | K149: 5789 | L149: 5788 | M149: 5788 | N149: 5789 | O149: 5788 | P149: 5788 | Q149: 5789
A150: ='BASE PERIOD'!A153 -> 931001 | B150: ='BASE PERIOD'!B153 -> Rents-A&G | C150: ='BASE PERIOD'!C153 -> AGO | D150: 931 | E150: 93984 | F150: 8683 | G150: 7104 | H150: 7258 | I150: 7116 | J150: 7236 | K150: 7310 | L150: 7776 | M150: 7108 | N150: 7434 | O150: 7312 | P150: 7368 | Q150: 12279
A151: ='BASE PERIOD'!A154 -> 931008 | B151: ='BASE PERIOD'!B154 -> A&G Rents-IC | C151: ='BASE PERIOD'!C154 -> AGO | D151: 931 | E151: 487800 | F151: 40650 | G151: 40650 | H151: 40650 | I151: 40650 | J151: 40650 | K151: 40650 | L151: 40650 | M151: 40650 | N151: 40650 | O151: 40650 | P151: 40650 | Q151: 40650
A152: ='BASE PERIOD'!A155 -> 932000 | B152: ='BASE PERIOD'!B155 -> Maintenance Of Gen Plant-Gas | C152: ='BASE PERIOD'!C155 -> AGO | D152: 932 | E152: 2909 | F152: 237 | G152: 218 | H152: 224 | I152: 221 | J152: 333 | K152: 223 | L152: 223 | M152: 224 | N152: 224 | O152: 334 | P152: 224 | Q152: 224
A153: ='BASE PERIOD'!A156 -> 935200 | B153: ='BASE PERIOD'!B156 -> Cust Infor & Computer Control | C153: ='BASE PERIOD'!C156 -> AGM | D153: =VALUE(LEFT(A153,3)) -> 935 | E153: =SUM(F153:Q153) -> 312 | F153: 26 | G153: 26 | H153: 26 | I153: 26 | J153: 26 | K153: 26 | L153: 26 | M153: 26 | N153: 26 | O153: 26 | P153: 26 | Q153: 26
A154: ='BASE PERIOD'!A157 -> 935250 | B154: ='BASE PERIOD'!B157 -> Maint-CompSoftware-GenPlnt | C154: ='BASE PERIOD'!C157 -> AGM | D154: 935 | E154: 0 | F154: 0 | G154: 0 | H154: 0 | I154: 0 | J154: 0 | K154: 0 | L154: 0 | M154: 0 | N154: 0 | O154: 0 | P154: 0 | Q154: 0
E155: =SUM(E13:E154) -> 289446942 | F155: 38387636 | G155: 38248023 | H155: 26872238 | I155: 18260569 | J155: 14141636 | K155: 13555578 | L155: 13858435 | M155: 14831064 | N155: 14553570 | O155: 21805388 | P155: 30696586 | Q155: 44236219
B158: Revenues | C158: REV | E158: =SUM(F158:Q158) -> 162256641 | F158: =SUMIF(CodeF,C158,Forecast1) -> 23451886 | G158: =SUMIF(CodeF,C158,Forecast2) -> 23230227 | H158: =SUMIF(CodeF,C158,Forecast3) -> 16021501 | I158: =SUMIF(CodeF,C158,forecast4) -> 10125596 | J158: =SUMIF(CodeF,C158,Forecast5) -> 7050976 | K158: =SUMIF(CodeF,C158,Forecast6) -> 6685465 | L158: =SUMIF(CodeF,C158,Forecast7) -> 6770336 | M158: =SUMIF(CodeF,C158,Forecast8) -> 7287816 | N158: =SUMIF(CodeF,C158,Forecast9) -> 7094280 | O158: =SUMIF(CodeF,C158,Forecast10) -> 11230416 | P158: =SUMIF(CodeF,C158,Forecast11) -> 17222716 | Q158: =SUMIF(CodeF,C158,Forecast12) -> 26085426
B159: OperatingExpenses
B160: Gas Purchased Expense | C160: Fuel | E160: =SUM(F160:Q160) -> 63937918 | F160: =SUMIF(CodeF,C160,Forecast1) -> 9682970 | G160: =SUMIF(CodeF,C160,Forecast2) -> 9972505 | H160: =SUMIF(CodeF,C160,Forecast3) -> 5592995 | I160: =SUMIF(CodeF,C160,forecast4) -> 2893533 | J160: =SUMIF(CodeF,C160,Forecast5) -> 1627739 | K160: =SUMIF(CodeF,C160,Forecast6) -> 1560769 | L160: =SUMIF(CodeF,C160,Forecast7) -> 1777290 | M160: =SUMIF(CodeF,C160,Forecast8) -> 2275803 | N160: =SUMIF(CodeF,C160,Forecast9) -> 2135356 | O160: =SUMIF(CodeF,C160,Forecast10) -> 5117664 | P160: =SUMIF(CodeF,C160,Forecast11) -> 8313074 | Q160: =SUMIF(CodeF,C160,Forecast12) -> 12988220
B162: Operation
B163: Production | C163: PO | E163: =SUM(F163:Q163) -> 609620 | F163: =SUMIF(CodeF,C163,Forecast1) -> 49315 | G163: =SUMIF(CodeF,C163,Forecast2) -> 48876 | H163: =SUMIF(CodeF,C163,Forecast3) -> 51337 | I163: =SUMIF(CodeF,C163,forecast4) -> 50637 | J163: =SUMIF(CodeF,C163,Forecast5) -> 54582 | K163: =SUMIF(CodeF,C163,Forecast6) -> 50280 | L163: =SUMIF(CodeF,C163,Forecast7) -> 50231 | M163: =SUMIF(CodeF,C163,Forecast8) -> 50364 | N163: =SUMIF(CodeF,C163,Forecast9) -> 50514 | O163: =SUMIF(CodeF,C163,Forecast10) -> 52490 | P163: =SUMIF(CodeF,C163,Forecast11) -> 50407 | Q163: =SUMIF(CodeF,C163,Forecast12) -> 50587
B164: Customer Accounts | C164: CO | E164: 4439852 | F164: 341336 | G164: 370766 | H164: 360992 | I164: 370066 | J164: 427808 | K164: 400994 | L164: 388422 | M164: 398810 | N164: 320709 | O164: 413083 | P164: 346462 | Q164: 300404
B165: Customer Service & Information | C165: CSI | E165: 816481 | F165: 67630 | G165: 64107 | H165: 67561 | I165: 70596 | J165: 67459 | K165: 67143 | L165: 67330 | M165: 63859 | N165: 68523 | O165: 76489 | P165: 67432 | Q165: 68352
B166: Sales Expense | C166: SE | E166: 40306 | F166: 1132 | G166: 1132 | H166: 1250 | I166: 1132 | J166: 1132 | K166: 1250 | L166: 5507 | M166: 5507 | N166: 5625 | O166: 5507 | P166: 5507 | Q166: 5625
B167: Transmission | C167: TO | E167: 9236 | F167: 748 | G167: 748 | H167: 774 | I167: 774 | J167: 774 | K167: 774 | L167: 774 | M167: 774 | N167: 774 | O167: 774 | P167: 774 | Q167: 774
B168: Distribution | C168: DO | E168: 7482182 | F168: 500356 | G168: 531221 | H168: 592760 | I168: 626557 | J168: 765090 | K168: 718184 | L168: 655193 | M168: 670891 | N168: 651810 | O168: 687176 | P168: 540689 | Q168: 542255
B169: A&G | C169: AGO | E169: 8293263 | F169: 891693 | G169: 620113 | H169: 755700 | I169: 659582 | J169: 637291 | K169: 631329 | L169: 665681 | M169: 624060 | N169: 771088 | O169: 682801 | P169: 644029 | Q169: 709896
B170: Other | C170: OTH | E170: 0 | F170: 0 | G170: 0 | H170: 0 | I170: 0 | J170: 0 | K170: 0 | L170: 0 | M170: 0 | N170: 0 | O170: 0 | P170: 0 | Q170: 0
B171: Maintenance
B172: Production | C172: PM | E172: =SUM(F172:Q172) -> 0 | F172: =SUMIF(CodeF,C172,Forecast1) -> 0 | G172: =SUMIF(CodeF,C172,Forecast2) -> 0 | H172: =SUMIF(CodeF,C172,Forecast3) -> 0 | I172: =SUMIF(CodeF,C172,forecast4) -> 0 | J172: =SUMIF(CodeF,C172,Forecast5) -> 0 | K172: =SUMIF(CodeF,C172,Forecast6) -> 0 | L172: =SUMIF(CodeF,C172,Forecast7) -> 0 | M172: =SUMIF(CodeF,C172,Forecast8) -> 0 | N172: =SUMIF(CodeF,C172,Forecast9) -> 0 | O172: =SUMIF(CodeF,C172,Forecast10) -> 0 | P172: =SUMIF(CodeF,C172,Forecast11) -> 0 | Q172: =SUMIF(CodeF,C172,Forecast12) -> 0
B173: Transmission | C173: TM | E173: =SUM(F173:Q173) -> 248807 | F173: =SUMIF(CodeF,C173,Forecast1) -> 12330 | G173: =SUMIF(CodeF,C173,Forecast2) -> 11877 | H173: =SUMIF(CodeF,C173,Forecast3) -> 14676 | I173: =SUMIF(CodeF,C173,forecast4) -> 49121 | J173: =SUMIF(CodeF,C173,Forecast5) -> 53701 | K173: =SUMIF(CodeF,C173,Forecast6) -> 18196 | L173: =SUMIF(CodeF,C173,Forecast7) -> 14477 | M173: =SUMIF(CodeF,C173,Forecast8) -> 22622 | N173: =SUMIF(CodeF,C173,Forecast9) -> 15314 | O173: =SUMIF(CodeF,C173,Forecast10) -> 11939 | P173: =SUMIF(CodeF,C173,Forecast11) -> 11352 | Q173: =SUMIF(CodeF,C173,Forecast12) -> 13202
B174: Distribution | C174: DM | E174: =SUM(F174:Q174) -> 2000797 | F174: =SUMIF(CodeF,C174,Forecast1) -> 149507 | G174: =SUMIF(CodeF,C174,Forecast2) -> 154730 | H174: =SUMIF(CodeF,C174,Forecast3) -> 160173 | I174: =SUMIF(CodeF,C174,forecast4) -> 158666 | J174: =SUMIF(CodeF,C174,Forecast5) -> 198330 | K174: =SUMIF(CodeF,C174,Forecast6) -> 159937 | L174: =SUMIF(CodeF,C174,Forecast7) -> 198532 | M174: =SUMIF(CodeF,C174,Forecast8) -> 161400 | N174: =SUMIF(CodeF,C174,Forecast9) -> 164269 | O174: =SUMIF(CodeF,C174,Forecast10) -> 191595 | P174: =SUMIF(CodeF,C174,Forecast11) -> 153972 | Q174: =SUMIF(CodeF,C174,Forecast12) -> 149686
B175: A&G | C175: AGM | E175: =SUM(F175:Q175) -> 312 | F175: =SUMIF(CodeF,C175,Forecast1) -> 26 | G175: =SUMIF(CodeF,C175,Forecast2) -> 26 | H175: =SUMIF(CodeF,C175,Forecast3) -> 26 | I175: =SUMIF(CodeF,C175,forecast4) -> 26 | J175: =SUMIF(CodeF,C175,Forecast5) -> 26 | K175: =SUMIF(CodeF,C175,Forecast6) -> 26 | L175: =SUMIF(CodeF,C175,Forecast7) -> 26 | M175: =SUMIF(CodeF,C175,Forecast8) -> 26 | N175: =SUMIF(CodeF,C175,Forecast9) -> 26 | O175: =SUMIF(CodeF,C175,Forecast10) -> 26 | P175: =SUMIF(CodeF,C175,Forecast11) -> 26 | Q175: =SUMIF(CodeF,C175,Forecast12) -> 26
B176: Operation & Maintenance Expense | E176: =SUM(E163:E170)+SUM(E172:E175) -> 23940856 | F176: =SUM(F163:F170)+SUM(F172:F175) -> 2014073 | G176: =SUM(G163:G170)+SUM(G172:G175) -> 1803596 | H176: 2005249 | I176: 1987157 | J176: 2206193 | K176: 2048113 | L176: 2046173 | M176: 1998313 | N176: 2048652 | O176: 2121880 | P176: 1820650 | Q176: 1840807
B177: Depreciation Expense | C177: DEPR | E177: =SUM(F177:Q177) -> 25098506 | F177: =SUMIF(CodeF,C177,Forecast1) -> 2054289 | G177: =SUMIF(CodeF,C177,Forecast2) -> 2057277 | H177: =SUMIF(CodeF,C177,Forecast3) -> 2068075 | I177: =SUMIF(CodeF,C177,forecast4) -> 2069865 | J177: =SUMIF(CodeF,C177,Forecast5) -> 2072310 | K177: =SUMIF(CodeF,C177,Forecast6) -> 2076813 | L177: =SUMIF(CodeF,C177,Forecast7) -> 2080218 | M177: =SUMIF(CodeF,C177,Forecast8) -> 2084714 | N177: =SUMIF(CodeF,C177,Forecast9) -> 2090864 | O177: =SUMIF(CodeF,C177,Forecast10) -> 2151010 | P177: =SUMIF(CodeF,C177,Forecast11) -> 2155728 | Q177: =SUMIF(CodeF,C177,Forecast12) -> 2137343
B178: Amortization of Deferred Expenses | C178: AMORT | E178: =SUM(F178:Q178) -> 0 | F178: =SUMIF(CodeF,C178,Forecast1) -> 0 | G178: =SUMIF(CodeF,C178,Forecast2) -> 0 | H178: =SUMIF(CodeF,C178,Forecast3) -> 0 | I178: =SUMIF(CodeF,C178,forecast4) -> 0 | J178: =SUMIF(CodeF,C178,Forecast5) -> 0 | K178: =SUMIF(CodeF,C178,Forecast6) -> 0 | L178: =SUMIF(CodeF,C178,Forecast7) -> 0 | M178: =SUMIF(CodeF,C178,Forecast8) -> 0 | N178: =SUMIF(CodeF,C178,Forecast9) -> 0 | O178: =SUMIF(CodeF,C178,Forecast10) -> 0 | P178: =SUMIF(CodeF,C178,Forecast11) -> 0 | Q178: =SUMIF(CodeF,C178,Forecast12) -> 0
B179: Taxes Other Than Income Taxes | C179: OTHTX | E179: =SUM(F179:Q179) -> 8700516 | F179: =SUMIF(CodeF,C179,Forecast1) -> 725043 | G179: =SUMIF(CodeF,C179,Forecast2) -> 725043 | H179: =SUMIF(CodeF,C179,Forecast3) -> 725043 | I179: =SUMIF(CodeF,C179,forecast4) -> 725043 | J179: =SUMIF(CodeF,C179,Forecast5) -> 725043 | K179: =SUMIF(CodeF,C179,Forecast6) -> 725043 | L179: =SUMIF(CodeF,C179,Forecast7) -> 725043 | M179: =SUMIF(CodeF,C179,Forecast8) -> 725043 | N179: =SUMIF(CodeF,C179,Forecast9) -> 725043 | O179: =SUMIF(CodeF,C179,Forecast10) -> 725043 | P179: =SUMIF(CodeF,C179,Forecast11) -> 725043 | Q179: =SUMIF(CodeF,C179,Forecast12) -> 725043
B180: Income Taxes | C180: FIT | E180: =SUM(F180:Q180) -> 5512505 | F180: =SUMIF(CodeF,C180,Forecast1) -> 459375 | G180: =SUMIF(CodeF,C180,Forecast2) -> 459375 | H180: =SUMIF(CodeF,C180,Forecast3) -> 459375 | I180: =SUMIF(CodeF,C180,forecast4) -> 459375 | J180: =SUMIF(CodeF,C180,Forecast5) -> 459375 | K180: =SUMIF(CodeF,C180,Forecast6) -> 459375 | L180: =SUMIF(CodeF,C180,Forecast7) -> 459375 | M180: =SUMIF(CodeF,C180,Forecast8) -> 459375 | N180: =SUMIF(CodeF,C180,Forecast9) -> 459375 | O180: =SUMIF(CodeF,C180,Forecast10) -> 459375 | P180: =SUMIF(CodeF,C180,Forecast11) -> 459375 | Q180: =SUMIF(CodeF,C180,Forecast12) -> 459380
B182: Operating Income | E182: =E158-E160-E161-E176-E177-E178-E179-E180 -> 35066340 | F182: 8516136 | G182: 8212431 | H182: 5170764 | I182: 1990623 | J182: -39684 | K182: -184648 | L182: -317763 | M182: -255432 | N182: -365010 | O182: 655444 | P182: 3748846 | Q182: 7934633
B184: Operating Income - Before Income Taxes | E184: =E182+E180 -> 40578845 | F184: =F182+F180 -> 8975511 | G184: 8671806 | H184: 5630139 | I184: 2449998 | J184: 419691 | K184: 274727 | L184: 141612 | M184: 203943 | N184: 94365 | O184: 1114819 | P184: 4208221 | Q184: 8394013

Sheet FP Rev by Product
A1: =COMPANY -> DUKE ENERGY KENTUCKY, INC.
A2: =CASE -> CASE NO. 2025-00125
A3: FORECASTED PERIOD REVENUES BY PRODUCT
A4: FORECASTED PERIOD
A6: =Data -> DATA: "X" BASE PERIOD FORECASTED PERIOD
A7: =Type -> TYPE OF FILING: "X" ORIGINAL UPDATED REVISED
A11: Account | B11: Description | C11: Code | D11: Product | E11: Product Desc. | F11: Total | G11: =LOGO!J7 -> 2026-01-31 | H11: =LOGO!J8 -> 2026-02-28 | I11: =LOGO!J9 -> 2026-03-31 | J11: =LOGO!J10 -> 2026-04-30 | K11: =LOGO!J11 -> 2026-05-31 | L11: =LOGO!J12 -> 2026-06-30 | M11: =LOGO!J13 -> 2026-07-31 | N11: =LOGO!J14 -> 2026-08-31 | O11: =LOGO!J15 -> 2026-09-30 | P11: =LOGO!J16 -> 2026-10-31 | Q11: =LOGO!J17 -> 2026-11-30 | R11: =LOGO!J18 -> 2026-12-31
A12: 450100 | B12: Late Payment | E12: NO VALUE | F12: =SUM(G12:R12) -> 358320 | G12: 41750 | H12: 55060 | I12: 54860 | J12: 40120 | K12: 29990 | L12: 17760 | M12: 25620 | N12: 20210 | O12: 24370 | P12: 15110 | Q12: 11100 | R12: 22370
A13: 480000 | B13: Residential Sales-Gas | D13: BOTHRV | E13: Other Base Gas | F13: =SUM(G13:R13) -> 33359708 | G13: 6911220 | H13: =6817966-1 -> 6817965 | I13: 5044261 | J13: 2848011 | K13: 1235726 | L13: =748259+1 -> 748260 | M13: 549692 | N13: 505336 | O13: =541297-1 -> 541296 | P13: 761397 | Q13: 2332905 | R13: =5063640-1 -> 5063639
A14: 480000 | B14: Residential Sales-Gas | D14: RCCHRG | E14: Fixed Customer Charge | F14: 19689218 | G14: 1636003 | H14: 1637206 | I14: 1638984 | J14: 1641879 | K14: 1639596 | L14: 1637906 | M14: 1637453 | N14: 1637754 | O14: 1638666 | P14: 1643546 | Q14: 1648024 | R14: 1652201
A15: 480000 | B15: Residential Sales-Gas | D15: RGDSM | E15: Demand Side Mgmt Gas | F15: 0 | G15: 0 | H15: 0 | I15: 0 | J15: 0 | K15: 0 | L15: 0 | M15: 0 | N15: 0 | O15: 0 | P15: 0 | Q15: 0 | R15: 0
A16: 480000 | B16: Residential Sales-Gas | D16: RGGCA | E16: Gas Cost Adjustment Clause | F16: 41153279 | G16: 7261641 | H16: 6936679 | I16: 4476745 | J16: 2530180 | K16: 1442301 | L16: 1434955 | M16: 1381875 | N16: 1385848 | O16: 1267955 | P16: 2136313 | Q16: 3913695 | R16: 6985092
A17: 480000 | B17: Residential Sales-Gas | D17: ROEASR | E17: Accelerated Service Replacemen | F17: 0 | G17: 0 | H17: 0 | I17: 0 | J17: 0 | K17: 0 | L17: 0 | M17: 0 | N17: 0 | O17: 0 | P17: 0 | Q17: 0 | R17: 0
A18: 480000 | B18: Residential Sales-Gas | D18: ROGPMM | E18: PMM Rider | F18: =SUM(G18:R18) -> 5261506 | G18: 614776 | H18: 635237 | I18: 585677 | J18: 560158 | K18: 394507 | L18: 325171 | M18: 269804 | N18: 250391 | O18: 255663 | P18: 296319 | Q18: 484000 | R18: 589803
A19: 480990 | B19: Gas Residential Sales-Unbilled | D19: UNBILL | E19: Unbill Total (inc base& rider) | F19: 342036 | G19: -1223292 | H19: -978040 | I19: -1877321 | J19: -1194595 | K19: -954131 | L19: -298728 | M19: -130908 | N19: 56346 | O19: 66947 | P19: 1946061 | Q19: 1942505 | R19: 2987192
A20: 481000 | B20: Industrial Sales-Gas | D20: BOTHRV | E20: Other Base Gas | F20: 686549 | G20: 153013 | H20: 147829 | I20: =112784+1 -> 112785 | J20: 57153 | K20: 22214 | L20: 8532 | M20: =8328+1 -> 8329 | N20: 8880 | O20: 8680 | P20: =10246-1 -> 10245 | Q20: =42933+1 -> 42934 | R20: 105955
A21: 481000 | B21: Industrial Sales-Gas | D21: RCCHRG | E21: Fixed Customer Charge | F21: 102339 | G21: 8883 | H21: 8593 | I21: 8479 | J21: 8569 | K21: 8507 | L21: 8500 | M21: 8615 | N21: 8555 | O21: 8353 | P21: 8380 | Q21: 8443 | R21: 8462
A22: 481000 | B22: Industrial Sales-Gas | D22: RGGCA | E22: Gas Cost Adjustment Clause | F22: 1326409 | G22: 262214 | H22: 246553 | I22: 164673 | J22: 83275 | K22: 42478 | L22: 26626 | M22: 33707 | N22: 39174 | O22: 32850 | P22: 45489 | Q22: 114241 | R22: 235129
A23: 481000 | B23: Industrial Sales-Gas | D23: ROEASR | E23: Accelerated Service Replacemen | F23: 0 | G23: 0 | H23: 0 | I23: 0 | J23: 0 | K23: 0 | L23: 0 | M23: 0 | N23: 0 | O23: 0 | P23: 0 | Q23: 0 | R23: 0
A24: 481000 | B24: Industrial Sales-Gas | D24: ROGPMM | E24: PMM Rider | F24: =SUM(G24:R24) -> 162985 | G24: 22199 | H24: 22578 | I24: 21544 | J24: 18436 | K24: 11619 | L24: 6034 | M24: 6581 | N24: 7078 | O24: 6624 | P24: 6310 | Q24: 14128 | R24: 19854
A25: 481090 | B25: Gas Industrial Sales Unbilled | D25: UNBILL | E25: Unbill Total (inc base& rider) | F25: -47429 | G25: -23616 | H25: -23118 | I25: -7696 | J25: -22053 | K25: -9637 | L25: -20081 | M25: -16296 | N25: -3563 | O25: 9697 | P25: -3355 | Q25: 64205 | R25: 8084
A26: 481200 | B26: Gas Commercial Sales | D26: BOTHRV | E26: Other Base Gas | F26: 9822278 | G26: 2026567 | H26: =1945542+1 -> 1945543 | I26: =1582385+1 -> 1582386 | J26: =763684+1 -> 763685 | K26: =451449+1 -> 451450 | L26: 215906 | M26: 157492 | N26: =149682-1 -> 149681 | O26: 189321 | P26: =190439+1 -> 190440 | Q26: =654718+1 -> 654719 | R26: =1495087+1 -> 1495088
A27: 481200 | B27: Gas Commercial Sales | D27: RCCHRG | E27: Fixed Customer Charge | F27: 4046612 | G27: 346492 | H27: 347212 | I27: 347996 | J27: 338431 | K27: 334404 | L27: 332205 | M27: 329528 | N27: 327656 | O27: 328822 | P27: 334836 | Q27: 338207 | R27: 340823
A28: 481200 | B28: Gas Commercial Sales | D28: RGDSM | E28: Demand Side Mgmt Gas | F28: 0 | G28: 0 | H28: 0 | I28: 0 | J28: 0 | K28: 0 | L28: 0 | M28: 0 | N28: 0 | O28: 0 | P28: 0 | Q28: 0 | R28: 0
A29: 481200 | B29: Gas Commercial Sales | D29: RGGCA | E29: Gas Cost Adjustment Clause | F29: 19597435 | G29: 3472862 | H29: 3244826 | I29: 2310397 | J29: 1112744 | K29: 863256 | L29: 673753 | M29: 637421 | N29: 660298 | O29: 716479 | P29: 845446 | Q29: 1742152 | R29: 3317801
A30: 481200 | B30: Gas Commercial Sales | D30: ROEASR | E30: Accelerated Service Replacemen | F30: 0 | G30: 0 | H30: 0 | I30: 0 | J30: 0 | K30: 0 | L30: 0 | M30: 0 | N30: 0 | O30: 0 | P30: 0 | Q30: 0 | R30: 0
A31: 481200 | B31: Gas Commercial Sales | D31: ROGPMM | E31: PMM Rider | F31: 2529660 | G31: 294015 | H31: 297150 | I31: 302261 | J31: 246351 | K31: 236123 | L31: 152677 | M31: 124453 | N31: 119301 | O31: 144466 | P31: 117268 | Q31: 215449 | R31: 280146
A32: 481290 | B32: Gas Commercial Sales Unbilled | D32: UNBILL | E32: Unbill Total (inc base& rider) | F32: -314892 | G32: -669023 | H32: -178105 | I32: -684681 | J32: -443500 | K32: -413463 | L32: -404796 | M32: -188463 | N32: 107914 | O32: -54419 | P32: 562548 | Q32: 1353542 | R32: 697554
A33: 482000 | B33: Other Sales to Public Auth-Gas | D33: BOTHRV | E33: Other Base Gas | F33: 884090 | G33: =182457-1 -> 182456 | H33: 168280 | I33: =125069-1 -> 125068 | J33: 68640 | K33: =46932+1 -> 46933 | L33: 28436 | M33: 19549 | N33: =13363-1 -> 13362 | O33: 19606 | P33: 28573 | Q33: 59041 | R33: 124146
A34: 482000 | B34: Other Sales to Public Auth-Gas | D34: RCCHRG | E34: Fixed Customer Charge | F34: 176336 | G34: 14763 | H34: 14875 | I34: 14847 | J34: 14787 | K34: 14761 | L34: 14655 | M34: 14657 | N34: 14550 | O34: 14568 | P34: 14607 | Q34: 14626 | R34: 14640
A35: 482000 | B35: Other Sales to Public Auth-Gas | D35: RGDSM | E35: Demand Side Mgmt Gas | F35: 0 | G35: 0 | H35: 0 | I35: 0 | J35: 0 | K35: 0 | L35: 0 | M35: 0 | N35: 0 | O35: 0 | P35: 0 | Q35: 0 | R35: 0
A36: 482000 | B36: Other Sales to Public Auth-Gas | D36: RGGCA | E36: Gas Cost Adjustment Clause | F36: 1826151 | G36: 312670 | H36: 280663 | I36: 182610 | J36: 100013 | K36: 89743 | L36: 88737 | M36: 79121 | N36: 58949 | O36: 74197 | P36: 126847 | Q36: 157104 | R36: 275497
A37: 482000 | B37: Other Sales to Public Auth-Gas | D37: ROEASR | E37: Accelerated Service Replacemen | F37: 0 | G37: 0 | H37: 0 | I37: 0 | J37: 0 | K37: 0 | L37: 0 | M37: 0 | N37: 0 | O37: 0 | P37: 0 | Q37: 0 | R37: 0
A38: 482000 | B38: Other Sales to Public Auth-Gas | D38: ROGPMM | E38: PMM Rider | F38: 244205 | G38: 26471 | H38: 25702 | I38: 23890 | J38: 22142 | K38: 24547 | L38: 20108 | M38: 15448 | N38: 10651 | O38: 14961 | P38: 17594 | Q38: 19429 | R38: 23262
A39: 482090 | B39: Gas OPA Unbilled | D39: UNBILL | E39: Unbill Total (inc base& rider) | F39: -18097 | G39: -38208 | H39: -39019 | I39: -7263 | J39: -70204 | K39: -9817 | L39: -31275 | M39: -4821 | N39: 30603 | O39: -21763 | P39: 54456 | Q39: 98251 | R39: 20963
A40: 482200 | B40: Gas Public St Hwy Ltng | D40: BOTHRV | E40: Other Base Gas | F40: 0 | G40: 0 | H40: 0 | I40: 0 | J40: 0 | K40: 0 | L40: 0 | M40: 0 | N40: 0 | O40: 0 | P40: 0 | Q40: 0 | R40: 0
A41: 482200 | B41: Gas Public St Hwy Ltng | D41: RCCHRG | E41: Fixed Customer Charge | F41: 0 | G41: 0 | H41: 0 | I41: 0 | J41: 0 | K41: 0 | L41: 0 | M41: 0 | N41: 0 | O41: 0 | P41: 0 | Q41: 0 | R41: 0
A42: 482200 | B42: Gas Public St Hwy Ltng | D42: RGGCA | E42: Gas Cost Adjustment Clause | F42: 0 | G42: 0 | H42: 0 | I42: 0 | J42: 0 | K42: 0 | L42: 0 | M42: 0 | N42: 0 | O42: 0 | P42: 0 | Q42: 0 | R42: 0
A43: 482200 | B43: Gas Public St Hwy Ltng | D43: ROEASR | E43: Accelerated Service Replacemen | F43: 0 | G43: 0 | H43: 0 | I43: 0 | J43: 0 | K43: 0 | L43: 0 | M43: 0 | N43: 0 | O43: 0 | P43: 0 | Q43: 0 | R43: 0
A44: 484000 | B44: Interdepartmental Sales | E44: NO VALUE | F44: 49830 | G44: 6903 | H44: 5651 | I44: 3996 | J44: 2380 | K44: 1823 | L44: 2152 | M44: 2661 | N44: 2837 | O44: 2642 | P44: 5250 | Q44: 6210 | R44: 7325
A45: 487001 | B45: Discounts Earn/Lost-Gas | E45: NO VALUE | F45: 0 | G45: 0 | H45: 0 | I45: 0 | J45: 0 | K45: 0 | L45: 0 | M45: 0 | N45: 0 | O45: 0 | P45: 0 | Q45: 0 | R45: 0
A46: 488000 | B46: Misc Service Revenue-Gas | E46: NO VALUE | F46: 51996 | G46: 4333 | H46: 4333 | I46: 4333 | J46: 4333 | K46: 4333 | L46: 4333 | M46: 4333 | N46: 4333 | O46: 4333 | P46: 4333 | Q46: 4333 | R46: 4333
A47: 488100 | B47: IC Misc Svc Reg Gas Reg | E47: NO VALUE | F47: 0 | G47: 0 | H47: 0 | I47: 0 | J47: 0 | K47: 0 | L47: 0 | M47: 0 | N47: 0 | O47: 0 | P47: 0 | Q47: 0 | R47: 0
A48: 489000 | B48: Transp Gas of Others | D48: BOTHRV | E48: Other Base Gas | F48: 2782693 | G48: 235087 | H48: 217247 | I48: 214399 | J48: 205472 | K48: 207842 | L48: =214070-1 -> 214069 | M48: 226406 | N48: 227468 | O48: =223045-1 -> 223044 | P48: =281196-1 -> 281195 | Q48: 272082 | R48: =258381+1 -> 258382
A49: 489000 | B49: Transp Gas of Others | D49: RCCHRG | E49: Fixed Customer Charge | F49: 96827 | G49: 8382 | H49: 8179 | I49: 8278 | J49: 7973 | K49: 8076 | L49: 7973 | M49: 8085 | N49: 8085 | O49: 8189 | P49: 8189 | Q49: 7422 | R49: 7996
A50: 489000 | B50: Transp Gas of Others | D50: ROGPMM | E50: PMM Rider | F50: 2557281 | G50: 70285 | H50: 69347 | I50: 86459 | J50: 138721 | K50: 226822 | L50: 310005 | M50: 356119 | N50: 360047 | O50: 341913 | P50: 329815 | Q50: 171578 | R50: 96170
A51: 489000 | B51: Transp Gas of Others | E51: NO VALUE | F51: 804396 | G51: =216667-149634 -> 67033 | H51: =216667-149634 -> 67033 | I51: 67033 | J51: 67033 | K51: 67033 | L51: 67033 | M51: 67033 | N51: 67033 | O51: 67033 | P51: 67033 | Q51: 67033 | R51: 67033
A52: 489010 | B52: IC Gas Transp Rev Reg | E52: NO VALUE | F52: =SUM(G52:R52) -> 1795608 | G52: 149634 | H52: 149634 | I52: 149634 | J52: 149634 | K52: 149634 | L52: 149634 | M52: 149634 | N52: 149634 | O52: 149634 | P52: 149634 | Q52: 149634 | R52: 149634
A53: 489020 | B53: Comm Gas Transp Only | D53: BFTARV | E53: Firm Transportation agree Gas | F53: 2591965 | G53: 363515 | H53: 311644 | I53: 289944 | J53: =176280-1 -> 176279 | K53: 151665 | L53: 132669 | M53: =134856-1 -> 134855 | N53: 136232 | O53: 143504 | P53: =170126-1 -> 170125 | Q53: =254885-1 -> 254884 | R53: 326649
A54: 489020 | B54: Comm Gas Transp Only | D54: RCCHRG | E54: Fixed Customer Charge | F54: 320887 | G54: 27678 | H54: 27688 | I54: 27706 | J54: 26906 | K54: 26549 | L54: 26342 | M54: 26100 | N54: 25924 | O54: 25991 | P54: 26443 | Q54: 26687 | R54: 26873
A55: 489020 | B55: Comm Gas Transp Only | D55: RGGCA | E55: Gas Cost Adjustment Clause | F55: 0 | G55: 0 | H55: 0 | I55: 0 | J55: 0 | K55: 0 | L55: 0 | M55: 0 | N55: 0 | O55: 0 | P55: 0 | Q55: 0 | R55: 0
A56: 489020 | B56: Comm Gas Transp Only | D56: ROEASR | E56: Accelerated Service Replacemen | F56: 0 | G56: 0 | H56: 0 | I56: 0 | J56: 0 | K56: 0 | L56: 0 | M56: 0 | N56: 0 | O56: 0 | P56: 0 | Q56: 0 | R56: 0
A57: 489020 | B57: Comm Gas Transp Only | D57: ROGPMM | E57: PMM Rider | F57: 1299027 | G57: 71967 | H57: 65266 | I57: 76202 | J57: 78009 | K57: 108708 | L57: 127745 | M57: 143675 | N57: 146274 | O57: 148114 | P57: 139040 | Q57: 111566 | R57: 82461
A58: 489025 | B58: Comm Gas Transp Unbilled | D58: UNBILL | E58: Unbill Total (inc base& rider) | F58: 38255 | G58: -13523 | H58: -4901 | I58: -24538 | J58: -16170 | K58: -14810 | L58: -6965 | M58: 893 | N58: 6180 | O58: -6400 | P58: 32735 | Q58: 55340 | R58: 30414
A59: 489030 | B59: Indust Gas Transp Only | D59: BFTARV | E59: Firm Transportation agree Gas | F59: 5003371 | G59: 565275 | H59: 488732 | I59: 476391 | J59: 382642 | K59: =346139+1 -> 346140 | L59: =341487-1 -> 341486 | M59: 337436 | N59: 356301 | O59: 348370 | P59: =407623-1 -> 407622 | Q59: 463728 | R59: =489247+1 -> 489248
A60: 489030 | B60: Indust Gas Transp Only | D60: RCCHRG | E60: Fixed Customer Charge | F60: 260277 | G60: 22692 | H60: 21930 | I60: 21621 | J60: 21829 | K60: 21655 | L60: 21620 | M60: 21897 | N60: 21729 | O60: 21201 | P60: 21257 | Q60: 21405 | R60: 21441
A61: 489030 | B61: Indust Gas Transp Only | D61: ROEASR | E61: Accelerated Service Replacemen | F61: 0 | G61: 0 | H61: 0 | I61: 0 | J61: 0 | K61: 0 | L61: 0 | M61: 0 | N61: 0 | O61: 0 | P61: 0 | Q61: 0 | R61: 0
A62: 489030 | B62: Indust Gas Transp Only | D62: ROGPMM | E62: PMM Rider | F62: 2425187 | G62: 100734 | H62: 90530 | I62: 110365 | J62: 144347 | K62: 207636 | L62: 274452 | M62: 299357 | N62: 321948 | O62: 301294 | P62: 287001 | Q62: 178267 | R62: 109256
A63: 489030 | B63: Indust Gas Transp Only | D63: AMZMU | E63: Amazon Minimum Use | F63: 0 | G63: 0 | H63: 0 | I63: 0 | J63: 0 | K63: 0 | L63: 0 | M63: 0 | N63: 0 | O63: 0 | P63: 0 | Q63: 0 | R63: 0
A64: 489035 | B64: Indust Gas Transp Unbilled | D64: UNBILL | E64: Unbill Total (inc base& rider) | F64: 34738 | G64: -16289 | H64: -20170 | I64: -10033 | J64: -41937 | K64: -10534 | L64: -1407 | M64: 2072 | N64: 11942 | O64: -5307 | P64: 49588 | Q64: 70829 | R64: 5984
A65: 489040 | B65: OPA Gas Transp Only | D65: BFTARV | E65: Firm Transportation agree Gas | F65: 562195 | G65: 119529 | H65: 87606 | I65: 67641 | J65: =36205-1 -> 36204 | K65: 19842 | L65: =8263+1 -> 8264 | M65: =8134-1 -> 8133 | N65: 7832 | O65: =10721-1 -> 10720 | P65: 37420 | Q65: =67473-1 -> 67472 | R65: 91532
A66: 489040 | B66: OPA Gas Transp Only | D66: RCCHRG | E66: Fixed Customer Charge | F66: 166510 | G66: 14156 | H66: 14238 | I66: 14129 | J66: 14095 | K66: 13995 | L66: 13811 | M66: 13483 | N66: 13790 | O66: 13834 | P66: 13705 | Q66: 13704 | R66: 13570
A67: 489040 | B67: OPA Gas Transp Only | D67: ROEASR | E67: Accelerated Service Replacemen | F67: 0 | G67: 0 | H67: 0 | I67: 0 | J67: 0 | K67: 0 | L67: 0 | M67: 0 | N67: 0 | O67: 0 | P67: 0 | Q67: 0 | R67: 0
A68: 489040 | B68: OPA Gas Transp Only | D68: ROGPMM | E68: PMM Rider | F68: 209351 | G68: 23664 | H68: 18347 | I68: 17777 | J68: 16022 | K68: 14222 | L68: 7956 | M68: 8666 | N68: 8409 | O68: 11065 | P68: 30582 | Q68: 29534 | R68: 23107
A69: 489045 | B69: OPA Gas Transp Unbilled | D69: UNBILL | E69: Unbill Total (inc base& rider) | F69: 17549 | G69: -3025 | H69: -5776 | I69: -338 | J69: -12398 | K69: -762 | L69: -1048 | M69: 641 | N69: 2844 | O69: -2233 | P69: 11019 | Q69: 22308 | R69: 6317
A70: 489200 | B70: Transportation Fees | E70: NO VALUE | F70: 0 | G70: 0 | H70: 0 | I70: 0 | J70: 0 | K70: 0 | L70: 0 | M70: 0 | N70: 0 | O70: 0 | P70: 0 | Q70: 0 | R70: 0
A71: 493010 | B71: Rent from Gas Properties - I/C | E71: NO VALUE | F71: 0 | G71: 0 | H71: 0 | I71: 0 | J71: 0 | K71: 0 | L71: 0 | M71: 0 | N71: 0 | O71: 0 | P71: 0 | Q71: 0 | R71: 0
A72: 495031 | B72: Gas Losses Damaged Lines | E72: NO VALUE | F72: 0 | G72: 0 | H72: 0 | I72: 0 | J72: 0 | K72: 0 | L72: 0 | M72: 0 | N72: 0 | O72: 0 | P72: 0 | Q72: 0 | R72: 0
A73: 495031 | B73: Gas Losses Damaged Lines | D73: PDREV | E73: PD Revenue | F73: 0 | G73: 0 | H73: 0 | I73: 0 | J73: 0 | K73: 0 | L73: 0 | M73: 0 | N73: 0 | O73: 0 | P73: 0 | Q73: 0 | R73: 0
A74: 496020 | B74: Provision for rate refund - Ta | E74: NO VALUE | F74: 0 | G74: 0 | H74: 0 | I74: 0 | J74: 0 | K74: 0 | L74: 0 | M74: 0 | N74: 0 | O74: 0 | P74: 0 | Q74: 0 | R74: 0
G76: =SUM(FPRev1) -> 23451886 | H76: =SUM(FPRev2) -> 23230227 | I76: =SUM(FPRev3) -> 16021501 | J76: =SUM(FPRev4) -> 10125596 | K76: =SUM(FPRev5) -> 7050976 | L76: =SUM(FPRev6) -> 6685465 | M76: =SUM(FPrev7) -> 6770336 | N76: =SUM(FPRev8) -> 7287816 | O76: =SUM(FPrev9) -> 7094280 | P76: =SUM(FPrev10) -> 11230416 | Q76: =SUM(FPRev11) -> 17222716 | R76: =SUM(FPRev12) -> 26085426
F78: FP Tab | G78: ='FORECASTED PERIOD'!F158 -> 23451886 | H78: ='FORECASTED PERIOD'!G158 -> 23230227 | I78: ='FORECASTED PERIOD'!H158 -> 16021501 | J78: ='FORECASTED PERIOD'!I158 -> 10125596 | K78: ='FORECASTED PERIOD'!J158 -> 7050976 | L78: ='FORECASTED PERIOD'!K158 -> 6685465 | M78: ='FORECASTED PERIOD'!L158 -> 6770336 | N78: ='FORECASTED PERIOD'!M158 -> 7287816 | O78: ='FORECASTED PERIOD'!N158 -> 7094280 | P78: ='FORECASTED PERIOD'!O158 -> 11230416 | Q78: ='FORECASTED PERIOD'!P158 -> 17222716 | R78: ='FORECASTED PERIOD'!Q158 -> 26085426
G79: =G76-G78 -> 0 | H79: =H76-H78 -> 0 | I79: 0 | J79: 0 | K79: 0 | L79: 0 | M79: 0 | N79: 0 | O79: 0 | P79: 0 | Q79: 0 | R79: 0

Sheet SCH_A Rate Base
A1: =COMPANY -> DUKE ENERGY KENTUCKY, INC.
A2: =CASE -> CASE NO. 2025-00125
A3: OVERALL FINANCIAL SUMMARY
A4: =PERIOD -> FOR THE TWELVE MONTHS ENDED AUGUST 31, 2025
A5: =PeriodF -> FOR THE TWELVE MONTHS ENDED DECEMBER 31, 2026
A7: =DataB -> DATA: "X" BASE PERIOD "X" FORECASTED PERIOD | H7: SCHEDULE A
A8: =Type -> TYPE OF FILING: "X" ORIGINAL UPDATED REVISED | H8: PAGE 1 OF 1
A9: WORK PAPER REFERENCE NO(S).: SEE BELOW | H9: WITNESS RESPONSIBLE:
H10: =_WIT1 -> J. P. BROWN
E12: SUPPORTING | G12: JURISDICTIONAL REVENUE REQUIREMENTS
A13: LINE | E13: SCHEDULE | G13: BASE | I13: FORECASTED
A14: NO. | C14: DESCRIPTION | E14: REFERENCE | G14: PERIOD | I14: PERIOD
A17: 1 | C17: Rate Base | E17: B-1 | G17: =SCH_B1!G42 -> 546809466 | I17: =IF(('SCH_C2.1 - Forecasted Period'!J302+'SCH_C2.1 - Forecasted Period'!J315)=(SCH_E1!K107+SCH_E1!K130),SCH_B1!I42,"BALANCE FP TAXES TO SCH. E") -> 553831292
A19: 2 | C19: Operating Income | E19: C-2 | G19: =SCH_C2!E62 -> 37621046 | I19: =IF(SCH_D1_ERROR_CHECK="",SCH_C2!N62,"ERROR") -> 24688319
A21: 3 | C21: Earned Rate of Return (Line 2 / Line 1) | G21: =ROUND(G19/G17,4) -> 0.0688 | I21: =ROUND(I19/I17,4) -> 0.0446
A23: 4 | C23: Required Rate of Return | E23: J-1 | G23: ='SCH_J1 - Base'!M20 -> 0.07984 | I23: ='SCH_J1 - Forecast'!M21 -> 0.08011
A25: 5 | C25: Required Operating Income (Line 1 x Line 4) | G25: =ROUND(G17*G23,0) -> 43657268 | I25: =ROUND(I17*I23,0) -> 44367425
A27: 6 | C27: Operating Income Deficiency (Line 5 - Line 2) | G27: =G25-G19 -> 6036222 | I27: =I25-I19 -> 19679106
A29: 7 | C29: Gross Revenue Conversion Factor | E29: H | G29: =GROSS_REVENUE_CONVERSION_FACTOR -> 1.340885 | I29: =SCH_H!$I$72 -> 1.340885
A31: 8 | C31: Revenue Deficiency (Line 6 x Line 7) | G31: =ROUND(G29*G27,0) -> 8093880 | I31: =ROUND(I29*I27,0) -> 26387418
A33: 9 | C33: Revenue Increase Requested | E33: C-1 | G33: N/A | I33: =MINCR -> 26387365
A35: 10 | C35: Adjusted Operating Revenues | E35: C-1 | G35: N/A | I35: =SCH_C1!E17 -> 145211880
A37: 11 | C37: Revenue Requirements (Line 9 + Line 10) | G37: N/A | I37: =I33+I35 -> 171599245
C40: Increase Requested to be Collected | I40: =I33 -> 26387365
C42: Adjusted Operating Revenue - Including Fuel | I42: =I35 -> 145211880
C44: Percent Increase Requested | I44: =ROUND(I40/I42,4) -> 0.1817
C48: Revenue Requirement Calculation | E48: Source | G48: Amount
C49: Return | E49: Schedule A | G49: =I25 -> 44367425
C50: O&M Expense | E50: Schedule C-1 | G50: =SCH_C1!I20 -> 85717248
C51: Depreciation | E51: Schedule C-1 | G51: =SCH_C1!I21 -> 26963557
C52: Other Taxes | E52: Schedule C-1 | G52: =SCH_C1!I22 -> 5323783
C53: Federal Income Taxes | E53: Schedule C-1 | G53: =SCH_C1!I26 -> 7394054
C54: State Income Taxes | E54: Schedule C-1 | G54: =SCH_C1!I25 -> 1833224
C55: Revenue Requirement | G55: =SUM(G49:G54) -> 171599291
C56: Current Revenue | E56: Schedule C-2 | G56: =SCH_C1!E17 -> 145211880
C57: Revenue Increase Requested | G57: =G55-G56 -> 26387411
C59: Note: Both the revenue requirement and current revenue get adjusted to reflect revenue credits.

Sheet SCH_B1
A1: =COMPANY -> DUKE ENERGY KENTUCKY, INC.
A2: =CASE -> CASE NO. 2025-00125
A3: JURISDICTIONAL RATE BASE SUMMARY
A4: ="AS OF " &RIGHT(TESTYR,(LEN(TESTYR)-16)) -> AS OF AUGUST 31, 2025
A5: ="AS OF " &RIGHT(Forecast,(LEN(Forecast)-16)) -> AS OF DECEMBER 31, 2026
A7: =DataB -> DATA: "X" BASE PERIOD "X" FORECASTED PERIOD | I7: SCHEDULE B-1
A8: =Type -> TYPE OF FILING: "X" ORIGINAL UPDATED REVISED | I8: PAGE 1 OF 1
A9: WORK PAPER REFERENCE NO(S).: SEE BELOW, WPB-1a | I9: WITNESS RESPONSIBLE:
I10: =_WIT1 -> J. P. BROWN
E13: SUPPORTING | I13: 13 MONTH AVG.
A14: LINE | E14: SCHEDULE | G14: BASE | I14: FORECASTED
A15: NO. | C15: RATE BASE COMPONENT | E15: REFERENCE | G15: PERIOD | I15: PERIOD
A18: 1 | C18: Adjusted Jurisdictional Plant in Service | E18: B-2 | G18: =ROUND('SCH B-2'!G40,0) -> 901535332 | I18: =ROUND('SCH B-2'!G86,0) -> 925424402
A20: 2 | C20: Accumulated Depreciation and Amortization | E20: B-3 / B-3.2 | G20: =-ROUND('SCH B-3'!K197,0) -> -238499918 | I20: =-ROUND('SCH B-3.2 - Proposed Rate'!H205+(ROUND(SCH_D2.24!J27*0.5,0)),0)+SCH_B1!S64+SCH_B1!S65 -> -252827972 | J20: -1
A22: 3 | C22: Net Plant in Service (Line 1 + Line 2) | G22: =G18+G20 -> 663035414 | I22: =PLANT_IN_SERVICE+I20 -> 672596430 | K22: Sch B-3 | L22: =-'SCH B-3'!K398 -> -250897996
K23: D-2.24 | L23: =-ROUND(SCH_D2.24!J27*0.5,0) -> -932526
A24: 4 | C24: Construction Work in Progress | E24: (2) | G24: 0 | I24: 0 | K24: WPB-1a | L24: =S64+S65 -> -997450
L25: =SUM(L22:L24) -> -252827972
A26: 5 | C26: Cash Working Capital Allowance | E26: (3) | G26: =SCH_B5s!M17 -> 460861 | I26: =SCH_B5s!O17 -> 31851
A28: 6 | C28: Other Working Capital Allowances | E28: B-5 | G28: =SCH_B5s!M42-G26 -> 2440832 | I28: =SCH_B5s!O42-I26 -> 2440832
A30: 7 | C30: Other Items:
A32: 8 | C32: Customers' Advances for Construction | E32: B-6 | G32: =SCH_B6!P19 -> -1801940 | I32: =SCH_B6!P69 -> -1801940
A34: 9 | C34: Investment Tax Credits | E34: B-6 | G34: =SCH_B6!P26 -> 0 | I34: =SCH_B6!P76 -> 0
A36: 10 | C36: Deferred Income Taxes | E36: B-6 | G36: =SCH_B6!P29 -> -91641963 | I36: =SCH_B6!P79 -> -93712141
A38: 11 | C38: Excess Deferred Income Taxes | E38: B-6 | G38: =SCH_B6!P31+SCH_B6!P33 -> -27220455 | I38: =SCH_B6!P81+SCH_B6!P83 -> -27023637
A40: 12 | C40: Other Rate Base Adjustments | E40: WPB-1b | G40: =+'WPB-1b'!Q17 -> 1536717 | I40: =+'WPB-1b'!AC17 -> 1299897
A42: 13 | C42: Jurisdictional Rate Base (Line 3 through Line 12) | G42: =SUM(G22:G40) -> 546809466 | I42: =SUM(I22:I40) -> 553831292
C45: (1) Includes adjustment related to annualized depreciation expense, Schedule D-2.24, and
C46: an adjustment from WPB-1a to avoid double counting in accumulated depreciation, the impact
C47: of eliminating facilities devoted to other than KY customers and Rider PMM on both Sch. B-3-2
C48: and Sch. D-2.24.
C49: (2) The Company is not requesting to include recovery of CWIP in base rates.
C50: (3) The Company is not requesting to include cash working capital in base rates.
M53: =COMPANY -> DUKE ENERGY KENTUCKY, INC. | S53: WPB-1a
M54: =CASE -> CASE NO. 2025-00125 | S54: WITNESS RESPONSIBLE:
M55: ADJUSTMENT TO ACCUMULATED DEPRECIATION | S55: =_WIT1 -> J. P. BROWN
M56: ="AS OF " &RIGHT(Forecast,(LEN(Forecast)-16)) -> AS OF DECEMBER 31, 2026
Q59: Schedule /
M60: Line | Q60: Work Paper
M61: No. | O61: Description | Q61: Reference | S61: Amount
S62: ($)
M64: 1 | O64: Annualized Depreciation Expense - Facilities Devoted to Other than KY Customers | Q64: WPB-2.2g | S64: =-ROUND('WPB-2.2g'!M42/16*12,0) -> -950704 | T64: --> To Sch B-1, Ln. 2
M65: 2 | O65: Annualized Depreciation Expense - Rider PMM | Q65: WPB-2.2j | S65: =-ROUND(AVERAGE('WPB-2.2j'!M54:Y54)*12,0) -> -46746 | T65: --> To Sch B-1, Ln. 2
M66: 3 | O66: Annualized Depreciation Expense - Excluding Facilities Devoted to Other than KY Customers | Q66: WPD-2.24a, Ln. 1 - Line 1 | S66: =SCH_D2.24!Q53-S64 -> 2815755
M68: 4 | O68: Annualized Depreciation Adjustment | Q68: WPD-2.24a | S68: =SUM(S64:S66) -> 1818305

Sheet WPB-1b
A1: =COMPANY -> DUKE ENERGY KENTUCKY, INC. | AA1: WPB-1b
A2: =DEPT -> GAS DEPARTMENT | AA2: WITNESS RESPONSIBLE:
A3: =CASE -> CASE NO. 2025-00125 | AA3: =_WIT1 -> J. P. BROWN
A4: REGULATORY ASSETS
A5: FOR THE BASE PERIOD AND THE FORECASTED PERIOD
A8: LINE | E8: Total | G8: Amortization | K8: Monthly | M8: Amortization | O8: Deferral | Q8: Balance as of | S8: Amortization | U8: Balance as of | W8: Amortization | Y8: Balance as of | AA8: 13 Month Avg.
A9: NO. | E9: To Be | G9: Start | I9: Amortization | K9: Amortization | M9: August | O9: Adjusment | Q9: August | S9: Sep - Dec | U9: Dec | W9: Jan - Dec | Y9: Dec | AA9: Forecasted
D10: Rate Case | E10: Amortized | G10: Date | I10: Period | K10: Amount | M10: 2025 | Q10: 2025 | S10: 2025 | U10: 2025 | W10: 2026 | Y10: 2026 | AA10: Period | AC10: Total
A11: 1 | C11: 182751 | D11: Customer Connect Deferral | E11: 1860699 | G11: 2021-12-28 | I11: 15 YEAR | K11: =ROUND(E11/180,0) -> 10337 | M11: 454828 | O11: -818074 | Q11: =E11-M11+O11 -> 587797 | S11: =ROUND(4*$K$11,0) -> 41348 | U11: =Q11-S11 -> 546449 | W11: =ROUND(U11/132,0)*12 -> 49680 | Y11: =U11-W11 -> 496769 | AA11: =ROUND(AVERAGE(Y11,U11),0) -> 521609 | AC11: =AA11 -> 521609
A12: 2
A13: 3 | D13: 2025-00xxx Rate Case Expense | E13: =SCH_F6!C28 -> 889000 | G13: 2026-01-01 | I13: 3 YEAR | K13: =ROUND(E13/36,0) -> 24694 | M13: 0 | O13: 0 | Q13: =E13-M13+O13 -> 889000 | S13: 0 | U13: =Q13-S13 -> 889000 | W13: =ROUND(U13/36,0)*12 -> 296328 | Y13: =+U13-W13 -> 592672 | AA13: =ROUND(AVERAGE(Y13,U13),0) -> 740836 | AC13: =AA13 -> 740836
A14: 4
A15: 5 | C15: 186115 | D15: 2021-00190 Rate Case Expense | E15: 224696 | G15: 2021-12-28 | I15: 5 YEAR | K15: =ROUND(E15/60,0) -> 3745 | M15: 164776 | O15: 0 | Q15: =E15-M15+O15 -> 59920 | S15: =ROUND(4*K15,0) -> 14980 | U15: =Q15-S15 -> 44940 | W15: =ROUND(U15/36,0)*12 -> 14976 | Y15: =U15-W15 -> 29964 | AA15: =ROUND(AVERAGE(Y15,U15),0) -> 37452 | AC15: =AA15 -> 37452
A16: 6
A17: 7 | Q17: =SUM(Q11:Q15) -> 1536717 | AC17: =SUM(AA11:AA15) -> 1299897
A18: 8 | Q18: | | AC18: |
A19: 9 | Q19: V | AC19: V
A20: 10 | Q20: To SCH B1 | AC20: To SCH B1
A21: 11
A22: 12 | G22: (1) | K22: (2) | O22: (2)
A23: 13 | D23: Date | E23: 182751 | G23: 182751 | I23: 186xxx | K23: 186xxx | M23: 186115 | O23: 186115
A24: 14 | E24: Balance | G24: Amortization | I24: Balance | K24: Amortization | M24: Balance | O24: Amortization
A25: 15 | D25: 8/2025 | E25: =+Q11 -> 587797 | I25: =+Q13 -> 889000 | M25: =+Q15 -> 59920
A26: 16 | D26: 9/2025 | E26: =++E25-G26 -> 577460 | G26: =+$K$11 -> 10337 | I26: =++I25-K26 -> 889000 | M26: =++M25-O26 -> 56175 | O26: =+$K$15 -> 3745
A27: 17 | D27: 10/2025 | E27: 567123 | G27: =+$K$11 -> 10337 | I27: 889000 | M27: 52430 | O27: =+$K$15 -> 3745
A28: 18 | D28: 11/2025 | E28: 556786 | G28: =+$K$11 -> 10337 | I28: 889000 | M28: 48685 | O28: =+$K$15 -> 3745
A29: 19 | D29: 12/2025 | E29: =++E28-G29 -> 546449 | G29: =+$K$11 -> 10337 | I29: 889000 | M29: 44940 | O29: =+$K$15 -> 3745
A30: 20 | D30: 1/2026 | E30: 542309 | G30: =+ROUND(E29/132,0) -> 4140 | I30: 864306 | K30: =+ROUND(I29/36,0) -> 24694 | M30: 43692 | O30: =+ROUND(M29/36,0) -> 1248
A31: 21 | D31: 2/2026 | E31: 538169 | G31: =+$G$30 -> 4140 | I31: =++I30-K31 -> 839612 | K31: =$K$30 -> 24694 | M31: 42444 | O31: =$O$30 -> 1248
A32: 22 | D32: 3/2026 | E32: 534029 | G32: 4140 | I32: 814918 | K32: =$K$30 -> 24694 | M32: 41196 | O32: 1248
A33: 23 | D33: 4/2026 | E33: 529889 | G33: 4140 | I33: 790224 | K33: 24694 | M33: 39948 | O33: 1248
A34: 24 | D34: 5/2026 | E34: 525749 | G34: 4140 | I34: 765530 | K34: 24694 | M34: 38700 | O34: 1248
A35: 25 | D35: 6/2026 | E35: 521609 | G35: 4140 | I35: 740836 | K35: 24694 | M35: 37452 | O35: 1248
A36: 26 | D36: 7/2026 | E36: 517469 | G36: 4140 | I36: 716142 | K36: 24694 | M36: 36204 | O36: 1248
A37: 27 | D37: 8/2026 | E37: 513329 | G37: 4140 | I37: 691448 | K37: 24694 | M37: 34956 | O37: 1248
A38: 28 | D38: 9/2026 | E38: 509189 | G38: 4140 | I38: 666754 | K38: 24694 | M38: 33708 | O38: 1248
A39: 29 | D39: 10/2026 | E39: 505049 | G39: 4140 | I39: 642060 | K39: 24694 | M39: 32460 | O39: 1248
A40: 30 | D40: 11/2026 | E40: 500909 | G40: 4140 | I40: 617366 | K40: 24694 | M40: 31212 | O40: 1248
A41: 31 | D41: 12/2026 | E41: 496769 | G41: 4140 | I41: 592672 | K41: 24694 | M41: 29964 | O41: 1248
A42: 32
A43: 33 | D43: 13 Month Average | E43: =ROUND(AVERAGE(E29:E41),0) -> 521609 | I43: =ROUND(AVERAGE(I29:I41),0) -> 740836 | M43: =ROUND(AVERAGE(M29:M41),0) -> 37452
B45: (1) Adjusting the monthly amortization to account for the deferral adjustment January 2026.
B46: (2) Proposing a 3 year amortization period for the remaining balance beginning January 2026.

Sheet SCH B-2
A1: =COMPANY -> DUKE ENERGY KENTUCKY, INC.
A2: =CASE -> CASE NO. 2025-00125
A3: PLANT IN SERVICE BY MAJOR PROPERTY GROUPING
A4: ="AS OF " &RIGHT(TESTYR,(LEN(TESTYR)-16)) -> AS OF AUGUST 31, 2025
A9: =Data -> DATA: "X" BASE PERIOD FORECASTED PERIOD | F9: SCHEDULE B-2
A10: =Type -> TYPE OF FILING: "X" ORIGINAL UPDATED REVISED | F10: PAGE 1 OF 2
A11: WORK PAPER REFERENCE NO(S).: SCHEDULE B-2.1 | F11: WITNESS RESPONSIBLE:
F12: =_WIT7 -> C. C. HUDSON / S. S. MITCHELL
A17: Line | C17: Base | D17: Jurisdictional | E17: Jurisdictional | G17: Adjusted | J17: B-2.1
A18: No. | B18: Major Property Groupings | C18: Period | D18: % | E18: Total | F18: Adjustments | G18: Jurisdiction | J18: Plant | L18: Adjustments
A23: 1 | B23: Production | C23: ='SCH B-2.1'!E29 -> 0 | D23: 100 | E23: =ROUND((C23*D23)/100,0) -> 0 | F23: ='SCH B-2.1'!H29 -> 0 | G23: =E23+F23 -> 0 | J23: =IF(C23='SCH B-2.1'!E29,"BALANCED","ERROR") -> BALANCED | L23: =IF(F23='SCH B-2.1'!H29,"BALANCED","ERROR") -> BALANCED
A25: =A23+1 -> 2 | B25: Distribution | C25: ='SCH B-2.1'!E81 -> 1007044785 | D25: 100 | E25: =ROUND((C25*D25)/100,0) -> 1007044785 | F25: ='SCH B-2.1'!H81 -> -164744387 | G25: =E25+F25 -> 842300398 | J25: =IF(C25='SCH B-2.1'!E81,"BALANCED","ERROR") -> BALANCED | L25: =IF(F25='SCH B-2.1'!H81,"BALANCED","ERROR") -> BALANCED
A27: =A25+1 -> 3 | B27: General | C27: ='SCH B-2.1'!E123 -> 43996340 | D27: 100 | E27: =ROUND((C27*D27)/100,0) -> 43996340 | F27: ='SCH B-2.1'!H123 -> 0 | G27: =E27+F27 -> 43996340 | J27: =IF(C27='SCH B-2.1'!E123,"BALANCED","ERROR") -> BALANCED | L27: =IF(F27='SCH B-2.1'!H123,"BALANCED","ERROR") -> BALANCED
A29: =A27+1 -> 4 | B29: Common (Allocated to Gas) | C29: ='SCH B-2.1'!E167 -> 15673536 | D29: 100 | E29: =ROUND((C29*D29)/100,0) -> 15673536 | F29: ='SCH B-2.1'!H167 -> -434942.235 | G29: =E29+F29 -> 15238593.77 | J29: =IF(C29='SCH B-2.1'!E167,"BALANCED","ERROR") -> BALANCED | L29: =IF(F29='SCH B-2.1'!H167,"BALANCED","ERROR") -> BALANCED
A31: =A29+1 -> 5 | B31: Completed Construction
B32: Not Classified (1)
A34: =A31+1 -> 6 | B34: Other (specify)
A40: =A34+1 -> 7 | B40: TOTAL | C40: =SUM(C23:C34) -> 1066714661 | E40: =SUM(E23:E34) -> 1066714661 | F40: =SUM(F23:F34) -> -165179329.2 | G40: =SUM(G23:G34) -> 901535331.8
A44: (1) Included in each function on Schedule B-2.1
A47: =COMPANY -> DUKE ENERGY KENTUCKY, INC.
A48: =CASE -> CASE NO. 2025-00125
A49: PLANT IN SERVICE BY MAJOR PROPERTY GROUPING
A50: ="AS OF " &RIGHT(Forecast,(LEN(Forecast)-16)) -> AS OF DECEMBER 31, 2026
A55: =DataF -> DATA: BASE PERIOD "X" FORECASTED PERIOD | F55: SCHEDULE B-2
A56: =Type -> TYPE OF FILING: "X" ORIGINAL UPDATED REVISED | F56: PAGE 2 OF 2
A57: WORK PAPER REFERENCE NO(S).: SCHEDULE B-2.1 | F57: WITNESS RESPONSIBLE:
F58: =_WIT7 -> C. C. HUDSON / S. S. MITCHELL
C62: 13 Month | F62: 13 Month | G62: 13 Month Average
A63: Line | C63: Average | D63: Jurisdictional | E63: Jurisdictional | F63: Average | G63: Adjusted | J63: B-2.1
A64: No. | B64: Major Property Groupings | C64: Forecasted Period | D64: % | E64: Total | F64: Adjustments | G64: Jurisdiction | J64: Plant | L64: Adjustments
A69: 1 | B69: Production | C69: ='SCH B-2.1'!E201 -> 0 | D69: 100 | E69: =ROUND((C69*D69)/100,0) -> 0 | F69: ='SCH B-2.1'!H201 -> 0 | G69: =E69+F69 -> 0 | J69: =IF(C69='SCH B-2.1'!E201,"BALANCED","ERROR") -> BALANCED | L69: =IF(F69='SCH B-2.1'!H201,"BALANCED","ERROR") -> BALANCED
A71: =A69+1 -> 2 | B71: Distribution | C71: ='SCH B-2.1'!E252 -> 1076531091 | D71: 100 | E71: =ROUND((C71*D71)/100,0) -> 1076531091 | F71: ='SCH B-2.1'!H252 -> -217920900 | G71: =E71+F71 -> 858610191 | J71: =IF(C71='SCH B-2.1'!E252,"BALANCED","ERROR") -> BALANCED | L71: =IF(F71='SCH B-2.1'!H252,"BALANCED","ERROR") -> BALANCED
A73: =A71+1 -> 3 | B73: General | C73: ='SCH B-2.1'!E292 -> 51898356 | D73: 100 | E73: =ROUND((C73*D73)/100,0) -> 51898356 | F73: ='SCH B-2.1'!H292 -> 0 | G73: =E73+F73 -> 51898356 | J73: =IF(C73='SCH B-2.1'!E292,"BALANCED","ERROR") -> BALANCED | L73: =IF(F73='SCH B-2.1'!H292,"BALANCED","ERROR") -> BALANCED
A75: =A73+1 -> 4 | B75: Common (Allocated to Gas) | C75: ='SCH B-2.1'!E335 -> 15350797 | D75: 100 | E75: =ROUND((C75*D75)/100,0) -> 15350797 | F75: ='SCH B-2.1'!H335 -> -434942 | G75: =E75+F75 -> 14915855 | J75: =IF(C75='SCH B-2.1'!E335,"BALANCED","ERROR") -> BALANCED | L75: =IF(F75='SCH B-2.1'!H335,"BALANCED","ERROR") -> BALANCED
A77: =A75+1 -> 5 | B77: Completed Construction
B78: Not Classified (1)
A80: =A77+1 -> 6 | B80: Other (specify)
A86: =A80+1 -> 7 | B86: TOTAL | C86: =SUM(C69:C80) -> 1143780244 | E86: =SUM(E69:E80) -> 1143780244 | F86: =SUM(F69:F80) -> -218355842 | G86: =SUM(G69:G80) -> 925424402
A90: (1) Included in each function on Schedule B-2.1
A433: \F
A435: \B
A437: \A
A439: \C
A446: \D
A448: \E

Sheet SCH B-2.1
A1: =COMPANY -> DUKE ENERGY KENTUCKY, INC.
A2: =CASE -> CASE NO. 2025-00125
A3: PLANT IN SERVICE BY ACCOUNTS AND SUBACCOUNTS
A4: ="AS OF " &RIGHT(TESTYR,(LEN(TESTYR)-16)) -> AS OF AUGUST 31, 2025
A6: MANUFACTURED GAS PRODUCTION PLANT
A10: =Data -> DATA: "X" BASE PERIOD FORECASTED PERIOD | H10: SCHEDULE B-2.1
A11: =Type -> TYPE OF FILING: "X" ORIGINAL UPDATED REVISED | H11: PAGE 1 OF 8
A12: WORK PAPER REFERENCE NO(S).: SCHEDULE B-2.2, SCHEDULE B-2.3 | H12: WITNESS RESPONSIBLE:
H13: =_WIT7 -> C. C. HUDSON / S. S. MITCHELL
B17: FERC | C17: Company
A18: Line | B18: Acct. | C18: Acct. | E18: Base | F18: Jurisdictional | G18: Jurisdictional | I18: Adjusted
A19: No. | B19: No. | C19: No. | D19: Account Title | E19: Period | F19: % | G19: Total | H19: Adjustments | I19: Jurisdiction | K19: Recon to B-2.3
E21: $ | G21: $ | H21: $ | I21: $
A23: 1 | B23: ='SCH B-2.3'!B23 -> 304 | C23: ='SCH B-2.3'!C23 -> 20400 | D23: ='SCH B-2.3'!D23 -> Land and Land Rights | E23: ='SCH B-2.3'!K23 -> 0 | F23: 1 | G23: =ROUND((E23*F23),0) -> 0 | H23: =-'SCH B-2.2'!G23 -> 0 | I23: =G23+H23 -> 0
A24: =1+A23 -> 2 | B24: ='SCH B-2.3'!B24 -> 304 | C24: ='SCH B-2.3'!C24 -> 20401 | D24: ='SCH B-2.3'!D24 -> Rights of Way | E24: ='SCH B-2.3'!K24 -> 0 | F24: 1 | G24: =ROUND((E24*F24),0) -> 0 | H24: =-'SCH B-2.2'!G24 -> 0 | I24: =G24+H24 -> 0
A25: =1+A24 -> 3 | B25: ='SCH B-2.3'!B25 -> 305 | C25: ='SCH B-2.3'!C25 -> 20500 | D25: ='SCH B-2.3'!D25 -> Structures & Improvements | E25: ='SCH B-2.3'!K25 -> 0 | F25: 1 | G25: =ROUND((E25*F25),0) -> 0 | H25: =-'SCH B-2.2'!G25 -> 0 | I25: =G25+H25 -> 0
A26: =1+A25 -> 4 | B26: ='SCH B-2.3'!B26 -> 311 | C26: ='SCH B-2.3'!C26 -> 21100 | D26: ='SCH B-2.3'!D26 -> Liquefied Petroleum Gas Equipment | E26: ='SCH B-2.3'!K26 -> 0 | F26: 1 | G26: =ROUND((E26*F26),0) -> 0 | H26: =-'SCH B-2.2'!G26 -> 0 | I26: =G26+H26 -> 0
A29: =1+A26 -> 5 | D29: Total Manufactured Gas Production Plant | E29: =SUM(E23:E26) -> 0 | G29: =SUM(G23:G26) -> 0 | H29: =SUM(H23:H26) -> 0 | I29: =SUM(I23:I26) -> 0 | K29: =IF(E29='SCH B-2.3'!K29,"BALANCED","ERROR") -> BALANCED
A33: =A1 -> DUKE ENERGY KENTUCKY, INC.
A34: =A2 -> CASE NO. 2025-00125
A35: =A3 -> PLANT IN SERVICE BY ACCOUNTS AND SUBACCOUNTS
A36: =A4 -> AS OF AUGUST 31, 2025
A38: DISTRIBUTION PLANT
A42: =A10 -> DATA: "X" BASE PERIOD FORECASTED PERIOD | H42: =H10 -> SCHEDULE B-2.1
A43: =A11 -> TYPE OF FILING: "X" ORIGINAL UPDATED REVISED | H43: PAGE 2 OF 8
A44: =A12 -> WORK PAPER REFERENCE NO(S).: SCHEDULE B-2.2, SCHEDULE B-2.3 | H44: WITNESS RESPONSIBLE:
H45: =H13 -> C. C. HUDSON / S. S. MITCHELL
B49: FERC | C49: Company
A50: Line | B50: Acct. | C50: Acct. | E50: Base | F50: Jurisdictional | G50: Jurisdictional | I50: Adjusted
A51: No. | B51: No. | C51: No. | D51: Account Title | E51: Period | F51: % | G51: Total | H51: Adjustments | I51: Jurisdiction
E53: $ | G53: $ | H53: $ | I53: $
A55: 1 | B55: ='SCH B-2.3'!B55 -> 374 | C55: ='SCH B-2.3'!C55 -> 27400 | D55: ='SCH B-2.3'!D55 -> Land and Land Rights | E55: ='SCH B-2.3'!K55 -> 10011520 | F55: 1 | G55: =ROUND((E55*F55),0) -> 10011520 | H55: =-'SCH B-2.2'!G32-'SCH B-2.2'!G39 -> -6033077 | I55: =G55+H55 -> 3978443
A56: =1+A55 -> 2 | B56: ='SCH B-2.3'!B56 -> 374.1 | C56: ='SCH B-2.3'!C56 -> 27401 | D56: ='SCH B-2.3'!D56 -> Rights of Way | E56: ='SCH B-2.3'!K56 -> 7405024 | F56: 1 | G56: 7405024 | H56: =-'SCH B-2.2'!G33 -> -241845 | I56: 7163179
A57: =1+A56 -> 3 | B57: ='SCH B-2.3'!B57 -> 375 | C57: ='SCH B-2.3'!C57 -> 27500 | D57: ='SCH B-2.3'!D57 -> Structures & Improvements | E57: ='SCH B-2.3'!K57 -> 10155550 | F57: 1 | G57: 10155550 | H57: =-'SCH B-2.2'!G34 -> -3443399 | I57: 6712151
A58: 4 | B58: ='SCH B-2.3'!B58 -> 376.1 | C58: ='SCH B-2.3'!C58 -> 27601 | D58: ='SCH B-2.3'!D58 -> Mains - Cast Iron & Copper | E58: ='SCH B-2.3'!K58 -> 2222603 | F58: 1 | G58: 2222603 | I58: 2222603
A59: 5 | B59: ='SCH B-2.3'!B59 -> 376.2 | C59: ='SCH B-2.3'!C59 -> 27602,27607 | D59: ='SCH B-2.3'!D59 -> Mains - Steel | E59: ='SCH B-2.3'!K59 -> 87749251 | F59: 1 | G59: 87749251 | H59: =-'WPB-2.2a-f - Base'!AS267 -> -7057 | I59: 87742194
A60: 6 | B60: ='SCH B-2.3'!B60 -> 376.3 | C60: ='SCH B-2.3'!C60 -> 27603,27608 | D60: ='SCH B-2.3'!D60 -> Mains - Plastic | E60: ='SCH B-2.3'!K60 -> 213163384 | F60: 1 | G60: 213163384 | I60: 213163384
A61: 7 | B61: ='SCH B-2.3'!B61 -> 376.5 | C61: ='SCH B-2.3'!C61 -> 27605 | D61: ='SCH B-2.3'!D61 -> Mains - Feeder | E61: ='SCH B-2.3'!K61 -> 262443334 | F61: 1 | G61: 262443334 | H61: =-'SCH B-2.2'!G36-'SCH B-2.2'!G40 -> -119313418 | I61: 143129916
A62: 8 | B62: ='SCH B-2.3'!B62 -> 378 | C62: ='SCH B-2.3'!C62 -> 27800 | D62: ='SCH B-2.3'!D62 -> System Meas. & Reg. Station Equipment - General | E62: ='SCH B-2.3'!K62 -> 110185839 | F62: 1 | G62: 110185839 | H62: =-'SCH B-2.2'!G37-'SCH B-2.2'!G41 -> -28052120 | I62: 82133719
A63: 9 | B63: ='SCH B-2.3'!B63 -> 378.1 | C63: ='SCH B-2.3'!C63 -> 27801 | D63: ='SCH B-2.3'!D63 -> System Meas. & Reg. Station Equipment - Electric | E63: ='SCH B-2.3'!K63 -> 2063564 | F63: 1 | G63: 2063564 | H63: =-'SCH B-2.2'!G38 -> -498564 | I63: 1565000
A64: 10 | B64: ='SCH B-2.3'!B64 -> 378.2 | C64: ='SCH B-2.3'!C64 -> 27802 | D64: ='SCH B-2.3'!D64 -> District Regulating Equipment | E64: ='SCH B-2.3'!K64 -> 2108685 | F64: 1 | G64: 2108685 | I64: 2108685
A65: 11 | B65: ='SCH B-2.3'!B65 -> 379 | C65: ='SCH B-2.3'!C65 -> 27900 | D65: ='SCH B-2.3'!D65 -> System Meas. & Reg. Station Equipment - City Gate | E65: ='SCH B-2.3'!K65 -> 1667610 | F65: 1 | G65: 1667610 | I65: 1667610
A66: 12 | B66: ='SCH B-2.3'!B66 -> 380.1 | C66: ='SCH B-2.3'!C66 -> 28001 | D66: ='SCH B-2.3'!D66 -> Services- Cast Iron & Copper | E66: ='SCH B-2.3'!K66 -> 25300 | F66: 1 | G66: 25300 | I66: 25300
A67: 13 | B67: ='SCH B-2.3'!B67 -> 380.2 | C67: ='SCH B-2.3'!C67 -> 28002,28004 | D67: ='SCH B-2.3'!D67 -> Services-Steel | E67: ='SCH B-2.3'!K67 -> 6651560 | F67: 1 | G67: 6651560 | I67: 6651560
A68: 14 | B68: ='SCH B-2.3'!B68 -> 380.3 | C68: ='SCH B-2.3'!C68 -> 28003,28005-28007 | D68: ='SCH B-2.3'!D68 -> Services-Plastic | E68: ='SCH B-2.3'!K68 -> 231035670 | F68: 1 | G68: 231035670 | I68: 231035670
A69: 15 | B69: ='SCH B-2.3'!B69 -> 381 | C69: ='SCH B-2.3'!C69 -> 28100 | D69: ='SCH B-2.3'!D69 -> Meters | E69: ='SCH B-2.3'!K69 -> 20128853 | F69: 1 | G69: 20128853 | I69: 20128853
A70: 16 | B70: ='SCH B-2.3'!B70 -> 381.2 | C70: ='SCH B-2.3'!C70 -> 28102 | D70: ='SCH B-2.3'!D70 -> Meters | E70: ='SCH B-2.3'!K70 -> 1087677 | F70: 1 | G70: =ROUND((E70*F70),0) -> 1087677 | I70: 1087677
A71: 17 | B71: ='SCH B-2.3'!B71 -> 382 | C71: ='SCH B-2.3'!C71 -> 28200,28201 | D71: ='SCH B-2.3'!D71 -> Meter Installations | E71: ='SCH B-2.3'!K71 -> 16801646 | F71: 1 | G71: 16801646 | I71: 16801646
A72: 18 | B72: ='SCH B-2.3'!B72 -> 383 | C72: ='SCH B-2.3'!C72 -> 28300,28301 | D72: ='SCH B-2.3'!D72 -> House Regulators | E72: ='SCH B-2.3'!K72 -> 8023099 | F72: 1 | G72: 8023099 | I72: 8023099
A73: 19 | B73: ='SCH B-2.3'!B73 -> 384 | C73: ='SCH B-2.3'!C73 -> 28400,28401 | D73: ='SCH B-2.3'!D73 -> House Regulator Installations | E73: ='SCH B-2.3'!K73 -> 6345818 | F73: 1 | G73: 6345818 | I73: 6345818
A74: 20 | B74: ='SCH B-2.3'!B74 -> 385 | C74: ='SCH B-2.3'!C74 -> 28500 | D74: ='SCH B-2.3'!D74 -> Large Industrial Meas. & Reg. Equipment | E74: ='SCH B-2.3'!K74 -> 463332 | F74: 1 | G74: 463332 | I74: 463332
A75: 21 | B75: ='SCH B-2.3'!B75 -> 385.1 | C75: ='SCH B-2.3'!C75 -> 28501 | D75: ='SCH B-2.3'!D75 -> Large Industrial Meas. & Reg. Equipment - Comm | E75: ='SCH B-2.3'!K75 -> 65974 | F75: 1 | G75: 65974 | I75: 65974
A76: 22 | B76: ='SCH B-2.3'!B76 -> 387 | C76: ='SCH B-2.3'!C76 -> 28700 | D76: ='SCH B-2.3'!D76 -> Other Equipment - Other | E76: ='SCH B-2.3'!K76 -> 55779 | F76: 1 | G76: 55779 | I76: 55779
A77: 23 | B77: ='SCH B-2.3'!B77 -> 387.1 | C77: ='SCH B-2.3'!C77 -> 28701 | D77: ='SCH B-2.3'!D77 -> Street Lighting Equipment | E77: ='SCH B-2.3'!K77 -> 28806 | F77: 1 | G77: 28806 | I77: 28806
A78: 24 | D78: Asset Retirement Cost Obligation | E78: ='SCH B-2.3'!K78 -> 7154907 | F78: 1 | G78: =ROUND((E78*F78),0) -> 7154907 | H78: =-'SCH B-2.2'!G57 -> -7154907 | I78: 0
A81: =A78+1 -> 25 | D81: Total Distribution Plant | E81: =SUM(E55:E78) -> 1007044785 | G81: =SUM(G55:G78) -> 1007044785 | H81: =SUM(H55:H78) -> -164744387 | I81: =SUM(I55:I78) -> 842300398 | K81: =IF(E81='SCH B-2.3'!K81,"BALANCED","ERROR") -> BALANCED
A86: =A1 -> DUKE ENERGY KENTUCKY, INC.
A87: =A2 -> CASE NO. 2025-00125
A88: =A3 -> PLANT IN SERVICE BY ACCOUNTS AND SUBACCOUNTS
A89: =A4 -> AS OF AUGUST 31, 2025
A91: GENERAL PLANT
A95: =A10 -> DATA: "X" BASE PERIOD FORECASTED PERIOD | H95: =H10 -> SCHEDULE B-2.1
A96: =A11 -> TYPE OF FILING: "X" ORIGINAL UPDATED REVISED | H96: PAGE 3 OF 8
A97: =A12 -> WORK PAPER REFERENCE NO(S).: SCHEDULE B-2.2, SCHEDULE B-2.3 | H97: WITNESS RESPONSIBLE:
H98: =H13 -> C. C. HUDSON / S. S. MITCHELL
B102: FERC | C102: Company
A103: Line | B103: Acct. | C103: Acct. | E103: Base | F103: Jurisdictional | G103: Jurisdictional | I103: Adjusted
A104: No. | B104: No. | C104: No. | D104: Account Title | E104: Period | F104: % | G104: Total | H104: Adjustments | I104: Jurisdiction
E106: $ | G106: $ | H106: $ | I106: $
A108: 1 | B108: ='SCH B-2.3'!B108 -> 303 | C108: ='SCH B-2.3'!C108 -> 20300 | D108: ='SCH B-2.3'!D108 -> Miscellaneous Intangible Plant | E108: ='SCH B-2.3'!K108 -> 16975204 | F108: 1 | G108: =ROUND(E108*F108,0) -> 16975204 | I108: =G108+H108 -> 16975204
A109: =A108+1 -> 2 | B109: ='SCH B-2.3'!B109 -> 303.3 | C109: ='SCH B-2.3'!C109 -> 20303 | D109: ='SCH B-2.3'!D109 -> Misc Intangible Plant - 3 Year | E109: ='SCH B-2.3'!K109 -> 676123 | F109: 1 | G109: =ROUND(E109*F109,0) -> 676123 | I109: =G109+H109 -> 676123
A110: 3 | B110: ='SCH B-2.3'!B110 -> 303.1 | C110: ='SCH B-2.3'!C110 -> 20310 | D110: ='SCH B-2.3'!D110 -> Misc Intangible Plant - 10 Year | E110: ='SCH B-2.3'!K110 -> 2931257 | F110: 1 | G110: 2931257 | I110: =G110+H110 -> 2931257
A111: 4 | B111: ='SCH B-2.3'!B111 -> 303.15 | C111: ='SCH B-2.3'!C111 -> 20315 | D111: ='SCH B-2.3'!D111 -> Misc Intangible Plant - 15 Year | E111: ='SCH B-2.3'!K111 -> 6258717 | F111: 1 | G111: =ROUND(E111*F111,0) -> 6258717 | I111: =G111+H111 -> 6258717
A112: 5 | B112: ='SCH B-2.3'!B112 -> 303.6 | C112: ='SCH B-2.3'!C112 -> 20360 | D112: ='SCH B-2.3'!D112 -> Interconnect Intangible - 60 Year | E112: ='SCH B-2.3'!K112 -> 1303368 | F112: 1 | G112: =ROUND(E112*F112,0) -> 1303368 | I112: =G112+H112 -> 1303368
A113: 6 | B113: ='SCH B-2.3'!B113 -> 391 | C113: ='SCH B-2.3'!C113 -> 29100 | D113: ='SCH B-2.3'!D113 -> Office Furniture & Equipment | E113: ='SCH B-2.3'!K113 -> 0 | F113: 1 | G113: 0 | H113: =-'SCH B-2.2'!G47 -> 0 | I113: =G113+H113 -> 0
A114: 7 | B114: ='SCH B-2.3'!B114 -> 391.1 | C114: ='SCH B-2.3'!C114 -> 29101 | D114: ='SCH B-2.3'!D114 -> Electronic Data Processing | E114: ='SCH B-2.3'!K114 -> 744695 | F114: 1 | G114: 744695 | I114: 744695
A115: 8 | B115: ='SCH B-2.3'!B115 -> 391.15 | C115: ='SCH B-2.3'!C115 -> 29115 | D115: ='SCH B-2.3'!D115 -> Data Processing Equipment | E115: ='SCH B-2.3'!K115 -> 501199 | F115: 1 | G115: 501199 | I115: 501199
A116: 9 | B116: ='SCH B-2.3'!B116 -> 392.1 | C116: ='SCH B-2.3'!C116 -> 29201 | D116: ='SCH B-2.3'!D116 -> Trailers | E116: ='SCH B-2.3'!K116 -> 73750 | F116: 1 | G116: 73750 | I116: 73750
A117: 10 | B117: ='SCH B-2.3'!B117 -> 394 | C117: ='SCH B-2.3'!C117 -> 29400 | D117: ='SCH B-2.3'!D117 -> Tools, Shop & Garage Equipment | E117: ='SCH B-2.3'!K117 -> 2785151 | F117: 1 | G117: =ROUND(E117*F117,0) -> 2785151 | H117: =-'SCH B-2.2'!G48 -> 0 | I117: =G117+H117 -> 2785151
A118: 11 | B118: ='SCH B-2.3'!B118 -> 396 | C118: ='SCH B-2.3'!C118 -> 29600 | D118: ='SCH B-2.3'!D118 -> Power Operated Equipment | E118: ='SCH B-2.3'!K118 -> 189757 | F118: 1 | G118: =ROUND(E118*F118,0) -> 189757 | I118: =G118+H118 -> 189757
A119: 12 | B119: ='SCH B-2.3'!B119 -> 397 | C119: ='SCH B-2.3'!C119 -> 29700 | D119: ='SCH B-2.3'!D119 -> Communication Equipment | E119: ='SCH B-2.3'!K119 -> 11571051 | F119: 1 | G119: =ROUND(E119*F119,0) -> 11571051 | H119: =-'WPB-2.2a-f - Base'!AS278 -> 0 | I119: =G119+H119 -> 11571051
A120: 13 | B120: ='SCH B-2.3'!B120 -> 398 | C120: ='SCH B-2.3'!C120 -> 29800 | D120: ='SCH B-2.3'!D120 -> Miscellaneous Equipment | E120: ='SCH B-2.3'!K120 -> -13932 | F120: 1 | G120: -13932 | H120: =-'SCH B-2.2'!G50 -> 0 | I120: -13932
A123: =A120+1 -> 14 | D123: Total General Plant | E123: =SUM(E108:E120) -> 43996340 | G123: =SUM(G108:G120) -> 43996340 | H123: =SUM(H108:H120) -> 0 | I123: =SUM(I108:I120) -> 43996340 | K123: =IF(E123='SCH B-2.3'!K123,"BALANCED","ERROR") -> BALANCED
A126: =A123+1 -> 15 | D126: Total Gas Plant | E126: =E29+E81+E123 -> 1051041125 | G126: =G29+G81+G123 -> 1051041125 | H126: =H29+H81+H123 -> -164744387 | I126: =I29+I81+I123 -> 886296738 | K126: =IF(E126='SCH B-2.3'!K126,"BALANCED","ERROR") -> BALANCED
A130: =A1 -> DUKE ENERGY KENTUCKY, INC.
A131: =A2 -> CASE NO. 2025-00125
A132: =A3 -> PLANT IN SERVICE BY ACCOUNTS AND SUBACCOUNTS
A133: =A4 -> AS OF AUGUST 31, 2025
A135: COMMON PLANT
A139: =A10 -> DATA: "X" BASE PERIOD FORECASTED PERIOD | H139: =H10 -> SCHEDULE B-2.1
A140: =A11 -> TYPE OF FILING: "X" ORIGINAL UPDATED REVISED | H140: PAGE 4 OF 8
A141: =A12 -> WORK PAPER REFERENCE NO(S).: SCHEDULE B-2.2, SCHEDULE B-2.3 | H141: WITNESS RESPONSIBLE:
H142: =H13 -> C. C. HUDSON / S. S. MITCHELL
B146: FERC | C146: Company
A147: Line | B147: Acct. | C147: Acct. | E147: Base | F147: Jurisdictional | G147: Jurisdictional | I147: Adjusted
A148: No. | B148: No. | C148: No. | D148: Account Title | E148: Period | F148: % | G148: Total | H148: Adjustments | I148: Jurisdiction
E150: $ | G150: $ | H150: $ | I150: $
A152: 1 | C152: ='SCH B-2.3'!C152 -> 10300 | D152: ='SCH B-2.3'!D152 -> Miscellaneous Intangible Plant | E152: ='SCH B-2.3'!K152 -> 22442697 | F152: 1 | G152: =ROUND(E152*F152,0) -> 22442697 | I152: =G152+H152 -> 22442697
A153: 2 | C153: ='SCH B-2.3'!C153 -> 18900 | D153: ='SCH B-2.3'!D153 -> Land and Land Rights | E153: ='SCH B-2.3'!K153 -> 1041678 | F153: 1 | G153: 1041678 | I153: 1041678
A154: 3 | C154: ='SCH B-2.3'!C154 -> 19000 | D154: ='SCH B-2.3'!D154 -> Structures & Improvements | E154: ='SCH B-2.3'!K154 -> 21619061 | F154: 1 | G154: 21619061 | I154: 21619061
A155: 4 | C155: ='SCH B-2.3'!C155 -> 19100 | D155: ='SCH B-2.3'!D155 -> Office Furniture & Equipment | E155: ='SCH B-2.3'!K155 -> 1560369 | F155: 1 | G155: 1560369 | I155: 1560369
A156: 5 | C156: ='SCH B-2.3'!C156 -> 19101 | D156: ='SCH B-2.3'!D156 -> Electronic Data Processing | E156: ='SCH B-2.3'!K156 -> 3042 | F156: 1 | G156: 3042 | I156: 3042
A157: 6 | C157: ='SCH B-2.3'!C157 -> 19300 | D157: ='SCH B-2.3'!D157 -> Stores Equipment | E157: ='SCH B-2.3'!K157 -> 0 | F157: 1 | G157: 0 | I157: 0
A158: 7 | C158: ='SCH B-2.3'!C158 -> 19400 | D158: ='SCH B-2.3'!D158 -> Tools, Shop & Garage Equipment | E158: ='SCH B-2.3'!K158 -> 107980 | F158: 1 | G158: 107980 | I158: 107980
A159: 8 | C159: ='SCH B-2.3'!C159 -> 19700 | D159: ='SCH B-2.3'!D159 -> Communication Equipment | E159: ='SCH B-2.3'!K159 -> 5227628 | F159: 1 | G159: 5227628 | I159: 5227628
A160: 9 | C160: ='SCH B-2.3'!C160 -> 19800 | D160: ='SCH B-2.3'!D160 -> Miscellaneous Equipment | E160: ='SCH B-2.3'!K160 -> 95301 | F160: 1 | G160: 95301 | I160: 95301
A161: 10 | D161: Asset Retirement Cost Obligation | E161: ='SCH B-2.3'!K161 -> 1486982 | F161: 1 | G161: =ROUND(E161*F161,0) -> 1486982 | H161: =-G161 -> -1486982 | I161: =G161+H161 -> 0
A164: =A161+1 -> 11 | D164: Total Common Plant | E164: =SUM(E152:E162) -> 53584738 | G164: =SUM(G152:G162) -> 53584738 | H164: =SUM(H152:H162) -> -1486982 | I164: =SUM(I152:I162) -> 52097756 | K164: =IF(E164='SCH B-2.3'!K164,"BALANCED","ERROR") -> BALANCED
A167: =A164+1 -> 12 | C167: 0.2925 | D167: Common Plant Allocated to Gas | E167: =ROUND(E164*C167,0) -> 15673536 | G167: =ROUND(G164*$C$167,0) -> 15673536 | H167: =H164*$C$167 -> -434942.235 | I167: =I164*$C$167 -> 15238593.63 | K167: =IF(E167='SCH B-2.3'!K167,"BALANCED","ERROR") -> BALANCED
A170: =A167+1 -> 13 | D170: Total Gas Plant Including Allocated Common | E170: =E126+E167 -> 1066714661 | G170: =G126+G167 -> 1066714661 | H170: =H126+H167 -> -165179329.2 | I170: =I126+I167 -> 901535331.6 | K170: =IF(E170='SCH B-2.3'!K170,"BALANCED","ERROR") -> BALANCED
A174: =COMPANY -> DUKE ENERGY KENTUCKY, INC.
A175: =CASE -> CASE NO. 2025-00125
A176: PLANT IN SERVICE BY ACCOUNTS AND SUBACCOUNTS
A177: ="AS OF " &RIGHT(Forecast,(LEN(Forecast)-16)) -> AS OF DECEMBER 31, 2026
A179: MANUFACTURED GAS PRODUCTION PLANT
A183: =DataF -> DATA: BASE PERIOD "X" FORECASTED PERIOD | H183: SCHEDULE B-2.1
A184: =Type -> TYPE OF FILING: "X" ORIGINAL UPDATED REVISED | H184: PAGE 5 OF 8
A185: WORK PAPER REFERENCE NO(S).: SCHEDULE B-2.2, SCHEDULE B-2.3 | H185: WITNESS RESPONSIBLE:
H186: =_WIT7 -> C. C. HUDSON / S. S. MITCHELL
I189: 13 Month
B190: FERC | C190: Company | E190: 13 Month | H190: 13 Month | I190: Average
A191: Line | B191: Acct. | C191: Acct. | E191: Average | F191: Jurisdictional | G191: Jurisdictional | H191: Average | I191: Adjusted
A192: No. | B192: No. | C192: No. | D192: Account Title | E192: Forecasted Period | F192: % | G192: Total | H192: Adjustments | I192: Jurisdiction
E193: $ | G193: $ | H193: $ | I193: $
A195: 1 | B195: ='SCH B-2.3'!B198 -> 304 | C195: ='SCH B-2.3'!C198 -> 20400 | D195: ='SCH B-2.3'!D198 -> Land and Land Rights | E195: ='SCH B-2.3'!L198 -> 0 | F195: 1 | G195: =ROUND((E195*F195),0) -> 0 | H195: =-'SCH B-2.2'!G86 -> 0 | I195: =G195+H195 -> 0
A196: =1+A195 -> 2 | B196: ='SCH B-2.3'!B199 -> 304 | C196: ='SCH B-2.3'!C199 -> 20401 | D196: ='SCH B-2.3'!D199 -> Rights of Way | E196: ='SCH B-2.3'!L199 -> 0 | F196: 1 | G196: =ROUND((E196*F196),0) -> 0 | H196: =-'SCH B-2.2'!G87 -> 0 | I196: =G196+H196 -> 0
A197: =1+A196 -> 3 | B197: ='SCH B-2.3'!B200 -> 305 | C197: ='SCH B-2.3'!C200 -> 20500 | D197: ='SCH B-2.3'!D200 -> Structures & Improvements | E197: ='SCH B-2.3'!L200 -> 0 | F197: 1 | G197: =ROUND((E197*F197),0) -> 0 | H197: =-'SCH B-2.2'!G88 -> 0 | I197: =G197+H197 -> 0
A198: =1+A197 -> 4 | B198: ='SCH B-2.3'!B201 -> 311 | C198: ='SCH B-2.3'!C201 -> 21100 | D198: ='SCH B-2.3'!D201 -> Liquefied Petroleum Gas Equipment | E198: ='SCH B-2.3'!L201 -> 0 | F198: 1 | G198: =ROUND((E198*F198),0) -> 0 | H198: =-'SCH B-2.2'!G89 -> 0 | I198: =G198+H198 -> 0
A201: =A198+1 -> 5 | D201: Total Manufactured Gas Production Plant | E201: =SUM(E195:E198) -> 0 | G201: =SUM(G195:G198) -> 0 | H201: =SUM(H195:H198) -> 0 | I201: =SUM(I195:I198) -> 0 | K201: =IF(E201='SCH B-2.3'!L204,"BALANCED","ERROR") -> BALANCED
A205: =A174 -> DUKE ENERGY KENTUCKY, INC.
A206: =A175 -> CASE NO. 2025-00125
A207: =A176 -> PLANT IN SERVICE BY ACCOUNTS AND SUBACCOUNTS
A208: ="AS OF " &RIGHT(Forecast,(LEN(Forecast)-16)) -> AS OF DECEMBER 31, 2026
A210: DISTRIBUTION PLANT
H213: =H183 -> SCHEDULE B-2.1
A214: =A183 -> DATA: BASE PERIOD "X" FORECASTED PERIOD | H214: PAGE 6 OF 8
A215: =A184 -> TYPE OF FILING: "X" ORIGINAL UPDATED REVISED | H215: WITNESS RESPONSIBLE:
A216: =A185 -> WORK PAPER REFERENCE NO(S).: SCHEDULE B-2.2, SCHEDULE B-2.3 | H216: =H186 -> C. C. HUDSON / S. S. MITCHELL
I220: 13 Month
B221: FERC | C221: Company | E221: 13 Month | H221: 13 Month | I221: Average
A222: Line | B222: Acct. | C222: Acct. | E222: Average | F222: Jurisdictional | G222: Jurisdictional | H222: Average | I222: Adjusted
A223: No. | B223: No. | C223: No. | D223: Account Title | E223: Forecasted Period | F223: % | G223: Total | H223: Adjustments | I223: Jurisdiction
E224: $ | G224: $ | H224: $ | I224: $
A226: 1 | B226: ='SCH B-2.3'!B230 -> 374 | C226: ='SCH B-2.3'!C230 -> 27400 | D226: ='SCH B-2.3'!D230 -> Land and Land Rights | E226: ='SCH B-2.3'!L230 -> 10738790 | F226: 1 | G226: =ROUND((E226*F226),0) -> 10738790 | H226: =-'SCH B-2.2'!G95-'SCH B-2.2'!G102 -> -7398972 | I226: =G226+H226 -> 3339818
A227: =1+A226 -> 2 | B227: ='SCH B-2.3'!B231 -> 374.1 | C227: ='SCH B-2.3'!C231 -> 27401 | D227: ='SCH B-2.3'!D231 -> Rights of Way | E227: ='SCH B-2.3'!L231 -> 7942950 | F227: 1 | G227: 7942950 | H227: =-'SCH B-2.2'!G96 -> -241845 | I227: 7701105
A228: =1+A227 -> 3 | B228: ='SCH B-2.3'!B232 -> 375 | C228: ='SCH B-2.3'!C232 -> 27500 | D228: ='SCH B-2.3'!D232 -> Structures & Improvements | E228: ='SCH B-2.3'!L232 -> 10890376 | F228: 1 | G228: 10890376 | H228: =-'SCH B-2.2'!G97 -> -3443399 | I228: 7446977
A229: 4 | B229: ='SCH B-2.3'!B233 -> 376.1 | C229: ='SCH B-2.3'!C233 -> 27601 | D229: ='SCH B-2.3'!D233 -> Mains - Cast Iron & Copper | E229: ='SCH B-2.3'!L233 -> 2658026 | F229: 1 | G229: 2658026 | I229: 2658026
A230: 5 | B230: ='SCH B-2.3'!B234 -> 376.2 | C230: ='SCH B-2.3'!C234 -> 27602,27607 | D230: ='SCH B-2.3'!D234 -> Mains - Steel | E230: ='SCH B-2.3'!L234 -> 93672035 | F230: 1 | G230: 93672035 | H230: =-'SCH B-2.2'!G98 -> -7057 | I230: 93664978
A231: 6 | B231: ='SCH B-2.3'!B235 -> 376.3 | C231: ='SCH B-2.3'!C235 -> 27603,27608 | D231: ='SCH B-2.3'!D235 -> Mains - Plastic | E231: ='SCH B-2.3'!L235 -> 228244733 | F231: 1 | G231: 228244733 | I231: 228244733
A232: 7 | B232: ='SCH B-2.3'!B236 -> 376.5 | C232: ='SCH B-2.3'!C236 -> 27605 | D232: ='SCH B-2.3'!D236 -> Mains - Feeder | E232: ='SCH B-2.3'!L236 -> 278958480 | F232: 1 | G232: 278958480 | H232: =-'SCH B-2.2'!G99-'SCH B-2.2'!G103 -> -155337391 | I232: 123621089
A233: =1+A232 -> 8 | B233: ='SCH B-2.3'!B237 -> 378 | C233: ='SCH B-2.3'!C237 -> 27800 | D233: ='SCH B-2.3'!D237 -> System Meas. & Reg. Station Equipment - General | E233: ='SCH B-2.3'!L237 -> 118114591 | F233: 1 | G233: 118114591 | H233: =-'SCH B-2.2'!G100-'SCH B-2.2'!G104 -> -43319009 | I233: 74795582
A234: 9 | B234: ='SCH B-2.3'!B238 -> 378.1 | C234: ='SCH B-2.3'!C238 -> 27801 | D234: ='SCH B-2.3'!D238 -> System Meas. & Reg. Station Equipment - Electric | E234: ='SCH B-2.3'!L238 -> 2226848 | F234: 1 | G234: 2226848 | H234: =-'SCH B-2.2'!G101 -> -498564 | I234: 1728284
A235: 10 | B235: ='SCH B-2.3'!B239 -> 378.2 | C235: ='SCH B-2.3'!C239 -> 27802 | D235: ='SCH B-2.3'!D239 -> District Regulating Equipment | E235: ='SCH B-2.3'!L239 -> 2165173 | F235: 1 | G235: 2165173 | I235: 2165173
A236: =1+A235 -> 11 | B236: ='SCH B-2.3'!B240 -> 379 | C236: ='SCH B-2.3'!C240 -> 27900 | D236: ='SCH B-2.3'!D240 -> System Meas. & Reg. Station Equipment - City Gate | E236: ='SCH B-2.3'!L240 -> 1788750 | F236: 1 | G236: =ROUND((E236*F236),0) -> 1788750 | I236: =G236+H236 -> 1788750
A237: 12 | B237: ='SCH B-2.3'!B241 -> 380.1 | C237: ='SCH B-2.3'!C241 -> 28001 | D237: ='SCH B-2.3'!D241 -> Services- Cast Iron & Copper | E237: ='SCH B-2.3'!L241 -> 26708 | F237: 1 | G237: 26708 | I237: 26708
A238: 13 | B238: ='SCH B-2.3'!B242 -> 380.2 | C238: ='SCH B-2.3'!C242 -> 28002,28004 | D238: ='SCH B-2.3'!D242 -> Services-Steel | E238: ='SCH B-2.3'!L242 -> 7042161 | F238: 1 | G238: 7042161 | I238: 7042161
A239: 14 | B239: ='SCH B-2.3'!B243 -> 380.3 | C239: ='SCH B-2.3'!C243 -> 28003,28005-28007 | D239: ='SCH B-2.3'!D243 -> Services-Plastic | E239: ='SCH B-2.3'!L243 -> 247535656 | F239: 1 | G239: 247535656 | I239: 247535656
A240: 15 | B240: ='SCH B-2.3'!B244 -> 381 | C240: ='SCH B-2.3'!C244 -> 28100 | D240: ='SCH B-2.3'!D244 -> Meters | E240: ='SCH B-2.3'!L244 -> 21591079 | F240: 1 | G240: 21591079 | I240: 21591079
A241: 16 | B241: ='SCH B-2.3'!B245 -> 381.2 | C241: ='SCH B-2.3'!C245 -> 28102 | D241: ='SCH B-2.3'!D245 -> Meters | E241: ='SCH B-2.3'!L245 -> 1166690 | F241: 1 | G241: =ROUND((E241*F241),0) -> 1166690 | I241: =G241+H241 -> 1166690
A242: 17 | B242: ='SCH B-2.3'!B246 -> 382 | C242: ='SCH B-2.3'!C246 -> 28200,28201 | D242: ='SCH B-2.3'!D246 -> Meter Installations | E242: ='SCH B-2.3'!L246 -> 18022173 | F242: 1 | G242: 18022173 | I242: 18022173
A243: 18 | B243: ='SCH B-2.3'!B247 -> 383 | C243: ='SCH B-2.3'!C247 -> 28300,28301 | D243: ='SCH B-2.3'!D247 -> House Regulators | E243: ='SCH B-2.3'!L247 -> 8605923 | F243: 1 | G243: 8605923 | I243: 8605923
A244: 19 | B244: ='SCH B-2.3'!B248 -> 384 | C244: ='SCH B-2.3'!C248 -> 28400,28401 | D244: ='SCH B-2.3'!D248 -> House Regulator Installations | E244: ='SCH B-2.3'!L248 -> 6806800 | F244: 1 | G244: 6806800 | I244: 6806800
A245: 20 | B245: ='SCH B-2.3'!B249 -> 385 | C245: ='SCH B-2.3'!C249 -> 28500 | D245: ='SCH B-2.3'!D249 -> Large Industrial Meas. & Reg. Equipment | E245: ='SCH B-2.3'!L249 -> 496990 | F245: 1 | G245: 496990 | I245: 496990
A246: 21 | B246: ='SCH B-2.3'!B250 -> 385.1 | C246: ='SCH B-2.3'!C250 -> 28501 | D246: ='SCH B-2.3'!D250 -> Large Industrial Meas. & Reg. Equipment - Comm | E246: ='SCH B-2.3'!L250 -> 70766 | F246: 1 | G246: 70766 | I246: 70766
A247: 22 | B247: ='SCH B-2.3'!B251 -> 387 | C247: ='SCH B-2.3'!C251 -> 28700 | D247: ='SCH B-2.3'!D251 -> Other Equipment - Other | E247: ='SCH B-2.3'!L251 -> 59831 | F247: 1 | G247: 59831 | I247: 59831
A248: 23 | B248: ='SCH B-2.3'!B252 -> 387.1 | C248: ='SCH B-2.3'!C252 -> 28701 | D248: ='SCH B-2.3'!D252 -> Street Lighting Equipment | E248: ='SCH B-2.3'!L252 -> 30899 | F248: 1 | G248: 30899 | I248: 30899
A249: 24 | D249: Asset Retirement Cost Obligation | E249: ='SCH B-2.3'!L253 -> 7674663 | F249: 1 | G249: =ROUND((E249*F249),0) -> 7674663 | H249: =-'SCH B-2.2'!G120 -> -7674663 | I249: 0
A252: =A249+1 -> 25 | D252: Total Distribution Plant | E252: =SUM(E226:E249) -> 1076531091 | G252: =SUM(G226:G249) -> 1076531091 | H252: =SUM(H226:H249) -> -217920900 | I252: =SUM(I226:I249) -> 858610191 | K252: =IF(E252='SCH B-2.3'!L256,"BALANCED","ERROR") -> BALANCED
A256: =A174 -> DUKE ENERGY KENTUCKY, INC.
A257: =A175 -> CASE NO. 2025-00125
A258: =A176 -> PLANT IN SERVICE BY ACCOUNTS AND SUBACCOUNTS
A259: ="AS OF " &RIGHT(Forecast,(LEN(Forecast)-16)) -> AS OF DECEMBER 31, 2026
A261: GENERAL PLANT
A264: =A183 -> DATA: BASE PERIOD "X" FORECASTED PERIOD | H264: =H183 -> SCHEDULE B-2.1
A265: =A184 -> TYPE OF FILING: "X" ORIGINAL UPDATED REVISED | H265: PAGE 7 OF 8
A266: =A185 -> WORK PAPER REFERENCE NO(S).: SCHEDULE B-2.2, SCHEDULE B-2.3 | H266: WITNESS RESPONSIBLE:
H267: =H186 -> C. C. HUDSON / S. S. MITCHELL
I271: 13 Month
B272: FERC | C272: Company | E272: 13 Month | H272: 13 Month | I272: Average
A273: Line | B273: Acct. | C273: Acct. | E273: Average | F273: Jurisdictional | G273: Jurisdictional | H273: Average | I273: Adjusted
A274: No. | B274: No. | C274: No. | D274: Account Title | E274: Forecasted Period | F274: % | G274: Total | H274: Adjustments | I274: Jurisdiction
E275: $ | G275: $ | H275: $ | I275: $
A277: 1 | B277: ='SCH B-2.3'!B283 -> 303 | C277: ='SCH B-2.3'!C283 -> 20300 | D277: ='SCH B-2.3'!D283 -> Miscellaneous Intangible Plant | E277: ='SCH B-2.3'!L283 -> 20291041 | F277: 1 | G277: =ROUND(E277*F277,0) -> 20291041 | I277: =G277+H277 -> 20291041
A278: =A277+1 -> 2 | B278: ='SCH B-2.3'!B284 -> 303.3 | C278: ='SCH B-2.3'!C284 -> 20303 | D278: ='SCH B-2.3'!D284 -> Misc Intangible Plant - 3 Year | E278: ='SCH B-2.3'!L284 -> 808193 | F278: 1 | G278: =ROUND(E278*F278,0) -> 808193 | I278: =G278+H278 -> 808193
A279: 3 | B279: ='SCH B-2.3'!B285 -> 303.1 | C279: ='SCH B-2.3'!C285 -> 20310 | D279: ='SCH B-2.3'!D285 -> Misc Intangible Plant - 10 Year | E279: ='SCH B-2.3'!L285 -> 3503832 | F279: 1 | G279: =ROUND(E279*F279,0) -> 3503832 | I279: =G279+H279 -> 3503832
A280: 4 | B280: ='SCH B-2.3'!B286 -> 303.15 | C280: ='SCH B-2.3'!C286 -> 20315 | D280: ='SCH B-2.3'!D286 -> Misc Intangible Plant - 15 Year | E280: ='SCH B-2.3'!L286 -> 7481259 | F280: 1 | G280: =ROUND(E280*F280,0) -> 7481259 | I280: =G280+H280 -> 7481259
A281: 5 | B281: ='SCH B-2.3'!B287 -> 303.6 | C281: ='SCH B-2.3'!C287 -> 20360 | D281: ='SCH B-2.3'!D287 -> Interconnect Intangible - 60 Year | E281: ='SCH B-2.3'!L287 -> 1557961 | F281: 1 | G281: =ROUND(E281*F281,0) -> 1557961 | I281: =G281+H281 -> 1557961
A282: 6 | B282: ='SCH B-2.3'!B288 -> 391 | C282: ='SCH B-2.3'!C288 -> 29100 | D282: ='SCH B-2.3'!D288 -> Office Furniture & Equipment | E282: ='SCH B-2.3'!L288 -> 0 | F282: 1 | G282: 0 | H282: =-'SCH B-2.2'!G110 -> 0 | I282: 0
A283: 7 | B283: ='SCH B-2.3'!B289 -> 391.1 | C283: ='SCH B-2.3'!C289 -> 29101 | D283: ='SCH B-2.3'!D289 -> Electronic Data Processing | E283: ='SCH B-2.3'!L289 -> 247514 | F283: 1 | G283: 247514 | I283: 247514
A284: =A283+1 -> 8 | B284: ='SCH B-2.3'!B290 -> 391.15 | C284: ='SCH B-2.3'!C290 -> 29115 | D284: ='SCH B-2.3'!D290 -> Data Processing Equipment | E284: ='SCH B-2.3'!L290 -> 599101 | F284: 1 | G284: 599101 | I284: 599101
A285: 9 | B285: ='SCH B-2.3'!B291 -> 392.1 | C285: ='SCH B-2.3'!C291 -> 29201 | D285: ='SCH B-2.3'!D291 -> Trailers | E285: ='SCH B-2.3'!L291 -> 88156 | F285: 1 | G285: 88156 | I285: 88156
A286: 10 | B286: ='SCH B-2.3'!B292 -> 394 | C286: ='SCH B-2.3'!C292 -> 29400 | D286: ='SCH B-2.3'!D292 -> Tools, Shop & Garage Equipment | E286: ='SCH B-2.3'!L292 -> 3300355 | F286: 1 | G286: =ROUND(E286*F286,0) -> 3300355 | H286: =-'SCH B-2.2'!G111 -> 0 | I286: =G286+H286 -> 3300355
A287: 11 | B287: ='SCH B-2.3'!B293 -> 396 | C287: ='SCH B-2.3'!C293 -> 29600 | D287: ='SCH B-2.3'!D293 -> Power Operated Equipment | E287: ='SCH B-2.3'!L293 -> 226823 | F287: 1 | G287: =ROUND(E287*F287,0) -> 226823 | I287: =G287+H287 -> 226823
A288: 12 | B288: ='SCH B-2.3'!B294 -> 397 | C288: ='SCH B-2.3'!C294 -> 29700 | D288: ='SCH B-2.3'!D294 -> Communication Equipment | E288: ='SCH B-2.3'!L294 -> 13831273 | F288: 1 | G288: =ROUND(E288*F288,0) -> 13831273 | H288: =-'SCH B-2.2'!G112 -> 0 | I288: =G288+H288 -> 13831273
A289: 13 | B289: ='SCH B-2.3'!B295 -> 398 | C289: ='SCH B-2.3'!C295 -> 29800 | D289: ='SCH B-2.3'!D295 -> Miscellaneous Equipment | E289: ='SCH B-2.3'!L295 -> -37152 | F289: 1 | G289: -37152 | H289: =-'SCH B-2.2'!G113 -> 0 | I289: -37152
A292: =A289+1 -> 14 | D292: Total General Plant | E292: =SUM(E277:E289) -> 51898356 | G292: =SUM(G277:G289) -> 51898356 | H292: =SUM(H277:H289) -> 0 | I292: =SUM(I277:I289) -> 51898356 | K292: =IF(E292='SCH B-2.3'!L298,"BALANCED","ERROR") -> BALANCED
A295: =A292+1 -> 15 | D295: Total Gas Plant | E295: =E201+E252+E292 -> 1128429447 | G295: =G201+G252+G292 -> 1128429447 | H295: =H201+H252+H292 -> -217920900 | I295: =I201+I252+I292 -> 910508547 | K295: =IF(E295='SCH B-2.3'!L301,"BALANCED","ERROR") -> BALANCED
A299: =A174 -> DUKE ENERGY KENTUCKY, INC.
A300: =A175 -> CASE NO. 2025-00125
A301: =A176 -> PLANT IN SERVICE BY ACCOUNTS AND SUBACCOUNTS
... 24 more rows

Sheet SCH B-2.2
A1: =COMPANY -> DUKE ENERGY KENTUCKY, INC.
A2: =CASE -> CASE NO. 2025-00125
A3: ADJUSTMENTS TO PLANT IN SERVICE
A4: ="AS OF " &RIGHT(TESTYR,(LEN(TESTYR)-16)) -> AS OF AUGUST 31, 2025
A9: =Data -> DATA: "X" BASE PERIOD FORECASTED PERIOD | H9: SCHEDULE B-2.2
A10: =Type -> TYPE OF FILING: "X" ORIGINAL UPDATED REVISED | H10: PAGE 1 OF 2
A11: WORK PAPER REFERENCE NO(S).: WPB-2.2a through WPB-2.2f, WPB-2.2j | H11: WITNESS RESPONSIBLE:
H12: =_WIT7 -> C. C. HUDSON / S. S. MITCHELL
B17: FERC | C17: Company | I17: Description and
A18: Line | B18: Acct. | C18: Acct. | E18: Base | F18: Jurisdictional | G18: Jurisdictional | H18: Workpaper | I18: Purpose of
A19: No. | B19: No. | C19: No. | D19: Account Title | E19: Period | F19: % | G19: Adjustment | H19: Reference No. | I19: Adjustment
E21: $ | G21: $
B22: Manufactured Gas Production Plant
A23: 1 | B23: 304 | C23: 20400 | D23: Land and Land Rights | E23: ='WPB-2.2g'!F13 -> 0 | F23: 100 | G23: =ROUND((E23*F23/100),0) -> 0 | H23: WPB-2.2f | I23: Exclusion of
A24: 2 | B24: 304 | C24: 20401 | D24: Rights of Way | E24: ='WPB-2.2g'!F14 -> 0 | F24: =$F$23 -> 100 | G24: =ROUND((E24*F24/100),0) -> 0 | H24: =H23 -> WPB-2.2f | I24: gas facilities
A25: 3 | B25: 305 | C25: 20500 | D25: Structures & Improvements | E25: ='WPB-2.2g'!F15 -> 0 | F25: =$F$23 -> 100 | G25: =ROUND((E25*F25/100),0) -> 0 | H25: =H23 -> WPB-2.2f | I25: devoted to other
A26: 4 | B26: 311 | C26: 21100 | D26: Liquefied Petroleum Gas Equipment | E26: ='WPB-2.2g'!F16 -> 0 | F26: 100 | G26: =ROUND((E26*F26/100),0) -> 0 | H26: =H23 -> WPB-2.2f | I26: than DE-Ky
I27: customers.
A28: =A26+1 -> 5 | B28: Total Manufactured Gas Production Plant | E28: =SUM(E23:E27) -> 0 | G28: =SUM(G23:G27) -> 0
B31: Distribution Plant
A32: =A28+1 -> 6 | B32: 374 | C32: 27400 | D32: Land | E32: ='WPB-2.2g'!F22 -> 449652 | F32: =$F$23 -> 100 | G32: =ROUND((E32*F32/100),0) -> 449652 | H32: =H23 -> WPB-2.2f | I32: Exclusion of
A33: =A32+1 -> 7 | B33: =B32 -> 374 | C33: 27401 | D33: Rights of Way | E33: ='WPB-2.2g'!F23 -> 241845 | F33: 100 | G33: 241845 | H33: =H23 -> WPB-2.2f | I33: gas facilities
A34: =A33+1 -> 8 | B34: 375 | C34: 27500 | D34: Structures & Improvements | E34: ='WPB-2.2g'!F24 -> 3443399 | F34: 100 | G34: 3443399 | H34: =H23 -> WPB-2.2f | I34: devoted to other
A35: 9 | B35: 376 | C35: 27602 | D35: Gas Mains - Dist Lines/Steel | E35: ='WPB-2.2g'!F25 -> 7057 | F35: 100 | G35: =ROUND((E35*F35/100),0) -> 7057 | H35: =H24 -> WPB-2.2f | I35: than DE-Ky
A36: 10 | B36: 376 | C36: 27605 | D36: Mains-Steel Feeder Lines | E36: ='WPB-2.2g'!F26 -> 45302306 | F36: 100 | G36: 45302306 | H36: =H23 -> WPB-2.2f | I36: customers.
A37: 11 | B37: 378 | C37: 27800 | D37: System M & R Station Equip. - General | E37: ='WPB-2.2g'!F27 -> 9398269 | F37: 100 | G37: 9398269 | H37: =H23 -> WPB-2.2f
A38: 12 | B38: 378 | C38: 27801 | D38: System M & R Station Equip. | E38: ='WPB-2.2g'!F28 -> 498564 | F38: 100 | G38: 498564 | H38: =H23 -> WPB-2.2f
A39: =A38+1 -> 13 | B39: 374 | C39: 27400 | D39: Land | E39: =+'WPB-2.2j'!I15 -> 5583425 | F39: =$F$23 -> 100 | G39: =ROUND((E39*F39/100),0) -> 5583425 | H39: WPB-2.2j | I39: Exclusion of Rider PMM
A40: =A39+1 -> 14 | B40: 376 | C40: 27605 | D40: Mains-Steel Feeder Lines | E40: =+'WPB-2.2j'!I21 -> 74011112 | F40: =$F$23 -> 100 | G40: =ROUND((E40*F40/100),0) -> 74011112 | H40: =+H39 -> WPB-2.2j | I40: Exclusion of Rider PMM
A41: =A40+1 -> 15 | B41: 378 | C41: 27800 | D41: System M & R Station Equip. - General | E41: =+'WPB-2.2j'!I27 -> 18653851 | F41: =$F$23 -> 100 | G41: =ROUND((E41*F41/100),0) -> 18653851 | H41: =+H39 -> WPB-2.2j | I41: Exclusion of Rider PMM
A43: =A41+1 -> 16 | B43: Total Distribution Plant | E43: =SUM(E32:E42) -> 157589480 | G43: =SUM(G32:G42) -> 157589480
B46: General Plant
A47: =A43+1 -> 17 | B47: 391 | C47: 29100 | D47: Office Furniture & Equipment | E47: ='WPB-2.2g'!F34 -> 0 | F47: =$F$23 -> 100 | G47: =ROUND((E47*F47/100),0) -> 0 | H47: =H33 -> WPB-2.2f | I47: Exclusion of
A48: =A47+1 -> 18 | B48: 394 | C48: 29400 | D48: Tools, Shop & Garage Equipment | E48: ='WPB-2.2g'!F35 -> 0 | F48: 100 | G48: =ROUND((E48*F48/100),0) -> 0 | H48: =H34 -> WPB-2.2f | I48: gas facilities
A49: =A48+1 -> 19 | B49: 397 | C49: 29700 | D49: Communications Equipment | E49: ='WPB-2.2g'!F36 -> 0 | F49: 100 | G49: =ROUND((E49*F49/100),0) -> 0 | H49: =H35 -> WPB-2.2f | I49: devoted to other
A50: =A49+1 -> 20 | B50: 398 | C50: 29800 | D50: Miscellaneous Equipment | E50: ='WPB-2.2g'!F37 -> 0 | F50: 100 | G50: =ROUND((E50*F50/100),0) -> 0 | H50: =H36 -> WPB-2.2f | I50: than DE-Ky
I51: customers.
A52: =A50+1 -> 21 | B52: Total General Plant | E52: =SUM(E47:E51) -> 0 | G52: =SUM(G47:G51) -> 0
A54: =A52+1 -> 22 | B54: Total Gas Plant Devoted to Other than DE-KY Customers | E54: =E52+E43+E28 -> 157589480 | G54: =G52+G43+G28 -> 157589480
A56: 20 | B56: Asset Retirement Cost Obligations
A57: 21 | B57: Distribution Plant | E57: ='SCH B-2.1'!G78 -> 7154907 | F57: =$F$23 -> 100 | G57: =ROUND((E57*F57/100),0) -> 7154907 | H57: Sch. B-2.1 | I57: Remove ARO
A58: 22 | B58: Common Plant | E58: =ROUND('SCH B-2.1'!G161*CommonG,0) -> 434942 | F58: 100 | G58: 434942 | H58: Sch. B-2.1
A59: 23 | B59: Total Adjustment to ARO | E59: =SUM(E57:E58) -> 7589849 | G59: =SUM(G57:G58) -> 7589849
A61: 24 | B61: Total Adjustments to Plant in Service | E61: =E54+E59 -> 165179329 | G61: =G54+G59 -> 165179329
A64: =COMPANY -> DUKE ENERGY KENTUCKY, INC.
A65: =CASE -> CASE NO. 2025-00125
A66: ADJUSTMENTS TO PLANT IN SERVICE
A67: ="AS OF " &RIGHT(Forecast,(LEN(Forecast)-16)) -> AS OF DECEMBER 31, 2026
A72: =DataF -> DATA: BASE PERIOD "X" FORECASTED PERIOD | H72: SCHEDULE B-2.2
A73: =Type -> TYPE OF FILING: "X" ORIGINAL UPDATED REVISED | H73: PAGE 2 OF 2
A74: WORK PAPER REFERENCE NO(S).: WPB-2.2g, WPB-2.2j | H74: WITNESS RESPONSIBLE:
H75: =_WIT7 -> C. C. HUDSON / S. S. MITCHELL
E79: 13 Month
B80: FERC | C80: Company | E80: Average | I80: Description and
A81: Line | B81: Acct. | C81: Acct. | E81: Forecasted | F81: Jurisdictional | G81: Jurisdictional | H81: Workpaper | I81: Purpose of
A82: No. | B82: No. | C82: No. | D82: Account Title | E82: Period | F82: % | G82: Adjustment | H82: Reference No. | I82: Adjustment
E84: $ | G84: $
B85: Manufactured Gas Production Plant
A86: 1 | B86: 304 | C86: =C23 -> 20400 | D86: Land and Land Rights | E86: ='WPB-2.2g'!K13 -> 0 | F86: 100 | G86: =ROUND((E86*F86/100),0) -> 0 | H86: WPB-2.2g | I86: Exclusion of
A87: 2 | B87: 304 | C87: =C24 -> 20401 | D87: Rights of Way | E87: ='WPB-2.2g'!K14 -> 0 | F87: =$F$86 -> 100 | G87: =ROUND((E87*F87/100),0) -> 0 | H87: =H86 -> WPB-2.2g | I87: gas facilities
A88: 3 | B88: 305 | C88: =C25 -> 20500 | D88: Structures & Improvements | E88: ='WPB-2.2g'!K15 -> 0 | F88: =$F$86 -> 100 | G88: =ROUND((E88*F88/100),0) -> 0 | H88: =H86 -> WPB-2.2g | I88: devoted to other
A89: 4 | B89: 311 | C89: =C26 -> 21100 | D89: Liquefied Petroleum Gas Equipment | E89: =E91-(SUM(E86:E88)) -> 0 | F89: 100 | G89: =ROUND((E89*F89/100),0) -> 0 | I89: than DE-Ky
I90: customers.
A91: =A89+1 -> 5 | B91: Total Manufactured Gas Production Plant | E91: ='WPB-2.2g'!K18 -> 0 | G91: =SUM(G86:G90) -> 0
B94: Distribution Plant
A95: =A91+1 -> 6 | B95: 374 | C95: =C32 -> 27400 | D95: Land | E95: ='WPB-2.2g'!K22 -> 449652 | F95: =$F$86 -> 100 | G95: =ROUND((E95*F95/100),0) -> 449652 | H95: =H86 -> WPB-2.2g | I95: Exclusion of
A96: =A95+1 -> 7 | B96: =B95 -> 374 | C96: 27401 | D96: Rights of Way | E96: ='WPB-2.2g'!K23 -> 241845 | F96: 100 | G96: 241845 | H96: =H86 -> WPB-2.2g | I96: gas facilities
A97: 8 | B97: 375 | C97: 27500 | D97: Structures & Improvements | E97: ='WPB-2.2g'!K24 -> 3443399 | F97: 100 | G97: 3443399 | H97: =H86 -> WPB-2.2g | I97: devoted to other
A98: 9 | B98: 376 | C98: 27602 | D98: Mains-Steel | E98: ='WPB-2.2g'!K25 -> 7057 | F98: 100 | G98: =ROUND((E98*F98/100),0) -> 7057 | H98: =H87 -> WPB-2.2g | I98: than DE-Ky
A99: 10 | B99: 376 | C99: 27605 | D99: Mains-Steel Feeder Lines | E99: ='WPB-2.2g'!K26 -> 45302306 | F99: 100 | G99: 45302306 | H99: =H86 -> WPB-2.2g | I99: customers.
A100: 11 | B100: 378 | C100: 27800 | D100: System M & R Station Equip. - General | E100: ='WPB-2.2g'!K27 -> 9398269 | F100: 100 | G100: 9398269 | H100: =H86 -> WPB-2.2g
A101: 12 | B101: 378 | C101: 27801 | D101: System M & R Station Equip. | E101: ='WPB-2.2g'!K28 -> 498564 | F101: 100 | G101: 498564 | H101: =H86 -> WPB-2.2g
A102: =A101+1 -> 13 | B102: 374 | C102: 27400 | D102: Land | E102: =+'WPB-2.2j'!AA15 -> 6949320 | F102: =$F$86 -> 100 | G102: =ROUND((E102*F102/100),0) -> 6949320 | H102: WPB-2.2j | I102: Exclusion of Rider PMM
A103: =A102+1 -> 14 | B103: 376 | C103: 27605 | D103: Mains-Steel Feeder Lines | E103: =+'WPB-2.2j'!AA21 -> 110035085 | F103: =$F$86 -> 100 | G103: =ROUND((E103*F103/100),0) -> 110035085 | H103: =+H102 -> WPB-2.2j | I103: Exclusion of Rider PMM
A104: =A103+1 -> 15 | B104: 378 | C104: 27800 | D104: System M & R Station Equip. - General | E104: =+'WPB-2.2j'!AA27 -> 33920740 | F104: =$F$86 -> 100 | G104: =ROUND((E104*F104/100),0) -> 33920740 | H104: =+H102 -> WPB-2.2j | I104: Exclusion of Rider PMM
A106: =A104+1 -> 16 | B106: Total Distribution Plant | E106: =SUM(E95:E105) -> 210246237 | G106: =SUM(G95:G105) -> 210246237
B109: General Plant
A110: =A106+1 -> 17 | B110: 391 | C110: =C47 -> 29100 | D110: Office Furniture & Equipment | E110: ='WPB-2.2g'!K34 -> 0 | F110: =$F$86 -> 100 | G110: =ROUND((E110*F110/100),0) -> 0 | H110: =H96 -> WPB-2.2g | I110: Exclusion of
A111: =A110+1 -> 18 | B111: 394 | C111: =C48 -> 29400 | D111: Tools, Shop & Garage Equipment | E111: ='WPB-2.2g'!K35 -> 0 | F111: 100 | G111: =ROUND((E111*F111/100),0) -> 0 | H111: =H97 -> WPB-2.2g | I111: gas facilities
A112: =A111+1 -> 19 | B112: 397 | C112: 29700 | D112: Communications Equipment | E112: ='WPB-2.2g'!K36 -> 0 | F112: 100 | G112: =ROUND((E112*F112/100),0) -> 0 | H112: =H98 -> WPB-2.2g | I112: devoted to other
A113: =A112+1 -> 20 | B113: 398 | C113: =C50 -> 29800 | D113: Miscellaneous Equipment | E113: ='WPB-2.2g'!K37 -> 0 | F113: 100 | G113: =ROUND((E113*F113/100),0) -> 0 | H113: =H99 -> WPB-2.2g | I113: than DE-Ky
I114: customers.
A115: =A113+1 -> 21 | B115: Total General Plant | E115: =SUM(E110:E114) -> 0 | G115: =SUM(G110:G114) -> 0
A117: =A115+1 -> 22 | B117: Total Gas Plant Devoted to Other than DE-KY Customers | E117: =E115+E106+E91 -> 210246237 | G117: =G115+G106+G91 -> 210246237
A119: 20 | B119: Asset Retirement Cost Obligations
A120: 21 | B120: Distribution Plant | E120: ='SCH B-2.1'!G249 -> 7674663 | F120: =$F$86 -> 100 | G120: =ROUND((E120*F120/100),0) -> 7674663 | H120: Sch. B-2.1 | I120: Remove ARO
A121: 22 | B121: Common Plant | E121: =ROUND('SCH B-2.1'!G329*CommonG,0) -> 434942 | F121: 100 | G121: 434942 | H121: Sch. B-2.1
A122: 23 | B122: Total Adjustment to ARO | E122: =SUM(E120:E121) -> 8109605 | G122: =SUM(G120:G121) -> 8109605
A124: 24 | B124: Total Adjustments to Plant in Service | E124: =E117+E122 -> 218355842 | G124: =G117+G122 -> 218355842

Sheet WPB-2.2a-f - Base
D1: WPB-2.2a
D2: WITNESS RESPONSIBLE:
D3: =_WIT7 -> C. C. HUDSON / S. S. MITCHELL
A5: =COMPANY -> DUKE ENERGY KENTUCKY, INC.
A6: =CASE -> CASE NO. 2025-00125
A7: GAS FACILITIES DEVOTED TO OTHER THAN KENTUCKY CUSTOMERS
A8: AS OF FEBRUARY 28, 2025
E10: (2)
A11: Company | C11: Original | E11: Other Than
A12: Account | C12: Cost (1) | D12: Allocation | E12: KY Customers
A13: Number | B13: Title | C13: $ | D13: % | E13: $
A15: Propane Cavern-Processing Facilities (3)
B17: Production-Manufactured Gas
A18: =AE255 -> 20400 | B18: Land & Land Rights | C18: 0 | D18: 0.642 | E18: =ROUND(C18*D18,0) -> 0
A19: =AE256 -> 20401 | B19: Rights of Way | C19: 0 | D19: =D18 -> 0.642 | E19: =ROUND(C19*D19,0) -> 0
A20: =AE257 -> 20500 | B20: Structures & Improvements | C20: 0 | D20: =D18 -> 0.642 | E20: =ROUND(C20*D20,0) -> 0
A21: =AE258 -> 21100 | B21: Liquefied Petroleum Gas Equipment | C21: 0 | D21: =D18 -> 0.642 | E21: =ROUND(C21*D21,0) -> 0
B23: Distribution
A24: 27400 | B24: Land U-119 | C24: 0 | D24: =KyAvgAlloc -> 0.380261 | E24: =ROUND(C24*D24,0) -> 0
A25: 27602 | B25: Gas Mains - Dist Lines/Steel | C25: 0 | D25: =D18 -> 0.642 | E25: =ROUND(C25*D25,0) -> 0
A26: 27800 | B26: System M & R Station Equip. - General | C26: 0 | D26: =D19 -> 0.642 | E26: =ROUND(C26*D26,0) -> 0
A27: 27801 | B27: System M&R Equipment #149 | C27: 0 | D27: =D18 -> 0.642 | E27: =ROUND(C27*D27,0) -> 0
B29: General
A30: =AE276 -> 29100 | B30: Office Furniture & Equipment #936 | C30: 0 | D30: =D18 -> 0.642 | E30: =ROUND(C30*D30,0) -> 0
A31: 29400 | B31: Tools, Shop & Garage Equipment #936 | C31: 0 | D31: =D30 -> 0.642 | E31: =ROUND(C31*D31,0) -> 0
A32: 29700 | B32: Communication Equipment | C32: 0 | D32: =D30 -> 0.642 | E32: =ROUND(C32*D32,0) -> 0
B34: Total | C34: =SUM(C18:C33) -> 0 | E34: =SUM(E18:E33) -> 0
A36: Gas Feeder- Line AM
B38: Distribution
A39: 27400 | B39: Land & Land Rights | C39: =ROUND(SUMIFS(WPB2.2_iBook,WPB2.2_iAccount,"="&A39,WPB2_2iCode,"="&$A$36),2) -> 404165 | D39: =KyAvgAlloc -> 0.380261 | E39: =ROUND(C39*D39,0) -> 153688
A40: 27401 | B40: Rights of Way | C40: =ROUND(SUMIFS(WPB2.2_iBook,WPB2.2_iAccount,"="&A40,WPB2_2iCode,"="&$A$36),2) -> 26951 | D40: =D39 -> 0.380261 | E40: =ROUND(C40*D40,0) -> 10248
A41: 27605 | B41: Mains-Steel Feeder Lines | C41: =ROUND(SUMIFS(WPB2.2_iBook,WPB2.2_iAccount,"="&A41,WPB2_2iCode,"="&$A$36),2) -> 16218132 | D41: =D39 -> 0.380261 | E41: =ROUND(C41*D41,0) -> 6167123
B43: Total | C43: =SUM(C39:C42) -> 16649248 | E43: =SUM(E39:E42) -> 6331059
A48: (1) Includes account 106
A49: (2) To WPB-2.2f
A50: (3) Propane caverns are no longer in plant-in-service
A57: Sources:
A58: Rate Department supplies allocation rates
J60: WPB-2.2b
J61: WITNESS RESPONSIBLE:
J62: =D3 -> C. C. HUDSON / S. S. MITCHELL
G64: =COMPANY -> DUKE ENERGY KENTUCKY, INC.
G65: =CASE -> CASE NO. 2025-00125
G66: GAS FACILITIES DEVOTED TO OTHER THAN KENTUCKY CUSTOMERS
G67: =$A$8 -> AS OF FEBRUARY 28, 2025
K69: (2)
G70: Company | I70: Original | K70: Other Than
G71: Account | I71: Cost (1) | J71: Allocation | K71: KY Customers
G72: Number | H72: Title | I72: $ | J72: % | K72: $
G74: Gas Feeder- Line AM-1-River Crossing
H76: Distribution
G77: =AE264 -> 27400 | H77: Land & Land Rights | I77: =ROUND(SUMIFS(WPB2.2_iBook,WPB2.2_iAccount,"="&G77,WPB2_2iCode,"="&$G$74),2) -> 0 | J77: 1 | K77: =ROUND(I77*J77,0) -> 0
G78: 27605 | H78: Mains-Steel Feeder Lines | I78: =ROUND(SUMIFS(WPB2.2_iBook,WPB2.2_iAccount,"="&G78,WPB2_2iCode,"="&$G$74),2) -> 0 | J78: =J77 -> 1 | K78: =ROUND(I78*J78,0) -> 0
H80: General
G81: =AE279 -> 29800 | H81: Miscellaneous Equipment | I81: =ROUND(SUMIFS(WPB2.2_iBook,WPB2.2_iAccount,"="&G81,WPB2_2iCode,"="&$G$74),2) -> 0 | J81: =J77 -> 1 | K81: =ROUND(I81*J81,0) -> 0
H83: Total | I83: =SUM(I77:I82) -> 0 | K83: =SUM(K77:K82) -> 0
G85: Gas Feeder- Line AM-1-Other
H87: Distribution
G88: =AE264 -> 27400 | H88: Land & Land Rights | I88: =ROUND(SUMIFS(WPB2.2_iBook,WPB2.2_iAccount,"="&G88,WPB2_2iCode,"="&$G$85),2) -> 3315 | J88: =D39 -> 0.380261 | K88: =ROUND(I88*J88,0)-1 -> 1260
G89: =AE265 -> 27401 | H89: Rights of Way | I89: =ROUND(SUMIFS(WPB2.2_iBook,WPB2.2_iAccount,"="&G89,WPB2_2iCode,"="&$G$85),2) -> 21371 | J89: =J88 -> 0.380261 | K89: =ROUND(I89*J89,0) -> 8127
G90: 27500 | H90: Structures & Improvements | I90: =ROUND(SUMIFS(WPB2.2_iBook,WPB2.2_iAccount,"="&G90,WPB2_2iCode,"="&$G$85),2) -> 5449701 | J90: =J88 -> 0.380261 | K90: =ROUND(I90*J90,0) -> 2072309
G91: 27605 | H91: Mains-Steel Feeder Lines | I91: =ROUND(SUMIFS(WPB2.2_iBook,WPB2.2_iAccount,"="&G91,WPB2_2iCode,"="&$G$85),2) -> 3178509 | J91: =J88 -> 0.380261 | K91: =ROUND(I91*J91,0) -> 1208663
H93: Total | I93: =SUM(I88:I92) -> 8652896 | K93: =SUM(K88:K92) -> 3290359
G96: (1) Includes account 106
G97: (2) To WPB-2.2f
P101: WPB-2.2c
P102: WITNESS RESPONSIBLE:
P103: =D3 -> C. C. HUDSON / S. S. MITCHELL
M105: =COMPANY -> DUKE ENERGY KENTUCKY, INC.
M106: =CASE -> CASE NO. 2025-00125
M107: GAS FACILITIES DEVOTED TO OTHER THAN KENTUCKY CUSTOMERS
M108: =$A$8 -> AS OF FEBRUARY 28, 2025
Q110: (2)
M111: Company | O111: Original | Q111: Other Than
M112: Account | O112: Cost (1) | P112: Allocation | Q112: KY Customers
M113: Number | N113: Title | O113: $ | P113: % | Q113: $
M115: Gas Feeder- Line AM-2-River Crossing
N117: Distribution
M118: 27605 | N118: Mains-Steel Feeder Lines | O118: =ROUND(SUMIFS(WPB2.2_iBook,WPB2.2_iAccount,"="&M118,WPB2_2iCode,"="&$M$115),2) -> 561888 | P118: 1 | Q118: =ROUND(O118*P118,0) -> 561888
N120: General
M121: =AE279 -> 29800 | N121: Miscellaneous Equipment | O121: =ROUND(SUMIFS(WPB2.2_iBook,WPB2.2_iAccount,"="&M121,WPB2_2iCode,"="&$M$115),2) -> 0 | P121: =P118 -> 1 | Q121: =ROUND(O121*P121,0) -> 0
N123: Total | O123: =SUM(O118:O122) -> 561888 | Q123: =SUM(Q118:Q122) -> 561888
M125: Gas Feeder- Line AM-2-Other
N127: Distribution
M128: =AE265 -> 27401 | N128: Rights of Way | O128: =ROUND(SUMIFS(WPB2.2_iBook,WPB2.2_iAccount,"="&M128,WPB2_2iCode,"="&$M$125),2) -> 120800 | P128: =D39 -> 0.380261 | Q128: =ROUND(O128*P128,0) -> 45936
M129: 27500 | N129: Structures & Improvements | O129: =ROUND(SUMIFS(WPB2.2_iBook,WPB2.2_iAccount,"="&M129,WPB2_2iCode,"="&$M$125),2) -> 878751 | P129: =P128 -> 0.380261 | Q129: =ROUND(O129*P129,0) -> 334155
M130: 27605 | N130: Mains-Steel Feeder Lines | O130: =ROUND(SUMIFS(WPB2.2_iBook,WPB2.2_iAccount,"="&M130,WPB2_2iCode,"="&$M$125),2) -> 1574530 | P130: =P128 -> 0.380261 | Q130: =ROUND(O130*P130,0)+1 -> 598733
N132: Total | O132: =SUM(O128:O131) -> 2574081 | Q132: =SUM(Q128:Q131) -> 978824
M135: (1) Includes account 106
M136: (2) To WPB-2.2f
V146: WPB-2.2d
V147: WITNESS RESPONSIBLE:
V148: =D3 -> C. C. HUDSON / S. S. MITCHELL
S150: =COMPANY -> DUKE ENERGY KENTUCKY, INC.
S151: =CASE -> CASE NO. 2025-00125
S152: GAS FACILITIES DEVOTED TO OTHER THAN KENTUCKY CUSTOMERS
S153: =$A$8 -> AS OF FEBRUARY 28, 2025
W155: (2)
S156: Company | U156: Original | W156: Other Than
S157: Account | U157: Cost (1) | V157: Allocation | W157: KY Customers
S158: Number | T158: Title | U158: $ | V158: % | W158: $
S160: Gas Feeder- Line AM-7-River Crossing
T162: Distribution
S163: 27605 | T163: Mains-Steel Feeder Lines | U163: =ROUND(SUMIFS(WPB2.2_iBook,WPB2.2_iAccount,"="&S163,WPB2_2iCode,"="&$S$160),2) -> 231295 | V163: 1 | W163: =ROUND(U163*V163,0) -> 231295
T165: General
S166: =AE279 -> 29800 | T166: Miscellaneous Equipment | U166: =ROUND(SUMIFS(WPB2.2_iBook,WPB2.2_iAccount,"="&S166,WPB2_2iCode,"="&$S$160),2) -> 0 | V166: =V163 -> 1 | W166: =ROUND(U166*V166,0) -> 0
T168: Total | U168: =SUM(U163:U167) -> 231295 | W168: =SUM(W163:W167) -> 231295
S170: Gas Feeder- Line AM-7-Other
T172: Distribution
S173: =AE264 -> 27400 | T173: Land & Land Rights | U173: =ROUND(SUMIFS(WPB2.2_iBook,WPB2.2_iAccount,"="&S173,WPB2_2iCode,"="&$S$170),2) -> 0 | V173: ='WPB-2.2a-f - Base'!J88 -> 0.380261 | W173: =ROUND(U173*V173,0) -> 0
S174: 27401 | T174: Rights of Way | U174: =ROUND(SUMIFS(WPB2.2_iBook,WPB2.2_iAccount,"="&S174,WPB2_2iCode,"="&$S$170),2) -> 103213 | V174: ='WPB-2.2a-f - Base'!J89 -> 0.380261 | W174: =ROUND(U174*V174,0) -> 39248
S175: 27500 | T175: Structures & Improvements | U175: =ROUND(SUMIFS(WPB2.2_iBook,WPB2.2_iAccount,"="&S175,WPB2_2iCode,"="&$S$170),2) -> 400982 | V175: ='WPB-2.2a-f - Base'!J90 -> 0.380261 | W175: =ROUND(U175*V175,0) -> 152478
S176: 27605 | T176: Mains-Steel Feeder Lines | U176: =ROUND(SUMIFS(WPB2.2_iBook,WPB2.2_iAccount,"="&S176,WPB2_2iCode,"="&$S$170),2) -> 34082069 | V176: =V173 -> 0.380261 | W176: =ROUND(U176*V176,0) -> 12960082
T178: Total | U178: =SUM(U173:U177) -> 34586264 | W178: =SUM(W173:W177) -> 13151808
S181: (1) Includes account 106
S182: (2) To WPB-2.2f
AB190: WPB-2.2e
AB191: WITNESS RESPONSIBLE:
AB192: =D3 -> C. C. HUDSON / S. S. MITCHELL
Y194: =COMPANY -> DUKE ENERGY KENTUCKY, INC.
Y195: =CASE -> CASE NO. 2025-00125
Y196: GAS FACILITIES DEVOTED TO OTHER THAN KENTUCKY CUSTOMERS
Y197: =$A$8 -> AS OF FEBRUARY 28, 2025
AC199: (2)
Y200: Company | AA200: Original | AC200: Other Than
Y201: Account | AA201: Cost (1) | AB201: Allocation | AC201: KY Customers
Y202: Number | Z202: Title | AA202: $ | AB202: % | AC202: $
Y204: Gas Feeder- Line UL-6
Z206: Distribution
Y207: =AE264 -> 27400 | Z207: Land (Three Mile Station) | AA207: =ROUND(SUMIFS(WPB2.2_iBook,WPB2.2_iAccount,"="&Y207,WPB2_2iCode,"="&$Y$204),2) -> 21748 | AB207: =D39 -> 0.380261 | AC207: =ROUND(AA207*AB207,0) -> 8270
Y208: =AE265 -> 27401 | Z208: Rights of Way | AA208: 305485 | AB208: =AB207 -> 0.380261 | AC208: 116164
Y209: =AE266 -> 27500 | Z209: Struc. & Improv. (Three Mile Station) | AA209: 1526712 | AB209: =AB207 -> 0.380261 | AC209: 580549
Y210: 27602 | Z210: Gas Mains - Dist Lines/Steel | AA210: 11096 | AB210: =AB207 -> 0.380261 | AC210: =ROUND(AA210*AB210,0) -> 4219
Y211: 27605 | Z211: Mains-Steel Feeder Lines | AA211: 11945314 | AB211: =AB207 -> 0.380261 | AC211: =ROUND(AA211*AB211,0) -> 4542337
Y212: =AE269 -> 27800 | Z212: System M & R Station Equip. - General | AA212: 24505980 | AB212: =AB207 -> 0.380261 | AC212: 9318668
Y213: =AE270 -> 27801 | Z213: System M & R Station Equip. | AA213: 1311111 | AB213: =AB207 -> 0.380261 | AC213: 498564
Z215: Total | AA215: =SUM(AA207:AA214) -> 39627446 | AC215: =SUM(AC207:AC214) -> 15068771
Y218: Gas Feeder Lines Kentucky
Z220: Distribution
Y221: 27400 | Z221: Land & Land Rights | AA221: =ROUND(SUMIFS(WPB2.2_iBook,WPB2.2_iAccount,"="&Y221,WPB2_2iCode,"="&$Y$218),2) -> 753257 | AB221: =D39 -> 0.380261 | AC221: =ROUND(AA221*AB221,0) -> 286434
Y222: 27401 | Z222: Rights of Way | AA222: 58177 | AB222: =AB221 -> 0.380261 | AC222: =ROUND(AA222*AB222,0) -> 22122
Y223: 27500 | Z223: Structures & Improvements | AA223: 799208 | AB223: =AB221 -> 0.380261 | AC223: =ROUND(AA223*AB223,0) -> 303908
Y224: 27602 | Z224: Gas Mains - Dist Lines/Steel | AA224: 7463 | AB224: =AB221 -> 0.380261 | AC224: 2838
Y225: 27605 | Z225: Mains-Steel Feeder Lines | AA225: 50050320 | AB225: =AB221 -> 0.380261 | AC225: 19032185
Y226: 27800 | Z226: System M & R Station Equip. - General | AA226: 209331 | AB226: =AB221 -> 0.380261 | AC226: =ROUND(AA226*AB226,0)+1 -> 79601
Z228: Total | AA228: =SUM(AA221:AA226) -> 51877756 | AC228: =SUM(AC221:AC226) -> 19727088
Y234: (1) Includes account 106
Y235: (2) To WPB-2.2f
AQ239: WPB-2.2f
AQ240: WITNESS RESPONSIBLE:
AQ241: =D3 -> C. C. HUDSON / S. S. MITCHELL
AE243: =COMPANY -> DUKE ENERGY KENTUCKY, INC.
AE244: =CASE -> CASE NO. 2025-00125
AE245: ORIGINAL COST APPLICABLE TO GAS FACILITIES
AE246: DEVOTED TO OTHER THAN KENTUCKY CUSTOMERS
AE247: =$A$8 -> AS OF FEBRUARY 28, 2025
AS249: (1)
AG250: Propane | AI250: Gas Feeder Lines | AS250: Total
AE251: Account | AG251: Cavern | AJ251: AM-1 River | AL251: AM-2 River | AN251: AM-7 River | AQ251: Gas Feeder | AS251: Other than
AE252: Number | AF252: Title | AG252: & Proc Fac | AI252: AM | AJ252: Crossing | AK252: AM-1 Other | AL252: Crossing | AM252: AM-2 Other | AN252: Crossing | AO252: AM-7 Other | AP252: UL-6 Other | AQ252: Lines Kentucky | AS252: KY Cust
AF254: Production-Manufactured Gas
AE255: ='SCH B-2.2'!C23 -> 20400 | AF255: Land & Land Rights | AG255: =E18 -> 0 | AS255: =SUM(AG255:AQ255) -> 0
AE256: ='SCH B-2.2'!C24 -> 20401 | AF256: Rights of Way | AG256: =E19 -> 0 | AS256: =SUM(AG256:AQ256) -> 0
AE257: ='SCH B-2.2'!C25 -> 20500 | AF257: Structures & Improvements | AG257: =E20 -> 0 | AS257: =SUM(AG257:AQ257) -> 0
AE258: ='SCH B-2.2'!C26 -> 21100 | AF258: Liquefied Petroleum Gas Equipment | AG258: =E21 -> 0 | AS258: =SUM(AG258:AQ258) -> 0
AF260: Total | AG260: =SUM(AG255:AG259) -> 0 | AS260: =SUM(AG260:AQ260) -> 0
AF263: Distribution
AE264: ='SCH B-2.2'!C32 -> 27400 | AF264: Land & Land Rights | AG264: =E24 -> 0 | AI264: =E39 -> 153688 | AJ264: =K77 -> 0 | AK264: =K88 -> 1260 | AP264: =AC207 -> 8270 | AQ264: =AC221 -> 286434 | AS264: =SUM(AG264:AQ264) -> 449652
AE265: ='SCH B-2.2'!C33 -> 27401 | AF265: Rights of Way | AI265: =E40 -> 10248 | AK265: =K89 -> 8127 | AM265: =Q128 -> 45936 | AO265: =W174 -> 39248 | AP265: 116164 | AQ265: =AC222 -> 22122 | AS265: 241845
AE266: ='SCH B-2.2'!C34 -> 27500 | AF266: Structures & Improvements | AK266: =K90 -> 2072309 | AM266: =Q129 -> 334155 | AO266: =W175 -> 152478 | AP266: 580549 | AQ266: =AC223 -> 303908 | AS266: 3443399
AE267: 27602 | AF267: Gas Mains - Dist Lines/Steel | AG267: =E25 -> 0 | AP267: 4219 | AQ267: 2838 | AS267: 7057
AE268: 27605 | AF268: Mains-Steel Feeder Lines | AI268: =E41 -> 6167123 | AJ268: =K78 -> 0 | AK268: =K91 -> 1208663 | AL268: =Q118 -> 561888 | AM268: =Q130 -> 598733 | AN268: =W163 -> 231295 | AO268: =W176 -> 12960082 | AP268: 4542337 | AQ268: 19032185 | AS268: 45302306
AE269: ='SCH B-2.2'!C37 -> 27800 | AF269: System M & R Station Equip. - General | AG269: =E26 -> 0 | AP269: 9318668 | AQ269: 79601 | AS269: 9398269
AE270: ='SCH B-2.2'!C38 -> 27801 | AF270: System M & R Station Equip. | AG270: =E27 -> 0 | AP270: 498564 | AS270: 498564
AF272: Total | AG272: =SUM(AG264:AG271) -> 0 | AI272: =SUM(AI264:AI271) -> 6331059 | AJ272: 0 | AK272: 3290359 | AL272: 561888 | AM272: 978824 | AN272: 231295 | AO272: 13151808 | AP272: 15068771 | AQ272: =SUM(AQ264:AQ271) -> 19727088 | AS272: =SUM(AS264:AS271) -> 59341092
AF275: General
AE276: ='SCH B-2.2'!C47 -> 29100 | AF276: Office Furniture & Equipment #936 | AG276: =E30 -> 0 | AS276: =SUM(AG276:AQ276) -> 0
AE277: ='SCH B-2.2'!C48 -> 29400 | AF277: Tools, Shop & Garage Equipment #936 | AG277: =E31 -> 0 | AS277: =SUM(AG277:AQ277) -> 0
AE278: 29700 | AF278: Communication Equipment | AG278: =E32 -> 0 | AS278: =SUM(AG278:AQ278) -> 0
AE279: ='SCH B-2.2'!C50 -> 29800 | AF279: Miscellaneous Equipment | AJ279: =K81 -> 0 | AL279: =Q121 -> 0 | AN279: =W166 -> 0 | AS279: =SUM(AG279:AQ279) -> 0
AF281: Total | AG281: =SUM(AG276:AG280) -> 0 | AJ281: =SUM(AJ276:AJ280) -> 0 | AL281: =SUM(AL276:AL280) -> 0 | AN281: =SUM(AN276:AN280) -> 0 | AS281: =SUM(AS276:AS280) -> 0
AF284: Grand Total | AG284: =AG281+AG272+AG260 -> 0 | AI284: =AI281+AI272+AI260 -> 6331059 | AJ284: 0 | AK284: 3290359 | AL284: 561888 | AM284: 978824 | AN284: 231295 | AO284: 13151808 | AP284: 15068771 | AQ284: =AQ281+AQ272+AQ260 -> 19727088 | AS284: =AS281+AS272+AS260 -> 59341092
AF286: Work Paper Reference from: | AG286: (WPB-2.2a) | AI286: (WPB-2.2a) | AJ286: (WPB-2.2b) | AK286: (WPB-2.2b) | AL286: (WPB-2.2c) | AM286: (WPB-2.2c) | AN286: (WPB-2.2d) | AO286: (WPB-2.2d) | AP286: (WPB-2.2e) | AQ286: (WPB-2.2e)
AG287: =IF(AG284=E34,"","ERROR") ->  | AI287: =IF(AI284=E43,"","ERROR") ->  | AJ287: =IF(AJ284=K83,"","ERROR") ->  | AK287: =IF(AK284=K93,"","ERROR") ->  | AL287: =IF(AL284=Q123,"","ERROR") ->  | AM287: =IF(AM284=Q132,"","ERROR") ->  | AN287: =IF(AN284=W168,"","ERROR") ->  | AO287: =IF(AO284=W178,"","ERROR") ->  | AP287: =IF(AP284=AC215,"","ERROR") ->  | AQ287: =IF(AQ284=AC228,"","ERROR") ->  | AS287: =IF(AS284=ROUND(SUM(WPB2.2_iAllocCost),0),"","ERROR") -> 
AE289: (1) To Schedule B-2.2 | AS289: ='WPB-2.2i Erlanger'!E40 -> 59341092

Sheet WPB-2.2g
A1: =COMPANY -> DUKE ENERGY KENTUCKY, INC. | N1: WPB-2.2g
A2: =CASE -> CASE NO. 2025-00125 | N2: WITNESS RESPONSIBLE:
A3: GAS FACILITIES DEVOTED TO OTHER THAN KENTUCKY CUSTOMERS | N3: =_WIT7 -> C. C. HUDSON / S. S. MITCHELL
C6: Original Cost
A7: Account | C7: Other than | P7: Thirteen
A8: Number | B8: Title | C8: KY Customers | D8: Accum Reserve | E8: Additions | F8: Original Cost | G8: Rate | H8: Mar - Aug 25 | I8: Accum Reserve | J8: Additions | K8: Original Cost | L8: Rate | M8: Sept 25 - Dec 26 | N8: Accum Reserve | P8: Month
C9: 2/25 | D9: =C9 -> 2/25 | E9: 3/25-8/25 | F9: 8/25 | H9: Expense | I9: =F9 -> 8/25 | J9: through 12/26 | K9: 12/26 | M9: Expense | N9: =K9 -> 12/26 | P9: Average
B12: Production-Manufactured Gas
A13: ='SCH B-2.2'!C23 -> 20400 | B13: Land and Land Rights | C13: ='WPB-2.2a-f - Base'!AG255 -> 0 | D13: =ROUND(SUMIFS(WPB2.2i_AllocRes,WPB2.2_iAccount,"="&A13,WPB2_2iCode,"="&'WPB-2.2a-f - Base'!$A$15),0) -> 0 | F13: =C13+E13 -> 0 | G13: 0 | H13: =ROUND(F13*G13/12*6,0) -> 0 | I13: =D13+H13 -> 0 | K13: =F13+J13 -> 0 | L13: =G13 -> 0 | M13: =ROUND(AVERAGE(F13,K13)*(G13/12)*16,0) -> 0 | N13: =I13+M13 -> 0 | P13: =ROUND(((I13+(M13/16*4))+N13)/2,0) -> 0
A14: ='SCH B-2.2'!C24 -> 20401 | B14: Rights of Way | C14: ='WPB-2.2a-f - Base'!AG256 -> 0 | D14: =ROUND(SUMIFS(WPB2.2i_AllocRes,WPB2.2_iAccount,"="&A14,WPB2_2iCode,"="&'WPB-2.2a-f - Base'!$A$15),0) -> 0 | F14: =C14+E14 -> 0 | G14: 0 | H14: =ROUND(F14*G14/12*6,0) -> 0 | I14: =D14+H14 -> 0 | K14: 0 | L14: =G14 -> 0 | M14: 0 | N14: =I14+M14 -> 0 | P14: =ROUND(((I14+(M14/16*4))+N14)/2,0) -> 0
A15: ='SCH B-2.2'!C25 -> 20500 | B15: Structures & Improvements | C15: ='WPB-2.2a-f - Base'!AG257 -> 0 | D15: =ROUND(SUMIFS(WPB2.2i_AllocRes,WPB2.2_iAccount,"="&A15,WPB2_2iCode,"="&'WPB-2.2a-f - Base'!$A$15),0) -> 0 | F15: =C15+E15 -> 0 | G15: 0 | H15: =ROUND(F15*G15/12*6,0) -> 0 | I15: =D15+H15 -> 0 | K15: 0 | L15: =G15 -> 0 | M15: 0 | N15: =I15+M15 -> 0 | P15: =ROUND(((I15+(M15/16*4))+N15)/2,0) -> 0
A16: ='SCH B-2.2'!C26 -> 21100 | B16: Liquefied Petroleum Gas Equipment | C16: ='WPB-2.2a-f - Base'!AG258 -> 0 | D16: =ROUND(SUMIFS(WPB2.2i_AllocRes,WPB2.2_iAccount,"="&A16,WPB2_2iCode,"="&'WPB-2.2a-f - Base'!$A$15),0) -> 0 | F16: =C16+E16 -> 0 | G16: 0 | H16: =ROUND(F16*G16/12*6,0) -> 0 | I16: =D16+H16 -> 0 | K16: 0 | L16: =G16 -> 0 | M16: 0 | N16: =I16+M16 -> 0 | P16: =ROUND(((I16+(M16/16*4))+N16)/2,0) -> 0
B18: Total | C18: =SUM(C13:C17) -> 0 | D18: =SUM(D13:D17) -> 0 | E18: =SUM(E13:E16) -> 0 | F18: =SUM(F13:F16) -> 0 | H18: =SUM(H13:H17) -> 0 | I18: =SUM(I13:I17) -> 0 | J18: =SUM(J13:J17) -> 0 | K18: =SUM(K13:K17) -> 0 | M18: =SUM(M13:M17) -> 0 | N18: =SUM(N13:N17) -> 0 | P18: =SUM(P13:P17) -> 0
B21: Distribution
A22: ='SCH B-2.2'!C32 -> 27400 | B22: Land | C22: ='WPB-2.2a-f - Base'!AS264 -> 449652 | D22: =ROUND(SUMIFS(WPB2.2i_AllocRes,WPB2.2_iAccount,"="&A22),0) -> 0 | F22: =C22+E22 -> 449652 | G22: 0 | H22: =ROUND(F22*G22/12*6,0) -> 0 | I22: =H22+D22 -> 0 | K22: =F22+J22 -> 449652 | L22: =G22 -> 0 | M22: =ROUND(AVERAGE(F22,K22)*(G22/12)*16,0) -> 0 | N22: =I22+M22 -> 0 | P22: =ROUND(((I22+(M22/16*4))+N22)/2,0) -> 0
A23: ='SCH B-2.2'!C33 -> 27401 | B23: Rights of Way | C23: ='WPB-2.2a-f - Base'!AS265 -> 241845 | D23: =ROUND(SUMIFS(WPB2.2i_AllocRes,WPB2.2_iAccount,"="&A23),0) -> 85437 | F23: 241845 | G23: 0.0104 | H23: 1258 | I23: 86695 | K23: 241845 | L23: 0.0104 | M23: =ROUND(AVERAGE(F23,K23)*(G23/12)*16,0) -> 3354 | N23: 90049 | P23: 88791
A24: ='SCH B-2.2'!C34 -> 27500 | B24: Structures & Improvements | C24: ='WPB-2.2a-f - Base'!AS266 -> 3443399 | D24: 156737 | F24: 3443399 | G24: 0.0144 | H24: 24792 | I24: 181529 | K24: 3443399 | L24: 0.0144 | M24: =ROUND(AVERAGE(F24,K24)*(G24/12)*16,0) -> 66113 | N24: 247642 | P24: 222850
A25: 27602 | B25: Gas Mains - Dist Lines/Steel | C25: ='WPB-2.2a-f - Base'!AS267 -> 7057 | D25: 581 | F25: =C25+E25 -> 7057 | G25: 0.0164 | H25: =ROUND(F25*G25/12*6,0) -> 58 | I25: =H25+D25 -> 639 | K25: =F25+J25 -> 7057 | L25: 0.0164 | M25: 154 | N25: =I25+M25 -> 793 | P25: =ROUND(((I25+(M25/16*4))+N25)/2,0) -> 735
A26: 27605 | B26: Mains-Steel Feeder Lines | C26: ='WPB-2.2a-f - Base'!AS268 -> 45302306 | D26: 4321661 | F26: 45302306 | G26: 0.0149 | H26: 337502 | I26: 4659163 | K26: 45302306 | L26: 0.0149 | M26: 900006 | N26: 5559169 | P26: 5221667
A27: ='SCH B-2.2'!C37 -> 27800 | B27: System M & R Station Equip. - General | C27: ='WPB-2.2a-f - Base'!AS269 -> 9398269 | D27: 673933 | F27: 9398269 | G27: 0.0204 | H27: 95862 | I27: 769795 | K27: 9398269 | L27: 0.0204 | M27: 255633 | N27: 1025428 | P27: 929566
A28: ='SCH B-2.2'!C38 -> 27801 | B28: System M & R Station Equip. | C28: ='WPB-2.2a-f - Base'!AS270 -> 498564 | D28: 103737 | F28: 498564 | G28: 0.0637 | H28: 15879 | I28: 119616 | K28: 498564 | L28: 0.0637 | M28: 42345 | N28: 161961 | P28: 146082
K29: 0
B30: Total | C30: =SUM(C22:C29) -> 59341092 | D30: =SUM(D22:D29) -> 5342086 | E30: =SUM(E22:E29) -> 0 | F30: =SUM(F22:F29) -> 59341092 | H30: =SUM(H22:H29) -> 475351 | I30: =SUM(I22:I29) -> 5817437 | J30: =SUM(J22:J29) -> 0 | K30: =SUM(K22:K29) -> 59341092 | M30: =SUM(M22:M29) -> 1267605 | N30: =SUM(N22:N29) -> 7085042 | P30: =SUM(P22:P29) -> 6609691
B33: General
A34: ='SCH B-2.2'!C47 -> 29100 | B34: Office Furniture & Equipment #936 | C34: ='WPB-2.2a-f - Base'!AS276 -> 0 | D34: =ROUND(SUMIFS(WPB2.2i_AllocRes,WPB2.2_iAccount,"="&A34),0) -> 0 | F34: =C34+E34 -> 0 | G34: 0.05 | H34: =ROUND(F34*G34/12*6,0) -> 0 | I34: =H34+D34 -> 0 | K34: =F34+J34 -> 0 | L34: =G34 -> 0.05 | M34: =ROUND(AVERAGE(F34,K34)*(G34/12)*16,0) -> 0 | N34: =I34+M34 -> 0 | P34: =ROUND(((I34+(M34/16*4))+N34)/2,0) -> 0
A35: ='SCH B-2.2'!C48 -> 29400 | B35: Tools, Shop & Garage Equipment #936 | C35: ='WPB-2.2a-f - Base'!AS277 -> 0 | D35: =ROUND(SUMIFS(WPB2.2i_AllocRes,WPB2.2_iAccount,"="&A35),0) -> 0 | F35: =C35+E35 -> 0 | G35: 0.047 | H35: =ROUND(F35*G35/12*6,0) -> 0 | I35: =H35+D35 -> 0 | K35: =F35+J35 -> 0 | L35: =G35 -> 0.047 | M35: 0 | N35: =I35+M35 -> 0 | P35: =ROUND(((I35+(M35/16*4))+N35)/2,0) -> 0
A36: 29700 | B36: Communication Equipment | C36: ='WPB-2.2a-f - Base'!AS278 -> 0 | D36: =ROUND(SUMIFS(WPB2.2i_AllocRes,WPB2.2_iAccount,"="&A36),0) -> 0 | F36: =C36+E36 -> 0 | G36: 0.0676 | H36: =ROUND(F36*G36/12*6,0) -> 0 | I36: =H36+D36 -> 0 | K36: =F36+J36 -> 0 | L36: =G36 -> 0.0676 | M36: 0 | N36: =I36+M36 -> 0 | P36: =ROUND(((I36+(M36/16*4))+N36)/2,0) -> 0
A37: ='SCH B-2.2'!C50 -> 29800 | B37: Miscellaneous Equipment | C37: ='WPB-2.2a-f - Base'!AS279 -> 0 | D37: =ROUND(SUMIFS(WPB2.2i_AllocRes,WPB2.2_iAccount,"="&A37),0) -> 0 | F37: =C37+E37 -> 0 | G37: 0.132 | H37: =ROUND(F37*G37/12*6,0) -> 0 | I37: =H37+D37 -> 0 | K37: =F37+J37 -> 0 | L37: =G37 -> 0.132 | M37: 0 | N37: =I37+M37 -> 0 | P37: =ROUND(((I37+(M37/16*4))+N37)/2,0) -> 0
B39: Total | C39: =SUM(C34:C38) -> 0 | D39: =SUM(D34:D38) -> 0 | E39: =SUM(E34:E38) -> 0 | F39: =SUM(F34:F38) -> 0 | H39: =SUM(H34:H38) -> 0 | I39: =SUM(I34:I38) -> 0 | J39: =SUM(J34:J38) -> 0 | K39: =SUM(K34:K38) -> 0 | M39: =SUM(M34:M38) -> 0 | N39: =SUM(N34:N38) -> 0 | P39: =SUM(P34:P38) -> 0
B42: Grand Total | C42: =C18+C30+C39 -> 59341092 | D42: =D18+D30+D39 -> 5342086 | E42: =E18+E30+E39 -> 0 | F42: =F18+F30+F39 -> 59341092 | H42: =H18+H30+H39 -> 475351 | I42: =I18+I30+I39 -> 5817437 | J42: =J18+J30+J39 -> 0 | K42: =K18+K30+K39 -> 59341092 | M42: =M18+M30+M39 -> 1267605 | N42: =N18+N30+N39 -> 7085042 | P42: =P18+P30+P39 -> 6609691
A44: Assumes additions are spread evenly over months. | N44: 6609691
N45: =N42-N44 -> 475351
F46: To SCH. B-2.2 | I46: To SCH. B-3.1 | K46: To SCH. B-2.2 | N46: =N45*2 -> 950702 | P46: To SCH. B-3.1

Sheet WPB-2.2h
A1: =COMPANY -> DUKE ENERGY KENTUCKY, INC. | P1: WPB-2.2h
A2: =CASE -> CASE NO. 2025-00125 | P2: WITNESS RESPONSIBLE:
A3: PLANT IN SERVICE | P3: =_WIT7 -> C. C. HUDSON / S. S. MITCHELL
A4: 13 MONTH AVERAGE
C6: Gas Production | G6: Gas Distribution | K6: Gas General | O6: Common | T6: Total
E7: Adjusted | I7: Adjusted | M7: Adjusted | P7: Allocation at | R7: Adjusted | T7: Adjusted &
A8: Month | C8: Orig Cost | D8: Adjustment | E8: Jurisdiction | G8: Orig Cost | H8: Adjustment | I8: Jurisdiction | K8: Orig Cost | L8: Adjustment | M8: Jurisdiction | O8: Orig Cost | P8: =CommonG -> 0.2925 | Q8: Adjustment | R8: Jurisdiction | T8: Allocated
A10: =EOMONTH(A11,-1) -> 2025-12-31 | C10: 0 | D10: =ROUND(C10*0.642,0) -> 0 | E10: =C10-D10 -> 0 | G10: 1055813699 | H10: =SUM('SCH B-2.2'!$G$95:$G$101)+'SCH B-2.2'!$G$120+'WPB-2.2j'!M$33 -> 209338318 | I10: =G10-H10 -> 846475381 | K10: 51314008 | L10: ='WPB-2.2a-f - Base'!$AS$281 -> 0 | M10: =K10-L10 -> 51314008 | O10: 53143387 | P10: =ROUND(O10*$P$8,0) -> 15544441 | Q10: =-'SCH B-2.1'!$H$335 -> 434942 | R10: =P10-Q10 -> 15109499 | T10: =R10+M10+I10+E10 -> 912898888
A11: =LOGO!J7 -> 2026-01-31 | C11: 0 | D11: =ROUND(C11*0.642,0) -> 0 | E11: 0 | G11: 1058260427 | H11: =SUM('SCH B-2.2'!$G$95:$G$101)+'SCH B-2.2'!$G$120+'WPB-2.2j'!N$33 -> 209597894 | I11: 848662533 | K11: 51325095 | L11: ='WPB-2.2a-f - Base'!$AS$281 -> 0 | M11: 51325095 | O11: 53033049 | P11: =ROUND(O11*$P$8,0) -> 15512167 | Q11: =-'SCH B-2.1'!$H$335 -> 434942 | R11: =P11-Q11 -> 15077225 | T11: =R11+M11+I11+E11 -> 915064853
A12: =LOGO!J8 -> 2026-02-28 | C12: 0 | D12: 0 | E12: 0 | G12: 1060699064 | H12: =SUM('SCH B-2.2'!$G$95:$G$101)+'SCH B-2.2'!$G$120+'WPB-2.2j'!O$33 -> 209857472 | I12: 850841592 | K12: 51336182 | L12: ='WPB-2.2a-f - Base'!$AS$281 -> 0 | M12: 51336182 | O12: 52922711 | P12: 15479893 | Q12: =-'SCH B-2.1'!$H$335 -> 434942 | R12: 15044951 | T12: 917222725
A13: =LOGO!J9 -> 2026-03-31 | C13: 0 | D13: 0 | E13: 0 | G13: 1063403256 | H13: =SUM('SCH B-2.2'!$G$95:$G$101)+'SCH B-2.2'!$G$120+'WPB-2.2j'!P$33 -> 210116527 | I13: 853286729 | K13: 51928498 | L13: ='WPB-2.2a-f - Base'!$AS$281 -> 0 | M13: 51928498 | O13: 52812373 | P13: 15447619 | Q13: =-'SCH B-2.1'!$H$335 -> 434942 | R13: 15012677 | T13: 920227904
A14: =LOGO!J10 -> 2026-04-30 | C14: 0 | D14: 0 | E14: 0 | G14: 1065582316 | H14: =SUM('SCH B-2.2'!$G$95:$G$101)+'SCH B-2.2'!$G$120+'WPB-2.2j'!Q$33 -> 210116527 | I14: 855465789 | K14: 51939585 | L14: ='WPB-2.2a-f - Base'!$AS$281 -> 0 | M14: 51939585 | O14: 52702035 | P14: 15415345 | Q14: =-'SCH B-2.1'!$H$335 -> 434942 | R14: 14980403 | T14: 922385777
A15: =LOGO!J11 -> 2026-05-31 | C15: 0 | D15: 0 | E15: 0 | G15: 1067805479 | H15: =SUM('SCH B-2.2'!$G$95:$G$101)+'SCH B-2.2'!$G$120+'WPB-2.2j'!R$33 -> 210116527 | I15: 857688952 | K15: 51950672 | L15: ='WPB-2.2a-f - Base'!$AS$281 -> 0 | M15: 51950672 | O15: 52591697 | P15: 15383071 | Q15: =-'SCH B-2.1'!$H$335 -> 434942 | R15: 14948129 | T15: 924587753
A16: =LOGO!J12 -> 2026-06-30 | C16: 0 | D16: 0 | E16: 0 | G16: 1070251616 | H16: =SUM('SCH B-2.2'!$G$95:$G$101)+'SCH B-2.2'!$G$120+'WPB-2.2j'!S$33 -> 210116527 | I16: 860135089 | K16: 51961759 | L16: ='WPB-2.2a-f - Base'!$AS$281 -> 0 | M16: 51961759 | O16: 52481359 | P16: 15350798 | Q16: =-'SCH B-2.1'!$H$335 -> 434942 | R16: 14915856 | T16: 927012704
A17: =LOGO!J13 -> 2026-07-31 | C17: 0 | D17: 0 | E17: 0 | G17: 1072431676 | H17: =SUM('SCH B-2.2'!$G$95:$G$101)+'SCH B-2.2'!$G$120+'WPB-2.2j'!T$33 -> 210116527 | I17: 862315149 | K17: 51972846 | L17: ='WPB-2.2a-f - Base'!$AS$281 -> 0 | M17: 51972846 | O17: 52371021 | P17: 15318524 | Q17: =-'SCH B-2.1'!$H$335 -> 434942 | R17: 14883582 | T17: 929171577
A18: =LOGO!J14 -> 2026-08-31 | C18: 0 | D18: 0 | E18: 0 | G18: 1074611736 | H18: =SUM('SCH B-2.2'!$G$95:$G$101)+'SCH B-2.2'!$G$120+'WPB-2.2j'!U$33 -> 210116527 | I18: 864495209 | K18: 52059523 | L18: ='WPB-2.2a-f - Base'!$AS$281 -> 0 | M18: 52059523 | O18: 52260683 | P18: 15286250 | Q18: =-'SCH B-2.1'!$H$335 -> 434942 | R18: 14851308 | T18: 931406040
A19: =LOGO!J15 -> 2026-09-30 | C19: 0 | D19: 0 | E19: 0 | G19: 1077057873 | H19: =SUM('SCH B-2.2'!$G$95:$G$101)+'SCH B-2.2'!$G$120+'WPB-2.2j'!V$33 -> 210116527 | I19: 866941346 | K19: 52070610 | L19: ='WPB-2.2a-f - Base'!$AS$281 -> 0 | M19: 52070610 | O19: 52150345 | P19: 15253976 | Q19: =-'SCH B-2.1'!$H$335 -> 434942 | R19: 14819034 | T19: 933830990
A20: =LOGO!J16 -> 2026-10-31 | C20: 0 | D20: 0 | E20: 0 | G20: 1111030581 | H20: =SUM('SCH B-2.2'!$G$95:$G$101)+'SCH B-2.2'!$G$120+'WPB-2.2j'!W$33 -> 241847928 | I20: 869182653 | K20: 52081697 | L20: ='WPB-2.2a-f - Base'!$AS$281 -> 0 | M20: 52081697 | O20: 52040007 | P20: 15221702 | Q20: =-'SCH B-2.1'!$H$335 -> 434942 | R20: 14786760 | T20: 936051110
A21: =LOGO!J17 -> 2026-11-30 | C21: 0 | D21: 0 | E21: 0 | G21: 1115708410 | H21: =SUM('SCH B-2.2'!$G$95:$G$101)+'SCH B-2.2'!$G$120+'WPB-2.2j'!X$33 -> 244508319 | I21: 871200091 | K21: 52092784 | L21: ='WPB-2.2a-f - Base'!$AS$281 -> 0 | M21: 52092784 | O21: 51929669 | P21: 15189428 | Q21: =-'SCH B-2.1'!$H$335 -> 434942 | R21: 14754486 | T21: 938047361
A22: =LOGO!J18 -> 2026-12-31 | C22: 0 | D22: =ROUND(C22*0.642,0) -> 0 | E22: 0 | G22: =1102248066 -> 1102248066 | H22: =SUM('SCH B-2.2'!$G$95:$G$101)+'SCH B-2.2'!$G$120+'WPB-2.2j'!Y$33 -> 247006088 | I22: 855241978 | K22: 52645366 | L22: ='WPB-2.2a-f - Base'!$AS$281 -> 0 | M22: 52645366 | O22: 51819331 | P22: 15157154 | Q22: =-'SCH B-2.1'!$H$335 -> 434942 | R22: 14722212 | T22: 922609556
A23: Total | C23: =SUM(C10:C22) -> 0 | D23: =SUM(D10:D22) -> 0 | E23: =SUM(E10:E22) -> 0 | G23: =SUM(G10:G22) -> 13994904199 | H23: =SUM(H10:H22) -> 2832971708 | I23: =SUM(I10:I22) -> 11161932491 | K23: =SUM(K10:K22) -> 674678625 | L23: =SUM(L10:L22) -> 0 | M23: =SUM(M10:M22) -> 674678625 | O23: =SUM(O10:O22) -> 682257667 | P23: =SUM(P10:P22) -> 199560368 | Q23: =SUM(Q10:Q22) -> 5654246 | R23: 193906122 | T23: =SUM(T10:T22) -> 12030517238
C24: =IF(C25='SCH B-2.3'!L204,"","ERROR") ->  | D24: =IF(D25='SCH B-2.2'!G91,"","ERROR") ->  | G24: =IF(G25='SCH B-2.3'!L256,"","ERROR") ->  | H24: =IF(H25='SCH B-2.2'!G106+'SCH B-2.2'!G120,"","ERROR") ->  | K24: =IF(K25='SCH B-2.3'!L298,"","ERROR") ->  | L24: =IF(L25='SCH B-2.2'!G115,"","ERROR") ->  | O24: =IF(O25='SCH B-2.3'!L339,"","ERROR") ->  | P24: =IF(P25='SCH B-2.3'!L342,"","ERROR") ->  | Q24: =IF(Q25='SCH B-2.2'!G121,"","ERROR") -> 
A25: 13 Month Average | C25: =ROUND(C23/13,0) -> 0 | D25: =ROUND(D23/13,0) -> 0 | E25: =C25-D25 -> 0 | G25: =ROUND(G23/13,0)-1 -> 1076531091 | H25: =ROUND(H23/13,0)-1 -> 217920900 | I25: =G25-H25 -> 858610191 | K25: =ROUND(K23/13,0) -> 51898356 | L25: =ROUND(L23/13,0) -> 0 | M25: =ROUND(M23/13,0) -> 51898356 | O25: =ROUND(O23/13,0)-1 -> 52481358 | P25: =ROUND(P23/13,0)-1 -> 15350797 | Q25: =ROUND(Q23/13,0) -> 434942 | R25: =ROUND(R23/13,0)-1 -> 14915855 | T25: =R25+M25+I25+E25 -> 925424402
D29: To SCH. B-2.2 | H29: To SCH. B-2.2 | L29: To SCH. B-2.2 | Q29: To SCH. B-2.2

Sheet WPB-2.2i Erlanger
A1: =COMPANY -> DUKE ENERGY KENTUCKY, INC. | G1: WPB-2.2i
A2: =CASE -> CASE NO. 2025-00125 | G2: WITNESS RESPONSIBLE:
A3: Propane Plant Allocated to Other Than DEK Customers | G3: =_WIT7 -> C. C. HUDSON / S. S. MITCHELL
A4: =EOMONTH(LOGO!I12,0) -> 2025-02-28
C7: Utility | E7: Allocated | F7: Allocated | G7: Average KY | H7: Book
A8: Description | B8: Code | C8: Account | D8: Account Description | E8: Cost | F8: Reserve | G8: Alloc % | H8: Cost
A9: Feeder Line AM-0 - Gas Feeder Lines | B9: Gas Feeder- Line AM | C9: 27400 | D9: 27400 - Non-depr Land & Land Rights | E9: 153688 | F9: 0 | G9: =KyAvgAlloc -> 0.380261 | H9: 404165
A10: Feeder Line AM-0 - Gas Feeder Lines | B10: Gas Feeder- Line AM | C10: 27401 | D10: 27401 - Rights of Way | E10: 10248 | F10: 5834 | G10: =$G$9 -> 0.380261 | H10: 26951
A11: Feeder Line AM-0 - Gas Feeder Lines | B11: Gas Feeder- Line AM | C11: 27605 | D11: 27605 - Gas Mains - Feeder Lines/St | E11: 6167123 | F11: 301374 | G11: 0.380261 | H11: 16218132
A12: Feeder Line AM-1 - Gas Feeder Lines - KY | B12: Gas Feeder- Line AM-1-Other | C12: 27400 | D12: 27400 - Non-depr Land & Land Rights | E12: 1260 | F12: 0 | G12: 0.380261 | H12: 3315
A13: Feeder Line AM-1 - Gas Feeder Lines - KY | B13: Gas Feeder- Line AM-1-Other | C13: 27401 | D13: 27401 - Rights of Way | E13: 8127 | F13: 5752 | G13: 0.380261 | H13: 21371
A14: Feeder Line AM-1 - Gas Feeder Lines - KY | B14: Gas Feeder- Line AM-1-Other | C14: 27500 | D14: 27500 - Structures & Improvements - | E14: 2072309 | F14: 74389 | G14: 0.380261 | H14: 5449701
A15: Feeder Line AM-1 - Gas Feeder Lines - KY | B15: Gas Feeder- Line AM-1-Other | C15: 27605 | D15: 27605 - Gas Mains - Feeder Lines/St | E15: 1208663 | F15: 201580 | G15: 0.380261 | H15: 3178509
A16: Feeder Line AM-2 - Gas Feeder Lines | B16: Gas Feeder- Line AM-2-Other | C16: 27401 | D16: 27401 - Rights of Way | E16: 45936 | F16: 18643 | G16: 0.380261 | H16: 120800
A17: Feeder Line AM-2 - Gas Feeder Lines | B17: Gas Feeder- Line AM-2-Other | C17: 27500 | D17: 27500 - Structures & Improvements - | E17: 334155 | F17: 22344 | G17: 0.380261 | H17: 878751
A18: Feeder Line AM-2 - Gas Feeder Lines | B18: Gas Feeder- Line AM-2-Other | C18: 27605 | D18: 27605 - Gas Mains - Feeder Lines/St | E18: 598733 | F18: 146110 | G18: 0.380261 | H18: 1574530
A19: Feeder Line AM-2 - Gas Feeder Lines - River Crossing | B19: Gas Feeder- Line AM-2-River Crossing | C19: 27605 | D19: 27605 - Gas Mains - Feeder Lines/St | E19: 561888 | F19: 126130 | G19: 1 | H19: 561888
A20: Feeder Line AM-7 - Gas Feeder Lines - KY | B20: Gas Feeder- Line AM-7-Other | C20: 27401 | D20: 27401 - Rights of Way | E20: 39248 | F20: 26941 | G20: =$G$9 -> 0.380261 | H20: 103213
A21: Feeder Line AM-7 - Gas Feeder Lines - KY | B21: Gas Feeder- Line AM-7-Other | C21: 27500 | D21: 27500 - Structures & Improvements - | E21: 152478 | F21: 10432 | G21: =$G$9 -> 0.380261 | H21: 400982
A22: Feeder Line AM-7 - Gas Feeder Lines - KY | B22: Gas Feeder- Line AM-7-Other | C22: 27605 | D22: 27605 - Gas Mains - Feeder Lines/St | E22: 12960082 | F22: 1420728 | G22: =$G$9 -> 0.380261 | H22: 34082069
A23: Feeder Line AM-7 - Gas Feeder Lines - River Crossing | B23: Gas Feeder- Line AM-7-River Crossing | C23: 27605 | D23: 27605 - Gas Mains - Feeder Lines/St | E23: 231295 | F23: 81457 | G23: 1 | H23: 231295
A24: Feeder Line UL-6 - Gas Feeder Lines | B24: Gas Feeder- Line UL-6 | C24: 27401 | D24: 27401 - Rights of Way | E24: 116164 | F24: 27173 | G24: =$G$9 -> 0.380261 | H24: 305485
A25: Feeder Line UL-6 - Gas Feeder Lines | B25: Gas Feeder- Line UL-6 | C25: 27602 | D25: 27602 - Gas Mains - Dist Lines/Stee | E25: 4219 | F25: 496 | G25: 0.380261 | H25: 11096
A26: Feeder Line UL-6 - Gas Feeder Lines | B26: Gas Feeder- Line UL-6 | C26: 27605 | D26: 27605 - Gas Mains - Feeder Lines/St | E26: 4542337 | F26: 254393 | G26: 0.380261 | H26: 11945314
A27: Gas Feeder Lines Kentucky | B27: Gas Feeder Lines Kentucky | C27: 27400 | D27: 27400 - Non-depr Land & Land Rights | E27: 286434 | F27: 0 | G27: 0.380261 | H27: 753257
A28: Gas Feeder Lines Kentucky | B28: Gas Feeder Lines Kentucky | C28: 27401 | D28: 27401 - Rights of Way | E28: 22122 | F28: 1094 | G28: 0.380261 | H28: 58177
A29: Gas Feeder Lines Kentucky | B29: Gas Feeder Lines Kentucky | C29: 27500 | D29: 27500 - Structures & Improvements - | E29: 303908 | F29: 18440 | G29: 0.380261 | H29: 799208
A30: Gas Feeder Lines Kentucky | B30: Gas Feeder Lines Kentucky | C30: 27602 | D30: 27602 - Gas Mains - Dist Lines/Stee | E30: 2838 | F30: 85 | G30: 0.380261 | H30: 7463
A31: Gas Feeder Lines Kentucky | B31: Gas Feeder Lines Kentucky | C31: 27605 | D31: 27605 - Gas Mains - Feeder Lines/St | E31: 19032185 | F31: 1789889 | G31: 0.380261 | H31: 50050320
A32: Gas Feeder Lines Kentucky | B32: Gas Feeder Lines Kentucky | C32: 27800 | D32: 27800 - System Meas & Reg Station | E32: 79601 | F32: 7914 | G32: 0.380261 | H32: 209331
A33: Three Mile Road - Measuring & Regulating Stations | B33: Gas Feeder- Line UL-6 | C33: 27400 | D33: 27400 - Non-depr Land & Land Rights | E33: 8270 | F33: 0 | G33: 0.380261 | H33: 21748
A34: Three Mile Road - Measuring & Regulating Stations | B34: Gas Feeder- Line UL-6 | C34: 27500 | D34: 27500 - Structures & Improvements - | E34: 580549 | F34: 31132 | G34: 0.380261 | H34: 1526712
A35: Three Mile Road - Measuring & Regulating Stations | B35: Gas Feeder- Line UL-6 | C35: 27800 | D35: 27800 - System Meas & Reg Station | E35: 9318668 | F35: 666019 | G35: 0.380261 | H35: 24505980
A36: Three Mile Road - Measuring & Regulating Stations | B36: Gas Feeder- Line UL-6 | C36: 27801 | D36: 27801 - System M & R St. Electronic | E36: 498564 | F36: 103737 | G36: 0.380261 | H36: 1311111
E40: =SUM(E9:E38) -> 59341092 | F40: =SUM(F9:F38) -> 5342086 | H40: =SUM(H9:H38) -> 154760874

Sheet WPB-2.2j
A1: =COMPANY -> DUKE ENERGY KENTUCKY, INC. | X1: WPB-2.2j
A2: =CASE -> CASE NO. 2025-00125 | X2: WITNESS RESPONSIBLE:
A3: EXCLUSION OF RIDER PMM | X3: =_WIT7 -> C. C. HUDSON / S. S. MITCHELL
A7: Account | AA7: Month
A8: Number | B8: Title | C8: 2025-02-01 | D8: 2025-03-01 | E8: 2025-04-01 | F8: 2025-05-01 | G8: 2025-06-01 | H8: 2025-07-01 | I8: 2025-08-01 | J8: 2025-09-01 | K8: 2025-10-01 | L8: 2025-11-01 | M8: 2025-12-01 | N8: 2026-01-01 | O8: 2026-02-01 | P8: 2026-03-01 | Q8: 2026-04-01 | R8: 2026-05-01 | S8: 2026-06-01 | T8: 2026-07-01 | U8: 2026-08-01 | V8: 2026-09-01 | W8: 2026-10-01 | X8: 2026-11-01 | Y8: 2026-12-01 | AA8: Average
A10: GROSS ADDITIONS, RETIREMENTS, AND TRANSFERS
A12: 27400 | B12: Land
B13: Beginning Balance | D13: =+C15 -> 5579058 | E13: 5581241 | F13: 5583425 | G13: 5583425 | H13: 5583425 | I13: 5583425 | J13: 5583425 | K13: 5583425 | L13: 5583425 | M13: 6645859 | N13: 6726692 | O13: 6733425 | P13: 6740158 | Q13: 6746878 | R13: 6746878 | S13: 6746878 | T13: 6746878 | U13: 6746878 | V13: 6746878 | W13: 6746878 | X13: 7569978 | Y13: 7638987
B14: Additions/Retirements/Transfers | D14: =2184-1 -> 2183 | E14: 2184 | F14: 0 | G14: 0 | H14: 0 | I14: 0 | J14: 0 | K14: 0 | L14: 1062434 | M14: =80832+1 -> 80833 | N14: 6733 | O14: 6733 | P14: 6720 | Q14: 0 | R14: 0 | S14: 0 | T14: 0 | U14: 0 | V14: 0 | W14: 823100 | X14: 69009 | Y14: 64791
B15: Ending Balance | C15: 5579058 | D15: =+D13+D14 -> 5581241 | E15: 5583425 | F15: 5583425 | G15: 5583425 | H15: 5583425 | I15: 5583425 | J15: 5583425 | K15: 5583425 | L15: 6645859 | M15: 6726692 | N15: 6733425 | O15: 6740158 | P15: 6746878 | Q15: 6746878 | R15: 6746878 | S15: 6746878 | T15: 6746878 | U15: 6746878 | V15: 6746878 | W15: 7569978 | X15: 7638987 | Y15: 7703778 | AA15: =ROUND((AVERAGE(M15:Y15)),0) -> 6949320
A18: 27605 | B18: Mains-Steel Feeder Lines
B19: Beginning Balance | D19: =+C21 -> 73895916 | E19: 73953514 | F19: 74011112 | G19: 74011112 | H19: 74011112 | I19: 74011112 | J19: 74011112 | K19: 74011112 | L19: 74011112 | M19: 102031632 | N19: 104163498 | O19: 104341082 | P19: 104518667 | Q19: 104695893 | R19: 104695893 | S19: 104695893 | T19: 104695893 | U19: 104695893 | V19: 104695893 | W19: 104695893 | X19: 126404240 | Y19: 128224289
B20: Additions/Retirements/Transfers | D20: 57598 | E20: 57598 | F20: 0 | G20: 0 | H20: 0 | I20: 0 | J20: 0 | K20: 0 | L20: =28020521-1 -> 28020520 | M20: 2131866 | N20: 177584 | O20: =177584+1 -> 177585 | P20: =177227-1 -> 177226 | Q20: 0 | R20: 0 | S20: 0 | T20: 0 | U20: 0 | V20: 0 | W20: =21708346+1 -> 21708347 | X20: 1820049 | Y20: 1708794
B21: Ending Balance | C21: 73895916 | D21: =+D19+D20 -> 73953514 | E21: 74011112 | F21: 74011112 | G21: 74011112 | H21: 74011112 | I21: 74011112 | J21: 74011112 | K21: 74011112 | L21: 102031632 | M21: 104163498 | N21: 104341082 | O21: 104518667 | P21: 104695893 | Q21: 104695893 | R21: 104695893 | S21: 104695893 | T21: 104695893 | U21: 104695893 | V21: 104695893 | W21: 126404240 | X21: 128224289 | Y21: 129933083 | AA21: =ROUND((AVERAGE(M21:Y21)),0) -> 110035085
A24: 27800 | B24: System M & R Station Equip. - General
B25: Beginning Balance | D25: =+C27 -> 18605031 | E25: 18629441 | F25: 18653851 | G25: 18653851 | H25: 18653851 | I25: 18653851 | J25: 18653851 | K25: 18653851 | L25: 18653851 | M25: 30528892 | N25: 31432373 | O25: 31507632 | P25: 31582892 | Q25: 31658001 | R25: 31658001 | S25: 31658001 | T25: 31658001 | U25: 31658001 | V25: 31658001 | W25: 31658001 | X25: 40857955 | Y25: 41629288
B26: Additions/Retirements/Transfers | D26: 24410 | E26: 24410 | F26: 0 | G26: 0 | H26: 0 | I26: 0 | J26: 0 | K26: 0 | L26: 11875041 | M26: =903480+1 -> 903481 | N26: =75260-1 -> 75259 | O26: 75260 | P26: =75108+1 -> 75109 | Q26: 0 | R26: 0 | S26: 0 | T26: 0 | U26: 0 | V26: 0 | W26: 9199954 | X26: 771333 | Y26: 724184
B27: Ending Balance | C27: 18605031 | D27: =+D25+D26 -> 18629441 | E27: 18653851 | F27: 18653851 | G27: 18653851 | H27: 18653851 | I27: 18653851 | J27: 18653851 | K27: 18653851 | L27: 30528892 | M27: 31432373 | N27: 31507632 | O27: 31582892 | P27: 31658001 | Q27: 31658001 | R27: 31658001 | S27: 31658001 | T27: 31658001 | U27: 31658001 | V27: 31658001 | W27: 40857955 | X27: 41629288 | Y27: 42353472 | AA27: =ROUND((AVERAGE(M27:Y27)),0) -> 33920740
A30: Total Distribution Plant
B31: Beginning Balance | D31: =+C33 -> 98080005 | E31: 98164196 | F31: 98248388 | G31: 98248388 | H31: 98248388 | I31: 98248388 | J31: 98248388 | K31: 98248388 | L31: 98248388 | M31: 139206383 | N31: 142322563 | O31: 142582139 | P31: 142841717 | Q31: 143100772 | R31: 143100772 | S31: 143100772 | T31: 143100772 | U31: 143100772 | V31: 143100772 | W31: 143100772 | X31: 174832173 | Y31: 177492564
B32: Additions/Retirements/Transfers | D32: =+D14+D20+D26 -> 84191 | E32: 84192 | F32: 0 | G32: 0 | H32: 0 | I32: 0 | J32: 0 | K32: 0 | L32: 40957995 | M32: 3116180 | N32: 259576 | O32: 259578 | P32: 259055 | Q32: 0 | R32: 0 | S32: 0 | T32: 0 | U32: 0 | V32: 0 | W32: 31731401 | X32: 2660391 | Y32: 2497769
B33: Ending Balance | C33: =+C15+C21+C27 -> 98080005 | D33: =+D31+D32 -> 98164196 | E33: 98248388 | F33: 98248388 | G33: 98248388 | H33: 98248388 | I33: 98248388 | J33: 98248388 | K33: 98248388 | L33: 139206383 | M33: 142322563 | N33: 142582139 | O33: 142841717 | P33: 143100772 | Q33: 143100772 | R33: 143100772 | S33: 143100772 | T33: 143100772 | U33: 143100772 | V33: 143100772 | W33: 174832173 | X33: 177492564 | Y33: 179990333 | AA33: =ROUND((AVERAGE(M33:Y33)),0) -> 150905146
A38: ACCUMULATED DEPRECIATION AND AMORTIZATION
A40: 27605 | B40: Mains-Steel Feeder Lines
B41: Beginning Balance | D41: =+C43 -> 1096025 | E41: 1096098 | F41: 1096171 | G41: 1096171 | H41: 1096171 | I41: 1096171 | J41: 1096171 | K41: 1096171 | L41: 1096171 | M41: 1131742 | N41: 1134448 | O41: 1134673 | P41: 1134898 | Q41: 1135123 | R41: 1135123 | S41: 1135123 | T41: 1135123 | U41: 1135123 | V41: 1135123 | W41: 1135123 | X41: 1162681 | Y41: 1164991
B42: Depreciation | D42: 73 | E42: 73 | F42: 0 | G42: 0 | H42: 0 | I42: 0 | J42: 0 | K42: 0 | L42: 35571 | M42: 2706 | N42: 225 | O42: 225 | P42: 225 | Q42: 0 | R42: 0 | S42: 0 | T42: 0 | U42: 0 | V42: 0 | W42: 27558 | X42: 2310 | Y42: 2169
B43: Ending Balance | C43: 1096025 | D43: =+D41+D42 -> 1096098 | E43: 1096171 | F43: 1096171 | G43: 1096171 | H43: 1096171 | I43: 1096171 | J43: 1096171 | K43: 1096171 | L43: 1131742 | M43: 1134448 | N43: 1134673 | O43: 1134898 | P43: 1135123 | Q43: 1135123 | R43: 1135123 | S43: 1135123 | T43: 1135123 | U43: 1135123 | V43: 1135123 | W43: 1162681 | X43: 1164991 | Y43: 1167160 | AA43: =ROUND((AVERAGE(M43:Y43)),0) -> 1141901
A46: 27800 | B46: System M & R Station Equip. - General
B47: Beginning Balance | D47: =+C49 -> 274555 | E47: 274586 | F47: 274617 | G47: 274617 | H47: 274617 | I47: 274617 | J47: 274617 | K47: 274617 | L47: 274617 | M47: 289905 | N47: 291068 | O47: 291165 | P47: 291262 | Q47: 291359 | R47: 291359 | S47: 291359 | T47: 291359 | U47: 291359 | V47: 291359 | W47: 291359 | X47: 303203 | Y47: 304196
B48: Depreciation | D48: 31 | E48: 31 | F48: 0 | G48: 0 | H48: 0 | I48: 0 | J48: 0 | K48: 0 | L48: 15288 | M48: 1163 | N48: 97 | O48: 97 | P48: 97 | Q48: 0 | R48: 0 | S48: 0 | T48: 0 | U48: 0 | V48: 0 | W48: 11844 | X48: 993 | Y48: 932
B49: Ending Balance | C49: 274555 | D49: =+D47+D48 -> 274586 | E49: 274617 | F49: 274617 | G49: 274617 | H49: 274617 | I49: 274617 | J49: 274617 | K49: 274617 | L49: 289905 | M49: 291068 | N49: 291165 | O49: 291262 | P49: 291359 | Q49: 291359 | R49: 291359 | S49: 291359 | T49: 291359 | U49: 291359 | V49: 291359 | W49: 303203 | X49: 304196 | Y49: 305128 | AA49: =ROUND((AVERAGE(M49:Y49)),0) -> 294272
A52: Total Distribution Plant
B53: Beginning Balance | D53: =+C55 -> 1370580 | E53: 1370684 | F53: 1370788 | G53: 1370788 | H53: 1370788 | I53: 1370788 | J53: 1370788 | K53: 1370788 | L53: 1370788 | M53: 1421647 | N53: 1425516 | O53: 1425838 | P53: 1426160 | Q53: 1426482 | R53: 1426482 | S53: 1426482 | T53: 1426482 | U53: 1426482 | V53: 1426482 | W53: 1426482 | X53: 1465884 | Y53: 1469187
B54: Depreciation | D54: =+D42+D48 -> 104 | E54: 104 | F54: 0 | G54: 0 | H54: 0 | I54: 0 | J54: 0 | K54: 0 | L54: 50859 | M54: 3869 | N54: 322 | O54: 322 | P54: 322 | Q54: 0 | R54: 0 | S54: 0 | T54: 0 | U54: 0 | V54: 0 | W54: 39402 | X54: 3303 | Y54: 3101
B55: Ending Balance | C55: =+C43+C49 -> 1370580 | D55: =+D53+D54 -> 1370684 | E55: 1370788 | F55: 1370788 | G55: 1370788 | H55: 1370788 | I55: 1370788 | J55: 1370788 | K55: 1370788 | L55: 1421647 | M55: 1425516 | N55: 1425838 | O55: 1426160 | P55: 1426482 | Q55: 1426482 | R55: 1426482 | S55: 1426482 | T55: 1426482 | U55: 1426482 | V55: 1426482 | W55: 1465884 | X55: 1469187 | Y55: 1472288 | AA55: =ROUND((AVERAGE(M55:Y55)),0) -> 1436173

Sheet SCH B-2.3
A1: =COMPANY -> DUKE ENERGY KENTUCKY, INC.
A2: =CASE -> CASE NO. 2025-00125
A3: GROSS ADDITIONS, RETIREMENTS, AND TRANSFERS
A4: ="FROM SEPTEMBER 1, 2024 TO "&RIGHT(TESTYR,(LEN(TESTYR)-16)) -> FROM SEPTEMBER 1, 2024 TO AUGUST 31, 2025
A6: MANUFACTURED GAS PRODUCTION PLANT
A10: =Data -> DATA: "X" BASE PERIOD FORECASTED PERIOD | J10: SCHEDULE B-2.3
A11: =Type -> TYPE OF FILING: "X" ORIGINAL UPDATED REVISED | J11: PAGE 1 OF 8
A12: WORK PAPER REFERENCE NO(S).: | J12: WITNESS RESPONSIBLE:
J13: =_WIT7 -> C. C. HUDSON / S. S. MITCHELL
B17: FERC | C17: Company | H17: Transfers/Reclassifications
A18: Line | B18: Acct. | C18: Acct. | D18: Account | E18: Beginning | I18: Explanation | J18: Other Accts. | K18: Ending
A19: No. | B19: No. | C19: No. | D19: Title | E19: Balance | F19: Additions | G19: Retirements | H19: Amount | I19: of Transfer | J19: Involved | K19: Balance
E21: $ | F21: $ | G21: $ | H21: $ | K21: $
A23: 1 | B23: 304 | C23: 20400 | D23: Land and Land Rights | E23: 0 | F23: 0 | G23: 0 | H23: 0 | K23: =E23+F23-G23+H23 -> 0
A24: 2 | B24: 304 | C24: 20401 | D24: Rights of Way | E24: 0 | F24: 0 | G24: 0 | H24: 0 | K24: =E24+F24-G24+H24 -> 0
A25: 3 | B25: 305 | C25: 20500 | D25: Structures & Improvements | E25: 0 | F25: 0 | G25: 0 | H25: 0 | K25: =E25+F25-G25+H25 -> 0
A26: 4 | B26: 311 | C26: 21100 | D26: Liquefied Petroleum Gas Equipment | E26: 0 | F26: 0 | G26: 0 | H26: 0 | K26: =E26+F26-G26+H26 -> 0
A29: =A26+1 -> 5 | D29: Total Manufactured Gas Production Plant | E29: =SUM(E23:E26) -> 0 | F29: =SUM(F23:F26) -> 0 | G29: =SUM(G23:G26) -> 0 | H29: =SUM(H23:H26) -> 0 | K29: =SUM(K23:K26) -> 0
A33: =A1 -> DUKE ENERGY KENTUCKY, INC.
A34: =A2 -> CASE NO. 2025-00125
A35: =A3 -> GROSS ADDITIONS, RETIREMENTS, AND TRANSFERS
A36: =A4 -> FROM SEPTEMBER 1, 2024 TO AUGUST 31, 2025
A38: DISTRIBUTION PLANT
A42: =Data -> DATA: "X" BASE PERIOD FORECASTED PERIOD | J42: =J10 -> SCHEDULE B-2.3
A43: =A11 -> TYPE OF FILING: "X" ORIGINAL UPDATED REVISED | J43: PAGE 2 OF 8
A44: =A12 -> WORK PAPER REFERENCE NO(S).: | J44: WITNESS RESPONSIBLE:
J45: =J13 -> C. C. HUDSON / S. S. MITCHELL
B49: FERC | C49: Company | H49: Transfers/Reclassifications
A50: Line | B50: Acct. | C50: Acct. | D50: Account | E50: Beginning | I50: Explanation | J50: Other Accts. | K50: Ending
A51: No. | B51: No. | C51: No. | D51: Title | E51: Balance | F51: Additions | G51: Retirements | H51: Amount | I51: of Transfer | J51: Involved | K51: Balance
E53: $ | F53: $ | G53: $ | H53: $ | K53: $
A55: 1 | B55: 374 | C55: 27400 | D55: Land and Land Rights | E55: 9598410 | F55: 413110 | G55: 0 | H55: 0 | K55: =E55+F55-G55+H55 -> 10011520
A56: =1+A55 -> 2 | B56: 374.1 | C56: 27401 | D56: Rights of Way | E56: 7267252 | F56: 137772 | G56: 0 | H56: 0 | K56: 7405024
A57: =1+A56 -> 3 | B57: 375 | C57: 27500 | D57: Structures & Improvements | E57: 9706432 | F57: 450942 | G57: 1824 | H57: 0 | K57: 10155550
A58: 4 | B58: 376.1 | C58: 27601 | D58: Mains - Cast Iron & Copper | E58: 2013973 | F58: 36760 | G58: -171870 | H58: 0 | K58: 2222603
A59: 5 | B59: 376.2 | C59: 27602,27607 | D59: Mains - Steel | E59: 86128215 | F59: 1987972 | G59: 366936 | H59: 0 | K59: 87749251
A60: 6 | B60: 376.3 | C60: 27603,27608 | D60: Mains - Plastic | E60: 205772947 | F60: 7702924 | G60: 312487 | H60: 0 | K60: 213163384
A61: 7 | B61: 376.5 | C61: 27605 | D61: Mains - Feeder | E61: 209677636 | F61: 53851182 | G61: 1085484 | H61: 0 | K61: 262443334
A62: 8 | B62: 378 | C62: 27800 | D62: System Meas. & Reg. Station Equipment - General | E62: 104743165 | F62: 4001435 | G62: -1441239 | H62: 0 | K62: 110185839
A63: 9 | B63: 378.1 | C63: 27801 | D63: System Meas. & Reg. Station Equipment - Electric | E63: 2001552 | F63: 62940 | G63: 928 | H63: 0 | K63: 2063564
A64: 10 | B64: 378.2 | C64: 27802 | D64: District Regulating Equipment | E64: 2129559 | F64: 39786 | G64: 60660 | H64: 0 | K64: 2108685
A65: 11 | B65: 379 | C65: 27900 | D65: System Meas. & Reg. Station Equipment - City Gate | E65: 1637717 | F65: 29893 | G65: 0 | H65: 0 | K65: 1667610
A66: 12 | B66: 380.1 | C66: 28001 | D66: Services- Cast Iron & Copper | E66: 25112 | F66: 458 | G66: 270 | H66: 0 | K66: 25300
A67: 13 | B67: 380.2 | C67: 28002,28004 | D67: Services-Steel | E67: 6049513 | F67: 660133 | G67: 58086 | H67: 0 | K67: 6651560
A68: 14 | B68: 380.3 | C68: 28003,28005-28007 | D68: Services-Plastic | E68: 224750079 | F68: 6463257 | G68: 177666 | H68: 0 | K68: 231035670
A69: 15 | B69: 381 | C69: 28100 | D69: Meters | E69: 20246754 | F69: 3060437 | G69: 3178338 | H69: 0 | K69: 20128853
A70: 16 | B70: 381.2 | C70: 28102 | D70: Meters | E70: 974890 | F70: 112787 | G70: 0 | H70: 0 | K70: =E70+F70-G70+H70 -> 1087677
A71: 17 | B71: 382 | C71: 28200,28201 | D71: Meter Installations | E71: 19273974 | F71: -2472328 | G71: 0 | H71: 0 | K71: 16801646
A72: 18 | B72: 383 | C72: 28300,28301 | D72: House Regulators | E72: 7835967 | F72: 187132 | G72: 0 | H72: 0 | K72: 8023099
A73: 19 | B73: 384 | C73: 28400,28401 | D73: House Regulator Installations | E73: 6140616 | F73: 205202 | G73: 0 | H73: 0 | K73: 6345818
A74: 20 | B74: 385 | C74: 28500 | D74: Large Industrial Meas. & Reg. Equipment | E74: 455027 | F74: 8305 | G74: 0 | H74: 0 | K74: 463332
A75: 21 | B75: 385.1 | C75: 28501 | D75: Large Industrial Meas. & Reg. Equipment - Comm | E75: 64791 | F75: 1183 | G75: 0 | H75: 0 | K75: 65974
A76: 22 | B76: 387 | C76: 28700 | D76: Other Equipment - Other | E76: 54779 | F76: 1000 | G76: 0 | H76: 0 | K76: 55779
A77: 23 | B77: 387.1 | C77: 28701 | D77: Street Lighting Equipment | E77: 28290 | F77: 516 | G77: 0 | H77: 0 | K77: 28806
A78: 24 | D78: Asset Retirement Cost Obligation (1) | E78: 7019254 | F78: 135653 | G78: 0 | H78: 0 | K78: 7154907
A81: =A78+1 -> 25 | D81: Total Distribution Plant | E81: =SUM(E55:E78) -> 933595904 | F81: =SUM(F55:F78) -> 77078451 | G81: =SUM(G55:G78) -> 3629570 | H81: =SUM(H55:H78) -> 0 | K81: =SUM(K55:K78) -> 1007044785
A84: (1) Asset Retirement Cost Obligation is related to legally required closure activities of gas mains upon retirement of underlying asset.
A86: =A1 -> DUKE ENERGY KENTUCKY, INC.
A87: =A2 -> CASE NO. 2025-00125
A88: =A3 -> GROSS ADDITIONS, RETIREMENTS, AND TRANSFERS
A89: =A4 -> FROM SEPTEMBER 1, 2024 TO AUGUST 31, 2025
A91: GENERAL PLANT
A95: =Data -> DATA: "X" BASE PERIOD FORECASTED PERIOD | J95: =J10 -> SCHEDULE B-2.3
A96: =A11 -> TYPE OF FILING: "X" ORIGINAL UPDATED REVISED | J96: PAGE 3 OF 8
A97: =A12 -> WORK PAPER REFERENCE NO(S).: | J97: WITNESS RESPONSIBLE:
J98: =J13 -> C. C. HUDSON / S. S. MITCHELL
B102: FERC | C102: Company | H102: Transfers/Reclassifications
A103: Line | B103: Acct. | C103: Acct. | D103: Account | E103: Beginning | I103: Explanation | J103: Other Accts. | K103: Ending
A104: No. | B104: No. | C104: No. | D104: Title | E104: Balance | F104: Additions | G104: Retirements | H104: Amount | I104: of Transfer | J104: Involved | K104: Balance
E106: $ | F106: $ | G106: $ | H106: $ | K106: $
A108: 1 | B108: 303 | C108: 20300 | D108: Miscellaneous Intangible Plant | E108: 15118088 | F108: 1859994 | G108: 2878 | H108: 0 | K108: =E108+F108-G108+H108 -> 16975204
A109: =A108+1 -> 2 | B109: 303.3 | C109: 20303 | D109: Misc Intangible Plant - 3 Year | E109: 531875 | F109: 144248 | G109: 0 | H109: 0 | K109: =E109+F109-G109+H109 -> 676123
A110: 3 | B110: 303.1 | C110: 20310 | D110: Misc Intangible Plant - 10 Year | E110: 2779552 | F110: 151705 | G110: 0 | H110: 0 | K110: 2931257
A111: 4 | B111: 303.15 | C111: 20315 | D111: Misc Intangible Plant - 15 Year | E111: 5936073 | F111: 322644 | G111: 0 | H111: 0 | K111: =E111+F111-G111+H111 -> 6258717
A112: 5 | B112: 303.6 | C112: 20360 | D112: Interconnect Intangible - 60 Year | E112: 1236178 | F112: 67190 | G112: 0 | H112: 0 | K112: =E112+F112-G112+H112 -> 1303368
A113: 6 | B113: 391 | C113: 29100 | D113: Office Furniture & Equipment | E113: 0 | F113: 0 | G113: 0 | H113: 0 | K113: 0
A114: 7 | B114: 391.1 | C114: 29101 | D114: Electronic Data Processing | E114: 743407 | F114: 62742 | G114: 61454 | H114: 0 | K114: 744695
A115: 8 | B115: 391.15 | C115: 29115 | D115: Data Processing Equipment | E115: 475362 | F115: 25837 | G115: 0 | H115: 0 | K115: 501199
A116: 9 | B116: 392.1 | C116: 29201 | D116: Trailers | E116: 69948 | F116: 3802 | G116: 0 | H116: 0 | K116: 73750
A117: 10 | B117: 394 | C117: 29400 | D117: Tools, Shop & Garage Equipment | E117: 2291869 | F117: 512878 | G117: 19596 | H117: 0 | K117: 2785151
A118: 11 | B118: 396 | C118: 29600 | D118: Power Operated Equipment | E118: 179975 | F118: 9782 | G118: 0 | H118: 0 | K118: 189757
A119: 12 | B119: 397 | C119: 29700 | D119: Communication Equipment | E119: 11803882 | F119: 2269106 | G119: 2501937 | H119: 0 | K119: 11571051
A120: 13 | B120: 398 | C120: 29800 | D120: Miscellaneous Equipment | E120: 0 | F120: 0 | G120: 13932 | H120: 0 | K120: =E120+F120-G120+H120 -> -13932
A123: =A120+1 -> 14 | D123: Total General Plant | E123: =SUM(E108:E120) -> 41166209 | F123: =SUM(F108:F120) -> 5429928 | G123: =SUM(G108:G120) -> 2599797 | H123: =SUM(H108:H120) -> 0 | K123: =SUM(K108:K120) -> 43996340
A126: =A123+1 -> 15 | D126: Total Gas Plant | E126: =E29+E81+E123 -> 974762113 | F126: =F29+F81+F123 -> 82508379 | G126: =G29+G81+G123 -> 6229367 | H126: =H29+H81+H123 -> 0 | K126: =K29+K81+K123 -> 1051041125
A130: =A1 -> DUKE ENERGY KENTUCKY, INC.
A131: =A2 -> CASE NO. 2025-00125
A132: =A3 -> GROSS ADDITIONS, RETIREMENTS, AND TRANSFERS
A133: =A4 -> FROM SEPTEMBER 1, 2024 TO AUGUST 31, 2025
A135: COMMON PLANT
A139: =Data -> DATA: "X" BASE PERIOD FORECASTED PERIOD | J139: =J10 -> SCHEDULE B-2.3
A140: =A11 -> TYPE OF FILING: "X" ORIGINAL UPDATED REVISED | J140: PAGE 4 OF 8
A141: =A12 -> WORK PAPER REFERENCE NO(S).: | J141: WITNESS RESPONSIBLE:
J142: =J13 -> C. C. HUDSON / S. S. MITCHELL
B146: FERC | C146: Company | H146: Transfers/Reclassifications
A147: Line | B147: Acct. | C147: Acct. | D147: Account | E147: Beginning | I147: Explanation | J147: Other Accts. | K147: Ending
A148: No. | B148: No. | C148: No. | D148: Title | E148: Balance | F148: Additions | G148: Retirements | H148: Amount | I148: of Transfer | J148: Involved | K148: Balance
E150: $ | F150: $ | G150: $ | H150: $ | K150: $
A152: 1 | C152: 10300 | D152: Miscellaneous Intangible Plant | E152: 22442697 | F152: 0 | G152: 0 | H152: 0 | K152: =E152+F152-G152+H152 -> 22442697
A153: =A152+1 -> 2 | C153: 18900 | D153: Land and Land Rights | E153: 1041678 | F153: 0 | G153: 0 | H153: 0 | K153: 1041678
A154: =A153+1 -> 3 | C154: 19000 | D154: Structures & Improvements | E154: 21306951 | F154: 210033 | G154: -102077 | H154: 0 | K154: 21619061
A155: 4 | C155: 19100 | D155: Office Furniture & Equipment | E155: 1560369 | F155: 0 | G155: 0 | H155: 0 | K155: 1560369
A156: 5 | C156: 19101 | D156: Electronic Data Processing | E156: 9798 | F156: 0 | G156: 6756 | H156: 0 | K156: 3042
A157: 6 | C157: 19300 | D157: Stores Equipment | E157: 0 | F157: 0 | G157: 0 | H157: 0 | K157: 0
A158: 7 | C158: 19400 | D158: Tools, Shop & Garage Equipment | E158: 108478 | F158: 0 | G158: 498 | H158: 0 | K158: 107980
A159: 8 | C159: 19700 | D159: Communication Equipment | E159: 6041822 | F159: 0 | G159: 814194 | H159: 0 | K159: 5227628
A160: 9 | C160: 19800 | D160: Miscellaneous Equipment | E160: 95301 | F160: 0 | G160: 0 | H160: 0 | K160: 95301
A161: 10 | D161: Asset Retirement Cost Obligation (1) | E161: 1486982 | F161: 0 | G161: 0 | H161: 0 | K161: 1486982
A164: =A161+1 -> 11 | D164: Total Common Plant | E164: =SUM(E152:E161) -> 54094076 | F164: =SUM(F152:F161) -> 210033 | G164: =SUM(G152:G161) -> 719371 | H164: =SUM(H152:H161) -> 0 | K164: =SUM(K152:K161) -> 53584738
A167: =A164+1 -> 12 | C167: =CommonG -> 0.2925 | D167: Common Plant Allocated to Gas | E167: =ROUND(E164*$C$167,0) -> 15822517 | F167: =ROUND(F164*$C$167,0) -> 61435 | G167: =ROUND(G164*$C$167,0) -> 210416 | H167: =ROUND(H164*$C$167,0) -> 0 | K167: =E167+F167-G167+H167 -> 15673536
A170: =A167+1 -> 13 | D170: Total Gas Plant Including Allocated Common | E170: =E167+E126 -> 990584630 | F170: =F167+F126 -> 82569814 | G170: =G167+G126 -> 6439783 | H170: =H167+H126 -> 0 | K170: =K167+K126 -> 1066714661
A173: (1) Asset Retirement Cost Obligation is related to legally required closure activities of gas mains upon retirement of underlying asset.
A176: =COMPANY -> DUKE ENERGY KENTUCKY, INC.
A177: =CASE -> CASE NO. 2025-00125
A178: GROSS ADDITIONS, RETIREMENTS, AND TRANSFERS
A179: ="FROM JANUARY 1, 2026"&" TO "&RIGHT(Forecast,(LEN(Forecast)-16)) -> FROM JANUARY 1, 2026 TO DECEMBER 31, 2026
A181: MANUFACTURED GAS PRODUCTION PLANT
A185: =DataF -> DATA: BASE PERIOD "X" FORECASTED PERIOD | K185: SCHEDULE B-2.3
A186: =Type -> TYPE OF FILING: "X" ORIGINAL UPDATED REVISED | K186: PAGE 5 OF 8
A187: WORK PAPER REFERENCE NO(S).: | K187: WITNESS RESPONSIBLE:
K188: =_WIT7 -> C. C. HUDSON / S. S. MITCHELL
B192: FERC | C192: Company | H192: Transfers/Reclassifications
A193: Line | B193: Acct. | C193: Acct. | D193: Account | E193: Beginning | I193: Explanation | J193: Other Accts. | K193: Ending | L193: 13 Month
A194: No. | B194: No. | C194: No. | D194: Title | E194: Balance | F194: Additions | G194: Retirements | H194: Amount | I194: of Transfer | J194: Involved | K194: Balance | L194: Average
E196: $ | F196: $ | G196: $ | H196: $ | K196: $ | L196: $
A198: 1 | B198: =B23 -> 304 | C198: 20400 | D198: Land and Land Rights | E198: 0 | F198: 0 | G198: 0 | K198: =E198+F198-G198+H198 -> 0 | L198: 0
A199: 2 | B199: 304 | C199: 20401 | D199: Rights of Way | E199: 0 | F199: 0 | G199: 0 | K199: =E199+F199-G199+H199 -> 0 | L199: 0
A200: 3 | B200: 305 | C200: 20500 | D200: Structures & Improvements | E200: 0 | F200: 0 | G200: 0 | K200: =E200+F200-G200+H200 -> 0 | L200: 0
A201: 4 | B201: 311 | C201: 21100 | D201: Liquefied Petroleum Gas Equipment | E201: 0 | F201: 0 | G201: 0 | K201: =E201+F201-G201+H201 -> 0 | L201: 0
A204: =A201+1 -> 5 | D204: Total Manufactured Gas Production Plant | E204: =SUM(E198:E201) -> 0 | F204: =SUM(F198:F201) -> 0 | G204: =SUM(G198:G201) -> 0 | H204: =SUM(H198:H201) -> 0 | K204: =SUM(K198:K201) -> 0 | L204: =SUM(L198:L201) -> 0
A208: =A176 -> DUKE ENERGY KENTUCKY, INC.
A209: =A177 -> CASE NO. 2025-00125
A210: =A178 -> GROSS ADDITIONS, RETIREMENTS, AND TRANSFERS
A211: =A179 -> FROM JANUARY 1, 2026 TO DECEMBER 31, 2026
A213: DISTRIBUTION PLANT
A217: =DataF -> DATA: BASE PERIOD "X" FORECASTED PERIOD | K217: =K185 -> SCHEDULE B-2.3
A218: =A186 -> TYPE OF FILING: "X" ORIGINAL UPDATED REVISED | K218: PAGE 6 OF 8
A219: =A187 -> WORK PAPER REFERENCE NO(S).: | K219: WITNESS RESPONSIBLE:
K220: =K188 -> C. C. HUDSON / S. S. MITCHELL
B224: FERC | C224: Company | H224: Transfers/Reclassifications
A225: Line | B225: Acct. | C225: Acct. | D225: Account | E225: Beginning | I225: Explanation | J225: Other Accts. | K225: Ending | L225: 13 Month
A226: No. | B226: No. | C226: No. | D226: Title | E226: Balance | F226: Additions | G226: Retirements | H226: Amount | I226: of Transfer | J226: Involved | K226: Balance | L226: Average
E228: $ | F228: $ | G228: $ | H228: $ | K228: $ | L228: $
A230: 1 | B230: =B55 -> 374 | C230: 27400 | D230: Land and Land Rights | E230: 10510469 | F230: 506231 | G230: 0 | K230: =E230+F230-G230+H230 -> 11016700 | L230: 10738790
A231: =1+A230 -> 2 | B231: 374.1 | C231: 27401 | D231: Rights of Way | E231: 7774072 | F231: 374434 | G231: 0 | K231: 8148506 | L231: 7942950
A232: =1+A231 -> 3 | B232: 375 | C232: 27500 | D232: Structures & Improvements | E232: 10660553 | F232: 513606 | G232: 3648 | K232: 11170511 | L232: 10890376
A233: 4 | B233: 376.1 | C233: 27601 | D233: Mains - Cast Iron & Copper | E233: 2439387 | F233: 103695 | G233: -343740 | K233: 2886822 | L233: 2658026
A234: 5 | B234: 376.2 | C234: 27602,27607 | D234: Mains - Steel | E234: 91947696 | F234: 4451357 | G234: 566628 | K234: 95832425 | L234: 93672035
A235: 6 | B235: 376.3 | C235: 27603,27608 | D235: Mains - Plastic | E235: 223630756 | F235: 10791383 | G235: 506316 | K235: 233915823 | L235: 228244733
A236: 7 | B236: 376.5 | C236: 27605 | D236: Mains - Feeder | E236: 274536247 | F236: 13351294 | G236: 3198948 | K236: 284688593 | L236: 278958480
A237: 8 | B237: 378 | C237: 27800 | D237: System Meas. & Reg. Station Equipment - General | E237: 115648004 | F237: 5573930 | G237: 94740 | K237: 121127194 | L237: 118114591
A238: 9 | B238: 378.1 | C238: 27801 | D238: System Meas. & Reg. Station Equipment - Electric | E238: 2171585 | F238: 103919 | G238: -16788 | K238: 2292292 | L238: 2226848
A239: 10 | B239: 378.2 | C239: 27802 | D239: District Regulating Equipment | E239: 2176359 | F239: 109693 | G239: 121320 | K239: 2164732 | L239: 2165173
A240: 11 | B240: 379 | C240: 27900 | D240: System Meas. & Reg. Station Equipment - City Gate | E240: 1750719 | F240: 84322 | G240: 0 | K240: 1835041 | L240: 1788750
A241: 12 | B241: 380.1 | C241: 28001 | D241: Services- Cast Iron & Copper | E241: 26395 | F241: 1293 | G241: 540 | K241: 27148 | L241: 26708
A242: 13 | B242: 380.2 | C242: 28002,28004 | D242: Services-Steel | E242: 6947228 | F242: 339272 | G242: 116172 | K242: 7170328 | L242: 7042161
A243: 14 | B243: 380.3 | C243: 28003,28005-28007 | D243: Services-Plastic | E243: 242440317 | F243: 11691276 | G243: 355332 | K243: 253776261 | L243: 247535656
A244: 15 | B244: 381 | C244: 28100 | D244: Meters | E244: 21132025 | F244: 1017813 | G244: 0 | K244: 22149838 | L244: 21591079
A245: 16 | B245: 381.2 | C245: 28102 | D245: Meters | E245: 1141885 | F245: 54998 | G245: 0 | K245: 1196883 | L245: 1166690
A246: 17 | B246: 382 | C246: 28200,28201 | D246: Meter Installations | E246: 17638998 | F246: 849573 | G246: 0 | K246: 18488571 | L246: 18022173
A247: 18 | B247: 383 | C247: 28300,28301 | D247: House Regulators | E247: 8422950 | F247: 405687 | G247: 0 | K247: 8828637 | L247: 8605923
A248: 19 | B248: 384 | C248: 28400,28401 | D248: House Regulator Installations | E248: 6662078 | F248: 320876 | G248: 0 | K248: 6982954 | L248: 6806800
A249: 20 | B249: 385 | C249: 28500 | D249: Large Industrial Meas. & Reg. Equipment | E249: 486424 | F249: 23428 | G249: 0 | K249: 509852 | L249: 496990
A250: 21 | B250: 385.1 | C250: 28501 | D250: Large Industrial Meas. & Reg. Equipment - Comm | E250: 69261 | F250: 3336 | G250: 0 | K250: 72597 | L250: 70766
A251: 22 | B251: 387 | C251: 28700 | D251: Other Equipment - Other | E251: 58559 | F251: 2820 | G251: 0 | K251: 61379 | L251: 59831
A252: 23 | B252: 387.1 | C252: 28701 | D252: Street Lighting Equipment | E252: 30242 | F252: 1457 | G252: 0 | K252: 31699 | L252: 30899
A253: 24 | D253: Asset Retirement Cost Obligation (1) | E253: 7511489 | F253: 361787 | G253: 0 | K253: 7873276 | L253: 7674663
A256: =A253+1 -> 25 | D256: Total Distribution Plant | E256: =SUM(E230:E253) -> 1055813698 | F256: =SUM(F230:F253) -> 51037480 | G256: =SUM(G230:G253) -> 4603116 | H256: =SUM(H230:H253) -> 0 | K256: =SUM(K230:K253) -> 1102248062 | L256: =SUM(L230:L253) -> 1076531091
A259: (1) Asset Retirement Cost Obligation is related to legally required closure activities of gas mains upon retirement of underlying asset.
A261: =A176 -> DUKE ENERGY KENTUCKY, INC.
A262: =A177 -> CASE NO. 2025-00125
A263: =A178 -> GROSS ADDITIONS, RETIREMENTS, AND TRANSFERS
A264: =A179 -> FROM JANUARY 1, 2026 TO DECEMBER 31, 2026
A266: GENERAL PLANT
A270: =DataF -> DATA: BASE PERIOD "X" FORECASTED PERIOD | K270: =K185 -> SCHEDULE B-2.3
A271: =A186 -> TYPE OF FILING: "X" ORIGINAL UPDATED REVISED | K271: PAGE 7 OF 8
A272: =A187 -> WORK PAPER REFERENCE NO(S).: | K272: WITNESS RESPONSIBLE:
K273: =K188 -> C. C. HUDSON / S. S. MITCHELL
B277: FERC | C277: Company | H277: Transfers/Reclassifications
A278: Line | B278: Acct. | C278: Acct. | D278: Account | E278: Beginning | I278: Explanation | J278: Other Accts. | K278: Ending | L278: 13 Month
A279: No. | B279: No. | C279: No. | D279: Title | E279: Balance | F279: Additions | G279: Retirements | H279: Amount | I279: of Transfer | J279: Involved | K279: Balance | L279: Average
E281: $ | F281: $ | G281: $ | H281: $ | K281: $ | L281: $
A283: 1 | B283: =B108 -> 303 | C283: 20300 | D283: Miscellaneous Intangible Plant | E283: 20033280 | F283: 578583 | G283: 0 | K283: =E283+F283-G283+H283 -> 20611863 | L283: 20291041
A284: =A283+1 -> 2 | B284: 303.3 | C284: 20303 | D284: Misc Intangible Plant - 3 Year | E284: 797926 | F284: 23045 | G284: 0 | K284: =E284+F284-G284+H284 -> 820971 | L284: 808193
A285: 3 | B285: 303.1 | C285: 20310 | D285: Misc Intangible Plant - 10 Year | E285: 3459322 | F285: 99909 | G285: 0 | K285: 3559231 | L285: 3503832
A286: 4 | B286: 303.15 | C286: 20315 | D286: Misc Intangible Plant - 15 Year | E286: 7386223 | F286: 213322 | G286: 0 | K286: =E286+F286-G286+H286 -> 7599545 | L286: 7481259
A287: 5 | B287: 303.6 | C287: 20360 | D287: Interconnect Intangible - 60 Year | E287: 1538170 | F287: 44424 | G287: 0 | K287: =E287+F287-G287+H287 -> 1582594 | L287: 1557961
A288: 6 | B288: 391 | C288: 29100 | D288: Office Furniture & Equipment | E288: 0 | F288: 0 | G288: 0 | K288: 0 | L288: 0
A289: 7 | B289: 391.1 | C289: 29101 | D289: Electronic Data Processing | E289: 286904 | F289: 27477 | G289: 104394 | K289: 209987 | L289: 247514
A290: 8 | B290: 391.15 | C290: 29115 | D290: Data Processing Equipment | E290: 591490 | F290: 17083 | G290: 0 | K290: 608573 | L290: 599101
A291: =A290+1 -> 9 | B291: 392.1 | C291: 29201 | D291: Trailers | E291: 87036 | F291: 2514 | G291: 0 | K291: 89550 | L291: 88156
A292: 10 | B292: 394 | C292: 29400 | D292: Tools, Shop & Garage Equipment | E292: 3277362 | F292: 95597 | G292: 39192 | K292: =E292+F292-G292+H292 -> 3333767 | L292: 3300355
A293: 11 | B293: 396 | C293: 29600 | D293: Power Operated Equipment | E293: 223942 | F293: 6468 | G293: 0 | K293: =E293+F293-G293+H293 -> 230410 | L293: 226823
A294: 12 | B294: 397 | C294: 29700 | D294: Communication Equipment | E294: 13655572 | F294: 394388 | G294: 0 | K294: =E294+F294-G294+H294 -> 14049960 | L294: 13831273
A295: 13 | B295: 398 | C295: 29800 | D295: Miscellaneous Equipment | E295: -23220 | F295: 0 | G295: 27864 | K295: -51084 | L295: -37152
A298: =A295+1 -> 14 | D298: Total General Plant | E298: =SUM(E283:E295) -> 51314007 | F298: =SUM(F283:F295) -> 1502810 | G298: =SUM(G283:G295) -> 171450 | H298: =SUM(H283:H295) -> 0 | K298: =SUM(K283:K295) -> 52645367 | L298: =SUM(L283:L295) -> 51898356
A301: =A298+1 -> 15 | D301: Total Gas Plant | E301: =E204+E256+E298 -> 1107127705 | F301: =F204+F256+F298 -> 52540290 | G301: =G204+G256+G298 -> 4774566 | H301: =H204+H256+H298 -> 0 | K301: =K204+K256+K298 -> 1154893429 | L301: =L204+L256+L298 -> 1128429447
A305: =A176 -> DUKE ENERGY KENTUCKY, INC.
A306: =A177 -> CASE NO. 2025-00125
A307: =A178 -> GROSS ADDITIONS, RETIREMENTS, AND TRANSFERS
... 24 more rows

Sheet SCH B-2.4
A1: =COMPANY -> DUKE ENERGY KENTUCKY, INC.
A2: =CASE -> CASE NO. 2025-00125
A3: PROPERTY MERGED OR ACQUIRED
A4: ='SCH B-2.3'!A4 -> FROM SEPTEMBER 1, 2024 TO AUGUST 31, 2025
A8: =DataB -> DATA: "X" BASE PERIOD "X" FORECASTED PERIOD | I8: SCHEDULE B-2.4
A9: =Type -> TYPE OF FILING: "X" ORIGINAL UPDATED REVISED | I9: PAGE 1 OF 1
A10: WORK PAPER REFERENCE NO(S).: | I10: ='SCH B-2'!F11 -> WITNESS RESPONSIBLE:
I11: =_WIT7 -> C. C. HUDSON / S. S. MITCHELL
B15: FERC | C15: Company | H15: Commission | J15: Explanation
A16: Line | B16: Acct. | C16: Acct. | D16: Description | E16: Acquisition | F16: Cost | G16: Acquisition | H16: Approval Date | I16: Date of | J16: of
A17: No. | B17: No. | C17: No. | D17: of Property | E17: Cost | F17: Basis | G17: Adjustment | H17: (Docket No.) | I17: Acquisition | J17: Treatment
A20: The company has not merged or acquired property from other than affiliated companies.

Sheet SCH B-2.5
A1: =COMPANY -> DUKE ENERGY KENTUCKY, INC.
A2: =CASE -> CASE NO. 2025-00125
A3: LEASED PROPERTY
A4: ELECTRIC AND COMMON
A5: ="AS OF " &RIGHT(TESTYR,(LEN(TESTYR)-16)) -> AS OF AUGUST 31, 2025
A9: =Data -> DATA: "X" BASE PERIOD FORECASTED PERIOD | F9: SCHEDULE B-2.5
A10: =Type -> TYPE OF FILING: "X" ORIGINAL UPDATED REVISED | F10: PAGE 1 OF 2
A11: WORK PAPER REFERENCE NO(S).: | F11: WITNESS RESPONSIBLE:
F12: =_WIT7 -> C. C. HUDSON / S. S. MITCHELL
F15: Dollar
A16: Identification | F16: Value of
A17: or Reference | B17: Description of Type | C17: Name of | D17: Frequency | E17: Amount of | F17: Property | G17: Explain Method of
A18: Number | B18: and Use of Property | C18: Lessee | D18: of Payment | E18: Lease Payment | F18: Involved | G18: Capitalization
B21: The company has no leased property.
A35: =COMPANY -> DUKE ENERGY KENTUCKY, INC.
A36: =CASE -> CASE NO. 2025-00125
A37: LEASED PROPERTY
A38: ELECTRIC AND COMMON
A39: ="AS OF " &RIGHT(Forecast,(LEN(Forecast)-16)) -> AS OF DECEMBER 31, 2026
A43: =DataF -> DATA: BASE PERIOD "X" FORECASTED PERIOD | F43: SCHEDULE B-2.5
A44: =Type -> TYPE OF FILING: "X" ORIGINAL UPDATED REVISED | F44: PAGE 2 OF 2
A45: WORK PAPER REFERENCE NO(S).: | F45: WITNESS RESPONSIBLE:
F46: =_WIT7 -> C. C. HUDSON / S. S. MITCHELL
F49: Dollar
A50: Identification | F50: Value of
A51: or Reference | B51: Description of Type | C51: Name of | D51: Frequency | E51: Amount of | F51: Property | G51: Explain Method of
A52: Number | B52: and Use of Property | C52: Lessee | D52: of Payment | E52: Lease Payment | F52: Involved | G52: Capitalization
B55: The company has no leased property.

Sheet SCH B-2.6
A1: =COMPANY -> DUKE ENERGY KENTUCKY, INC.
A2: =CASE -> CASE NO. 2025-00125
A3: PROPERTY HELD FOR FUTURE USE INCLUDED IN RATE BASE
A4: ="AS OF " &RIGHT(TESTYR,(LEN(TESTYR)-16)) -> AS OF AUGUST 31, 2025
A8: =Data -> DATA: "X" BASE PERIOD FORECASTED PERIOD | K8: SCHEDULE B-2.6
A9: =Type -> TYPE OF FILING: "X" ORIGINAL UPDATED REVISED | K9: PAGE 1 OF 2
A10: WORK PAPER REFERENCE NO(S).: | K10: WITNESS RESPONSIBLE:
K11: =_WIT7 -> C. C. HUDSON / S. S. MITCHELL
B16: Description | F16: Net | G16: Revenue Realized | K16: Expenses Incurred
A17: Line | B17: and Location | C17: Acquisition | D17: Original | E17: Accumulated | F17: Original | H17: Acct. | L17: Acct.
A18: No. | B18: of Property | C18: Date | D18: Cost | E18: Depreciation | F18: Cost | G18: Amount | H18: No. | I18: Description | K18: Amount | L18: No. | M18: Description
C21: The company has no plant held for future use included in rate base.
A27: =COMPANY -> DUKE ENERGY KENTUCKY, INC.
A28: =CASE -> CASE NO. 2025-00125
A29: PROPERTY HELD FOR FUTURE USE INCLUDED IN RATE BASE
A30: ="AS OF " &RIGHT(Forecast,(LEN(Forecast)-16)) -> AS OF DECEMBER 31, 2026
A34: =DataF -> DATA: BASE PERIOD "X" FORECASTED PERIOD | K34: SCHEDULE B-2.6
A35: =Type -> TYPE OF FILING: "X" ORIGINAL UPDATED REVISED | K35: PAGE 2 OF 2
A36: WORK PAPER REFERENCE NO(S).: | K36: WITNESS RESPONSIBLE:
K37: =_WIT7 -> C. C. HUDSON / S. S. MITCHELL
B42: Description | F42: Net | G42: Revenue Realized | K42: Expenses Incurred
A43: Line | B43: and Location | C43: Acquisition | D43: Original | E43: Accumulated | F43: Original | H43: Acct. | L43: Acct.
A44: No. | B44: of Property | C44: Date | D44: Cost | E44: Depreciation | F44: Cost | G44: Amount | H44: No. | I44: Description | K44: Amount | L44: No. | M44: Description
C47: The company has no plant held for future use included in rate base.

Sheet SCH B-2.7
A1: =COMPANY -> DUKE ENERGY KENTUCKY, INC.
A2: =CASE -> CASE NO. 2025-00125
A3: PROPERTY EXCLUDED FROM RATE BASE
A4: (FOR REASONS OTHER THAN JURISDICTIONAL ALLOCATION)
A5: ="AS OF " &RIGHT(TESTYR,(LEN(TESTYR)-16)) -> AS OF AUGUST 31, 2025
A10: =Data -> DATA: "X" BASE PERIOD FORECASTED PERIOD | J10: SCHEDULE B-2.7
A11: =Type -> TYPE OF FILING: "X" ORIGINAL UPDATED REVISED | J11: PAGE 1 OF 2
A12: WORK PAPER REFERENCE NO(S).: | J12: WITNESS RESPONSIBLE:
J13: =_WIT7 -> C. C. HUDSON / S. S. MITCHELL
F17: Accum. | H17: Base Period
B18: Company | F18: Depre. | G18: Net | H18: Revenue and Expense
A19: Line | B19: Acct. | C19: Description of | D19: In-Service | E19: Original | F19: and | G19: Original | I19: Acct. | K19: Reasons
A20: No. | B20: No. | C20: Excluded Property | D20: Date | E20: Cost | F20: Amort. | G20: Cost | H20: Amount | I20: No. | J20: Description | K20: for Exclusion
C24: No property is excluded from rate base for reasons other than jurisdictional allocation.
A45: =COMPANY -> DUKE ENERGY KENTUCKY, INC.
A46: =CASE -> CASE NO. 2025-00125
A47: PROPERTY EXCLUDED FROM RATE BASE
A48: (FOR REASONS OTHER THAN JURISDICTIONAL ALLOCATION)
A49: ="AS OF " &RIGHT(Forecast,(LEN(Forecast)-16)) -> AS OF DECEMBER 31, 2026
A54: =DataF -> DATA: BASE PERIOD "X" FORECASTED PERIOD | J54: SCHEDULE B-2.7
A55: =Type -> TYPE OF FILING: "X" ORIGINAL UPDATED REVISED | J55: PAGE 2 OF 2
A56: WORK PAPER REFERENCE NO(S).: | J56: WITNESS RESPONSIBLE:
J57: =_WIT7 -> C. C. HUDSON / S. S. MITCHELL
F61: Accum. | H61: Forecasted Period
B62: Company | F62: Depre. | G62: Net | H62: Revenue and Expense
A63: Line | B63: Acct. | C63: Description of | D63: In-Service | E63: Original | F63: and | G63: Original | I63: Acct. | K63: Reasons
A64: No. | B64: No. | C64: Excluded Property | D64: Date | E64: Cost | F64: Amort. | G64: Cost | H64: Amount | I64: No. | J64: Description | K64: for Exclusion
C68: No property is excluded from rate base for reasons other than jurisdictional allocation.

Sheet SCH B-3
A1: =COMPANY -> DUKE ENERGY KENTUCKY, INC.
A2: =CASE -> CASE NO. 2025-00125
A3: ACCUMULATED DEPRECIATION AND AMORTIZATION
A4: ="AS OF " &RIGHT(TESTYR,(LEN(TESTYR)-16)) -> AS OF AUGUST 31, 2025
A6: MANUFACTURED GAS PRODUCTION PLANT
A10: =Data -> DATA: "X" BASE PERIOD FORECASTED PERIOD | J10: SCHEDULE B-3
A11: =Type -> TYPE OF FILING: "X" ORIGINAL UPDATED REVISED | J11: PAGE 1 OF 8
A12: WORK PAPER REFERENCE NO(S).: SCHEDULE B-2.1, SCHEDULE B-3.1 | J12: WITNESS RESPONSIBLE:
J13: =_WIT7 -> C. C. HUDSON / S. S. MITCHELL
B17: FERC | C17: Company | E17: Base | G17: Base Period Accumulated Balances
A18: Line | B18: Acct. | C18: Acct. | E18: Period | H18: Jurisdictional | I18: Jurisdictional | K18: Adjusted
A19: No. | B19: No. | C19: No. | D19: Account Title | E19: Total (1) | G19: Total | H19: % | I19: Total | J19: Adjustments | K19: Jurisdiction
E20: $ | G20: $ | I20: $ | J20: $ | K20: $
A22: 1 | B22: ='SCH B-2.1'!B23 -> 304 | C22: ='SCH B-2.1'!C23 -> 20400 | D22: ='SCH B-2.1'!D23 -> Land and Land Rights | E22: ='SCH B-2.1'!E23 -> 0 | G22: 0 | H22: 1 | I22: =ROUND((G22*H22),0) -> 0 | J22: 0 | K22: =I22+J22 -> 0
A23: =1+A22 -> 2 | B23: ='SCH B-2.1'!B24 -> 304 | C23: ='SCH B-2.1'!C24 -> 20401 | D23: ='SCH B-2.1'!D24 -> Rights of Way | E23: ='SCH B-2.1'!E24 -> 0 | G23: 0 | H23: 1 | I23: =ROUND((G23*H23),0) -> 0 | J23: =-'SCH B-3.1'!G23 -> 0 | K23: =I23+J23 -> 0
A24: =1+A23 -> 3 | B24: ='SCH B-2.1'!B25 -> 305 | C24: ='SCH B-2.1'!C25 -> 20500 | D24: ='SCH B-2.1'!D25 -> Structures & Improvements | E24: ='SCH B-2.1'!E25 -> 0 | G24: 0 | H24: 1 | I24: =ROUND((G24*H24),0) -> 0 | J24: =-'SCH B-3.1'!G24 -> 0 | K24: =I24+J24 -> 0
A25: =1+A24 -> 4 | B25: ='SCH B-2.1'!B26 -> 311 | C25: ='SCH B-2.1'!C26 -> 21100 | D25: ='SCH B-2.1'!D26 -> Liquefied Petroleum Gas Equipment | E25: ='SCH B-2.1'!E26 -> 0 | G25: 0 | H25: 1 | I25: =ROUND((G25*H25),0) -> 0 | J25: =-'SCH B-3.1'!G25 -> 0 | K25: =I25+J25 -> 0
A26: =1+A25 -> 5 | C26: 108 | D26: Retirement Work in Progress | E26: 0 | G26: 0 | H26: 1 | I26: =ROUND((G26*H26),0) -> 0 | J26: =-'SCH B-3.1'!G26 -> 0 | K26: =I26+J26 -> 0
A30: =A26+1 -> 6 | D30: Total Manufactured Gas Production Plant | E30: =SUM(E22:E29) -> 0 | G30: =SUM(G22:G26) -> 0 | I30: =SUM(I22:I26) -> 0 | J30: =SUM(J22:J26) -> 0 | K30: =SUM(K22:K26) -> 0 | N30: =IF(E30='SCH B-2.1'!G29,"BALANCED","ERROR") -> BALANCED
A33: (1) Plant Investment Includes Completed Construction Not Classified (Account 106)
A40: =COMPANY -> DUKE ENERGY KENTUCKY, INC.
A41: =CASE -> CASE NO. 2025-00125
A42: =A3 -> ACCUMULATED DEPRECIATION AND AMORTIZATION
A43: ="AS OF " &RIGHT(TESTYR,(LEN(TESTYR)-16)) -> AS OF AUGUST 31, 2025
A45: DISTRIBUTION PLANT
A49: =Data -> DATA: "X" BASE PERIOD FORECASTED PERIOD | J49: =J10 -> SCHEDULE B-3
A50: =Type -> TYPE OF FILING: "X" ORIGINAL UPDATED REVISED | J50: PAGE 2 OF 8
A51: =A12 -> WORK PAPER REFERENCE NO(S).: SCHEDULE B-2.1, SCHEDULE B-3.1 | J51: =J12 -> WITNESS RESPONSIBLE:
J52: =J13 -> C. C. HUDSON / S. S. MITCHELL
B56: FERC | C56: Company | E56: =E17 -> Base | G56: =G17 -> Base Period Accumulated Balances
A57: Line | B57: Acct. | C57: Acct. | E57: =E18 -> Period | H57: Allocation | I57: Allocated | K57: Adjusted
A58: No. | B58: No. | C58: No. | D58: Account Title | E58: =E19 -> Total (1) | G58: Total | H58: % | I58: Total | J58: Adjustments | K58: Jurisdiction
G59: $ | I59: $ | J59: $ | K59: $
A61: 1 | B61: ='SCH B-2.1'!B55 -> 374 | C61: ='SCH B-2.1'!C55 -> 27400 | D61: ='SCH B-2.1'!D55 -> Land and Land Rights | E61: ='SCH B-2.1'!E55 -> 10011520 | G61: 1553 | H61: 1 | I61: =ROUND((G61*H61),0) -> 1553 | K61: =I61+J61 -> 1553
A62: =A61+1 -> 2 | B62: ='SCH B-2.1'!B56 -> 374.1 | C62: ='SCH B-2.1'!C56 -> 27401 | D62: ='SCH B-2.1'!D56 -> Rights of Way | E62: ='SCH B-2.1'!E56 -> 7405024 | G62: 925457 | H62: 1 | I62: =ROUND((G62*H62),0) -> 925457 | J62: =-'SCH B-3.1'!G32 -> -86695 | K62: =I62+J62 -> 838762
A63: 3 | B63: ='SCH B-2.1'!B57 -> 375 | C63: ='SCH B-2.1'!C57 -> 27500 | D63: ='SCH B-2.1'!D57 -> Structures & Improvements | E63: ='SCH B-2.1'!E57 -> 10155550 | G63: 568814 | H63: 1 | I63: 568814 | J63: =-'SCH B-3.1'!G33 -> -181529 | K63: 387285
A64: 4 | B64: ='SCH B-2.1'!B58 -> 376.1 | C64: ='SCH B-2.1'!C58 -> 27601 | D64: ='SCH B-2.1'!D58 -> Mains - Cast Iron & Copper | E64: ='SCH B-2.1'!E58 -> 2222603 | G64: 1723917 | H64: 1 | I64: 1723917 | K64: 1723917
A65: 5 | B65: ='SCH B-2.1'!B59 -> 376.2 | C65: ='SCH B-2.1'!C59 -> 27602,27607 | D65: ='SCH B-2.1'!D59 -> Mains - Steel | E65: ='SCH B-2.1'!E59 -> 87749251 | G65: 45938940 | H65: 1 | I65: 45938940 | J65: =-'SCH B-3.1'!G34 -> -639 | K65: 45938301
A66: 6 | B66: ='SCH B-2.1'!B60 -> 376.3 | C66: ='SCH B-2.1'!C60 -> 27603,27608 | D66: ='SCH B-2.1'!D60 -> Mains - Plastic | E66: ='SCH B-2.1'!E60 -> 213163384 | G66: 64768665 | H66: 1 | I66: 64768665 | K66: 64768665
A67: 7 | B67: ='SCH B-2.1'!B61 -> 376.5 | C67: ='SCH B-2.1'!C61 -> 27605 | D67: ='SCH B-2.1'!D61 -> Mains - Feeder | E67: ='SCH B-2.1'!E61 -> 262443334 | G67: 15171495 | H67: 1 | I67: 15171495 | J67: =-'SCH B-3.1'!G35-'SCH B-3.1'!G38 -> -5755334 | K67: =I67+J67 -> 9416161
A68: 8 | B68: ='SCH B-2.1'!B62 -> 378 | C68: ='SCH B-2.1'!C62 -> 27800 | D68: ='SCH B-2.1'!D62 -> System Meas. & Reg. Station Equipment - General | E68: ='SCH B-2.1'!E62 -> 110185839 | G68: 7136118 | H68: 1 | I68: 7136118 | J68: =-'SCH B-3.1'!G36-'SCH B-3.1'!G39 -> -1044412 | K68: 6091706
A69: 9 | B69: ='SCH B-2.1'!B63 -> 378.1 | C69: ='SCH B-2.1'!C63 -> 27801 | D69: ='SCH B-2.1'!D63 -> System Meas. & Reg. Station Equipment - Electric | E69: ='SCH B-2.1'!E63 -> 2063564 | G69: 849299 | H69: 1 | I69: 849299 | J69: =-'SCH B-3.1'!G37 -> -119616 | K69: 729683
A70: 10 | B70: ='SCH B-2.1'!B64 -> 378.2 | C70: ='SCH B-2.1'!C64 -> 27802 | D70: ='SCH B-2.1'!D64 -> District Regulating Equipment | E70: ='SCH B-2.1'!E64 -> 2108685 | G70: 789281 | H70: 1 | I70: 789281 | K70: 789281
A71: =A70+1 -> 11 | B71: ='SCH B-2.1'!B65 -> 379 | C71: ='SCH B-2.1'!C65 -> 27900 | D71: ='SCH B-2.1'!D65 -> System Meas. & Reg. Station Equipment - City Gate | E71: ='SCH B-2.1'!E65 -> 1667610 | G71: 88656 | H71: 1 | I71: =ROUND((G71*H71),0) -> 88656 | K71: =I71+J71 -> 88656
A72: 12 | B72: ='SCH B-2.1'!B66 -> 380.1 | C72: ='SCH B-2.1'!C66 -> 28001 | D72: ='SCH B-2.1'!D66 -> Services- Cast Iron & Copper | E72: ='SCH B-2.1'!E66 -> 25300 | G72: -1896314 | H72: 1 | I72: -1896314 | K72: -1896314
A73: 13 | B73: ='SCH B-2.1'!B67 -> 380.2 | C73: ='SCH B-2.1'!C67 -> 28002,28004 | D73: ='SCH B-2.1'!D67 -> Services-Steel | E73: ='SCH B-2.1'!E67 -> 6651560 | G73: 2135513 | H73: 1 | I73: 2135513 | K73: 2135513
A74: 14 | B74: ='SCH B-2.1'!B68 -> 380.3 | C74: ='SCH B-2.1'!C68 -> 28003,28005-28007 | D74: ='SCH B-2.1'!D68 -> Services-Plastic | E74: ='SCH B-2.1'!E68 -> 231035670 | G74: 74620207 | H74: 1 | I74: 74620207 | K74: 74620207
A75: 15 | B75: ='SCH B-2.1'!B69 -> 381 | C75: ='SCH B-2.1'!C69 -> 28100 | D75: ='SCH B-2.1'!D69 -> Meters | E75: ='SCH B-2.1'!E69 -> 20128853 | G75: 1611737 | H75: 1 | I75: 1611737 | K75: 1611737
A76: 16 | B76: ='SCH B-2.1'!B70 -> 381.2 | C76: ='SCH B-2.1'!C70 -> 28102 | D76: ='SCH B-2.1'!D70 -> Meters | E76: ='SCH B-2.1'!E70 -> 1087677 | G76: 301829 | H76: 1 | I76: 301829 | K76: =I76+J76 -> 301829
A77: 17 | B77: ='SCH B-2.1'!B71 -> 382 | C77: ='SCH B-2.1'!C71 -> 28200,28201 | D77: ='SCH B-2.1'!D71 -> Meter Installations | E77: ='SCH B-2.1'!E71 -> 16801646 | G77: 3948610 | H77: 1 | I77: 3948610 | K77: 3948610
A78: 18 | B78: ='SCH B-2.1'!B72 -> 383 | C78: ='SCH B-2.1'!C72 -> 28300,28301 | D78: ='SCH B-2.1'!D72 -> House Regulators | E78: ='SCH B-2.1'!E72 -> 8023099 | G78: 3460625 | H78: 1 | I78: 3460625 | K78: 3460625
A79: 19 | B79: ='SCH B-2.1'!B73 -> 384 | C79: ='SCH B-2.1'!C73 -> 28400,28401 | D79: ='SCH B-2.1'!D73 -> House Regulator Installations | E79: ='SCH B-2.1'!E73 -> 6345818 | G79: 3315901 | H79: 1 | I79: 3315901 | K79: 3315901
A80: 20 | B80: ='SCH B-2.1'!B74 -> 385 | C80: ='SCH B-2.1'!C74 -> 28500 | D80: ='SCH B-2.1'!D74 -> Large Industrial Meas. & Reg. Equipment | E80: ='SCH B-2.1'!E74 -> 463332 | G80: 461461 | H80: 1 | I80: 461461 | K80: 461461
A81: 21 | B81: ='SCH B-2.1'!B75 -> 385.1 | C81: ='SCH B-2.1'!C75 -> 28501 | D81: ='SCH B-2.1'!D75 -> Large Industrial Meas. & Reg. Equipment - Comm | E81: ='SCH B-2.1'!E75 -> 65974 | G81: 64214 | H81: 1 | I81: 64214 | K81: 64214
A82: 22 | B82: ='SCH B-2.1'!B76 -> 387 | C82: ='SCH B-2.1'!C76 -> 28700 | D82: ='SCH B-2.1'!D76 -> Other Equipment - Other | E82: ='SCH B-2.1'!E76 -> 55779 | G82: 22508 | H82: 1 | I82: 22508 | K82: 22508
A83: 23 | B83: ='SCH B-2.1'!B77 -> 387.1 | C83: ='SCH B-2.1'!C77 -> 28701 | D83: ='SCH B-2.1'!D77 -> Street Lighting Equipment | E83: ='SCH B-2.1'!E77 -> 28806 | G83: 24396 | H83: 1 | I83: 24396 | K83: 24396
A84: 24 | D84: Asset Retirement Cost Obligation | E84: ='SCH B-2.1'!E78 -> 7154907 | G84: 74023 | H84: 1 | I84: =ROUND((G84*H84),0) -> 74023 | J84: =-'SCH B-3.1'!G55 -> -74023 | K84: =I84+J84 -> 0
A85: 25 | C85: 108 | D85: Retirement Work in Progress | G85: -11212061 | H85: 1 | I85: =ROUND((G85*H85),0) -> -11212061 | K85: =I85+J85 -> -11212061
A86: 26 | D86: Completed Construction not Classified | E86: 0 | G86: 0 | H86: 1 | I86: 0 | K86: 0
A89: =1+A86 -> 27 | D89: Total Distribution Plant | E89: =SUM(E61:E86) -> 1007044785 | G89: =SUM(G61:G86) -> 214894844 | I89: =SUM(I61:I86) -> 214894844 | J89: =SUM(J61:J86) -> -7262248 | K89: =SUM(K61:K86) -> 207632596 | N89: =IF(E89='SCH B-2.1'!G81,"BALANCED","ERROR") -> BALANCED
A92: (1) Plant Investment Includes Completed Construction Not Classified (Account 106)
A98: =COMPANY -> DUKE ENERGY KENTUCKY, INC.
A99: =CASE -> CASE NO. 2025-00125
A100: =A3 -> ACCUMULATED DEPRECIATION AND AMORTIZATION
A101: ="AS OF " &RIGHT(TESTYR,(LEN(TESTYR)-16)) -> AS OF AUGUST 31, 2025
A103: GENERAL PLANT
A107: =Data -> DATA: "X" BASE PERIOD FORECASTED PERIOD | J107: =J10 -> SCHEDULE B-3
A108: =Type -> TYPE OF FILING: "X" ORIGINAL UPDATED REVISED | J108: PAGE 3 OF 8
A109: =A12 -> WORK PAPER REFERENCE NO(S).: SCHEDULE B-2.1, SCHEDULE B-3.1 | J109: =J12 -> WITNESS RESPONSIBLE:
J110: =J13 -> C. C. HUDSON / S. S. MITCHELL
B114: FERC | C114: Company | E114: =E17 -> Base | G114: =G17 -> Base Period Accumulated Balances
A115: Line | B115: Acct. | C115: Acct. | E115: =E18 -> Period | H115: Allocation | I115: Allocated | K115: Adjusted
A116: No. | B116: No. | C116: No. | D116: Account Title | E116: =E19 -> Total (1) | G116: Total | H116: % | I116: Total | J116: Adjustments | K116: Jurisdiction
G117: $ | I117: $ | J117: $ | K117: $
A119: 1 | B119: ='SCH B-2.1'!B108 -> 303 | C119: ='SCH B-2.1'!C108 -> 20300 | D119: ='SCH B-2.1'!D108 -> Miscellaneous Intangible Plant | E119: ='SCH B-2.1'!E108 -> 16975204 | G119: 13222652 | H119: 1 | I119: =ROUND(G119*H119,0) -> 13222652 | K119: =I119+J119 -> 13222652
A120: =A119+1 -> 2 | B120: 303.3 | C120: 20303 | D120: ='SCH B-2.1'!D109 -> Misc Intangible Plant - 3 Year | E120: ='SCH B-2.1'!E109 -> 676123 | G120: 396476 | H120: 1 | I120: 396476 | K120: 396476
A121: =A120+1 -> 3 | B121: ='SCH B-2.1'!B110 -> 303.1 | C121: ='SCH B-2.1'!C110 -> 20310 | D121: ='SCH B-2.1'!D110 -> Misc Intangible Plant - 10 Year | E121: ='SCH B-2.1'!E110 -> 2931257 | G121: 2153141 | H121: 1 | I121: 2153141 | K121: 2153141
A122: 4 | B122: 303.15 | C122: 20315 | D122: ='SCH B-2.1'!D111 -> Misc Intangible Plant - 15 Year | E122: ='SCH B-2.1'!E111 -> 6258717 | G122: 1993217 | H122: 1 | I122: =ROUND(G122*H122,0) -> 1993217 | K122: =I122+J122 -> 1993217
A123: 5 | B123: 303.6 | C123: 20360 | D123: ='SCH B-2.1'!D112 -> Interconnect Intangible - 60 Year | E123: ='SCH B-2.1'!E112 -> 1303368 | G123: 219882 | H123: 1 | I123: 219882 | K123: 219882
A124: 6 | B124: ='SCH B-2.1'!B113 -> 391 | C124: ='SCH B-2.1'!C113 -> 29100 | D124: ='SCH B-2.1'!D113 -> Office Furniture & Equipment | E124: ='SCH B-2.1'!E113 -> 0 | G124: 54 | H124: 1 | I124: 54 | J124: =-'SCH B-3.1'!G45 -> 0 | K124: 54
A125: 7 | B125: ='SCH B-2.1'!B114 -> 391.1 | C125: ='SCH B-2.1'!C114 -> 29101 | D125: ='SCH B-2.1'!D114 -> Electronic Data Processing | E125: ='SCH B-2.1'!E114 -> 744695 | G125: 660560 | H125: 1 | I125: 660560 | K125: 660560
A126: 8 | B126: ='SCH B-2.1'!B115 -> 391.15 | C126: ='SCH B-2.1'!C115 -> 29115 | D126: ='SCH B-2.1'!D115 -> Data Processing Equipment | E126: ='SCH B-2.1'!E115 -> 501199 | G126: 305768 | H126: 1 | I126: 305768 | K126: 305768
A127: 9 | B127: ='SCH B-2.1'!B116 -> 392.1 | C127: ='SCH B-2.1'!C116 -> 29201 | D127: ='SCH B-2.1'!D116 -> Trailers | E127: ='SCH B-2.1'!E116 -> 73750 | G127: 62376 | H127: 1 | I127: 62376 | K127: 62376
A128: 10 | B128: ='SCH B-2.1'!B117 -> 394 | C128: ='SCH B-2.1'!C117 -> 29400 | D128: ='SCH B-2.1'!D117 -> Tools, Shop & Garage Equipment | E128: ='SCH B-2.1'!E117 -> 2785151 | G128: 1129291 | H128: 1 | I128: =ROUND(G128*H128,0) -> 1129291 | J128: =-'SCH B-3.1'!G46 -> 0 | K128: =I128+J128 -> 1129291
A129: 11 | B129: ='SCH B-2.1'!B118 -> 396 | C129: ='SCH B-2.1'!C118 -> 29600 | D129: ='SCH B-2.1'!D118 -> Power Operated Equipment | E129: ='SCH B-2.1'!E118 -> 189757 | G129: 115333 | H129: 1 | I129: =ROUND(G129*H129,0) -> 115333 | K129: =I129+J129 -> 115333
A130: 12 | B130: ='SCH B-2.1'!B119 -> 397 | C130: ='SCH B-2.1'!C119 -> 29700 | D130: ='SCH B-2.1'!D119 -> Communication Equipment | E130: ='SCH B-2.1'!E119 -> 11571051 | G130: 2607194 | H130: 1 | I130: =ROUND(G130*H130,0) -> 2607194 | J130: =-'SCH B-3.1'!G47 -> 0 | K130: =I130+J130 -> 2607194
A131: 13 | B131: ='SCH B-2.1'!B120 -> 398 | C131: ='SCH B-2.1'!C120 -> 29800 | D131: ='SCH B-2.1'!D120 -> Miscellaneous Equipment | E131: ='SCH B-2.1'!E120 -> -13932 | G131: -26822 | H131: 1 | I131: -26822 | J131: =-'SCH B-3.1'!G48 -> 0 | K131: -26822
A132: 14 | C132: 108 | D132: Retirement Work in Progress | G132: 2439 | H132: 1 | I132: 2439 | K132: 2439
A133: 15 | D133: Completed Construction not Classified | E133: 0 | G133: 0 | H133: 1 | I133: 0 | K133: 0
A137: =A133+1 -> 16 | D137: Total General Plant | E137: =SUM(E119:E136) -> 43996340 | G137: =SUM(G119:G133) -> 22841561 | I137: =SUM(I119:I133) -> 22841561 | J137: =SUM(J119:J133) -> 0 | K137: =SUM(K119:K133) -> 22841561 | N137: =IF(E137='SCH B-2.1'!G123,"BALANCED","ERROR") -> BALANCED
A140: =A137+1 -> 17 | D140: Total Gas Plant | E140: =E30+E89+E137 -> 1051041125 | G140: =G30+G89+G137 -> 237736405 | I140: =I30+I89+I137 -> 237736405 | J140: =J30+J89+J137 -> -7262248 | K140: =K30+K89+K137 -> 230474157 | N140: =IF(E140='SCH B-2.1'!G126,"BALANCED","ERROR") -> BALANCED
A143: (1) Plant Investment Includes Completed Construction Not Classified (Account 106)
A149: =COMPANY -> DUKE ENERGY KENTUCKY, INC.
A150: =CASE -> CASE NO. 2025-00125
A151: =A3 -> ACCUMULATED DEPRECIATION AND AMORTIZATION
A152: ="AS OF " &RIGHT(TESTYR,(LEN(TESTYR)-16)) -> AS OF AUGUST 31, 2025
A154: COMMON PLANT
A158: =Data -> DATA: "X" BASE PERIOD FORECASTED PERIOD | J158: =J10 -> SCHEDULE B-3
A159: =Type -> TYPE OF FILING: "X" ORIGINAL UPDATED REVISED | J159: PAGE 4 OF 8
A160: WORK PAPER REFERENCE NO(S).: SCHEDULE B-2.1, SCHEDULE B-3.1 | J160: =J12 -> WITNESS RESPONSIBLE:
J161: =J13 -> C. C. HUDSON / S. S. MITCHELL
B165: FERC | C165: Company | E165: =E17 -> Base | G165: =G17 -> Base Period Accumulated Balances
A166: Line | B166: Acct. | C166: Acct. | E166: =E18 -> Period | H166: Allocation | I166: Allocated | K166: Adjusted
A167: No. | B167: No. | C167: No. | D167: Account Title | E167: =E19 -> Total (1) | G167: Total | H167: % | I167: Total | J167: Adjustments | K167: Jurisdiction
G168: $ | I168: $ | J168: $ | K168: $
A170: 1 | C170: ='SCH B-2.1'!C152 -> 10300 | D170: ='SCH B-2.1'!D152 -> Miscellaneous Intangible Plant | E170: ='SCH B-2.1'!E152 -> 22442697 | G170: 22415331 | H170: 1 | I170: =ROUND(G170*H170,0) -> 22415331 | K170: =I170+J170 -> 22415331
A171: =A170+1 -> 2 | C171: ='SCH B-2.1'!C153 -> 18900 | D171: ='SCH B-2.1'!D153 -> Land and Land Rights | E171: ='SCH B-2.1'!E153 -> 1041678 | G171: 0 | H171: 1 | I171: =ROUND(G171*H171,0) -> 0 | K171: =I171+J171 -> 0
A172: =A171+1 -> 3 | C172: ='SCH B-2.1'!C154 -> 19000 | D172: ='SCH B-2.1'!D154 -> Structures & Improvements | E172: ='SCH B-2.1'!E154 -> 21619061 | G172: 2632578 | H172: 1 | I172: =ROUND(G172*H172,0) -> 2632578 | K172: =I172+J172 -> 2632578
A173: 4 | C173: ='SCH B-2.1'!C155 -> 19100 | D173: ='SCH B-2.1'!D155 -> Office Furniture & Equipment | E173: ='SCH B-2.1'!E155 -> 1560369 | G173: 463786 | H173: 1 | I173: =ROUND(G173*H173,0) -> 463786 | K173: =I173+J173 -> 463786
A174: 5 | C174: 19100-URR | D174: Office Furniture & Equipment | E174: 0 | F174: (2) | G174: 0 | H174: 1 | I174: 0 | K174: 0
A175: 6 | C175: ='SCH B-2.1'!C156 -> 19101 | D175: ='SCH B-2.1'!D156 -> Electronic Data Processing | E175: ='SCH B-2.1'!E156 -> 3042 | G175: -2191 | H175: 1 | I175: -2191 | K175: -2191
A176: 7 | C176: 19101-URR | D176: Electronic Data Processing | E176: 0 | F176: (2) | G176: 0 | H176: 1 | I176: 0 | K176: 0
A177: 8 | C177: ='SCH B-2.1'!C157 -> 19300 | D177: ='SCH B-2.1'!D157 -> Stores Equipment | E177: ='SCH B-2.1'!E157 -> 0 | G177: 0 | H177: 1 | I177: 0 | K177: 0
A178: 9 | C178: ='SCH B-2.1'!C158 -> 19400 | D178: ='SCH B-2.1'!D158 -> Tools, Shop & Garage Equipment | E178: ='SCH B-2.1'!E158 -> 107980 | G178: 74753 | H178: 1 | I178: 74753 | K178: 74753
A179: 10 | C179: 19400-URR | D179: Tools, Shop & Garage Equipment | E179: 0 | F179: (2) | G179: 0 | H179: 1 | I179: 0 | K179: 0
A180: 11 | C180: ='SCH B-2.1'!C159 -> 19700 | D180: ='SCH B-2.1'!D159 -> Communication Equipment | E180: ='SCH B-2.1'!E159 -> 5227628 | G180: 1787040 | H180: 1 | I180: 1787040 | K180: 1787040
A181: 12 | C181: 19700-URR | D181: Communication Equipment | E181: 0 | F181: (2) | G181: 0 | H181: 1 | I181: 0 | K181: 0
A182: 13 | C182: ='SCH B-2.1'!C160 -> 19800 | D182: ='SCH B-2.1'!D160 -> Miscellaneous Equipment | E182: ='SCH B-2.1'!E160 -> 95301 | G182: 63468 | H182: 1 | I182: =ROUND(G182*H182,0) -> 63468 | K182: =I182+J182 -> 63468
A183: 14 | C183: 19800-URR | D183: Miscellaneous Equipment | E183: 0 | F183: (2) | G183: 0 | H183: 1 | I183: =ROUND(G183*H183,0) -> 0 | K183: =I183+J183 -> 0
A184: 15 | D184: Asset Retirement Cost Obligation | E184: ='SCH B-2.1'!E161 -> 1486982 | G184: 110444 | H184: 1 | I184: =ROUND(G184*H184,0) -> 110444 | J184: =-I184 -> -110444 | K184: =I184+J184 -> 0
A185: 16 | C185: 108 | D185: Retirement Work in Progress | E185: 0 | G185: 3736 | H185: 1 | I185: =ROUND(G185*H185,0) -> 3736 | K185: =I185+J185 -> 3736
A189: =A185+1 -> 17 | D189: Total Common Plant | E189: =SUM(E170:E187) -> 53584738 | G189: =SUM(G170:G187) -> 27548945 | I189: =SUM(I170:I187) -> 27548945 | J189: =SUM(J170:J187) -> -110444 | K189: =SUM(K170:K187) -> 27438501 | N189: =IF(E189='SCH B-2.1'!G164,"BALANCED","ERROR") -> BALANCED
D192: Common Plant Allocated to Gas
A193: =A189+1 -> 18 | C193: =CommonG -> 0.2925 | D193: Original Cost | E193: =ROUND(E189*C193,0) -> 15673536 | N193: =IF(E193='SCH B-2.1'!G167,"BALANCED","ERROR") -> BALANCED
A194: =A193+1 -> 19 | C194: =CommonG -> 0.2925 | D194: Reserve for Depreciation | G194: =ROUND(G189*C194,0) -> 8058066 | I194: =G194 -> 8058066 | J194: =ROUND(J189*$C$194,0) -> -32305 | K194: =I194+J194 -> 8025761
A197: =A194+1 -> 20 | D197: Total Gas Plant Including Allocated Common | E197: =E140+E193 -> 1066714661 | G197: =G140+G194 -> 245794471 | I197: =I140+I194 -> 245794471 | J197: =J140+J194 -> -7294553 | K197: =K140+K194 -> 238499918 | N197: =IF(E197='SCH B-2.1'!G170,"BALANCED","ERROR") -> BALANCED
A200: (1) Plant Investment Includes Completed Construction Not Classified (Account 106)
A201: (2) 5 year life for Unrecovered Reserve for Amortization
A204: =COMPANY -> DUKE ENERGY KENTUCKY, INC.
A205: =CASE -> CASE NO. 2025-00125
A206: ACCUMULATED DEPRECIATION AND AMORTIZATION
A207: ="AS OF " &RIGHT(Forecast,(LEN(Forecast)-16)) -> AS OF DECEMBER 31, 2026
A209: MANUFACTURED GAS PRODUCTION PLANT
A213: =DataF -> DATA: BASE PERIOD "X" FORECASTED PERIOD | J213: SCHEDULE B-3
A214: =Type -> TYPE OF FILING: "X" ORIGINAL UPDATED REVISED | J214: PAGE 5 OF 8
A215: WORK PAPER REFERENCE NO(S).: SCHEDULE B-2.1, SCHEDULE B-3.1 | J215: WITNESS RESPONSIBLE:
J216: =_WIT7 -> C. C. HUDSON / S. S. MITCHELL
E219: 13 Month
B220: FERC | C220: Company | E220: Average | G220: 13 Month Average Forecasted Period Accumulated Balances
A221: Line | B221: Acct. | C221: Acct. | E221: Forecasted | H221: Jurisdictional | I221: Jurisdictional | K221: Adjusted
A222: No. | B222: No. | C222: No. | D222: Account Title | E222: Period (1) | G222: Total | H222: % | I222: Total | J222: Adjustments | K222: Jurisdiction
E223: $ | G223: $ | I223: $ | J223: $ | K223: $
A225: 1 | B225: =B22 -> 304 | C225: 20400 | D225: Land and Land Rights | E225: ='SCH B-2.1'!E195 -> 0 | G225: 0 | H225: 1 | I225: =ROUND((G225*H225),0) -> 0 | J225: 0 | K225: =I225+J225 -> 0
A226: =1+A225 -> 2 | B226: 304 | C226: 20401 | D226: Rights of Way | E226: ='SCH B-2.1'!E196 -> 0 | G226: 0 | H226: 1 | I226: =ROUND((G226*H226),0) -> 0 | J226: =-'SCH B-3.1'!G84 -> 0 | K226: =I226+J226 -> 0
A227: =1+A226 -> 3 | B227: 305 | C227: 20500 | D227: Structures & Improvements | E227: ='SCH B-2.1'!E197 -> 0 | G227: 0 | H227: 1 | I227: =ROUND((G227*H227),0) -> 0 | J227: =-'SCH B-3.1'!G85 -> 0 | K227: =I227+J227 -> 0
A228: =1+A227 -> 4 | B228: 311 | C228: 21100 | D228: Liquefied Petroleum Gas Equipment | E228: ='SCH B-2.1'!E198 -> 0 | G228: 0 | H228: 1 | I228: =ROUND((G228*H228),0) -> 0 | J228: =-'SCH B-3.1'!G86 -> 0 | K228: =I228+J228 -> 0
A229: =1+A228 -> 5 | C229: =C26 -> 108 | D229: =D26 -> Retirement Work in Progress | G229: 0 | H229: 1 | I229: =ROUND((G229*H229),0) -> 0 | K229: =I229+J229 -> 0
A232: =A229+1 -> 6 | D232: Total Manufactured Gas Production Plant | E232: =SUM(E225:E231) -> 0 | G232: =SUM(G225:G229) -> 0 | I232: =SUM(I225:I229) -> 0 | J232: =SUM(J225:J229) -> 0 | K232: =SUM(K225:K229) -> 0 | N232: =IF(E232='SCH B-2.1'!G201,"BALANCED","ERROR") -> BALANCED
A235: (1) Plant Investment Includes Completed Construction Not Classified (Account 106)
A242: =COMPANY -> DUKE ENERGY KENTUCKY, INC.
A243: =CASE -> CASE NO. 2025-00125
A244: =A206 -> ACCUMULATED DEPRECIATION AND AMORTIZATION
A245: ="AS OF " &RIGHT(Forecast,(LEN(Forecast)-16)) -> AS OF DECEMBER 31, 2026
A247: DISTRIBUTION PLANT
A251: =DataF -> DATA: BASE PERIOD "X" FORECASTED PERIOD | J251: =J213 -> SCHEDULE B-3
A252: =Type -> TYPE OF FILING: "X" ORIGINAL UPDATED REVISED | J252: PAGE 6 OF 8
A253: =A215 -> WORK PAPER REFERENCE NO(S).: SCHEDULE B-2.1, SCHEDULE B-3.1 | J253: =J215 -> WITNESS RESPONSIBLE:
J254: =J216 -> C. C. HUDSON / S. S. MITCHELL
E257: =E219 -> 13 Month
B258: FERC | C258: Company | E258: =E220 -> Average | G258: =G220 -> 13 Month Average Forecasted Period Accumulated Balances
A259: Line | B259: Acct. | C259: Acct. | E259: =E221 -> Forecasted | H259: Allocation | I259: Allocated | K259: Adjusted
A260: No. | B260: No. | C260: No. | D260: Account Title | E260: =E222 -> Period (1) | G260: Total | H260: % | I260: Total | J260: Adjustments | K260: Jurisdiction
G261: $ | I261: $ | J261: $ | K261: $
A263: 1 | B263: =B61 -> 374 | C263: 27400 | D263: Land and Land Rights | E263: ='SCH B-2.1'!E226 -> 10738790 | G263: 15490 | H263: 1 | I263: =ROUND((G263*H263),0) -> 15490 | K263: =I263+J263 -> 15490
A264: =A263+1 -> 2 | B264: 374.1 | C264: 27401 | D264: Rights of Way | E264: ='SCH B-2.1'!E227 -> 7942950 | G264: 996750 | H264: 1 | I264: 996750 | J264: =-'SCH B-3.1'!G93 -> -88791 | K264: 907959
A265: 3 | B265: 375 | C265: 27500 | D265: Structures & Improvements | E265: ='SCH B-2.1'!E228 -> 10890376 | G265: 693751 | H265: 1 | I265: 693751 | J265: =-'SCH B-3.1'!G94 -> -222850 | K265: 470901
A266: 4 | B266: 376.1 | C266: 27601 | D266: Mains - Cast Iron & Copper | E266: ='SCH B-2.1'!E229 -> 2658026 | G266: 2013226 | H266: 1 | I266: 2013226 | K266: 2013226
A267: 5 | B267: 376.2 | C267: 27602,27607 | D267: Mains - Steel | E267: ='SCH B-2.1'!E230 -> 93672035 | G267: 46546866 | H267: 1 | I267: 46546866 | J267: =-'SCH B-3.1'!G95 -> -735 | K267: 46546131
A268: 6 | B268: 376.3 | C268: 27603,27608 | D268: Mains - Plastic | E268: ='SCH B-2.1'!E231 -> 228244733 | G268: 66829810 | H268: 1 | I268: 66829810 | K268: 66829810
A269: 7 | B269: 376.5 | C269: 27605 | D269: Mains - Feeder | E269: ='SCH B-2.1'!E232 -> 278958480 | G269: 15477946 | H269: 1 | I269: 15477946 | J269: =-'SCH B-3.1'!G96-'SCH B-3.1'!G99 -> -6363568 | K269: 9114378
A270: 8 | B270: 378 | C270: 27800 | D270: System Meas. & Reg. Station Equipment - General | E270: ='SCH B-2.1'!E233 -> 118114591 | G270: 8634737 | H270: 1 | I270: 8634737 | J270: =-'SCH B-3.1'!G97-'SCH B-3.1'!G100 -> -1223838 | K270: 7410899
A271: 9 | B271: 378.1 | C271: 27801 | D271: System Meas. & Reg. Station Equipment - Electric | E271: ='SCH B-2.1'!E234 -> 2226848 | G271: 952710 | H271: 1 | I271: 952710 | J271: =-'SCH B-3.1'!G98 -> -146082 | K271: 806628
A272: =A271+1 -> 10 | B272: 378.2 | C272: 27802 | D272: District Regulating Equipment | E272: ='SCH B-2.1'!E235 -> 2165173 | G272: 712503 | H272: 1 | I272: 712503 | K272: 712503
A273: =A272+1 -> 11 | B273: 379 | C273: 27900 | D273: System Meas. & Reg. Station Equipment - City Gate | E273: ='SCH B-2.1'!E236 -> 1788750 | G273: 159216 | H273: 1 | I273: =ROUND((G273*H273),0) -> 159216 | K273: =I273+J273 -> 159216
A274: 12 | B274: 380.1 | C274: 28001 | D274: Services- Cast Iron & Copper | E274: ='SCH B-2.1'!E237 -> 26708 | G274: -1895877 | H274: 1 | I274: -1895877 | K274: -1895877
A275: 13 | B275: 380.2 | C275: 28002,28004 | D275: Services-Steel | E275: ='SCH B-2.1'!E238 -> 7042161 | G275: 2188097 | H275: 1 | I275: 2188097 | K275: 2188097
A276: 14 | B276: 380.3 | C276: 28003,28005-28007 | D276: Services-Plastic | E276: ='SCH B-2.1'!E239 -> 247535656 | G276: 78202401 | H276: 1 | I276: 78202401 | K276: 78202401
A277: 15 | B277: 381 | C277: 28100 | D277: Meters | E277: ='SCH B-2.1'!E240 -> 21591079 | G277: 3330195 | H277: 1 | I277: 3330195 | K277: 3330195
